Workbook

Sheet Info
A3: Character generator, ver 1.0 Middle-Earth edition
A4: Jag tog den av Charlie och förädlade den. Välkommen till 2011, nu kan vi göra rollpersoner i datan. Jag har ändrat och lagt till mycket och glömt bort att skriva versioninfo tyvärr, så ja… men allt funkar. Tror jag.
A9: NPC-generator, ver 0.6 Georgetown edition
A10: Är du less på att göra NPCs och försöka klura ut en rimlig OB? Det hoppas jag att du slipper. Den här kalkylen genererar en NPC utan namn, de NPC som har namn bör göras lika noggrant som en vanlig karaktär.
A14: Vad behöver du?
A15: Ett kalkylprogram kompatibelt med Excel 97. OpenOffice.org är tyvärr inte det ännu…
A16: Aktivera makron (eller nöj dig med att göra bara en NPC).
A17: Troligtvis behöver du ha spelat RoleMaster i Spelföreningen Stonehenge också…
A18: En skärmupplösning som är 1024 x 768 eller ett fönster som är så stort…
A21: Hjälp, jag fattar ingenting av det här!
A24: =OFFSET(Diverse!K1,Diverse!L1-1,0) -> Svar på tal, din jävla tattare… du med så sparsam intellektuell begåvning ska passa dig noga!

Sheet Ny NPC
A2: 1 | B2: Cost | C2: 1 | D2: Hur ofta sätter du ut kryss? | E2: Rank | F2: Cost1 | G2: Cost2 | H2: Cost | J2: Skill | K2: Stat | L2: Lvl | M2: Ras | N2: Misc | O2: Item | P2: Total | R2: Character Name | U2: Temp | V2: Dev | W2: Pot | X2: Stat | Y2: Ras | Z2: B.O | AA2: Spec | AB2: Tot
A3: AM Balance | B3: =VLOOKUP(A3,AllaSkills!$A$3:$BV$317,$A$2+3,FALSE) -> 6 | C3: 0 | D3: =INDEX(Diverse!$H$1:$H$5,$C3+1) -> Nada | E3: =ROUND(Level*(C3/2),0)+VLOOKUP($A3,Rasbonus!$A$29:$AJ$59,MATCH(Ras,Rasbonus!$A$1:$AJ$1,0),FALSE) -> 0 | F3: =IF(LEN(B3)=3,LEFT(B3,1),IF(LEN(B3)<3,B3,99)) -> 6 | G3: =IF(RIGHT(B3,1)="*",LEFT(B3,1),IF(LEN(B3)=3,RIGHT(B3,1),IF(LEN(B3)<3,B3,RIGHT(B3,2)))) -> 6 | H3: =IF(D3="Ett varannan level",F3+F3-F3,IF(D3="Ett varje level",2*F3,IF(D3="Tre på två levlar",F3+G3+F3,IF(D3="Nada",0,F3+G3+F3+G3)))) -> 0 | I3: =HLOOKUP(Yrke,Levelbonus!$B$1:$CR$20,6,0) -> 0 | J3: =IF(E3<1,-25,IF(E3>30,80+((E3-30)*0.5),IF(E3>20,70+(E3-20),IF(E3>10,50+((E3-10)*2),E3*5)))) -> -25 | K3: =ROUND((AG+SD)/2,0) -> 5 | L3: =IF(Level<21,Level*I3,IF(I3>2,60+(Level-20),IF(I3=2,40+((Level-20)*0.5),IF(Level=0,0,IF(I3=0,0,20))))) -> 0 | M3: =IF(ISNUMBER(VLOOKUP($A3,Rasbonus!$A$61:$AJ$295,MATCH(Ras,Rasbonus!$A$1:$AJ$1,0),FALSE)),VLOOKUP($A3,Rasbonus!$A$61:$AJ$295,MATCH(Ras,Rasbonus!$A$1:$AJ$1,0),FALSE),0) -> 0 | N3: =IF($AB$58>16,$P$23,IF($AB$58>12,$P$22, IF($AB$58>8,$P$21,IF($AB$58>4,$P$20,"0")))) -> 0 | P3: =SUM(J3:O3) -> -20 | R3: Yrke | T3: Constitution | U3: 75 | V3: =VLOOKUP(U3,Diverse!$A$2:$C$131,3,0) -> 7 | X3: =VLOOKUP(U3,Diverse!$A$2:$B$131,2,0) -> 5 | Y3: =HLOOKUP(Ras,Rasbonus!$B$1:$AJ$12,2,0) -> 15 | AB3: =SUM(X3:AA3) -> 20
A4: AM Landing | B4: =VLOOKUP(A4,AllaSkills!$A$3:$BV$317,$A$2+3,FALSE) -> 6 | C4: 0 | D4: =INDEX(Diverse!$H$1:$H$5,$C4+1) -> Nada | E4: =ROUND(Level*(C4/2),0) -> 0 | F4: =IF(LEN(B4)=3,LEFT(B4,1),IF(LEN(B4)<3,B4,99)) -> 6 | G4: 6 | H4: =IF(D4="Ett varannan level",F4+F4-F4,IF(D4="Ett varje level",2*F4,IF(D4="Tre på två levlar",F4+G4+F4,IF(D4="Nada",0,F4+G4+F4+G4)))) -> 0 | I4: =HLOOKUP(Yrke,Levelbonus!$B$1:$CR$20,6,0) -> 0 | J4: =IF(E4<1,-25,IF(E4>30,80+((E4-30)*0.5),IF(E4>20,70+(E4-20),IF(E4>10,50+((E4-10)*2),E4*5)))) -> -25 | K4: =ROUND((AG+SD)/2,0) -> 5 | L4: 0 | M4: =IF(ISNUMBER(VLOOKUP($A4,Rasbonus!$A$61:$AJ$295,MATCH(Ras,Rasbonus!$A$1:$AJ$1,0),FALSE)),VLOOKUP($A4,Rasbonus!$A$61:$AJ$295,MATCH(Ras,Rasbonus!$A$1:$AJ$1,0),FALSE),0) -> 0 | N4: =IF($AB$58>16,$P$23,IF($AB$58>12,$P$22, IF($AB$58>8,$P$21,IF($AB$58>4,$P$20,"0")))) -> 0 | P4: =SUM(J4:O4) -> -20 | T4: Agility | U4: 75 | V4: =VLOOKUP(U4,Diverse!$A$2:$C$131,3,0) -> 7 | X4: =VLOOKUP(U4,Diverse!$A$2:$B$131,2,0) -> 5 | Y4: =HLOOKUP(Ras,Rasbonus!$B$1:$AJ$12,3,0) -> -5 | AB4: =SUM(X4:AA4) -> 0
A5: AM Leaping | B5: =VLOOKUP(A5,AllaSkills!$A$3:$BV$317,$A$2+3,FALSE) -> 6 | C5: 0 | D5: =INDEX(Diverse!$H$1:$H$5,$C5+1) -> Nada | E5: =ROUND(Level*(C5/2),0) -> 0 | F5: =IF(LEN(B5)=3,LEFT(B5,1),IF(LEN(B5)<3,B5,99)) -> 6 | G5: 6 | H5: =IF(D5="Ett varannan level",F5+F5-F5,IF(D5="Ett varje level",2*F5,IF(D5="Tre på två levlar",F5+G5+F5,IF(D5="Nada",0,F5+G5+F5+G5)))) -> 0 | I5: =HLOOKUP(Yrke,Levelbonus!$B$1:$CR$20,6,0) -> 0 | J5: =IF(E5<1,-25,IF(E5>30,80+((E5-30)*0.5),IF(E5>20,70+(E5-20),IF(E5>10,50+((E5-10)*2),E5*5)))) -> -25 | K5: =ROUND((AG+SD)/2,0) -> 5 | L5: 0 | M5: =IF(ISNUMBER(VLOOKUP($A5,Rasbonus!$A$61:$AJ$295,MATCH(Ras,Rasbonus!$A$1:$AJ$1,0),FALSE)),VLOOKUP($A5,Rasbonus!$A$61:$AJ$295,MATCH(Ras,Rasbonus!$A$1:$AJ$1,0),FALSE),0) -> 0 | N5: =IF($AB$58>16,$P$23,IF($AB$58>12,$P$22, IF($AB$58>8,$P$21,IF($AB$58>4,$P$20,"0")))) -> 0 | P5: -20 | T5: Self Discipline | U5: 75 | V5: =VLOOKUP(U5,Diverse!$A$2:$C$131,3,0) -> 7 | X5: =VLOOKUP(U5,Diverse!$A$2:$B$131,2,0) -> 5 | Y5: =HLOOKUP(Ras,Rasbonus!$B$1:$AJ$12,4,0) -> 5 | AB5: =SUM(X5:AA5) -> 10
A6: AM Speed | B6: =VLOOKUP(A6,AllaSkills!$A$3:$BV$317,$A$2+3,FALSE) -> 6 | C6: 0 | D6: =INDEX(Diverse!$H$1:$H$5,$C6+1) -> Nada | E6: =ROUND(Level*(C6/2),0)+VLOOKUP($A6,Rasbonus!$A$29:$AJ$59,MATCH(Ras,Rasbonus!$A$1:$AJ$1,0),FALSE) -> 0 | F6: 6 | G6: 6 | H6: 0 | I6: =HLOOKUP(Yrke,Levelbonus!$B$1:$CR$20,6,0) -> 0 | J6: -25 | K6: =ROUND((AG+SD)/2,0) -> 5 | L6: 0 | M6: =IF(ISNUMBER(VLOOKUP($A6,Rasbonus!$A$61:$AJ$295,MATCH(Ras,Rasbonus!$A$1:$AJ$1,0),FALSE)),VLOOKUP($A6,Rasbonus!$A$61:$AJ$295,MATCH(Ras,Rasbonus!$A$1:$AJ$1,0),FALSE),0) -> 0 | N6: =IF($AB$58>16,$P$23,IF($AB$58>12,$P$22, IF($AB$58>8,$P$21,IF($AB$58>4,$P$20,"0")))) -> 0 | P6: -20 | R6: Ras | T6: Reasoning | U6: 75 | V6: =VLOOKUP(U6,Diverse!$A$2:$C$131,3,0) -> 7 | X6: =VLOOKUP(U6,Diverse!$A$2:$B$131,2,0) -> 5 | Y6: =HLOOKUP(Ras,Rasbonus!$B$1:$AJ$12,5,0) -> 0 | AB6: 5
A7: AM Strength | B7: =VLOOKUP(A7,AllaSkills!$A$3:$BV$317,$A$2+3,FALSE) -> 6 | C7: 0 | D7: =INDEX(Diverse!$H$1:$H$5,$C7+1) -> Nada | E7: =ROUND(Level*(C7/2),0)+VLOOKUP($A7,Rasbonus!$A$29:$AJ$59,MATCH(Ras,Rasbonus!$A$1:$AJ$1,0),FALSE) -> 2 | F7: 6 | G7: 6 | H7: 0 | I7: =HLOOKUP(Yrke,Levelbonus!$B$1:$CR$20,6,0) -> 0 | J7: 10 | K7: =ROUND((ST+SD)/2,0) -> 13 | L7: 0 | M7: =IF(ISNUMBER(VLOOKUP($A7,Rasbonus!$A$61:$AJ$295,MATCH(Ras,Rasbonus!$A$1:$AJ$1,0),FALSE)),VLOOKUP($A7,Rasbonus!$A$61:$AJ$295,MATCH(Ras,Rasbonus!$A$1:$AJ$1,0),FALSE),0) -> 0 | P7: 23 | T7: Eloquence | U7: 75 | V7: =VLOOKUP(U7,Diverse!$A$2:$C$131,3,0) -> 7 | X7: =VLOOKUP(U7,Diverse!$A$2:$B$131,2,0) -> 5 | Y7: =HLOOKUP(Ras,Rasbonus!$B$1:$AJ$12,6,0) -> 0 | AB7: 5
A8: Adrenal Defense | B8: =VLOOKUP(A8,AllaSkills!$A$3:$BV$317,$A$2+3,FALSE) -> 20 | C8: 0 | D8: =INDEX(Diverse!$H$1:$H$5,$C8+1) -> Nada | E8: =ROUND(Level*(C8/2),0) -> 0 | F8: 20 | G8: 20 | H8: 0 | I8: =HLOOKUP(Yrke,Levelbonus!$B$1:$CR$20,6,0) -> 0 | J8: -25 | L8: 0 | M8: =IF(ISNUMBER(VLOOKUP($A8,Rasbonus!$A$61:$AJ$295,MATCH(Ras,Rasbonus!$A$1:$AJ$1,0),FALSE)),VLOOKUP($A8,Rasbonus!$A$61:$AJ$295,MATCH(Ras,Rasbonus!$A$1:$AJ$1,0),FALSE),0) -> 0 | N8: =IF($AB$58>16,$P$23,IF($AB$58>12,$P$22, IF($AB$58>8,$P$21,IF($AB$58>4,$P$20,"0")))) -> 0 | P8: -25 | T8: Strength | U8: 75 | V8: =VLOOKUP(U8,Diverse!$A$2:$C$131,3,0) -> 7 | X8: =VLOOKUP(U8,Diverse!$A$2:$B$131,2,0) -> 5 | Y8: =HLOOKUP(Ras,Rasbonus!$B$1:$AJ$12,7,0) -> 10 | AB8: 15
A9: Armored AD | B9: =VLOOKUP(A9,AllaSkills!$A$3:$BV$317,$A$2+3,FALSE) -> 20 | C9: 0 | D9: =INDEX(Diverse!$H$1:$H$5,$C9+1) -> Nada | E9: 0 | F9: 20 | G9: 20 | H9: 0 | I9: =HLOOKUP(Yrke,Levelbonus!$B$1:$CR$20,6,0) -> 0 | J9: -25 | L9: 0 | M9: =IF(ISNUMBER(VLOOKUP($A9,Rasbonus!$A$61:$AJ$295,MATCH(Ras,Rasbonus!$A$1:$AJ$1,0),FALSE)),VLOOKUP($A9,Rasbonus!$A$61:$AJ$295,MATCH(Ras,Rasbonus!$A$1:$AJ$1,0),FALSE),0) -> 0 | N9: =IF($AB$58>16,$P$23,IF($AB$58>12,$P$22, IF($AB$58>8,$P$21,IF($AB$58>4,$P$20,"0")))) -> 0 | P9: -25 | R9: =CONCATENATE("Level: ",Level) -> Level: 3 | T9: Quickness | U9: 75 | V9: =VLOOKUP(U9,Diverse!$A$2:$C$131,3,0) -> 7 | X9: =VLOOKUP(U9,Diverse!$A$2:$B$131,2,0) -> 5 | Y9: =HLOOKUP(Ras,Rasbonus!$B$1:$AJ$12,8,0) -> -5 | AB9: 0
A10: Ambush | B10: =VLOOKUP(A10,AllaSkills!$A$3:$BV$317,$A$2+3,FALSE) -> 9 | C10: 0 | D10: =INDEX(Diverse!$H$1:$H$5,$C10+1) -> Nada | E10: =ROUND(Level*(C10/2),0)+VLOOKUP($A10,Rasbonus!$A$29:$AJ$59,MATCH(Ras,Rasbonus!$A$1:$AJ$1,0),FALSE) -> 0 | F10: 9 | G10: 9 | H10: 0 | I10: =HLOOKUP(Yrke,Levelbonus!$B$1:$CR$20,7,0) -> 0 | J10: -25 | L10: 0 | M10: =IF(ISNUMBER(VLOOKUP($A10,Rasbonus!$A$61:$AJ$295,MATCH(Ras,Rasbonus!$A$1:$AJ$1,0),FALSE)),VLOOKUP($A10,Rasbonus!$A$61:$AJ$295,MATCH(Ras,Rasbonus!$A$1:$AJ$1,0),FALSE),0) -> 0 | P10: -25 | T10: Presence | U10: 75 | V10: =VLOOKUP(U10,Diverse!$A$2:$C$131,3,0) -> 7 | X10: =VLOOKUP(U10,Diverse!$A$2:$B$131,2,0) -> 5 | Y10: =HLOOKUP(Ras,Rasbonus!$B$1:$AJ$12,9,0) -> -5 | AB10: 0
A11: Sniping | B11: =VLOOKUP(A11,AllaSkills!$A$3:$BV$317,$A$2+3,FALSE) -> 9 | C11: 0 | D11: =INDEX(Diverse!$H$1:$H$5,$C11+1) -> Nada | E11: 0 | F11: 9 | G11: 9 | H11: 0 | I11: =HLOOKUP(Yrke,Levelbonus!$B$1:$CR$20,7,0) -> 0 | J11: -25 | L11: 0 | M11: =IF(ISNUMBER(VLOOKUP($A11,Rasbonus!$A$61:$AJ$295,MATCH(Ras,Rasbonus!$A$1:$AJ$1,0),FALSE)),VLOOKUP($A11,Rasbonus!$A$61:$AJ$295,MATCH(Ras,Rasbonus!$A$1:$AJ$1,0),FALSE),0) -> 0 | P11: -25 | R11: =CONCATENATE("Din ras slår hits med en ",HLOOKUP(Ras,Rasbonus!$B$1:$AJ$13,13,FALSE)," vilket ger ett medel mellan 1 och ",MID(HLOOKUP(Ras,Rasbonus!$B$1:$AJ$13,13,FALSE),2,2),". Hur mycket har du slagit?") -> Din ras slår hits med en D10 vilket ger ett medel mellan 1 och 10. Hur mycket har du slagit? | T11: Intuition | U11: 75 | V11: =VLOOKUP(U11,Diverse!$A$2:$C$131,3,0) -> 7 | X11: =VLOOKUP(U11,Diverse!$A$2:$B$131,2,0) -> 5 | Y11: =HLOOKUP(Ras,Rasbonus!$B$1:$AJ$12,10,0) -> 0 | AB11: 5
A12: Body Development | B12: =VLOOKUP(A12,AllaSkills!$A$3:$BV$317,$A$2+3,FALSE) -> 6 | C12: 0 | D12: =INDEX(Diverse!$H$1:$H$5,$C12+1) -> Nada | E12: =ROUND(Level*(C12/2),0)+VLOOKUP($A12,Rasbonus!$A$29:$AJ$59,MATCH(Ras,Rasbonus!$A$1:$AJ$1,0),FALSE) -> 3 | F12: 6 | G12: 6 | H12: 0 | I12: =HLOOKUP(Yrke,Levelbonus!$B$1:$CR$20,19,0) -> 0 | J12: =E12*Medelhits -> 13.5 | K12: =ROUND(U3,0)/10 -> 7.5 | L12: 0 | M12: =IF(ISNUMBER(VLOOKUP($A12,Rasbonus!$A$61:$AJ$295,MATCH(Ras,Rasbonus!$A$1:$AJ$1,0),FALSE)),VLOOKUP($A12,Rasbonus!$A$61:$AJ$295,MATCH(Ras,Rasbonus!$A$1:$AJ$1,0),FALSE),0) -> 0 | P12: 21 | T12: Empathy | U12: 75 | V12: =VLOOKUP(U12,Diverse!$A$2:$C$131,3,0) -> 7 | X12: =VLOOKUP(U12,Diverse!$A$2:$B$131,2,0) -> 5 | Y12: =HLOOKUP(Ras,Rasbonus!$B$1:$AJ$12,11,0) -> -5 | AB12: 0
A13: Channeling | B13: =VLOOKUP(A13,AllaSkills!$A$3:$BV$317,$A$2+3,FALSE) -> 4/8 | C13: 0 | D13: =INDEX(Diverse!$H$1:$H$5,$C13+1) -> Nada | E13: 0 | F13: 4 | G13: 8 | H13: 0 | I13: =HLOOKUP(Yrke,Levelbonus!$B$1:$CR$20,12,0) -> 3 | J13: -25 | K13: =IN -> 5 | L13: 9 | M13: =IF(ISNUMBER(VLOOKUP($A13,Rasbonus!$A$61:$AJ$295,MATCH(Ras,Rasbonus!$A$1:$AJ$1,0),FALSE)),VLOOKUP($A13,Rasbonus!$A$61:$AJ$295,MATCH(Ras,Rasbonus!$A$1:$AJ$1,0),FALSE),0) -> 0 | P13: -11 | T13: Appearance | U13: 75 | X13: =VLOOKUP(U13,Diverse!$A$2:$B$131,2,0) -> 5 | Y13: =HLOOKUP(Ras,Rasbonus!$B$1:$AJ$12,12,0) -> 0 | AB13: =SUM(X13:AA13) -> 5
A14: Climbing | B14: =VLOOKUP(A14,AllaSkills!$A$3:$BV$317,$A$2+3,FALSE) -> 7 | C14: 0 | D14: =INDEX(Diverse!$H$1:$H$5,$C14+1) -> Nada | E14: =ROUND(Level*(C14/2),0)+VLOOKUP($A14,Rasbonus!$A$29:$AJ$59,MATCH(Ras,Rasbonus!$A$1:$AJ$1,0),FALSE) -> 1 | F14: 7 | G14: 7 | H14: 0 | I14: =HLOOKUP(Yrke,Levelbonus!$B$1:$CR$20,4,0) -> 0 | J14: 5 | K14: =AG -> 0 | L14: 0 | M14: =IF(ISNUMBER(VLOOKUP($A14,Rasbonus!$A$61:$AJ$295,MATCH(Ras,Rasbonus!$A$1:$AJ$1,0),FALSE)),VLOOKUP($A14,Rasbonus!$A$61:$AJ$295,MATCH(Ras,Rasbonus!$A$1:$AJ$1,0),FALSE),0) -> 0 | N14: =IF($AB$58>16,$P$23,IF($AB$58>12,$P$22, IF($AB$58>8,$P$21,IF($AB$58>4,$P$20,"0")))) -> 0 | P14: 5 | U14: =SUM(U3:U13) -> 825 | X14: =SUM(X3:X13) -> 55 | Y14: =SUM(Y3:Y13) -> 10 | Z14: =SUM(Z3:Z13) -> 0 | AA14: =SUM(AA3:AA13) -> 0 | AB14: =SUM(AB3:AB13) -> 65
A15: Directed Spells | B15: =VLOOKUP(A15,AllaSkills!$A$3:$BV$317,$A$2+3,FALSE) -> 2/7 | C15: 0 | D15: =INDEX(Diverse!$H$1:$H$5,$C15+1) -> Nada | E15: =ROUND(Level*(C15/2),0) -> 0 | F15: 2 | G15: 7 | H15: 0 | I15: =HLOOKUP(Yrke,Levelbonus!$B$1:$CR$20,17,0) -> 0 | J15: -25 | K15: =AG -> 0 | L15: 0 | M15: =IF(ISNUMBER(VLOOKUP($A15,Rasbonus!$A$61:$AJ$295,MATCH(Ras,Rasbonus!$A$1:$AJ$1,0),FALSE)),VLOOKUP($A15,Rasbonus!$A$61:$AJ$295,MATCH(Ras,Rasbonus!$A$1:$AJ$1,0),FALSE),0) -> 0 | P15: -25 | R15: =CONCATENATE("Eh jag slog.. ca ",Medelhits) -> Eh jag slog.. ca 4,5
A16: Disarm Traps | B16: =VLOOKUP(A16,AllaSkills!$A$3:$BV$317,$A$2+3,FALSE) -> 4 | C16: 0 | D16: =INDEX(Diverse!$H$1:$H$5,$C16+1) -> Nada | E16: =ROUND(Level*(C16/2),0)+VLOOKUP($A16,Rasbonus!$A$29:$AJ$59,MATCH(Ras,Rasbonus!$A$1:$AJ$1,0),FALSE) -> 1 | F16: 4 | G16: 4 | H16: 0 | I16: =HLOOKUP(Yrke,Levelbonus!$B$1:$CR$20,16,0) -> 0 | J16: 5 | K16: =ROUND((IN+AG)/2,0) -> 3 | L16: 0 | M16: =IF(ISNUMBER(VLOOKUP($A16,Rasbonus!$A$61:$AJ$295,MATCH(Ras,Rasbonus!$A$1:$AJ$1,0),FALSE)),VLOOKUP($A16,Rasbonus!$A$61:$AJ$295,MATCH(Ras,Rasbonus!$A$1:$AJ$1,0),FALSE),0) -> 0 | P16: 8 | T16: Spell lists Aqcuisition | AB16: Cost
A17: General Perception | B17: =VLOOKUP(A17,AllaSkills!$A$3:$BV$317,$A$2+3,FALSE) -> 3 | C17: 0 | D17: =INDEX(Diverse!$H$1:$H$5,$C17+1) -> Nada | E17: =ROUND(Level*(C17/2),0)+VLOOKUP($A17,Rasbonus!$A$29:$AJ$59,MATCH(Ras,Rasbonus!$A$1:$AJ$1,0),FALSE) -> 1 | F17: 3 | G17: 3 | H17: 0 | I17: =HLOOKUP(Yrke,Levelbonus!$B$1:$CR$20,14,0) -> 1 | J17: 5 | K17: =ROUND((IN+RE)/2,0) -> 5 | L17: 3 | M17: =IF(ISNUMBER(VLOOKUP($A17,Rasbonus!$A$61:$AJ$295,MATCH(Ras,Rasbonus!$A$1:$AJ$1,0),FALSE)),VLOOKUP($A17,Rasbonus!$A$61:$AJ$295,MATCH(Ras,Rasbonus!$A$1:$AJ$1,0),FALSE),0) -> 0 | P17: 13 | R17: =CONCATENATE("Du har spenderat ",SUM(H3:H36)/2," av dina ",Dev.pts_primary," dev.pts.") -> Du har spenderat 0 av dina 35 dev.pts. | T17: SL (closed, A) | AB17: =VLOOKUP(T17,AllaSkills!$A$3:$BV$317,$A$2+3,FALSE) -> N/A
A18: MA Strikes | B18: =VLOOKUP(A18,AllaSkills!$A$3:$BV$317,$A$2+3,FALSE) -> 9 | C18: 0 | D18: =INDEX(Diverse!$H$1:$H$5,$C18+1) -> Nada | E18: =ROUND(Level*(C18/2),0)+VLOOKUP($A18,Rasbonus!$A$29:$AJ$59,MATCH(Ras,Rasbonus!$A$1:$AJ$1,0),FALSE) -> 2 | F18: =IF(LEN(B18)=3,LEFT(B18,1),IF(LEN(B18)<3,B18,99)) -> 9 | G18: =IF(RIGHT(B18,1)="*",LEFT(B18,1),IF(LEN(B18)=3,RIGHT(B18,1),IF(LEN(B18)<3,B18,RIGHT(B18,2)))) -> 9 | H18: =IF(D18="Ett varannan level",F18+F18-F18,IF(D18="Ett varje level",2*F18,IF(D18="Tre på två levlar",F18+G18+F18,IF(D18="Nada",0,F18+G18+F18+G18)))) -> 0 | I18: =HLOOKUP(Yrke,Levelbonus!$B$1:$CR$20,5,0) -> 0 | J18: =IF(E18<1,-25,IF(E18>30,80+((E18-30)*0.5),IF(E18>20,70+(E18-20),IF(E18>10,50+((E18-10)*2),E18*5)))) -> 10 | K18: =ROUND((ST+ST+AG)/3,0) -> 10 | L18: 0 | M18: =IF(ISNUMBER(VLOOKUP($A18,Rasbonus!$A$61:$AJ$295,MATCH(Ras,Rasbonus!$A$1:$AJ$1,0),FALSE)),VLOOKUP($A18,Rasbonus!$A$61:$AJ$295,MATCH(Ras,Rasbonus!$A$1:$AJ$1,0),FALSE),0) -> 0 | P18: 20 | T18: SL (closed, B) | AB18: =VLOOKUP(T18,AllaSkills!$A$3:$BV$317,$A$2+3,FALSE) -> 1/*
A19: MA Sweeps | B19: =VLOOKUP(A19,AllaSkills!$A$3:$BV$317,$A$2+3,FALSE) -> 9 | C19: 0 | D19: =INDEX(Diverse!$H$1:$H$5,$C19+1) -> Nada | E19: =ROUND(Level*(C19/2),0)+VLOOKUP($A19,Rasbonus!$A$29:$AJ$59,MATCH(Ras,Rasbonus!$A$1:$AJ$1,0),FALSE) -> 0 | F19: =IF(LEN(B19)=3,LEFT(B19,1),IF(LEN(B19)<3,B19,99)) -> 9 | G19: =IF(RIGHT(B19,1)="*",LEFT(B19,1),IF(LEN(B19)=3,RIGHT(B19,1),IF(LEN(B19)<3,B19,RIGHT(B19,2)))) -> 9 | H19: 0 | I19: =HLOOKUP(Yrke,Levelbonus!$B$1:$CR$20,5,0) -> 0 | J19: =IF(E19<1,-25,IF(E19>30,80+((E19-30)*0.5),IF(E19>20,70+(E19-20),IF(E19>10,50+((E19-10)*2),E19*5)))) -> -25 | K19: =ROUND((AG+AG+ST)/3,0) -> 5 | L19: 0 | M19: =IF(ISNUMBER(VLOOKUP($A19,Rasbonus!$A$61:$AJ$295,MATCH(Ras,Rasbonus!$A$1:$AJ$1,0),FALSE)),VLOOKUP($A19,Rasbonus!$A$61:$AJ$295,MATCH(Ras,Rasbonus!$A$1:$AJ$1,0),FALSE),0) -> 0 | P19: -20 | T19: SL (closed, C) | AB19: =VLOOKUP(T19,AllaSkills!$A$3:$BV$317,$A$2+3,FALSE) -> N/A
A20: Man. Soft L | B20: =VLOOKUP(A20,AllaSkills!$A$3:$BV$317,$A$2+3,FALSE) -> 9 | C20: 0 | D20: =INDEX(Diverse!$H$1:$H$5,$C20+1) -> Nada | E20: =ROUND(Level*(C20/2),0)+VLOOKUP($A20,Rasbonus!$A$29:$AJ$59,MATCH(Ras,Rasbonus!$A$1:$AJ$1,0),FALSE) -> 1 | F20: =IF(LEN(B20)=3,LEFT(B20,1),IF(LEN(B20)<3,B20,99)) -> 9 | G20: =IF(RIGHT(B20,1)="*",LEFT(B20,1),IF(LEN(B20)=3,RIGHT(B20,1),IF(LEN(B20)<3,B20,RIGHT(B20,2)))) -> 9 | H20: 0 | I20: =HLOOKUP(Yrke,Levelbonus!$B$1:$CR$20,5,0) -> 0 | J20: =IF(E20<1,-25,E20*5) -> 5 | K20: =AG -> 0 | L20: 0 | M20: =IF(ISNUMBER(VLOOKUP($A20,Rasbonus!$A$61:$AJ$295,MATCH(Ras,Rasbonus!$A$1:$AJ$1,0),FALSE)),VLOOKUP($A20,Rasbonus!$A$61:$AJ$295,MATCH(Ras,Rasbonus!$A$1:$AJ$1,0),FALSE),0) -> 0 | N20: =IF(AND($AB$58>4,$AB$58<9),$AB$59,"") ->  | P20: =IF((SUM(J20:O20)>=AB60),AB60,(SUM(J20:O20))) -> 0 | R20: Primär vapentyp | T20: SL (closed, D) | AB20: =VLOOKUP(T20,AllaSkills!$A$3:$BV$317,$A$2+3,FALSE) -> 1/*
A21: Man. Rigid L | B21: =VLOOKUP(A21,AllaSkills!$A$3:$BV$317,$A$2+3,FALSE) -> 9 | C21: 0 | D21: =INDEX(Diverse!$H$1:$H$5,$C21+1) -> Nada | E21: =ROUND(Level*(C21/2),0)+VLOOKUP($A21,Rasbonus!$A$29:$AJ$59,MATCH(Ras,Rasbonus!$A$1:$AJ$1,0),FALSE) -> 1 | F21: =IF(LEN(B21)=3,LEFT(B21,1),IF(LEN(B21)<3,B21,99)) -> 9 | G21: =IF(RIGHT(B21,1)="*",LEFT(B21,1),IF(LEN(B21)=3,RIGHT(B21,1),IF(LEN(B21)<3,B21,RIGHT(B21,2)))) -> 9 | H21: 0 | I21: =HLOOKUP(Yrke,Levelbonus!$B$1:$CR$20,5,0) -> 0 | J21: =IF(E21<1,-25,E21*5) -> 5 | K21: =AG -> 0 | L21: 0 | M21: =IF(ISNUMBER(VLOOKUP($A21,Rasbonus!$A$61:$AJ$295,MATCH(Ras,Rasbonus!$A$1:$AJ$1,0),FALSE)),VLOOKUP($A21,Rasbonus!$A$61:$AJ$295,MATCH(Ras,Rasbonus!$A$1:$AJ$1,0),FALSE),0) -> 0 | N21: =IF(AND($AB$58>8,$AB$58<13),$AB$59,"") ->  | P21: =IF((SUM(J21:O21)>=AB60),AB60,(SUM(J21:O21))) -> 0 | T21: SL (closed, E) | AB21: =VLOOKUP(T21,AllaSkills!$A$3:$BV$317,$A$2+3,FALSE) -> 3/*
A22: Man. Chain | B22: =VLOOKUP(A22,AllaSkills!$A$3:$BV$317,$A$2+3,FALSE) -> 10 | C22: 0 | D22: =INDEX(Diverse!$H$1:$H$5,$C22+1) -> Nada | E22: =ROUND(Level*(C22/2),0)+VLOOKUP($A22,Rasbonus!$A$29:$AJ$59,MATCH(Ras,Rasbonus!$A$1:$AJ$1,0),FALSE) -> 3 | F22: =IF(LEN(B22)=3,LEFT(B22,1),IF(LEN(B22)<3,B22,99)) -> 10 | G22: 10 | H22: 0 | I22: =HLOOKUP(Yrke,Levelbonus!$B$1:$CR$20,5,0) -> 0 | J22: =IF(E22<1,-25,E22*5) -> 15 | K22: =ST -> 15 | L22: 0 | M22: =IF(ISNUMBER(VLOOKUP($A22,Rasbonus!$A$61:$AJ$295,MATCH(Ras,Rasbonus!$A$1:$AJ$1,0),FALSE)),VLOOKUP($A22,Rasbonus!$A$61:$AJ$295,MATCH(Ras,Rasbonus!$A$1:$AJ$1,0),FALSE),0) -> 0 | N22: =IF(AND($AB$58>12,$AB$58<17),$AB$59,"") ->  | P22: =IF((SUM(J22:O22)>=AB60),AB60,(SUM(J22:O22))) -> 0 | T22: SL (open, A) | AB22: =VLOOKUP(T22,AllaSkills!$A$3:$BV$317,$A$2+3,FALSE) -> N/A
A23: Man. Plate | B23: =VLOOKUP(A23,AllaSkills!$A$3:$BV$317,$A$2+3,FALSE) -> 11 | C23: 0 | D23: =INDEX(Diverse!$H$1:$H$5,$C23+1) -> Nada | E23: =ROUND(Level*(C23/2),0)+VLOOKUP($A23,Rasbonus!$A$29:$AJ$59,MATCH(Ras,Rasbonus!$A$1:$AJ$1,0),FALSE) -> 1 | F23: =IF(LEN(B23)=3,LEFT(B23,1),IF(LEN(B23)<3,B23,99)) -> 11 | G23: 11 | H23: 0 | I23: =HLOOKUP(Yrke,Levelbonus!$B$1:$CR$20,5,0) -> 0 | J23: =IF(E23<1,-25,E23*5) -> 5 | K23: =ST -> 15 | L23: 0 | M23: =IF(ISNUMBER(VLOOKUP($A23,Rasbonus!$A$61:$AJ$295,MATCH(Ras,Rasbonus!$A$1:$AJ$1,0),FALSE)),VLOOKUP($A23,Rasbonus!$A$61:$AJ$295,MATCH(Ras,Rasbonus!$A$1:$AJ$1,0),FALSE),0) -> 0 | N23: =IF(AND($AB$58>16,$AB$58<21),$AB$59,"") ->  | P23: =IF((SUM(J23:O23)>=AB60),AB60,(SUM(J23:O23))) -> 0 | R23: Sekundär vapentyp | T23: SL (open, B) | AB23: =VLOOKUP(T23,AllaSkills!$A$3:$BV$317,$A$2+3,FALSE) -> 1/*
A24: Pick locks | B24: =VLOOKUP(A24,AllaSkills!$A$3:$BV$317,$A$2+3,FALSE) -> 4 | C24: 0 | D24: =INDEX(Diverse!$H$1:$H$5,$C24+1) -> Nada | E24: =ROUND(Level*(C24/2),0)+VLOOKUP($A24,Rasbonus!$A$29:$AJ$59,MATCH(Ras,Rasbonus!$A$1:$AJ$1,0),FALSE) -> 2 | F24: 4 | G24: 4 | H24: 0 | I24: =HLOOKUP(Yrke,Levelbonus!$B$1:$CR$20,16,0) -> 0 | J24: =IF(E24<1,-25,IF(E24>30,80+((E24-30)*0.5),IF(E24>20,70+(E24-20),IF(E24>10,50+((E24-10)*2),E24*5)))) -> 10 | K24: =ROUND((IN+RE+AG)/3,0) -> 3 | L24: 0 | M24: =IF(ISNUMBER(VLOOKUP($A24,Rasbonus!$A$61:$AJ$295,MATCH(Ras,Rasbonus!$A$1:$AJ$1,0),FALSE)),VLOOKUP($A24,Rasbonus!$A$61:$AJ$295,MATCH(Ras,Rasbonus!$A$1:$AJ$1,0),FALSE),0) -> 0 | P24: 13 | T24: SL (open, C) | AB24: =VLOOKUP(T24,AllaSkills!$A$3:$BV$317,$A$2+3,FALSE) -> N/A
A25: Riding | B25: =VLOOKUP(A25,AllaSkills!$A$3:$BV$317,$A$2+3,FALSE) -> 3 | C25: 0 | D25: =INDEX(Diverse!$H$1:$H$5,$C25+1) -> Nada | E25: =ROUND(Level*(C25/2),0)+VLOOKUP($A25,Rasbonus!$A$29:$AJ$59,MATCH(Ras,Rasbonus!$A$1:$AJ$1,0),FALSE) -> 0 | F25: 3 | G25: 3 | H25: 0 | I25: =HLOOKUP(Yrke,Levelbonus!$B$1:$CR$20,3,0) -> 0 | J25: -25 | K25: =ROUND((EM+AG)/2,0) -> 0 | L25: 0 | M25: =IF(ISNUMBER(VLOOKUP($A25,Rasbonus!$A$61:$AJ$295,MATCH(Ras,Rasbonus!$A$1:$AJ$1,0),FALSE)),VLOOKUP($A25,Rasbonus!$A$61:$AJ$295,MATCH(Ras,Rasbonus!$A$1:$AJ$1,0),FALSE),0) -> 0 | P25: -25 | T25: SL (open, D) | AB25: =VLOOKUP(T25,AllaSkills!$A$3:$BV$317,$A$2+3,FALSE) -> 1/*
A26: Runes | B26: =VLOOKUP(A26,AllaSkills!$A$3:$BV$317,$A$2+3,FALSE) -> 1/3 | C26: 0 | D26: =INDEX(Diverse!$H$1:$H$5,$C26+1) -> Nada | E26: =ROUND(Level*(C26/2),0)+VLOOKUP($A26,Rasbonus!$A$29:$AJ$59,MATCH(Ras,Rasbonus!$A$1:$AJ$1,0),FALSE) -> 0 | F26: 1 | G26: 3 | H26: 0 | I26: =HLOOKUP(Yrke,Levelbonus!$B$1:$CR$20,12,0) -> 3 | J26: -25 | K26: =ROUND((IN+EM)/2,0) -> 3 | L26: 9 | M26: =IF(ISNUMBER(VLOOKUP($A26,Rasbonus!$A$61:$AJ$295,MATCH(Ras,Rasbonus!$A$1:$AJ$1,0),FALSE)),VLOOKUP($A26,Rasbonus!$A$61:$AJ$295,MATCH(Ras,Rasbonus!$A$1:$AJ$1,0),FALSE),0) -> 0 | P26: -13 | R26: Tertiär vapentyp | T26: SL (open, E) | AB26: =VLOOKUP(T26,AllaSkills!$A$3:$BV$317,$A$2+3,FALSE) -> 1/*
A27: Staves & Wands | B27: =VLOOKUP(A27,AllaSkills!$A$3:$BV$317,$A$2+3,FALSE) -> 1/3 | C27: 0 | D27: =INDEX(Diverse!$H$1:$H$5,$C27+1) -> Nada | E27: =ROUND(Level*(C27/2),0)+VLOOKUP($A27,Rasbonus!$A$29:$AJ$59,MATCH(Ras,Rasbonus!$A$1:$AJ$1,0),FALSE) -> 2 | F27: 1 | G27: 3 | H27: 0 | I27: =HLOOKUP(Yrke,Levelbonus!$B$1:$CR$20,12,0) -> 3 | J27: 10 | K27: =ROUND((IN+EM)/2,0) -> 3 | L27: 9 | M27: =IF(ISNUMBER(VLOOKUP($A27,Rasbonus!$A$61:$AJ$295,MATCH(Ras,Rasbonus!$A$1:$AJ$1,0),FALSE)),VLOOKUP($A27,Rasbonus!$A$61:$AJ$295,MATCH(Ras,Rasbonus!$A$1:$AJ$1,0),FALSE),0) -> 0 | P27: 22 | T27: SL (oth realm, base, A) | AB27: =VLOOKUP(T27,AllaSkills!$A$3:$BV$317,$A$2+3,FALSE) -> 10
A28: Stalk & Hide | B28: =VLOOKUP(A28,AllaSkills!$A$3:$BV$317,$A$2+3,FALSE) -> 6 | C28: 0 | D28: =INDEX(Diverse!$H$1:$H$5,$C28+1) -> Nada | E28: =ROUND(Level*(C28/2),0)+VLOOKUP($A28,Rasbonus!$A$29:$AJ$59,MATCH(Ras,Rasbonus!$A$1:$AJ$1,0),FALSE) -> 0 | F28: 6 | G28: 6 | H28: 0 | I28: =HLOOKUP(Yrke,Levelbonus!$B$1:$CR$20,16,0) -> 0 | J28: -25 | K28: =ROUND((AG+SD)/2,0) -> 5 | L28: 0 | M28: =IF(ISNUMBER(VLOOKUP($A28,Rasbonus!$A$61:$AJ$295,MATCH(Ras,Rasbonus!$A$1:$AJ$1,0),FALSE)),VLOOKUP($A28,Rasbonus!$A$61:$AJ$295,MATCH(Ras,Rasbonus!$A$1:$AJ$1,0),FALSE),0) -> 0 | N28: =IF($AB$58>16,$P$23,IF($AB$58>12,$P$22, IF($AB$58>8,$P$21,IF($AB$58>4,$P$20,"0")))) -> 0 | P28: -20 | T28: SL (oth realm, cl, A) | AB28: =VLOOKUP(T28,AllaSkills!$A$3:$BV$317,$A$2+3,FALSE) -> 5
A29: Swimming | B29: =VLOOKUP(A29,AllaSkills!$A$3:$BV$317,$A$2+3,FALSE) -> 3 | C29: 0 | D29: =INDEX(Diverse!$H$1:$H$5,$C29+1) -> Nada | E29: =ROUND(Level*(C29/2),0)+VLOOKUP($A29,Rasbonus!$A$29:$AJ$59,MATCH(Ras,Rasbonus!$A$1:$AJ$1,0),FALSE) -> 0 | F29: 3 | G29: =IF(RIGHT(B29,1)="*",LEFT(B29,1),IF(LEN(B29)=3,RIGHT(B29,1),IF(LEN(B29)<3,B29,RIGHT(B29,2)))) -> 3 | H29: 0 | I29: =HLOOKUP(Yrke,Levelbonus!$B$1:$CR$20,4,0) -> 0 | J29: -25 | K29: =ROUND((AG+SD)/2,0) -> 5 | L29: 0 | M29: =IF(ISNUMBER(VLOOKUP($A29,Rasbonus!$A$61:$AJ$295,MATCH(Ras,Rasbonus!$A$1:$AJ$1,0),FALSE)),VLOOKUP($A29,Rasbonus!$A$61:$AJ$295,MATCH(Ras,Rasbonus!$A$1:$AJ$1,0),FALSE),0) -> 0 | N29: =IF($AB$58>16,$P$23,IF($AB$58>12,$P$22, IF($AB$58>8,$P$21,IF($AB$58>4,$P$20,"0")))) -> 0 | P29: -20 | R29: Fjärde vapentyp | T29: SL (oth realm, cl, B) | AB29: =VLOOKUP(T29,AllaSkills!$A$3:$BV$317,$A$2+3,FALSE) -> 10
A30: =OFFSET(Diverse!$G$14,Diverse!H26,0) -> 2 Handed | B30: =VLOOKUP("Weapon #1",AllaSkills!$A$3:$BV$317,$A$2+3,FALSE) -> 9 | C30: 0 | D30: =INDEX(Diverse!$H$1:$H$5,$C30+1) -> Nada | E30: =ROUND(Level*(C30/2),0)+IF(ISNUMBER(VLOOKUP($A30,Rasbonus!$A$29:$AJ$59,MATCH(Ras,Rasbonus!$A$1:$AJ$1,0),FALSE)),VLOOKUP($A30,Rasbonus!$A$29:$AJ$59,MATCH(Ras,Rasbonus!$A$1:$AJ$1,0),FALSE),0) -> 2 | F30: 9 | G30: 9 | H30: 0 | I30: =HLOOKUP(Yrke,Levelbonus!$B$1:$CR$20,5,0) -> 0 | J30: 10 | K30: =OFFSET(Diverse!$H$14,Diverse!H26,0) -> 11.66666667 | L30: 0 | M30: =IF(ISNUMBER(VLOOKUP($A30,Rasbonus!$A$61:$AJ$295,MATCH(Ras,Rasbonus!$A$1:$AJ$1,0),FALSE)),VLOOKUP($A30,Rasbonus!$A$61:$AJ$295,MATCH(Ras,Rasbonus!$A$1:$AJ$1,0),FALSE),0) -> 0 | N30: =IF(OR($A$30="Bow", $A$30="Thrown"),$AB$62,"") ->  | P30: 21.66666667 | T30: SL (oth realm, op, A) | AB30: =VLOOKUP(T30,AllaSkills!$A$3:$BV$317,$A$2+3,FALSE) -> 4/*
A31: =OFFSET(Diverse!$G$14,Diverse!H27,0) -> Polearm | B31: =VLOOKUP("Weapon #2",AllaSkills!$A$3:$BV$317,$A$2+3,FALSE) -> 20 | C31: 0 | D31: =INDEX(Diverse!$H$1:$H$5,$C31+1) -> Nada | E31: =ROUND(Level*(C31/2),0)+IF(ISNUMBER(VLOOKUP($A31,Rasbonus!$A$29:$AJ$59,MATCH(Ras,Rasbonus!$A$1:$AJ$1,0),FALSE)),VLOOKUP($A31,Rasbonus!$A$29:$AJ$59,MATCH(Ras,Rasbonus!$A$1:$AJ$1,0),FALSE),0) -> 0 | F31: 20 | G31: 20 | H31: 0 | I31: =HLOOKUP(Yrke,Levelbonus!$B$1:$CR$20,5,0) -> 0 | J31: -25 | K31: =OFFSET(Diverse!$H$14,Diverse!H27,0) -> 8.75 | L31: 0 | M31: =IF(ISNUMBER(VLOOKUP($A31,Rasbonus!$A$61:$AJ$295,MATCH(Ras,Rasbonus!$A$1:$AJ$1,0),FALSE)),VLOOKUP($A31,Rasbonus!$A$61:$AJ$295,MATCH(Ras,Rasbonus!$A$1:$AJ$1,0),FALSE),0) -> 0 | N31: =IF(OR($A$31="Bow", $A$31="Thrown"),$AB$62,"") ->  | P31: -16.25 | T31: SL (oth realm, op, C) | AB31: =VLOOKUP(T31,AllaSkills!$A$3:$BV$317,$A$2+3,FALSE) -> 8
A32: =OFFSET(Diverse!$G$14,Diverse!H28,0) -> Thrown | B32: =VLOOKUP("Weapon #3",AllaSkills!$A$3:$BV$317,$A$2+3,FALSE) -> 20 | C32: 0 | D32: =INDEX(Diverse!$H$1:$H$5,$C32+1) -> Nada | E32: =ROUND(Level*(C32/2),0)+IF(ISNUMBER(VLOOKUP($A32,Rasbonus!$A$29:$AJ$59,MATCH(Ras,Rasbonus!$A$1:$AJ$1,0),FALSE)),VLOOKUP($A32,Rasbonus!$A$29:$AJ$59,MATCH(Ras,Rasbonus!$A$1:$AJ$1,0),FALSE),0) -> 1 | F32: 20 | G32: 20 | H32: 0 | I32: =HLOOKUP(Yrke,Levelbonus!$B$1:$CR$20,5,0) -> 0 | J32: 5 | K32: =OFFSET(Diverse!$H$14,Diverse!H28,0) -> 7.5 | L32: 0 | M32: =IF(ISNUMBER(VLOOKUP($A32,Rasbonus!$A$61:$AJ$295,MATCH(Ras,Rasbonus!$A$1:$AJ$1,0),FALSE)),VLOOKUP($A32,Rasbonus!$A$61:$AJ$295,MATCH(Ras,Rasbonus!$A$1:$AJ$1,0),FALSE),0) -> 0 | N32: =IF(OR($A$32="Bow", $A$32="Thrown"),$AB$62,"") -> 0 | P32: 12.5 | R32: Femte vapentyp | T32: SL (oth realm, op, D) | AB32: =VLOOKUP(T32,AllaSkills!$A$3:$BV$317,$A$2+3,FALSE) -> 10
A33: =OFFSET(Diverse!$G$14,Diverse!H29,0) -> 1H Slash | B33: =VLOOKUP("Weapon #4",AllaSkills!$A$3:$BV$317,$A$2+3,FALSE) -> 20 | C33: 0 | D33: =INDEX(Diverse!$H$1:$H$5,$C33+1) -> Nada | E33: =ROUND(Level*(C33/2),0)+IF(ISNUMBER(VLOOKUP($A33,Rasbonus!$A$29:$AJ$59,MATCH(Ras,Rasbonus!$A$1:$AJ$1,0),FALSE)),VLOOKUP($A33,Rasbonus!$A$29:$AJ$59,MATCH(Ras,Rasbonus!$A$1:$AJ$1,0),FALSE),0) -> 0 | F33: =IF(LEN(B33)=3,LEFT(B33,1),IF(LEN(B33)<3,B33,99)) -> 20 | G33: 20 | H33: =IF(D33="Ett varannan level",F33+F33-F33,IF(D33="Ett varje level",2*F33,IF(D33="Tre på två levlar",F33+G33+F33,IF(D33="Nada",0,F33+G33+F33+G33)))) -> 0 | I33: =HLOOKUP(Yrke,Levelbonus!$B$1:$CR$20,5,0) -> 0 | J33: =IF(E33<1,-25,IF(E33>30,80+((E33-30)*0.5),IF(E33>20,70+(E33-20),IF(E33>10,50+((E33-10)*2),E33*5)))) -> -25 | K33: =OFFSET(Diverse!$H$14,Diverse!H29,0) -> 8.75 | L33: 0 | M33: =IF(ISNUMBER(VLOOKUP($A33,Rasbonus!$A$61:$AJ$295,MATCH(Ras,Rasbonus!$A$1:$AJ$1,0),FALSE)),VLOOKUP($A33,Rasbonus!$A$61:$AJ$295,MATCH(Ras,Rasbonus!$A$1:$AJ$1,0),FALSE),0) -> 0 | N33: =IF(OR($A$33="Bow", $A$33="Thrown"),$AB$62,"") ->  | P33: -16.25 | T33: SL (other base, A) | AB33: =VLOOKUP(T33,AllaSkills!$A$3:$BV$317,$A$2+3,FALSE) -> 3/*
A34: =OFFSET(Diverse!$G$14,Diverse!H30,0) -> 1H Thrust | B34: =VLOOKUP("Weapon #5",AllaSkills!$A$3:$BV$317,$A$2+3,FALSE) -> 20 | C34: 0 | D34: =INDEX(Diverse!$H$1:$H$5,$C34+1) -> Nada | E34: =ROUND(Level*(C34/2),0)+IF(ISNUMBER(VLOOKUP($A34,Rasbonus!$A$29:$AJ$59,MATCH(Ras,Rasbonus!$A$1:$AJ$1,0),FALSE)),VLOOKUP($A34,Rasbonus!$A$29:$AJ$59,MATCH(Ras,Rasbonus!$A$1:$AJ$1,0),FALSE),0) -> 0 | F34: =IF(LEN(B34)=3,LEFT(B34,1),IF(LEN(B34)<3,B34,99)) -> 20 | G34: 20 | H34: =IF(D34="Ett varannan level",F34+F34-F34,IF(D34="Ett varje level",2*F34,IF(D34="Tre på två levlar",F34+G34+F34,IF(D34="Nada",0,F34+G34+F34+G34)))) -> 0 | I34: =HLOOKUP(Yrke,Levelbonus!$B$1:$CR$20,5,0) -> 0 | J34: =IF(E34<1,-25,IF(E34>30,80+((E34-30)*0.5),IF(E34>20,70+(E34-20),IF(E34>10,50+((E34-10)*2),E34*5)))) -> -25 | K34: =OFFSET(Diverse!$H$14,Diverse!H30,0) -> 5 | L34: 0 | M34: =IF(ISNUMBER(VLOOKUP($A34,Rasbonus!$A$61:$AJ$295,MATCH(Ras,Rasbonus!$A$1:$AJ$1,0),FALSE)),VLOOKUP($A34,Rasbonus!$A$61:$AJ$295,MATCH(Ras,Rasbonus!$A$1:$AJ$1,0),FALSE),0) -> 0 | N34: =IF(OR($A$34="Bow", $A$34="Thrown"),$AB$62,"") ->  | P34: -20 | T34: SL (other base, C) | AB34: =VLOOKUP(T34,AllaSkills!$A$3:$BV$317,$A$2+3,FALSE) -> 4/*
A35: =OFFSET(Diverse!$G$14,Diverse!H31,0) -> Bow | B35: =VLOOKUP("Weapon #6",AllaSkills!$A$3:$BV$317,$A$2+3,FALSE) -> 20 | C35: 0 | D35: =INDEX(Diverse!$H$1:$H$5,$C35+1) -> Nada | E35: =ROUND(Level*(C35/2),0)+IF(ISNUMBER(VLOOKUP($A35,Rasbonus!$A$29:$AJ$59,MATCH(Ras,Rasbonus!$A$1:$AJ$1,0),FALSE)),VLOOKUP($A35,Rasbonus!$A$29:$AJ$59,MATCH(Ras,Rasbonus!$A$1:$AJ$1,0),FALSE),0) -> 1 | F35: =IF(LEN(B35)=3,LEFT(B35,1),IF(LEN(B35)<3,B35,99)) -> 20 | G35: 20 | H35: =IF(D35="Ett varannan level",F35+F35-F35,IF(D35="Ett varje level",2*F35,IF(D35="Tre på två levlar",F35+G35+F35,IF(D35="Nada",0,F35+G35+F35+G35)))) -> 0 | I35: =HLOOKUP(Yrke,Levelbonus!$B$1:$CR$20,5,0) -> 0 | J35: =IF(E35<1,-25,IF(E35>30,80+((E35-30)*0.5),IF(E35>20,70+(E35-20),IF(E35>10,50+((E35-10)*2),E35*5)))) -> 5 | K35: =OFFSET(Diverse!$H$14,Diverse!H31,0) -> 5 | L35: 0 | M35: =IF(ISNUMBER(VLOOKUP($A35,Rasbonus!$A$61:$AJ$295,MATCH(Ras,Rasbonus!$A$1:$AJ$1,0),FALSE)),VLOOKUP($A35,Rasbonus!$A$61:$AJ$295,MATCH(Ras,Rasbonus!$A$1:$AJ$1,0),FALSE),0) -> 0 | N35: =IF(OR($A$35="Bow", $A$35="Thrown"),$AB$62,"") -> 0 | P35: 10 | R35: Sjätte vapentyp | T35: SL (other base, D) | AB35: =VLOOKUP(T35,AllaSkills!$A$3:$BV$317,$A$2+3,FALSE) -> 5
A36: Shield | B36: =VLOOKUP("Shield Skill",AllaSkills!$A$3:$BV$317,$A$2+3,FALSE) -> 20 | C36: 0 | D36: =INDEX(Diverse!$H$1:$H$5,$C36+1) -> Nada | E36: =ROUND(Level*(C36/2),0)+IF(ISNUMBER(VLOOKUP($A36,Rasbonus!$A$29:$AJ$59,MATCH(Ras,Rasbonus!$A$1:$AJ$1,0),FALSE)),VLOOKUP($A36,Rasbonus!$A$29:$AJ$59,MATCH(Ras,Rasbonus!$A$1:$AJ$1,0),FALSE),0) -> 2 | F36: =IF(LEN(B36)=3,LEFT(B36,1),IF(LEN(B36)<3,B36,99)) -> 20 | G36: 20 | H36: =IF(D36="Ett varannan level",F36+F36-F36,IF(D36="Ett varje level",2*F36,IF(D36="Tre på två levlar",F36+G36+F36,IF(D36="Nada",0,F36+G36+F36+G36)))) -> 0 | J36: =IF(E36<1,-25,IF(E36>30,60+((E36-30)*0.5),IF(E36>20,50+(E36-20),IF(E36>10,30+((E36-10)*2),E36*3)))) -> 6 | K36: 0 | M36: =IF(ISNUMBER(VLOOKUP($A36,Rasbonus!$A$61:$AJ$295,MATCH(Ras,Rasbonus!$A$1:$AJ$1,0),FALSE)),VLOOKUP($A36,Rasbonus!$A$61:$AJ$295,MATCH(Ras,Rasbonus!$A$1:$AJ$1,0),FALSE),0) -> 0 | N36: =SUM(Secondary!AK81+15) -> 15 | P36: 21 | T36: SL (other base, E) | AB36: =VLOOKUP(T36,AllaSkills!$A$3:$BV$317,$A$2+3,FALSE) -> 10
A38: Defensive Bonus | K38: Power Points | R38: Background Options | T38: General Information
B39: w/shield | D39: w/other | K39: Developed | P39: =Secondary!AK171 -> 9 | T39: Namn:
A40: Shield skill | B40: =IF($P$36<0,0,$P$36) -> 21 | K40: Added | T40: Yrke: | U40: =Yrke -> Alchemist
A41: Magic shield | B41: 0 | K41: Multiplier | P41: 1 | T41: Ras: | U41: =Ras -> Dwarf
A42: Quickness | B42: =MIN($AA$71,IF($AB$9+$AB$61<1,0,$AB$9+$AB$61)) -> 0 | D42: =SUM(B42) -> 0 | K42: Total | P42: =SUM(P39:P40)*(P41) -> 9 | T42: Level: | U42: =Level -> 3
K43: Spent | T43: Total hits: | U43: =IF(P12>(HLOOKUP(Ras,Rasbonus!$B$1:$AJ$16,16,FALSE)+CO),ROUND(((HLOOKUP(Ras,Rasbonus!$B$1:$AJ$16,16,FALSE)+CO))*(1+(CO/100)),0),ROUND(((P12*CO%)+P12),0)) -> 25
A44: Magical | B44: 0 | D44: =SUM(B44) -> 0 | K44: Recovery (8hr/hr) | O44: =SUM(P44*8) -> 16 | P44: =IF(U45=1,VLOOKUP(U11,Diverse!G82:H186,2),IF(U45=2,VLOOKUP(U12,Diverse!G82:H186,2),IF(U45=3,VLOOKUP(U10,Diverse!G82:H186,2),IF(U45=4,VLOOKUP(SUM(U11:U12)*0.5,Diverse!G82:H186,2),IF(U45=5,VLOOKUP(SUM(U10:U11)*0.5,Diverse!G82:H186,2),IF(U45=6,VLOOKUP(SUM(U11:U12)*0.5,Diverse!G82:H186,2),VLOOKUP(SUM(U10:U12)*0.33,Diverse!G82:H186,2))))))) -> 2 | T44: Baserate | U44: =VLOOKUP(U9,Diverse!$A$2:$D$131,4,0)+Y9+$P$47 -> 45
A45: Adrenal Defense | B45: =IF($P$8<0,0,$P$8) -> 0 | D45: =SUM(B45) -> 0 | T45: Realm: | U45: 1
A46: Def. Technique | B46: =IF(Secondary!$AK$62<0,0,Secondary!$AK$62) -> 0 | D46: =SUM(B46) -> 0 | K46: Character Traits | T46: XP:
A47: Def. Weaving | B47: =IF(Secondary!$AK$63<0,0,Secondary!$AK$63) -> 0 | D47: 0 | K47: Height: | N47: 165 | O47: cm | P47: =VLOOKUP('Ny NPC'!N47,Diverse!G55:H62,2,1) -> 0 | T47: Campaign:
A48: BO | B48: 0 | D48: 0 | K48: Weight: | N48: 65 | O48: kg | T48: Year of birth:
A49: Other | B49: 0 | D49: 0 | K49: Hair:
A50: Spells | B50: 0 | D50: 0 | K50: Eyes: | R50: Racial Abilities
A51: Inherent | B51: 0 | D51: 0 | K51: Scars:
A53: Total | B53: =SUM(B40:B42,B44,B48:B52) -> 21 | D53: =SUM(D40:D52) -> 0 | K53: Tattoos:
A55: Resistances | D55: Base Spell Casting | K55: Other:
A56: Channeling | B56: =SUM(IN)+HLOOKUP(Ras,Rasbonus!$B$1:$AJ$26,21,0) -> 5 | D56: BAR | E56: =IF(Level<21,Level*I56,IF(I56>2,60+(Level-20),IF(I56=2,40+((Level-20)*0.5),IF(Level=0,0,IF(I56=0,0,20))))) -> 6 | I56: =HLOOKUP(Yrke,Levelbonus!$B$1:$CR$20,18,0) -> 2
A57: Essence | B57: =SUM(EM)+HLOOKUP(Ras,Rasbonus!$B$1:$AJ$26,20,0) -> 40 | D57: Power Man. | E57: =IF(Secondary!AC169<31,Secondary!AC169,30) -> 0 | T57: Armor Type and Weaponry
A58: Mentalism | B58: =SUM(PR)+HLOOKUP(Ras,Rasbonus!$B$1:$AJ$26,22,0) -> 40 | D58: BO | T58: Armor Type | AB58: 1
A59: Arcane | B59: =SUM(B56:B58)/3 -> 28.33333333 | D59: Other | T59: Max Maneuver Penalty | AB59: =VLOOKUP($AB$58,Diverse!$G$34:$L$53,3,0) -> 0
A60: Poison | B60: =SUM(CO)+HLOOKUP(Ras,Rasbonus!$B$1:$AJ$26,19,0) -> 30 | T60: Min Maneuver Penalty | AB60: =VLOOKUP($AB$58,Diverse!$G$34:$L$53,2,0) -> 0
A61: Disease | B61: =SUM(CO)+HLOOKUP(Ras,Rasbonus!$B$1:$AJ$26,18,0) -> 30 | D61: Total | E61: =SUM(E56:E60) -> 6 | T61: Quickness Penalty | AB61: =VLOOKUP($AB$58,Diverse!$G$34:$L$53,5,0) -> 0
A62: Fear (Will) | B62: =SUM(SD)+HLOOKUP(Ras,Rasbonus!$B$1:$AJ$26,17,0) -> 10 | K62: =(R2) -> Character Name | P62: Språk | R62: Spoken/Written | T62: Missile Attack Penalty | AB62: =VLOOKUP($AB$58,Diverse!$G$34:$L$53,4,0) -> 0
P63: Westron 8/8 | T63: Reverse Armor mod. | AB63: =VLOOKUP($AB$58,Diverse!$G$34:$L$53,6,0) -> 0
D65: Movement | E65: Difficulty | K65: Movement | M65: Exhaustion | T65: Shield Type: | Y65: Armor ESF | AB65: =IF(U45=1,VLOOKUP(AB58,Diverse!G34:N53,7),IF(U45=3,0,IF(U45=5,VLOOKUP(AB58,Diverse!G34:N53,7),VLOOKUP(AB58,Diverse!G34:N53,8)))) -> 0
A66: Initiative | D66: Walk (x1) | E66: None | K66: =($U$44) -> 45 | M66: 1/30 rnds | T66: Helm Type: | U66: 1 | Y66: Helm ESF | AB66: =IF(U45=1,VLOOKUP(U66,Diverse!K27:N30,2),IF(U45=4,VLOOKUP(U66,Diverse!K27:N30,3),IF(U45=3,VLOOKUP(U66,Diverse!K27:N30,4),VLOOKUP(U66,Diverse!K27:N30,4)))) -> 0
A67: QU minus MMP | B67: =QU+N3 -> 0 | D67: Fast walk (x1,5) | E67: Routine | K67: =($U$44)*1.5 -> 67.5 | M67: 1/6 rnds | T67: Neck prot: | Y67: Transcend Armor | AB67: =IF(Secondary!$AK$180<0,0,Secondary!$AK$180/3) -> 0
A68: Instinctive Man. | B68: =(Secondary!AK75)/5 -> -4.6 | D68: Run (x2) | E68: Easy | K68: =($U$44)*2 -> 90 | M68: 1/2 rnds | T68: Nose guard: | Y68: Other
A69: Other | B69: 0 | D69: Sprint (x3) | E69: Light | K69: =($U$44)*3 -> 135 | M69: 5/rnd | T69: Throat prot: | Y69: Total ESF | AB69: =IF((AB65+AB66-AB67-AB68<=0),0,AB65+AB66-AB67-AB68) -> 0
D70: Fast sprint (x4) | E70: Medium | K70: =($U$44)*4 -> 180 | M70: 25/rnd
D71: Dash (x5) | E71: Hard | K71: =($U$44)*5 -> 225 | M71: 40/rnd | Y71: QU-Limit | AA71: =IF(I73=1,Diverse!I65,IF(I73=2,Diverse!I66,IF(I73=3,Diverse!I67,IF(I73=4,Diverse!I68,IF(I73=5,Diverse!I69,IF(I73=6,Diverse!I70,IF(I73=7,Diverse!I71))))))) -> 30
A72: Total | B72: =IF(B68>B67,IF(B68>0,B68+B69,B67+B69),B67+B69) -> 0 | D72: Movement = (Base Rate) x (Pace Multiplier) x (Maneuver Roll Result) /100
I73: 4

Sheet Secondary
A1: Secondary Skills | B1: Dev.pts per level | C1: Cost 1 | D1: Cost 2 | E1: Grupp | F1: Adolescence | H1: Annat | I1: Level 1 | J1: Level 2 | K1: Level 3 | L1: Level 4 | M1: Level 5 | N1: Level 6 | O1: Level 7 | P1: Level 8 | Q1: Level 9 | R1: Level 10 | S1: Level 11 | T1: Level 12 | U1: Level 13 | V1: Level 14 | W1: Level 15 | X1: Level 16 | Y1: Level 17 | Z1: Level 18 | AA1: Level 19 | AB1: Level 20 | AC1: Total ranks | AD1: Skill | AE1: Stat | AF1: Levelbonus | AG1: Level | AH1: Racial | AI1: Armor mods. | AJ1: Items | AK1: Total | AL1: Adolescence | AM1: Level 1 | AN1: Level 2 | AO1: Level 3 | AP1: Level 4 | AQ1: Level 5 | AR1: Level 6 | AS1: Level 7 | AT1: Level 8 | AU1: Level 9 | AV1: Level 10 | AW1: Level 11 | AX1: Level 12 | AY1: Level 13 | AZ1: Level 14 | BA1: Level 15 | BB1: Level 16 | BC1: Level 17 | BD1: Level 18 | BE1: Level 19 | BF1: Level 20
A2: Academic | B2: =HLOOKUP(Diverse!$G$2,'2nd'!$B$1:$CR$18,2,FALSE) -> 34 | F2: =SUM(AL3:AL38) -> 0 | I2: =SUM(AM3:AM38) -> 0 | J2: 0 | K2: 0 | L2: 0 | M2: 0 | N2: 0 | O2: 0 | P2: 0 | Q2: 0 | R2: 0 | S2: 0 | T2: 0 | U2: 0 | V2: 0 | W2: 0 | X2: 0 | Y2: 0 | Z2: 0 | AA2: 0 | AB2: 0 | AC2: Rank | AD2: Skill | AE2: Stat | AG2: Lvl | AH2: Race | AI2: Armor | AJ2: Item | AK2: Total
A3: Administration | B3: =VLOOKUP(A3,AllaSkills!$A$2:$BV$317,'Ny NPC'!$A$2+3,FALSE) -> 2/5 | C3: =IF(LEN(B3)=3,LEFT(B3,1),IF(LEN(B3)<3,B3,99)) -> 2 | D3: =IF(RIGHT(B3,1)="*",LEFT(B3,1),IF(LEN(B3)=3,RIGHT(B3,1),IF(LEN(B3)<3,B3,RIGHT(B3,2)))) -> 5 | E3: Academic | AC3: =SUM(F3:AB3) -> 0 | AD3: =IF(AC3<1,-25,IF(AC3>30,80+((AC3-30)*0.5),IF(AC3>20,70+(AC3-20),IF(AC3>10,50+((AC3-10)*2),AC3*5)))) -> -25 | AE3: =(RE+PR)/2 -> 2.5 | AF3: =HLOOKUP(Yrke,Levelbonus!$B$1:$CR$20,2,FALSE) -> 3 | AG3: =AF3*Level -> 9 | AH3: =IF(ISNUMBER(VLOOKUP($A3,Rasbonus!$A$61:$AJ$295,MATCH(Ras,Rasbonus!$A$1:$AJ$1,0),FALSE)),VLOOKUP($A3,Rasbonus!$A$61:$AJ$295,MATCH(Ras,Rasbonus!$A$1:$AJ$1,0),FALSE),"0") -> 0 | AK3: =ROUND(AD3+AE3+AG3+AH3+AI3+AJ3,0) -> -14 | AL3: =IF(F3>2,"99",IF(F3<1,0,IF(F3=1,$C3+$C3-$C3,IF(F3=2,$C3+$D3)))) -> 0 | AM3: =IF(I3>2,"99",IF(I3<1,0,IF(I3=1,$C3+$C3-$C3,IF(I3=2,$C3+$D3)))) -> 0 | AN3: 0 | AO3: 0 | AP3: 0 | AQ3: 0 | AR3: 0 | AS3: 0 | AT3: 0 | AU3: 0 | AV3: 0 | AW3: 0 | AX3: 0 | AY3: 0 | AZ3: 0 | BA3: 0 | BB3: 0 | BC3: 0 | BD3: 0 | BE3: 0 | BF3: 0
A4: Alchemy | B4: =VLOOKUP(A4,AllaSkills!$A$2:$BV$317,'Ny NPC'!$A$2+3,FALSE) -> 1/3 | C4: 1 | D4: =IF(RIGHT(B4,1)="*",LEFT(B4,1),IF(LEN(B4)=3,RIGHT(B4,1),IF(LEN(B4)<3,B4,RIGHT(B4,2)))) -> 3 | E4: Academic | AC4: =SUM(F4:AB4) -> 0 | AD4: =IF(AC4<1,-25,IF(AC4>30,80+((AC4-30)*0.5),IF(AC4>20,70+(AC4-20),IF(AC4>10,50+((AC4-10)*2),AC4*5)))) -> -25 | AE4: =(RE) -> 5 | AF4: =HLOOKUP(Yrke,Levelbonus!$B$1:$CR$20,2,FALSE) -> 3 | AG4: 9 | AH4: =IF(ISNUMBER(VLOOKUP($A4,Rasbonus!$A$61:$AJ$295,MATCH(Ras,Rasbonus!$A$1:$AJ$1,0),FALSE)),VLOOKUP($A4,Rasbonus!$A$61:$AJ$295,MATCH(Ras,Rasbonus!$A$1:$AJ$1,0),FALSE),"0") -> 0 | AK4: =ROUND(AD4+AE4+AG4+AH4+AI4+AJ4,0) -> -11 | AL4: =IF(F4>2,"99",IF(F4<1,0,IF(F4=1,$C4+$C4-$C4,IF(F4=2,$C4+$D4)))) -> 0 | AM4: =IF(I4>2,"99",IF(I4<1,0,IF(I4=1,$C4+$C4-$C4,IF(I4=2,$C4+$D4)))) -> 0 | AN4: =IF(J4>2,"99",IF(J4<1,0,IF(J4=1,$C4+$C4-$C4,IF(J4=2,$C4+$D4)))) -> 0 | AO4: =IF(K4>2,"99",IF(K4<1,0,IF(K4=1,$C4+$C4-$C4,IF(K4=2,$C4+$D4)))) -> 0 | AP4: =IF(L4>2,"99",IF(L4<1,0,IF(L4=1,$C4+$C4-$C4,IF(L4=2,$C4+$D4)))) -> 0 | AQ4: =IF(M4>2,"99",IF(M4<1,0,IF(M4=1,$C4+$C4-$C4,IF(M4=2,$C4+$D4)))) -> 0 | AR4: =IF(N4>2,"99",IF(N4<1,0,IF(N4=1,$C4+$C4-$C4,IF(N4=2,$C4+$D4)))) -> 0 | AS4: =IF(O4>2,"99",IF(O4<1,0,IF(O4=1,$C4+$C4-$C4,IF(O4=2,$C4+$D4)))) -> 0 | AT4: =IF(P4>2,"99",IF(P4<1,0,IF(P4=1,$C4+$C4-$C4,IF(P4=2,$C4+$D4)))) -> 0 | AU4: =IF(Q4>2,"99",IF(Q4<1,0,IF(Q4=1,$C4+$C4-$C4,IF(Q4=2,$C4+$D4)))) -> 0 | AV4: =IF(R4>2,"99",IF(R4<1,0,IF(R4=1,$C4+$C4-$C4,IF(R4=2,$C4+$D4)))) -> 0 | AW4: =IF(S4>2,"99",IF(S4<1,0,IF(S4=1,$C4+$C4-$C4,IF(S4=2,$C4+$D4)))) -> 0 | AX4: =IF(T4>2,"99",IF(T4<1,0,IF(T4=1,$C4+$C4-$C4,IF(T4=2,$C4+$D4)))) -> 0 | AY4: =IF(U4>2,"99",IF(U4<1,0,IF(U4=1,$C4+$C4-$C4,IF(U4=2,$C4+$D4)))) -> 0 | AZ4: =IF(V4>2,"99",IF(V4<1,0,IF(V4=1,$C4+$C4-$C4,IF(V4=2,$C4+$D4)))) -> 0 | BA4: =IF(W4>2,"99",IF(W4<1,0,IF(W4=1,$C4+$C4-$C4,IF(W4=2,$C4+$D4)))) -> 0 | BB4: =IF(X4>2,"99",IF(X4<1,0,IF(X4=1,$C4+$C4-$C4,IF(X4=2,$C4+$D4)))) -> 0 | BC4: =IF(Y4>2,"99",IF(Y4<1,0,IF(Y4=1,$C4+$C4-$C4,IF(Y4=2,$C4+$D4)))) -> 0 | BD4: =IF(Z4>2,"99",IF(Z4<1,0,IF(Z4=1,$C4+$C4-$C4,IF(Z4=2,$C4+$D4)))) -> 0 | BE4: =IF(AA4>2,"99",IF(AA4<1,0,IF(AA4=1,$C4+$C4-$C4,IF(AA4=2,$C4+$D4)))) -> 0 | BF4: =IF(AB4>2,"99",IF(AB4<1,0,IF(AB4=1,$C4+$C4-$C4,IF(AB4=2,$C4+$D4)))) -> 0
A5: Architecture | B5: =VLOOKUP(A5,AllaSkills!$A$2:$BV$317,'Ny NPC'!$A$2+3,FALSE) -> 2/5 | C5: 2 | D5: 5 | E5: Academic | AC5: 0 | AD5: -25 | AE5: =(RE+EM)/2 -> 2.5 | AF5: =HLOOKUP(Yrke,Levelbonus!$B$1:$CR$20,2,FALSE) -> 3 | AG5: 9 | AH5: =IF(ISNUMBER(VLOOKUP($A5,Rasbonus!$A$61:$AJ$295,MATCH(Ras,Rasbonus!$A$1:$AJ$1,0),FALSE)),VLOOKUP($A5,Rasbonus!$A$61:$AJ$295,MATCH(Ras,Rasbonus!$A$1:$AJ$1,0),FALSE),"0") -> 0 | AK5: -14 | AL5: 0 | AM5: 0 | AN5: 0 | AO5: 0 | AP5: 0 | AQ5: 0 | AR5: 0 | AS5: 0 | AT5: 0 | AU5: 0 | AV5: 0 | AW5: 0 | AX5: 0 | AY5: 0 | AZ5: 0 | BA5: 0 | BB5: 0 | BC5: 0 | BD5: 0 | BE5: 0 | BF5: 0
A6: Basic Mathematics | B6: =VLOOKUP(A6,AllaSkills!$A$2:$BV$317,'Ny NPC'!$A$2+3,FALSE) -> 1/4 | C6: 1 | D6: 4 | E6: Academic | AC6: 0 | AD6: -25 | AE6: =(RE) -> 5 | AF6: =HLOOKUP(Yrke,Levelbonus!$B$1:$CR$20,2,FALSE) -> 3 | AG6: 9 | AH6: =IF(ISNUMBER(VLOOKUP($A6,Rasbonus!$A$61:$AJ$295,MATCH(Ras,Rasbonus!$A$1:$AJ$1,0),FALSE)),VLOOKUP($A6,Rasbonus!$A$61:$AJ$295,MATCH(Ras,Rasbonus!$A$1:$AJ$1,0),FALSE),"0") -> 0 | AK6: -11 | AL6: 0 | AM6: 0 | AN6: 0 | AO6: 0 | AP6: 0 | AQ6: 0 | AR6: 0 | AS6: 0 | AT6: 0 | AU6: 0 | AV6: 0 | AW6: 0 | AX6: 0 | AY6: 0 | AZ6: 0 | BA6: 0 | BB6: 0 | BC6: 0 | BD6: 0 | BE6: 0 | BF6: 0
A7: Biochemistry | B7: =VLOOKUP(A7,AllaSkills!$A$2:$BV$317,'Ny NPC'!$A$2+3,FALSE) -> 5 | C7: 5 | D7: 5 | E7: Academic | AC7: 0 | AD7: -25 | AE7: =(IN+RE)/2 -> 5 | AF7: =HLOOKUP(Yrke,Levelbonus!$B$1:$CR$20,2,FALSE) -> 3 | AG7: 9 | AH7: =IF(ISNUMBER(VLOOKUP($A7,Rasbonus!$A$61:$AJ$295,MATCH(Ras,Rasbonus!$A$1:$AJ$1,0),FALSE)),VLOOKUP($A7,Rasbonus!$A$61:$AJ$295,MATCH(Ras,Rasbonus!$A$1:$AJ$1,0),FALSE),"0") -> 0 | AK7: -11 | AL7: 0 | AM7: 0 | AN7: 0 | AO7: 0 | AP7: 0 | AQ7: 0 | AR7: 0 | AS7: 0 | AT7: 0 | AU7: 0 | AV7: 0 | AW7: 0 | AX7: 0 | AY7: 0 | AZ7: 0 | BA7: 0 | BB7: 0 | BC7: 0 | BD7: 0 | BE7: 0 | BF7: 0
A8: Boat Pilot | B8: =VLOOKUP(A8,AllaSkills!$A$2:$BV$317,'Ny NPC'!$A$2+3,FALSE) -> 2/6 | C8: 2 | D8: 6 | E8: Academic | AC8: 0 | AD8: -25 | AE8: =(RE+AG)/2 -> 2.5 | AF8: =HLOOKUP(Yrke,Levelbonus!$B$1:$CR$20,2,FALSE) -> 3 | AG8: 9 | AH8: =IF(ISNUMBER(VLOOKUP($A8,Rasbonus!$A$61:$AJ$295,MATCH(Ras,Rasbonus!$A$1:$AJ$1,0),FALSE)),VLOOKUP($A8,Rasbonus!$A$61:$AJ$295,MATCH(Ras,Rasbonus!$A$1:$AJ$1,0),FALSE),"0") -> 0 | AK8: -14 | AL8: 0 | AM8: 0 | AN8: 0 | AO8: 0 | AP8: 0 | AQ8: 0 | AR8: 0 | AS8: 0 | AT8: 0 | AU8: 0 | AV8: 0 | AW8: 0 | AX8: 0 | AY8: 0 | AZ8: 0 | BA8: 0 | BB8: 0 | BC8: 0 | BD8: 0 | BE8: 0 | BF8: 0
A9: Cryptography | B9: =VLOOKUP(A9,AllaSkills!$A$2:$BV$317,'Ny NPC'!$A$2+3,FALSE) -> 2/6 | C9: 2 | D9: 6 | E9: Academic | AC9: 0 | AD9: -25 | AE9: =(IN+RE)/2 -> 5 | AF9: =HLOOKUP(Yrke,Levelbonus!$B$1:$CR$20,2,FALSE) -> 3 | AG9: 9 | AH9: =IF(ISNUMBER(VLOOKUP($A9,Rasbonus!$A$61:$AJ$295,MATCH(Ras,Rasbonus!$A$1:$AJ$1,0),FALSE)),VLOOKUP($A9,Rasbonus!$A$61:$AJ$295,MATCH(Ras,Rasbonus!$A$1:$AJ$1,0),FALSE),"0") -> 0 | AK9: -11 | AL9: 0 | AM9: 0 | AN9: 0 | AO9: 0 | AP9: 0 | AQ9: 0 | AR9: 0 | AS9: 0 | AT9: 0 | AU9: 0 | AV9: 0 | AW9: 0 | AX9: 0 | AY9: 0 | AZ9: 0 | BA9: 0 | BB9: 0 | BC9: 0 | BD9: 0 | BE9: 0 | BF9: 0
A10: Demon/Devil Lore | B10: =VLOOKUP(A10,AllaSkills!$A$2:$BV$317,'Ny NPC'!$A$2+3,FALSE) -> 1/3 | C10: 1 | D10: 3 | E10: Academic | AC10: 0 | AD10: -25 | AE10: =(RE) -> 5 | AF10: =HLOOKUP(Yrke,Levelbonus!$B$1:$CR$20,2,FALSE) -> 3 | AG10: 9 | AH10: =IF(ISNUMBER(VLOOKUP($A10,Rasbonus!$A$61:$AJ$295,MATCH(Ras,Rasbonus!$A$1:$AJ$1,0),FALSE)),VLOOKUP($A10,Rasbonus!$A$61:$AJ$295,MATCH(Ras,Rasbonus!$A$1:$AJ$1,0),FALSE),"0") -> 0 | AK10: -11 | AL10: 0 | AM10: 0 | AN10: 0 | AO10: 0 | AP10: 0 | AQ10: 0 | AR10: 0 | AS10: 0 | AT10: 0 | AU10: 0 | AV10: 0 | AW10: 0 | AX10: 0 | AY10: 0 | AZ10: 0 | BA10: 0 | BB10: 0 | BC10: 0 | BD10: 0 | BE10: 0 | BF10: 0
A11: Drafting | B11: =VLOOKUP(A11,AllaSkills!$A$2:$BV$317,'Ny NPC'!$A$2+3,FALSE) -> 1/3 | C11: 1 | D11: 3 | E11: Academic | AC11: 0 | AD11: -25 | AE11: =(RE) -> 5 | AF11: =HLOOKUP(Yrke,Levelbonus!$B$1:$CR$20,2,FALSE) -> 3 | AG11: 9 | AH11: =IF(ISNUMBER(VLOOKUP($A11,Rasbonus!$A$61:$AJ$295,MATCH(Ras,Rasbonus!$A$1:$AJ$1,0),FALSE)),VLOOKUP($A11,Rasbonus!$A$61:$AJ$295,MATCH(Ras,Rasbonus!$A$1:$AJ$1,0),FALSE),"0") -> 0 | AK11: -11 | AL11: 0 | AM11: 0 | AN11: 0 | AO11: 0 | AP11: 0 | AQ11: 0 | AR11: 0 | AS11: 0 | AT11: 0 | AU11: 0 | AV11: 0 | AW11: 0 | AX11: 0 | AY11: 0 | AZ11: 0 | BA11: 0 | BB11: 0 | BC11: 0 | BD11: 0 | BE11: 0 | BF11: 0
A12: Dragon Lore | B12: =VLOOKUP(A12,AllaSkills!$A$2:$BV$317,'Ny NPC'!$A$2+3,FALSE) -> 1/3 | C12: 1 | D12: 3 | E12: Academic | AC12: 0 | AD12: -25 | AE12: =(RE) -> 5 | AF12: =HLOOKUP(Yrke,Levelbonus!$B$1:$CR$20,2,FALSE) -> 3 | AG12: 9 | AH12: =IF(ISNUMBER(VLOOKUP($A12,Rasbonus!$A$61:$AJ$295,MATCH(Ras,Rasbonus!$A$1:$AJ$1,0),FALSE)),VLOOKUP($A12,Rasbonus!$A$61:$AJ$295,MATCH(Ras,Rasbonus!$A$1:$AJ$1,0),FALSE),"0") -> 0 | AK12: -11 | AL12: 0 | AM12: 0 | AN12: 0 | AO12: 0 | AP12: 0 | AQ12: 0 | AR12: 0 | AS12: 0 | AT12: 0 | AU12: 0 | AV12: 0 | AW12: 0 | AX12: 0 | AY12: 0 | AZ12: 0 | BA12: 0 | BB12: 0 | BC12: 0 | BD12: 0 | BE12: 0 | BF12: 0
A13: Engineering | B13: =VLOOKUP(A13,AllaSkills!$A$2:$BV$317,'Ny NPC'!$A$2+3,FALSE) -> 1/2 | C13: 1 | D13: 2 | E13: Academic | AC13: 0 | AD13: -25 | AE13: =(IN+RE)/2 -> 5 | AF13: =HLOOKUP(Yrke,Levelbonus!$B$1:$CR$20,2,FALSE) -> 3 | AG13: 9 | AH13: =IF(ISNUMBER(VLOOKUP($A13,Rasbonus!$A$61:$AJ$295,MATCH(Ras,Rasbonus!$A$1:$AJ$1,0),FALSE)),VLOOKUP($A13,Rasbonus!$A$61:$AJ$295,MATCH(Ras,Rasbonus!$A$1:$AJ$1,0),FALSE),"0") -> 0 | AK13: -11 | AL13: 0 | AM13: 0 | AN13: 0 | AO13: 0 | AP13: 0 | AQ13: 0 | AR13: 0 | AS13: 0 | AT13: 0 | AU13: 0 | AV13: 0 | AW13: 0 | AX13: 0 | AY13: 0 | AZ13: 0 | BA13: 0 | BB13: 0 | BC13: 0 | BD13: 0 | BE13: 0 | BF13: 0
A14: Faerie Lore | B14: =VLOOKUP(A14,AllaSkills!$A$2:$BV$317,'Ny NPC'!$A$2+3,FALSE) -> 1/3 | C14: 1 | D14: 3 | E14: Academic | AC14: 0 | AD14: -25 | AE14: =(RE) -> 5 | AF14: =HLOOKUP(Yrke,Levelbonus!$B$1:$CR$20,2,FALSE) -> 3 | AG14: 9 | AH14: =IF(ISNUMBER(VLOOKUP($A14,Rasbonus!$A$61:$AJ$295,MATCH(Ras,Rasbonus!$A$1:$AJ$1,0),FALSE)),VLOOKUP($A14,Rasbonus!$A$61:$AJ$295,MATCH(Ras,Rasbonus!$A$1:$AJ$1,0),FALSE),"0") -> 0 | AK14: -11 | AL14: 0 | AM14: 0 | AN14: 0 | AO14: 0 | AP14: 0 | AQ14: 0 | AR14: 0 | AS14: 0 | AT14: 0 | AU14: 0 | AV14: 0 | AW14: 0 | AX14: 0 | AY14: 0 | AZ14: 0 | BA14: 0 | BB14: 0 | BC14: 0 | BD14: 0 | BE14: 0 | BF14: 0
A15: Fauna Lore | B15: =VLOOKUP(A15,AllaSkills!$A$2:$BV$317,'Ny NPC'!$A$2+3,FALSE) -> 1/4 | C15: 1 | D15: 4 | E15: Academic | AC15: 0 | AD15: -25 | AE15: 5 | AF15: =HLOOKUP(Yrke,Levelbonus!$B$1:$CR$20,2,FALSE) -> 3 | AG15: 9 | AH15: =IF(ISNUMBER(VLOOKUP($A15,Rasbonus!$A$61:$AJ$295,MATCH(Ras,Rasbonus!$A$1:$AJ$1,0),FALSE)),VLOOKUP($A15,Rasbonus!$A$61:$AJ$295,MATCH(Ras,Rasbonus!$A$1:$AJ$1,0),FALSE),"0") -> 0 | AK15: -11 | AL15: 0 | AM15: 0 | AN15: 0 | AO15: 0 | AP15: 0 | AQ15: 0 | AR15: 0 | AS15: 0 | AT15: 0 | AU15: 0 | AV15: 0 | AW15: 0 | AX15: 0 | AY15: 0 | AZ15: 0 | BA15: 0 | BB15: 0 | BC15: 0 | BD15: 0 | BE15: 0 | BF15: 0
A16: Flora Lore | B16: =VLOOKUP(A16,AllaSkills!$A$2:$BV$317,'Ny NPC'!$A$2+3,FALSE) -> 1/4 | C16: 1 | D16: 4 | E16: Academic | AC16: 0 | AD16: -25 | AE16: 5 | AF16: =HLOOKUP(Yrke,Levelbonus!$B$1:$CR$20,2,FALSE) -> 3 | AG16: 9 | AH16: =IF(ISNUMBER(VLOOKUP($A16,Rasbonus!$A$61:$AJ$295,MATCH(Ras,Rasbonus!$A$1:$AJ$1,0),FALSE)),VLOOKUP($A16,Rasbonus!$A$61:$AJ$295,MATCH(Ras,Rasbonus!$A$1:$AJ$1,0),FALSE),"0") -> 0 | AK16: -11 | AL16: 0 | AM16: 0 | AN16: 0 | AO16: 0 | AP16: 0 | AQ16: 0 | AR16: 0 | AS16: 0 | AT16: 0 | AU16: 0 | AV16: 0 | AW16: 0 | AX16: 0 | AY16: 0 | AZ16: 0 | BA16: 0 | BB16: 0 | BC16: 0 | BD16: 0 | BE16: 0 | BF16: 0
A17: Heraldry | B17: =VLOOKUP(A17,AllaSkills!$A$2:$BV$317,'Ny NPC'!$A$2+3,FALSE) -> 3/5 | C17: 3 | D17: 5 | E17: Academic | AC17: 0 | AD17: -25 | AE17: 5 | AF17: =HLOOKUP(Yrke,Levelbonus!$B$1:$CR$20,2,FALSE) -> 3 | AG17: 9 | AH17: =IF(ISNUMBER(VLOOKUP($A17,Rasbonus!$A$61:$AJ$295,MATCH(Ras,Rasbonus!$A$1:$AJ$1,0),FALSE)),VLOOKUP($A17,Rasbonus!$A$61:$AJ$295,MATCH(Ras,Rasbonus!$A$1:$AJ$1,0),FALSE),"0") -> 0 | AK17: -11 | AL17: 0 | AM17: 0 | AN17: 0 | AO17: 0 | AP17: 0 | AQ17: 0 | AR17: 0 | AS17: 0 | AT17: 0 | AU17: 0 | AV17: 0 | AW17: 0 | AX17: 0 | AY17: 0 | AZ17: 0 | BA17: 0 | BB17: 0 | BC17: 0 | BD17: 0 | BE17: 0 | BF17: 0
A18: Herb Lore | B18: =VLOOKUP(A18,AllaSkills!$A$2:$BV$317,'Ny NPC'!$A$2+3,FALSE) -> 1/3 | C18: 1 | D18: 3 | E18: Academic | AC18: 0 | AD18: -25 | AE18: 5 | AF18: =HLOOKUP(Yrke,Levelbonus!$B$1:$CR$20,2,FALSE) -> 3 | AG18: 9 | AH18: =IF(ISNUMBER(VLOOKUP($A18,Rasbonus!$A$61:$AJ$295,MATCH(Ras,Rasbonus!$A$1:$AJ$1,0),FALSE)),VLOOKUP($A18,Rasbonus!$A$61:$AJ$295,MATCH(Ras,Rasbonus!$A$1:$AJ$1,0),FALSE),"0") -> 0 | AK18: -11 | AL18: 0 | AM18: 0 | AN18: 0 | AO18: 0 | AP18: 0 | AQ18: 0 | AR18: 0 | AS18: 0 | AT18: 0 | AU18: 0 | AV18: 0 | AW18: 0 | AX18: 0 | AY18: 0 | AZ18: 0 | BA18: 0 | BB18: 0 | BC18: 0 | BD18: 0 | BE18: 0 | BF18: 0
A19: Lock Lore | B19: =VLOOKUP(A19,AllaSkills!$A$2:$BV$317,'Ny NPC'!$A$2+3,FALSE) -> 1/3 | C19: 1 | D19: 3 | E19: Academic | AC19: 0 | AD19: -25 | AE19: 5 | AF19: =HLOOKUP(Yrke,Levelbonus!$B$1:$CR$20,2,FALSE) -> 3 | AG19: 9 | AH19: =IF(ISNUMBER(VLOOKUP($A19,Rasbonus!$A$61:$AJ$295,MATCH(Ras,Rasbonus!$A$1:$AJ$1,0),FALSE)),VLOOKUP($A19,Rasbonus!$A$61:$AJ$295,MATCH(Ras,Rasbonus!$A$1:$AJ$1,0),FALSE),"0") -> 10 | AK19: -1 | AL19: 0 | AM19: 0 | AN19: 0 | AO19: 0 | AP19: 0 | AQ19: 0 | AR19: 0 | AS19: 0 | AT19: 0 | AU19: 0 | AV19: 0 | AW19: 0 | AX19: 0 | AY19: 0 | AZ19: 0 | BA19: 0 | BB19: 0 | BC19: 0 | BD19: 0 | BE19: 0 | BF19: 0
A20: Mapping | B20: =VLOOKUP(A20,AllaSkills!$A$2:$BV$317,'Ny NPC'!$A$2+3,FALSE) -> 2 | C20: 2 | D20: 2 | E20: Academic | AC20: 0 | AD20: -25 | AE20: 5 | AF20: =HLOOKUP(Yrke,Levelbonus!$B$1:$CR$20,2,FALSE) -> 3 | AG20: 9 | AH20: =IF(ISNUMBER(VLOOKUP($A20,Rasbonus!$A$61:$AJ$295,MATCH(Ras,Rasbonus!$A$1:$AJ$1,0),FALSE)),VLOOKUP($A20,Rasbonus!$A$61:$AJ$295,MATCH(Ras,Rasbonus!$A$1:$AJ$1,0),FALSE),"0") -> 0 | AK20: -11 | AL20: 0 | AM20: 0 | AN20: 0 | AO20: 0 | AP20: 0 | AQ20: 0 | AR20: 0 | AS20: 0 | AT20: 0 | AU20: 0 | AV20: 0 | AW20: 0 | AX20: 0 | AY20: 0 | AZ20: 0 | BA20: 0 | BB20: 0 | BC20: 0 | BD20: 0 | BE20: 0 | BF20: 0
A21: Mechanition | B21: =VLOOKUP(A21,AllaSkills!$A$2:$BV$317,'Ny NPC'!$A$2+3,FALSE) -> 1/2 | C21: 1 | D21: 2 | E21: Academic | AC21: 0 | AD21: -25 | AE21: =(AG+RE)/2 -> 2.5 | AF21: =HLOOKUP(Yrke,Levelbonus!$B$1:$CR$20,2,FALSE) -> 3 | AG21: 9 | AH21: =IF(ISNUMBER(VLOOKUP($A21,Rasbonus!$A$61:$AJ$295,MATCH(Ras,Rasbonus!$A$1:$AJ$1,0),FALSE)),VLOOKUP($A21,Rasbonus!$A$61:$AJ$295,MATCH(Ras,Rasbonus!$A$1:$AJ$1,0),FALSE),"0") -> 0 | AK21: -14 | AL21: 0 | AM21: 0 | AN21: 0 | AO21: 0 | AP21: 0 | AQ21: 0 | AR21: 0 | AS21: 0 | AT21: 0 | AU21: 0 | AV21: 0 | AW21: 0 | AX21: 0 | AY21: 0 | AZ21: 0 | BA21: 0 | BB21: 0 | BC21: 0 | BD21: 0 | BE21: 0 | BF21: 0
A22: Metal Lore | B22: =VLOOKUP(A22,AllaSkills!$A$2:$BV$317,'Ny NPC'!$A$2+3,FALSE) -> 1/2 | C22: 1 | D22: 2 | E22: Academic | AC22: 0 | AD22: -25 | AE22: =(RE) -> 5 | AF22: =HLOOKUP(Yrke,Levelbonus!$B$1:$CR$20,2,FALSE) -> 3 | AG22: 9 | AH22: =IF(ISNUMBER(VLOOKUP($A22,Rasbonus!$A$61:$AJ$295,MATCH(Ras,Rasbonus!$A$1:$AJ$1,0),FALSE)),VLOOKUP($A22,Rasbonus!$A$61:$AJ$295,MATCH(Ras,Rasbonus!$A$1:$AJ$1,0),FALSE),"0") -> 10 | AK22: -1 | AL22: 0 | AM22: 0 | AN22: 0 | AO22: 0 | AP22: 0 | AQ22: 0 | AR22: 0 | AS22: 0 | AT22: 0 | AU22: 0 | AV22: 0 | AW22: 0 | AX22: 0 | AY22: 0 | AZ22: 0 | BA22: 0 | BB22: 0 | BC22: 0 | BD22: 0 | BE22: 0 | BF22: 0
A23: Military Organization | B23: =VLOOKUP(A23,AllaSkills!$A$2:$BV$317,'Ny NPC'!$A$2+3,FALSE) -> 3/6 | C23: 3 | D23: 6 | E23: Academic | AC23: 0 | AD23: -25 | AE23: =(PR+RE)/2 -> 2.5 | AF23: =HLOOKUP(Yrke,Levelbonus!$B$1:$CR$20,2,FALSE) -> 3 | AG23: 9 | AH23: =IF(ISNUMBER(VLOOKUP($A23,Rasbonus!$A$61:$AJ$295,MATCH(Ras,Rasbonus!$A$1:$AJ$1,0),FALSE)),VLOOKUP($A23,Rasbonus!$A$61:$AJ$295,MATCH(Ras,Rasbonus!$A$1:$AJ$1,0),FALSE),"0") -> 0 | AK23: -14 | AL23: 0 | AM23: 0 | AN23: 0 | AO23: 0 | AP23: 0 | AQ23: 0 | AR23: 0 | AS23: 0 | AT23: 0 | AU23: 0 | AV23: 0 | AW23: 0 | AX23: 0 | AY23: 0 | AZ23: 0 | BA23: 0 | BB23: 0 | BC23: 0 | BD23: 0 | BE23: 0 | BF23: 0
A24: Mining | B24: =VLOOKUP(A24,AllaSkills!$A$2:$BV$317,'Ny NPC'!$A$2+3,FALSE) -> 3 | C24: 3 | D24: 3 | E24: Academic | AC24: 0 | AD24: -25 | AE24: =(RE+IN)/2 -> 5 | AF24: =HLOOKUP(Yrke,Levelbonus!$B$1:$CR$20,2,FALSE) -> 3 | AG24: 9 | AH24: =IF(ISNUMBER(VLOOKUP($A24,Rasbonus!$A$61:$AJ$295,MATCH(Ras,Rasbonus!$A$1:$AJ$1,0),FALSE)),VLOOKUP($A24,Rasbonus!$A$61:$AJ$295,MATCH(Ras,Rasbonus!$A$1:$AJ$1,0),FALSE),"0") -> 10 | AK24: -1 | AL24: 0 | AM24: 0 | AN24: 0 | AO24: 0 | AP24: 0 | AQ24: 0 | AR24: 0 | AS24: 0 | AT24: 0 | AU24: 0 | AV24: 0 | AW24: 0 | AX24: 0 | AY24: 0 | AZ24: 0 | BA24: 0 | BB24: 0 | BC24: 0 | BD24: 0 | BE24: 0 | BF24: 0
A25: Navigation | B25: =VLOOKUP(A25,AllaSkills!$A$2:$BV$317,'Ny NPC'!$A$2+3,FALSE) -> 2/6 | C25: 2 | D25: 6 | E25: Academic | AC25: 0 | AD25: -25 | AE25: =(RE+IN)/2 -> 5 | AF25: =HLOOKUP(Yrke,Levelbonus!$B$1:$CR$20,2,FALSE) -> 3 | AG25: 9 | AH25: =IF(ISNUMBER(VLOOKUP($A25,Rasbonus!$A$61:$AJ$295,MATCH(Ras,Rasbonus!$A$1:$AJ$1,0),FALSE)),VLOOKUP($A25,Rasbonus!$A$61:$AJ$295,MATCH(Ras,Rasbonus!$A$1:$AJ$1,0),FALSE),"0") -> 0 | AK25: -11 | AL25: 0 | AM25: 0 | AN25: 0 | AO25: 0 | AP25: 0 | AQ25: 0 | AR25: 0 | AS25: 0 | AT25: 0 | AU25: 0 | AV25: 0 | AW25: 0 | AX25: 0 | AY25: 0 | AZ25: 0 | BA25: 0 | BB25: 0 | BC25: 0 | BD25: 0 | BE25: 0 | BF25: 0
A26: Phil/Relig. Doctrine | B26: =VLOOKUP(A26,AllaSkills!$A$2:$BV$317,'Ny NPC'!$A$2+3,FALSE) -> 1/2 | C26: 1 | D26: 2 | E26: Academic | AC26: 0 | AD26: -25 | AE26: =(IN+RE)/2 -> 5 | AF26: =HLOOKUP(Yrke,Levelbonus!$B$1:$CR$20,2,FALSE) -> 3 | AG26: 9 | AH26: =IF(ISNUMBER(VLOOKUP($A26,Rasbonus!$A$61:$AJ$295,MATCH(Ras,Rasbonus!$A$1:$AJ$1,0),FALSE)),VLOOKUP($A26,Rasbonus!$A$61:$AJ$295,MATCH(Ras,Rasbonus!$A$1:$AJ$1,0),FALSE),"0") -> 0 | AK26: -11 | AL26: 0 | AM26: 0 | AN26: 0 | AO26: 0 | AP26: 0 | AQ26: 0 | AR26: 0 | AS26: 0 | AT26: 0 | AU26: 0 | AV26: 0 | AW26: 0 | AX26: 0 | AY26: 0 | AZ26: 0 | BA26: 0 | BB26: 0 | BC26: 0 | BD26: 0 | BE26: 0 | BF26: 0
A27: Poison Lore | B27: =VLOOKUP(A27,AllaSkills!$A$2:$BV$317,'Ny NPC'!$A$2+3,FALSE) -> 1/3 | C27: 1 | D27: 3 | E27: Academic | AC27: 0 | AD27: -25 | AE27: =(RE) -> 5 | AF27: =HLOOKUP(Yrke,Levelbonus!$B$1:$CR$20,2,FALSE) -> 3 | AG27: 9 | AH27: =IF(ISNUMBER(VLOOKUP($A27,Rasbonus!$A$61:$AJ$295,MATCH(Ras,Rasbonus!$A$1:$AJ$1,0),FALSE)),VLOOKUP($A27,Rasbonus!$A$61:$AJ$295,MATCH(Ras,Rasbonus!$A$1:$AJ$1,0),FALSE),"0") -> 0 | AK27: -11 | AL27: 0 | AM27: 0 | AN27: 0 | AO27: 0 | AP27: 0 | AQ27: 0 | AR27: 0 | AS27: 0 | AT27: 0 | AU27: 0 | AV27: 0 | AW27: 0 | AX27: 0 | AY27: 0 | AZ27: 0 | BA27: 0 | BB27: 0 | BC27: 0 | BD27: 0 | BE27: 0 | BF27: 0
A28: Racial History | B28: =VLOOKUP(A28,AllaSkills!$A$2:$BV$317,'Ny NPC'!$A$2+3,FALSE) -> 1/4 | C28: 1 | D28: =IF(RIGHT(B28,1)="*",LEFT(B28,1),IF(LEN(B28)=3,RIGHT(B28,1),IF(LEN(B28)<3,B28,RIGHT(B28,2)))) -> 4 | E28: Academic | AC28: =SUM(F28:AB28) -> 0 | AD28: -25 | AE28: =(RE) -> 5 | AF28: =HLOOKUP(Yrke,Levelbonus!$B$1:$CR$20,2,FALSE) -> 3 | AG28: 9 | AH28: =IF(ISNUMBER(VLOOKUP($A28,Rasbonus!$A$61:$AJ$295,MATCH(Ras,Rasbonus!$A$1:$AJ$1,0),FALSE)),VLOOKUP($A28,Rasbonus!$A$61:$AJ$295,MATCH(Ras,Rasbonus!$A$1:$AJ$1,0),FALSE),"0") -> 0 | AK28: -11 | AL28: 0 | AM28: 0 | AN28: 0 | AO28: 0 | AP28: 0 | AQ28: 0 | AR28: 0 | AS28: 0 | AT28: 0 | AU28: 0 | AV28: 0 | AW28: 0 | AX28: 0 | AY28: 0 | AZ28: 0 | BA28: 0 | BB28: 0 | BC28: 0 | BD28: 0 | BE28: 0 | BF28: 0
AL29: 0 | AM29: 0 | AN29: 0 | AO29: 0 | AP29: 0 | AQ29: 0 | AR29: 0 | AS29: 0 | AT29: 0 | AU29: 0 | AV29: 0 | AW29: 0 | AX29: 0 | AY29: 0 | AZ29: 0 | BA29: 0 | BB29: 0 | BC29: 0 | BD29: 0 | BE29: 0 | BF29: 0
A30: Sanity Healing Lore | B30: =VLOOKUP(A30,AllaSkills!$A$2:$BV$317,'Ny NPC'!$A$2+3,FALSE) -> 2 | C30: =IF(LEN(B30)=3,LEFT(B30,1),IF(LEN(B30)<3,B30,99)) -> 2 | D30: 2 | E30: Academic | AC30: 0 | AD30: -25 | AE30: =(EM) -> 0 | AF30: =HLOOKUP(Yrke,Levelbonus!$B$1:$CR$20,2,FALSE) -> 3 | AG30: 9 | AH30: =IF(ISNUMBER(VLOOKUP($A30,Rasbonus!$A$61:$AJ$295,MATCH(Ras,Rasbonus!$A$1:$AJ$1,0),FALSE)),VLOOKUP($A30,Rasbonus!$A$61:$AJ$295,MATCH(Ras,Rasbonus!$A$1:$AJ$1,0),FALSE),"0") -> 0 | AK30: -16 | AL30: 0 | AM30: 0 | AN30: 0 | AO30: 0 | AP30: 0 | AQ30: 0 | AR30: 0 | AS30: 0 | AT30: 0 | AU30: 0 | AV30: 0 | AW30: 0 | AX30: 0 | AY30: 0 | AZ30: 0 | BA30: 0 | BB30: 0 | BC30: 0 | BD30: 0 | BE30: 0 | BF30: 0
A31: Siege Engineer | B31: =VLOOKUP(A31,AllaSkills!$A$2:$BV$317,'Ny NPC'!$A$2+3,FALSE) -> 2/4 | C31: =IF(LEN(B31)=3,LEFT(B31,1),IF(LEN(B31)<3,B31,99)) -> 2 | D31: 4 | E31: Academic | AC31: 0 | AD31: -25 | AE31: =(RE+IN)/2 -> 5 | AF31: =HLOOKUP(Yrke,Levelbonus!$B$1:$CR$20,2,FALSE) -> 3 | AG31: 9 | AH31: =IF(ISNUMBER(VLOOKUP($A31,Rasbonus!$A$61:$AJ$295,MATCH(Ras,Rasbonus!$A$1:$AJ$1,0),FALSE)),VLOOKUP($A31,Rasbonus!$A$61:$AJ$295,MATCH(Ras,Rasbonus!$A$1:$AJ$1,0),FALSE),"0") -> 0 | AK31: -11 | AL31: 0 | AM31: 0 | AN31: 0 | AO31: 0 | AP31: 0 | AQ31: 0 | AR31: 0 | AS31: 0 | AT31: 0 | AU31: 0 | AV31: 0 | AW31: 0 | AX31: 0 | AY31: 0 | AZ31: 0 | BA31: 0 | BB31: 0 | BC31: 0 | BD31: 0 | BE31: 0 | BF31: 0
A32: Spec. know. Lore | B32: =VLOOKUP(A32,AllaSkills!$A$2:$BV$317,'Ny NPC'!$A$2+3,FALSE) -> 1/3 | C32: =IF(LEN(B32)=3,LEFT(B32,1),IF(LEN(B32)<3,B32,99)) -> 1 | D32: 3 | E32: Academic | AC32: 0 | AD32: -25 | AE32: =(RE) -> 5 | AF32: =HLOOKUP(Yrke,Levelbonus!$B$1:$CR$20,2,FALSE) -> 3 | AG32: 9 | AH32: =IF(ISNUMBER(VLOOKUP($A32,Rasbonus!$A$61:$AJ$295,MATCH(Ras,Rasbonus!$A$1:$AJ$1,0),FALSE)),VLOOKUP($A32,Rasbonus!$A$61:$AJ$295,MATCH(Ras,Rasbonus!$A$1:$AJ$1,0),FALSE),"0") -> 0 | AK32: -11 | AL32: 0 | AM32: 0 | AN32: 0 | AO32: 0 | AP32: 0 | AQ32: 0 | AR32: 0 | AS32: 0 | AT32: 0 | AU32: 0 | AV32: 0 | AW32: 0 | AX32: 0 | AY32: 0 | AZ32: 0 | BA32: 0 | BB32: 0 | BC32: 0 | BD32: 0 | BE32: 0 | BF32: 0
AL33: 0 | AM33: 0 | AN33: 0 | AO33: 0 | AP33: 0 | AQ33: 0 | AR33: 0 | AS33: 0 | AT33: 0 | AU33: 0 | AV33: 0 | AW33: 0 | AX33: 0 | AY33: 0 | AZ33: 0 | BA33: 0 | BB33: 0 | BC33: 0 | BD33: 0 | BE33: 0 | BF33: 0
A34: Star-gazing | B34: =VLOOKUP(A34,AllaSkills!$A$2:$BV$317,'Ny NPC'!$A$2+3,FALSE) -> 2/6 | C34: =IF(LEN(B34)=3,LEFT(B34,1),IF(LEN(B34)<3,B34,99)) -> 2 | D34: 6 | E34: Academic | AC34: 0 | AD34: -25 | AE34: =(IN+RE)/2 -> 5 | AF34: =HLOOKUP(Yrke,Levelbonus!$B$1:$CR$20,2,FALSE) -> 3 | AG34: 9 | AH34: =IF(ISNUMBER(VLOOKUP($A34,Rasbonus!$A$61:$AJ$295,MATCH(Ras,Rasbonus!$A$1:$AJ$1,0),FALSE)),VLOOKUP($A34,Rasbonus!$A$61:$AJ$295,MATCH(Ras,Rasbonus!$A$1:$AJ$1,0),FALSE),"0") -> 0 | AK34: -11 | AL34: 0 | AM34: 0 | AN34: 0 | AO34: 0 | AP34: 0 | AQ34: 0 | AR34: 0 | AS34: 0 | AT34: 0 | AU34: 0 | AV34: 0 | AW34: 0 | AX34: 0 | AY34: 0 | AZ34: 0 | BA34: 0 | BB34: 0 | BC34: 0 | BD34: 0 | BE34: 0 | BF34: 0
A35: Stone Lore | B35: =VLOOKUP(A35,AllaSkills!$A$2:$BV$317,'Ny NPC'!$A$2+3,FALSE) -> 1/2 | C35: =IF(LEN(B35)=3,LEFT(B35,1),IF(LEN(B35)<3,B35,99)) -> 1 | D35: 2 | E35: Academic | AC35: 0 | AD35: -25 | AE35: =(RE) -> 5 | AF35: =HLOOKUP(Yrke,Levelbonus!$B$1:$CR$20,2,FALSE) -> 3 | AG35: 9 | AH35: =IF(ISNUMBER(VLOOKUP($A35,Rasbonus!$A$61:$AJ$295,MATCH(Ras,Rasbonus!$A$1:$AJ$1,0),FALSE)),VLOOKUP($A35,Rasbonus!$A$61:$AJ$295,MATCH(Ras,Rasbonus!$A$1:$AJ$1,0),FALSE),"0") -> 10 | AK35: -1 | AL35: 0 | AM35: 0 | AN35: 0 | AO35: 0 | AP35: 0 | AQ35: 0 | AR35: 0 | AS35: 0 | AT35: 0 | AU35: 0 | AV35: 0 | AW35: 0 | AX35: 0 | AY35: 0 | AZ35: 0 | BA35: 0 | BB35: 0 | BC35: 0 | BD35: 0 | BE35: 0 | BF35: 0
A36: Tactics | B36: =VLOOKUP(A36,AllaSkills!$A$2:$BV$317,'Ny NPC'!$A$2+3,FALSE) -> 2/4 | C36: =IF(LEN(B36)=3,LEFT(B36,1),IF(LEN(B36)<3,B36,99)) -> 2 | D36: 4 | E36: Academic | AC36: 0 | AD36: -25 | AE36: =(IN+RE)/2 -> 5 | AF36: =HLOOKUP(Yrke,Levelbonus!$B$1:$CR$20,2,FALSE) -> 3 | AG36: 9 | AH36: =IF(ISNUMBER(VLOOKUP($A36,Rasbonus!$A$61:$AJ$295,MATCH(Ras,Rasbonus!$A$1:$AJ$1,0),FALSE)),VLOOKUP($A36,Rasbonus!$A$61:$AJ$295,MATCH(Ras,Rasbonus!$A$1:$AJ$1,0),FALSE),"0") -> 0 | AK36: -11 | AL36: 0 | AM36: 0 | AN36: 0 | AO36: 0 | AP36: 0 | AQ36: 0 | AR36: 0 | AS36: 0 | AT36: 0 | AU36: 0 | AV36: 0 | AW36: 0 | AX36: 0 | AY36: 0 | AZ36: 0 | BA36: 0 | BB36: 0 | BC36: 0 | BD36: 0 | BE36: 0 | BF36: 0
A37: Trading lore | B37: =VLOOKUP(A37,AllaSkills!$A$2:$BV$317,'Ny NPC'!$A$2+3,FALSE) -> 2/6 | C37: =IF(LEN(B37)=3,LEFT(B37,1),IF(LEN(B37)<3,B37,99)) -> 2 | D37: 6 | E37: Academic | AC37: 0 | AD37: -25 | AE37: =(RE) -> 5 | AF37: =HLOOKUP(Yrke,Levelbonus!$B$1:$CR$20,2,FALSE) -> 3 | AG37: 9 | AH37: =IF(ISNUMBER(VLOOKUP($A37,Rasbonus!$A$61:$AJ$295,MATCH(Ras,Rasbonus!$A$1:$AJ$1,0),FALSE)),VLOOKUP($A37,Rasbonus!$A$61:$AJ$295,MATCH(Ras,Rasbonus!$A$1:$AJ$1,0),FALSE),"0") -> 0 | AK37: -11 | AL37: 0 | AM37: 0 | AN37: 0 | AO37: 0 | AP37: 0 | AQ37: 0 | AR37: 0 | AS37: 0 | AT37: 0 | AU37: 0 | AV37: 0 | AW37: 0 | AX37: 0 | AY37: 0 | AZ37: 0 | BA37: 0 | BB37: 0 | BC37: 0 | BD37: 0 | BE37: 0 | BF37: 0
A38: Weather Watching | B38: =VLOOKUP(A38,AllaSkills!$A$2:$BV$317,'Ny NPC'!$A$2+3,FALSE) -> 1/4 | C38: =IF(LEN(B38)=3,LEFT(B38,1),IF(LEN(B38)<3,B38,99)) -> 1 | D38: =IF(RIGHT(B38,1)="*",LEFT(B38,1),IF(LEN(B38)=3,RIGHT(B38,1),IF(LEN(B38)<3,B38,RIGHT(B38,2)))) -> 4 | E38: Academic | AC38: =SUM(F38:AB38) -> 0 | AD38: =IF(AC38<1,-25,IF(AC38>30,80+((AC38-30)*0.5),IF(AC38>20,70+(AC38-20),IF(AC38>10,50+((AC38-10)*2),AC38*5)))) -> -25 | AE38: =(IN+EM)/2 -> 2.5 | AF38: =HLOOKUP(Yrke,Levelbonus!$B$1:$CR$20,2,FALSE) -> 3 | AG38: =AF38*Level -> 9 | AH38: =IF(ISNUMBER(VLOOKUP($A38,Rasbonus!$A$61:$AJ$295,MATCH(Ras,Rasbonus!$A$1:$AJ$1,0),FALSE)),VLOOKUP($A38,Rasbonus!$A$61:$AJ$295,MATCH(Ras,Rasbonus!$A$1:$AJ$1,0),FALSE),"0") -> 0 | AK38: -14 | AL38: 0 | AM38: 0 | AN38: 0 | AO38: 0 | AP38: 0 | AQ38: 0 | AR38: 0 | AS38: 0 | AT38: 0 | AU38: 0 | AV38: 0 | AW38: 0 | AX38: 0 | AY38: 0 | AZ38: 0 | BA38: 0 | BB38: 0 | BC38: 0 | BD38: 0 | BE38: 0 | BF38: 0
A39: Animal | B39: =HLOOKUP(Diverse!$G$2,'2nd'!$B$1:$CR$18,3,FALSE) -> 0 | F39: =SUM(AL40:AL45) -> 0 | I39: =SUM(AM40:AM45) -> 0 | J39: =SUM(AN40:AN45) -> 0 | K39: 0 | L39: 0 | M39: 0 | N39: 0 | O39: 0 | P39: 0 | Q39: 0 | R39: 0 | S39: 0 | T39: 0 | U39: 0 | V39: 0 | W39: 0 | X39: 0 | Y39: 0 | Z39: 0 | AA39: 0 | AB39: 0 | AC39: Rank | AD39: Skill | AE39: Stat | AG39: Lvl | AH39: Race | AI39: Armor | AJ39: Item | AK39: Total
A40: Animal handling | B40: =VLOOKUP(A40,AllaSkills!$A$3:$BV$317,'Ny NPC'!$A$2+3,FALSE) -> 2/5 | C40: =IF(LEN(B40)=3,LEFT(B40,1),IF(LEN(B40)<3,B40,99)) -> 2 | D40: 5 | E40: Animal | AC40: 0 | AD40: -25 | AE40: =(EM+PR+AP)/3 -> 1.666666667 | AF40: =HLOOKUP(Yrke,Levelbonus!$B$1:$CR$20,3,FALSE) -> 0 | AG40: 0 | AH40: =IF(ISNUMBER(VLOOKUP($A40,Rasbonus!$A$61:$AJ$295,MATCH(Ras,Rasbonus!$A$1:$AJ$1,0),FALSE)),VLOOKUP($A40,Rasbonus!$A$61:$AJ$295,MATCH(Ras,Rasbonus!$A$1:$AJ$1,0),FALSE),"0") -> 0 | AK40: -23 | AL40: 0 | AM40: =IF(I40>2,"99",IF(I40<1,0,IF(I40=1,$C40+$C40-$C40,IF(I40=2,$C40+$D40)))) -> 0 | AN40: 0 | AO40: 0 | AP40: 0 | AQ40: 0 | AR40: 0 | AS40: 0 | AT40: 0 | AU40: 0 | AV40: 0 | AW40: 0 | AX40: 0 | AY40: 0 | AZ40: 0 | BA40: 0 | BB40: 0 | BC40: 0 | BD40: 0 | BE40: 0 | BF40: 0
A41: Animal training | B41: =VLOOKUP(A41,AllaSkills!$A$3:$BV$317,'Ny NPC'!$A$2+3,FALSE) -> 4 | C41: 4 | D41: 4 | E41: Animal | AC41: 0 | AD41: -25 | AE41: =(EM+PR+AP)/3 -> 1.666666667 | AF41: =HLOOKUP(Yrke,Levelbonus!$B$1:$CR$20,3,FALSE) -> 0 | AG41: 0 | AH41: =IF(ISNUMBER(VLOOKUP($A41,Rasbonus!$A$61:$AJ$295,MATCH(Ras,Rasbonus!$A$1:$AJ$1,0),FALSE)),VLOOKUP($A41,Rasbonus!$A$61:$AJ$295,MATCH(Ras,Rasbonus!$A$1:$AJ$1,0),FALSE),"0") -> 0 | AK41: -23 | AL41: 0 | AM41: =IF(I41>2,"99",IF(I41<1,0,IF(I41=1,$C41+$C41-$C41,IF(I41=2,$C41+$D41)))) -> 0 | AN41: 0 | AO41: 0 | AP41: 0 | AQ41: 0 | AR41: 0 | AS41: 0 | AT41: 0 | AU41: 0 | AV41: 0 | AW41: =IF(S41>2,"99",IF(S41<1,0,IF(S41=1,$C41+$C41-$C41,IF(S41=2,$C41+$D41)))) -> 0 | AX41: 0 | AY41: 0 | AZ41: 0 | BA41: 0 | BB41: 0 | BC41: 0 | BD41: 0 | BE41: 0 | BF41: 0
A42: Beast Master | B42: =VLOOKUP(A42,AllaSkills!$A$3:$BV$317,'Ny NPC'!$A$2+3,FALSE) -> 5 | C42: 5 | D42: 5 | E42: Animal | AC42: 0 | AD42: -25 | AE42: =(EM+PR)/2 -> 0 | AF42: =HLOOKUP(Yrke,Levelbonus!$B$1:$CR$20,3,FALSE) -> 0 | AG42: 0 | AH42: =IF(ISNUMBER(VLOOKUP($A42,Rasbonus!$A$61:$AJ$295,MATCH(Ras,Rasbonus!$A$1:$AJ$1,0),FALSE)),VLOOKUP($A42,Rasbonus!$A$61:$AJ$295,MATCH(Ras,Rasbonus!$A$1:$AJ$1,0),FALSE),"0") -> 0 | AK42: -25 | AL42: 0 | AM42: 0 | AN42: 0 | AO42: 0 | AP42: 0 | AQ42: 0 | AR42: 0 | AS42: 0 | AT42: 0 | AU42: 0 | AV42: 0 | AW42: 0 | AX42: 0 | AY42: 0 | AZ42: 0 | BA42: 0 | BB42: 0 | BC42: 0 | BD42: 0 | BE42: 0 | BF42: 0
A43: Driving | B43: =VLOOKUP(A43,AllaSkills!$A$3:$BV$317,'Ny NPC'!$A$2+3,FALSE) -> 3 | C43: 3 | D43: 3 | E43: Animal | AC43: 0 | AD43: -25 | AE43: =(AG+QU)/2 -> 0 | AF43: =HLOOKUP(Yrke,Levelbonus!$B$1:$CR$20,3,FALSE) -> 0 | AG43: 0 | AH43: =IF(ISNUMBER(VLOOKUP($A43,Rasbonus!$A$61:$AJ$295,MATCH(Ras,Rasbonus!$A$1:$AJ$1,0),FALSE)),VLOOKUP($A43,Rasbonus!$A$61:$AJ$295,MATCH(Ras,Rasbonus!$A$1:$AJ$1,0),FALSE),"0") -> 0 | AK43: -25 | AL43: 0 | AM43: 0 | AN43: 0 | AO43: 0 | AP43: 0 | AQ43: 0 | AR43: 0 | AS43: 0 | AT43: 0 | AU43: 0 | AV43: 0 | AW43: 0 | AX43: 0 | AY43: 0 | AZ43: 0 | BA43: 0 | BB43: 0 | BC43: 0 | BD43: 0 | BE43: 0 | BF43: 0
A44: Herding | B44: =VLOOKUP(A44,AllaSkills!$A$3:$BV$317,'Ny NPC'!$A$2+3,FALSE) -> 2/6 | C44: 2 | D44: 6 | E44: Animal | AC44: 0 | AD44: -25 | AE44: =(EM+PR)/2 -> 0 | AF44: =HLOOKUP(Yrke,Levelbonus!$B$1:$CR$20,3,FALSE) -> 0 | AG44: 0 | AH44: =IF(ISNUMBER(VLOOKUP($A44,Rasbonus!$A$61:$AJ$295,MATCH(Ras,Rasbonus!$A$1:$AJ$1,0),FALSE)),VLOOKUP($A44,Rasbonus!$A$61:$AJ$295,MATCH(Ras,Rasbonus!$A$1:$AJ$1,0),FALSE),"0") -> 0 | AK44: -25 | AL44: 0 | AM44: 0 | AN44: 0 | AO44: 0 | AP44: 0 | AQ44: 0 | AR44: 0 | AS44: 0 | AT44: 0 | AU44: 0 | AV44: 0 | AW44: 0 | AX44: 0 | AY44: 0 | AZ44: 0 | BA44: 0 | BB44: 0 | BC44: 0 | BD44: 0 | BE44: 0 | BF44: 0
A45: Loading | B45: =VLOOKUP(A45,AllaSkills!$A$3:$BV$317,'Ny NPC'!$A$2+3,FALSE) -> 3 | C45: 3 | D45: 3 | E45: Animal | AC45: 0 | AD45: -25 | AE45: =(EM+RE)/2 -> 2.5 | AF45: =HLOOKUP(Yrke,Levelbonus!$B$1:$CR$20,3,FALSE) -> 0 | AG45: 0 | AH45: =IF(ISNUMBER(VLOOKUP($A45,Rasbonus!$A$61:$AJ$295,MATCH(Ras,Rasbonus!$A$1:$AJ$1,0),FALSE)),VLOOKUP($A45,Rasbonus!$A$61:$AJ$295,MATCH(Ras,Rasbonus!$A$1:$AJ$1,0),FALSE),"0") -> 0 | AK45: -23 | AL45: 0 | AM45: 0 | AN45: 0 | AO45: 0 | AP45: 0 | AQ45: 0 | AR45: 0 | AS45: 0 | AT45: 0 | AU45: 0 | AV45: 0 | AW45: 0 | AX45: 0 | AY45: 0 | AZ45: 0 | BA45: 0 | BB45: 0 | BC45: 0 | BD45: 0 | BE45: 0 | BF45: 0
A46: Athletic | B46: =HLOOKUP(Diverse!$G$2,'2nd'!$B$1:$CR$18,4,FALSE) -> 0 | F46: =SUM(AL47:AL59) -> 0 | I46: =SUM(AM47:AM59) -> 0 | J46: =SUM(AN47:AN59) -> 0 | K46: 0 | L46: 0 | M46: 0 | N46: 0 | O46: 0 | P46: 0 | Q46: 0 | R46: 0 | S46: 0 | T46: 0 | U46: 0 | V46: 0 | W46: 0 | X46: 0 | Y46: 0 | Z46: 0 | AA46: 0 | AB46: 0 | AC46: Rank | AD46: Skill | AE46: Stat | AG46: Lvl | AH46: Race | AI46: Armor | AJ46: Item | AK46: Total
A47: Athletic Games | B47: =VLOOKUP(A47,AllaSkills!$A$3:$BV$317,'Ny NPC'!$A$2+3,FALSE) -> 7 | C47: =IF(LEN(B47)=3,LEFT(B47,1),IF(LEN(B47)<3,B47,99)) -> 7 | D47: 7 | E47: Athletic | AC47: 0 | AD47: -25 | AE47: =(ST+AG+QU)/3 -> 5 | AF47: =HLOOKUP(Yrke,Levelbonus!$B$1:$CR$20,4,FALSE) -> 0 | AG47: 0 | AH47: =IF(ISNUMBER(VLOOKUP($A47,Rasbonus!$A$61:$AJ$295,MATCH(Ras,Rasbonus!$A$1:$AJ$1,0),FALSE)),VLOOKUP($A47,Rasbonus!$A$61:$AJ$295,MATCH(Ras,Rasbonus!$A$1:$AJ$1,0),FALSE),"0") -> 0 | AI47: ='Ny NPC'!$N$3 -> 0 | AK47: -20 | AL47: 0 | AM47: =IF(I47>2,"99",IF(I47<1,0,IF(I47=1,$C47+$C47-$C47,IF(I47=2,$C47+$D47)))) -> 0 | AN47: =IF(J47>2,"99",IF(J47<1,0,IF(J47=1,$C47+$C47-$C47,IF(J47=2,$C47+$D47)))) -> 0 | AO47: 0 | AP47: 0 | AQ47: 0 | AR47: 0 | AS47: 0 | AT47: 0 | AU47: 0 | AV47: 0 | AW47: 0 | AX47: 0 | AY47: 0 | AZ47: 0 | BA47: 0 | BB47: 0 | BC47: 0 | BD47: 0 | BE47: 0 | BF47: 0
A48: Dancing | B48: =VLOOKUP(A48,AllaSkills!$A$3:$BV$317,'Ny NPC'!$A$2+3,FALSE) -> 2/6 | C48: 2 | D48: 6 | E48: Athletic | AC48: 0 | AD48: -25 | AE48: =(AG+IN)/2 -> 2.5 | AF48: =HLOOKUP(Yrke,Levelbonus!$B$1:$CR$20,4,FALSE) -> 0 | AG48: 0 | AH48: =IF(ISNUMBER(VLOOKUP($A48,Rasbonus!$A$61:$AJ$295,MATCH(Ras,Rasbonus!$A$1:$AJ$1,0),FALSE)),VLOOKUP($A48,Rasbonus!$A$61:$AJ$295,MATCH(Ras,Rasbonus!$A$1:$AJ$1,0),FALSE),"0") -> 0 | AI48: ='Ny NPC'!$N$3 -> 0 | AK48: -23 | AL48: 0 | AM48: =IF(I48>2,"99",IF(I48<1,0,IF(I48=1,$C48+$C48-$C48,IF(I48=2,$C48+$D48)))) -> 0 | AN48: =IF(J48>2,"99",IF(J48<1,0,IF(J48=1,$C48+$C48-$C48,IF(J48=2,$C48+$D48)))) -> 0 | AO48: =IF(K48>2,"99",IF(K48<1,0,IF(K48=1,$C48+$C48-$C48,IF(K48=2,$C48+$D48)))) -> 0 | AP48: =IF(L48>2,"99",IF(L48<1,0,IF(L48=1,$C48+$C48-$C48,IF(L48=2,$C48+$D48)))) -> 0 | AQ48: =IF(M48>2,"99",IF(M48<1,0,IF(M48=1,$C48+$C48-$C48,IF(M48=2,$C48+$D48)))) -> 0 | AR48: =IF(N48>2,"99",IF(N48<1,0,IF(N48=1,$C48+$C48-$C48,IF(N48=2,$C48+$D48)))) -> 0 | AS48: =IF(O48>2,"99",IF(O48<1,0,IF(O48=1,$C48+$C48-$C48,IF(O48=2,$C48+$D48)))) -> 0 | AT48: =IF(P48>2,"99",IF(P48<1,0,IF(P48=1,$C48+$C48-$C48,IF(P48=2,$C48+$D48)))) -> 0 | AU48: =IF(Q48>2,"99",IF(Q48<1,0,IF(Q48=1,$C48+$C48-$C48,IF(Q48=2,$C48+$D48)))) -> 0 | AV48: =IF(R48>2,"99",IF(R48<1,0,IF(R48=1,$C48+$C48-$C48,IF(R48=2,$C48+$D48)))) -> 0 | AW48: =IF(S48>2,"99",IF(S48<1,0,IF(S48=1,$C48+$C48-$C48,IF(S48=2,$C48+$D48)))) -> 0 | AX48: =IF(T48>2,"99",IF(T48<1,0,IF(T48=1,$C48+$C48-$C48,IF(T48=2,$C48+$D48)))) -> 0 | AY48: =IF(U48>2,"99",IF(U48<1,0,IF(U48=1,$C48+$C48-$C48,IF(U48=2,$C48+$D48)))) -> 0 | AZ48: =IF(V48>2,"99",IF(V48<1,0,IF(V48=1,$C48+$C48-$C48,IF(V48=2,$C48+$D48)))) -> 0 | BA48: =IF(W48>2,"99",IF(W48<1,0,IF(W48=1,$C48+$C48-$C48,IF(W48=2,$C48+$D48)))) -> 0 | BB48: =IF(X48>2,"99",IF(X48<1,0,IF(X48=1,$C48+$C48-$C48,IF(X48=2,$C48+$D48)))) -> 0 | BC48: =IF(Y48>2,"99",IF(Y48<1,0,IF(Y48=1,$C48+$C48-$C48,IF(Y48=2,$C48+$D48)))) -> 0 | BD48: =IF(Z48>2,"99",IF(Z48<1,0,IF(Z48=1,$C48+$C48-$C48,IF(Z48=2,$C48+$D48)))) -> 0 | BE48: =IF(AA48>2,"99",IF(AA48<1,0,IF(AA48=1,$C48+$C48-$C48,IF(AA48=2,$C48+$D48)))) -> 0 | BF48: =IF(AB48>2,"99",IF(AB48<1,0,IF(AB48=1,$C48+$C48-$C48,IF(AB48=2,$C48+$D48)))) -> 0
A49: Distance Running | B49: =VLOOKUP(A49,AllaSkills!$A$3:$BV$317,'Ny NPC'!$A$2+3,FALSE) -> 3 | C49: 3 | D49: 3 | E49: Athletic | AC49: 0 | AD49: -25 | AE49: =CO -> 20 | AF49: =HLOOKUP(Yrke,Levelbonus!$B$1:$CR$20,4,FALSE) -> 0 | AG49: 0 | AH49: =IF(ISNUMBER(VLOOKUP($A49,Rasbonus!$A$61:$AJ$295,MATCH(Ras,Rasbonus!$A$1:$AJ$1,0),FALSE)),VLOOKUP($A49,Rasbonus!$A$61:$AJ$295,MATCH(Ras,Rasbonus!$A$1:$AJ$1,0),FALSE),"0") -> 0 | AI49: ='Ny NPC'!$N$3 -> 0 | AK49: -5 | AL49: 0 | AM49: 0 | AN49: 0 | AO49: 0 | AP49: 0 | AQ49: 0 | AR49: 0 | AS49: 0 | AT49: 0 | AU49: 0 | AV49: 0 | AW49: 0 | AX49: 0 | AY49: 0 | AZ49: 0 | BA49: 0 | BB49: 0 | BC49: 0 | BD49: 0 | BE49: 0 | BF49: 0
A50: Diving | B50: =VLOOKUP(A50,AllaSkills!$A$3:$BV$317,'Ny NPC'!$A$2+3,FALSE) -> 3 | C50: 3 | D50: 3 | E50: Athletic | AC50: 0 | AD50: -25 | AE50: =(SD+AG)/2 -> 5 | AF50: =HLOOKUP(Yrke,Levelbonus!$B$1:$CR$20,4,FALSE) -> 0 | AG50: 0 | AH50: =IF(ISNUMBER(VLOOKUP($A50,Rasbonus!$A$61:$AJ$295,MATCH(Ras,Rasbonus!$A$1:$AJ$1,0),FALSE)),VLOOKUP($A50,Rasbonus!$A$61:$AJ$295,MATCH(Ras,Rasbonus!$A$1:$AJ$1,0),FALSE),"0") -> 0 | AI50: ='Ny NPC'!$N$3 -> 0 | AK50: -20 | AL50: 0 | AM50: 0 | AN50: 0 | AO50: 0 | AP50: 0 | AQ50: 0 | AR50: 0 | AS50: 0 | AT50: 0 | AU50: 0 | AV50: 0 | AW50: 0 | AX50: 0 | AY50: 0 | AZ50: 0 | BA50: 0 | BB50: 0 | BC50: 0 | BD50: 0 | BE50: 0 | BF50: 0
A51: Flying/Gliding | B51: =VLOOKUP(A51,AllaSkills!$A$3:$BV$317,'Ny NPC'!$A$2+3,FALSE) -> 3 | C51: 3 | D51: 3 | E51: Athletic | AC51: 0 | AD51: -25 | AE51: =AG -> 0 | AF51: =HLOOKUP(Yrke,Levelbonus!$B$1:$CR$20,4,FALSE) -> 0 | AG51: 0 | AH51: =IF(ISNUMBER(VLOOKUP($A51,Rasbonus!$A$61:$AJ$295,MATCH(Ras,Rasbonus!$A$1:$AJ$1,0),FALSE)),VLOOKUP($A51,Rasbonus!$A$61:$AJ$295,MATCH(Ras,Rasbonus!$A$1:$AJ$1,0),FALSE),"0") -> 0 | AI51: ='Ny NPC'!$N$3 -> 0 | AK51: -25 | AL51: 0 | AM51: 0 | AN51: 0 | AO51: 0 | AP51: 0 | AQ51: 0 | AR51: 0 | AS51: 0 | AT51: 0 | AU51: 0 | AV51: 0 | AW51: 0 | AX51: 0 | AY51: 0 | AZ51: 0 | BA51: 0 | BB51: 0 | BC51: 0 | BD51: 0 | BE51: 0 | BF51: 0
A52: Holding Breath | B52: =VLOOKUP(A52,AllaSkills!$A$3:$BV$317,'Ny NPC'!$A$2+3,FALSE) -> 6 | C52: 6 | D52: 6 | E52: Athletic | AC52: 0 | AD52: -25 | AE52: =(CO+SD)/2 -> 15 | AF52: =HLOOKUP(Yrke,Levelbonus!$B$1:$CR$20,4,FALSE) -> 0 | AG52: 0 | AH52: =IF(ISNUMBER(VLOOKUP($A52,Rasbonus!$A$61:$AJ$295,MATCH(Ras,Rasbonus!$A$1:$AJ$1,0),FALSE)),VLOOKUP($A52,Rasbonus!$A$61:$AJ$295,MATCH(Ras,Rasbonus!$A$1:$AJ$1,0),FALSE),"0") -> 0 | AK52: -10 | AL52: 0 | AM52: 0 | AN52: 0 | AO52: 0 | AP52: 0 | AQ52: 0 | AR52: 0 | AS52: 0 | AT52: 0 | AU52: 0 | AV52: 0 | AW52: 0 | AX52: 0 | AY52: 0 | AZ52: 0 | BA52: 0 | BB52: 0 | BC52: 0 | BD52: 0 | BE52: 0 | BF52: 0
A53: Portaging | B53: =VLOOKUP(A53,AllaSkills!$A$3:$BV$317,'Ny NPC'!$A$2+3,FALSE) -> 2/4 | C53: 2 | D53: 4 | E53: Athletic | AC53: 0 | AD53: -25 | AF53: =HLOOKUP(Yrke,Levelbonus!$B$1:$CR$20,4,FALSE) -> 0 | AG53: 0 | AH53: =IF(ISNUMBER(VLOOKUP($A53,Rasbonus!$A$61:$AJ$295,MATCH(Ras,Rasbonus!$A$1:$AJ$1,0),FALSE)),VLOOKUP($A53,Rasbonus!$A$61:$AJ$295,MATCH(Ras,Rasbonus!$A$1:$AJ$1,0),FALSE),"0") -> 10 | AI53: ='Ny NPC'!$N$3 -> 0 | AK53: -15 | AL53: 0 | AM53: 0 | AN53: 0 | AO53: 0 | AP53: 0 | AQ53: 0 | AR53: 0 | AS53: 0 | AT53: 0 | AU53: 0 | AV53: 0 | AW53: 0 | AX53: 0 | AY53: 0 | AZ53: 0 | BA53: 0 | BB53: 0 | BC53: 0 | BD53: 0 | BE53: 0 | BF53: 0
A54: Rappelling | B54: =VLOOKUP(A54,AllaSkills!$A$3:$BV$317,'Ny NPC'!$A$2+3,FALSE) -> 7 | C54: 7 | D54: 7 | E54: Athletic | AC54: 0 | AD54: -25 | AE54: =AG -> 0 | AF54: =HLOOKUP(Yrke,Levelbonus!$B$1:$CR$20,4,FALSE) -> 0 | AG54: 0 | AH54: =IF(ISNUMBER(VLOOKUP($A54,Rasbonus!$A$61:$AJ$295,MATCH(Ras,Rasbonus!$A$1:$AJ$1,0),FALSE)),VLOOKUP($A54,Rasbonus!$A$61:$AJ$295,MATCH(Ras,Rasbonus!$A$1:$AJ$1,0),FALSE),"0") -> 0 | AI54: ='Ny NPC'!$N$3 -> 0 | AK54: -25 | AL54: 0 | AM54: 0 | AN54: 0 | AO54: 0 | AP54: 0 | AQ54: 0 | AR54: 0 | AS54: 0 | AT54: 0 | AU54: 0 | AV54: 0 | AW54: 0 | AX54: 0 | AY54: 0 | AZ54: 0 | BA54: 0 | BB54: 0 | BC54: 0 | BD54: 0 | BE54: 0 | BF54: 0
A55: Rowing | B55: =VLOOKUP(A55,AllaSkills!$A$3:$BV$317,'Ny NPC'!$A$2+3,FALSE) -> 3 | C55: 3 | D55: 3 | E55: Athletic | AC55: 0 | AD55: -25 | AE55: =(ST+SD)/2 -> 12.5 | AF55: =HLOOKUP(Yrke,Levelbonus!$B$1:$CR$20,4,FALSE) -> 0 | AG55: 0 | AH55: =IF(ISNUMBER(VLOOKUP($A55,Rasbonus!$A$61:$AJ$295,MATCH(Ras,Rasbonus!$A$1:$AJ$1,0),FALSE)),VLOOKUP($A55,Rasbonus!$A$61:$AJ$295,MATCH(Ras,Rasbonus!$A$1:$AJ$1,0),FALSE),"0") -> 0 | AI55: ='Ny NPC'!$N$3 -> 0 | AK55: -13 | AL55: 0 | AM55: 0 | AN55: 0 | AO55: 0 | AP55: 0 | AQ55: 0 | AR55: 0 | AS55: 0 | AT55: 0 | AU55: 0 | AV55: 0 | AW55: 0 | AX55: 0 | AY55: 0 | AZ55: 0 | BA55: 0 | BB55: 0 | BC55: 0 | BD55: 0 | BE55: 0 | BF55: 0
A56: Sailing | B56: =VLOOKUP(A56,AllaSkills!$A$3:$BV$317,'Ny NPC'!$A$2+3,FALSE) -> 3 | C56: 3 | D56: 3 | E56: Athletic | AC56: 0 | AD56: -25 | AE56: =(EM+IN)/2 -> 2.5 | AF56: =HLOOKUP(Yrke,Levelbonus!$B$1:$CR$20,4,FALSE) -> 0 | AG56: 0 | AH56: =IF(ISNUMBER(VLOOKUP($A56,Rasbonus!$A$61:$AJ$295,MATCH(Ras,Rasbonus!$A$1:$AJ$1,0),FALSE)),VLOOKUP($A56,Rasbonus!$A$61:$AJ$295,MATCH(Ras,Rasbonus!$A$1:$AJ$1,0),FALSE),"0") -> 0 | AI56: ='Ny NPC'!$N$3 -> 0 | AK56: -23 | AL56: 0 | AM56: 0 | AN56: 0 | AO56: 0 | AP56: 0 | AQ56: 0 | AR56: 0 | AS56: 0 | AT56: 0 | AU56: 0 | AV56: 0 | AW56: 0 | AX56: 0 | AY56: 0 | AZ56: 0 | BA56: 0 | BB56: 0 | BC56: 0 | BD56: 0 | BE56: 0 | BF56: 0
A57: Skating | B57: =VLOOKUP(A57,AllaSkills!$A$3:$BV$317,'Ny NPC'!$A$2+3,FALSE) -> 3 | C57: 3 | D57: 3 | E57: Athletic | AC57: 0 | AD57: -25 | AE57: =(AG+SD)/2 -> 5 | AF57: =HLOOKUP(Yrke,Levelbonus!$B$1:$CR$20,4,FALSE) -> 0 | AG57: 0 | AH57: =IF(ISNUMBER(VLOOKUP($A57,Rasbonus!$A$61:$AJ$295,MATCH(Ras,Rasbonus!$A$1:$AJ$1,0),FALSE)),VLOOKUP($A57,Rasbonus!$A$61:$AJ$295,MATCH(Ras,Rasbonus!$A$1:$AJ$1,0),FALSE),"0") -> 0 | AI57: ='Ny NPC'!$N$3 -> 0 | AK57: -20 | AL57: 0 | AM57: 0 | AN57: 0 | AO57: 0 | AP57: 0 | AQ57: 0 | AR57: 0 | AS57: 0 | AT57: 0 | AU57: 0 | AV57: 0 | AW57: 0 | AX57: 0 | AY57: 0 | AZ57: 0 | BA57: 0 | BB57: 0 | BC57: 0 | BD57: 0 | BE57: 0 | BF57: 0
A58: Skiing | B58: =VLOOKUP(A58,AllaSkills!$A$3:$BV$317,'Ny NPC'!$A$2+3,FALSE) -> 3 | C58: 3 | D58: 3 | E58: Athletic | AC58: 0 | AD58: -25 | AE58: =(AG+SD)/2 -> 5 | AF58: =HLOOKUP(Yrke,Levelbonus!$B$1:$CR$20,4,FALSE) -> 0 | AG58: 0 | AH58: =IF(ISNUMBER(VLOOKUP($A58,Rasbonus!$A$61:$AJ$295,MATCH(Ras,Rasbonus!$A$1:$AJ$1,0),FALSE)),VLOOKUP($A58,Rasbonus!$A$61:$AJ$295,MATCH(Ras,Rasbonus!$A$1:$AJ$1,0),FALSE),"0") -> 0 | AI58: ='Ny NPC'!$N$3 -> 0 | AK58: -20 | AL58: 0 | AM58: 0 | AN58: 0 | AO58: 0 | AP58: 0 | AQ58: 0 | AR58: 0 | AS58: 0 | AT58: 0 | AU58: 0 | AV58: 0 | AW58: 0 | AX58: 0 | AY58: 0 | AZ58: 0 | BA58: 0 | BB58: 0 | BC58: 0 | BD58: 0 | BE58: 0 | BF58: 0
A59: Sprinting | B59: =VLOOKUP(A59,AllaSkills!$A$3:$BV$317,'Ny NPC'!$A$2+3,FALSE) -> 3 | C59: 3 | D59: 3 | E59: Athletic | AC59: 0 | AD59: -25 | AE59: =QU -> 0 | AF59: =HLOOKUP(Yrke,Levelbonus!$B$1:$CR$20,4,FALSE) -> 0 | AG59: 0 | AH59: =IF(ISNUMBER(VLOOKUP($A59,Rasbonus!$A$61:$AJ$295,MATCH(Ras,Rasbonus!$A$1:$AJ$1,0),FALSE)),VLOOKUP($A59,Rasbonus!$A$61:$AJ$295,MATCH(Ras,Rasbonus!$A$1:$AJ$1,0),FALSE),"0") -> 0 | AI59: ='Ny NPC'!$N$3 -> 0 | AK59: -25 | AL59: 0 | AM59: 0 | AN59: 0 | AO59: 0 | AP59: 0 | AQ59: 0 | AR59: 0 | AS59: 0 | AT59: 0 | AU59: 0 | AV59: 0 | AW59: 0 | AX59: 0 | AY59: 0 | AZ59: 0 | BA59: 0 | BB59: 0 | BC59: 0 | BD59: 0 | BE59: 0 | BF59: 0
A60: Combat | B60: =HLOOKUP(Diverse!$G$2,'2nd'!$B$1:$CR$18,5,FALSE) -> 0 | F60: =SUM(AL61:AL88) -> 0 | I60: =SUM(AM61:AM88) -> 0 | J60: =SUM(AN61:AN88) -> 0 | K60: 0 | L60: 0 | M60: 0 | N60: 0 | O60: 0 | P60: 0 | Q60: 0 | R60: 0 | S60: 0 | T60: 0 | U60: 0 | V60: 0 | W60: 0 | X60: 0 | Y60: 0 | Z60: 0 | AA60: 0 | AB60: 0 | AC60: Rank | AD60: Skill | AE60: Stat | AG60: Lvl | AH60: Race | AI60: Armor | AJ60: Item | AK60: Total
A61: Brawling | B61: =VLOOKUP(A61,AllaSkills!$A$3:$BV$317,'Ny NPC'!$A$2+3,FALSE) -> 18 | C61: =IF(LEN(B61)=3,LEFT(B61,1),IF(LEN(B61)<3,B61,99)) -> 18 | D61: 18 | E61: Combat | AC61: 0 | AD61: -25 | AE61: =(ST+AG+EQ)/3 -> 6.666666667 | AF61: =HLOOKUP(Yrke,Levelbonus!$B$1:$CR$20,5,FALSE) -> 0 | AG61: 0 | AH61: =IF(ISNUMBER(VLOOKUP($A61,Rasbonus!$A$61:$AJ$295,MATCH(Ras,Rasbonus!$A$1:$AJ$1,0),FALSE)),VLOOKUP($A61,Rasbonus!$A$61:$AJ$295,MATCH(Ras,Rasbonus!$A$1:$AJ$1,0),FALSE),"0") -> 20 | AK61: 2 | AL61: 0 | AM61: =IF(I61>2,"99",IF(I61<1,0,IF(I61=1,$C61+$C61-$C61,IF(I61=2,$C61+$D61)))) -> 0 | AN61: =IF(J61>2,"99",IF(J61<1,0,IF(J61=1,$C61+$C61-$C61,IF(J61=2,$C61+$D61)))) -> 0 | AO61: 0 | AP61: 0 | AQ61: 0 | AR61: 0 | AS61: 0 | AT61: 0 | AU61: 0 | AV61: 0 | AW61: 0 | AX61: 0 | AY61: 0 | AZ61: 0 | BA61: 0 | BB61: 0 | BC61: 0 | BD61: 0 | BE61: 0 | BF61: 0
A62: Defensive Technique | B62: =VLOOKUP(A62,AllaSkills!$A$3:$BV$317,'Ny NPC'!$A$2+3,FALSE) -> 20 | C62: =IF(LEN(B62)=3,LEFT(B62,1),IF(LEN(B62)<3,B62,99)) -> 20 | D62: =IF(RIGHT(B62,1)="*",LEFT(B62,1),IF(LEN(B62)=3,RIGHT(B62,1),IF(LEN(B62)<3,B62,RIGHT(B62,2)))) -> 20 | E62: Combat | AC62: 0 | AD62: =IF(AC62<1,-25,IF(AC62>30,60,IF(AC62>20,50+(AC62-20),IF(AC62>10,30+((AC62-10)*2),AC62*3)))) -> -25 | AF62: =HLOOKUP(Yrke,Levelbonus!$B$1:$CR$20,5,FALSE) -> 0 | AK62: -25 | AL62: 0 | AM62: 0 | AN62: =IF(J62>2,"99",IF(J62<1,0,IF(J62=1,$C62+$C62-$C62,IF(J62=2,$C62+$D62)))) -> 0 | AO62: =IF(K62>2,"99",IF(K62<1,0,IF(K62=1,$C62+$C62-$C62,IF(K62=2,$C62+$D62)))) -> 0 | AP62: =IF(L62>2,"99",IF(L62<1,0,IF(L62=1,$C62+$C62-$C62,IF(L62=2,$C62+$D62)))) -> 0 | AQ62: =IF(M62>2,"99",IF(M62<1,0,IF(M62=1,$C62+$C62-$C62,IF(M62=2,$C62+$D62)))) -> 0 | AR62: =IF(N62>2,"99",IF(N62<1,0,IF(N62=1,$C62+$C62-$C62,IF(N62=2,$C62+$D62)))) -> 0 | AS62: =IF(O62>2,"99",IF(O62<1,0,IF(O62=1,$C62+$C62-$C62,IF(O62=2,$C62+$D62)))) -> 0 | AT62: =IF(P62>2,"99",IF(P62<1,0,IF(P62=1,$C62+$C62-$C62,IF(P62=2,$C62+$D62)))) -> 0 | AU62: =IF(Q62>2,"99",IF(Q62<1,0,IF(Q62=1,$C62+$C62-$C62,IF(Q62=2,$C62+$D62)))) -> 0 | AV62: =IF(R62>2,"99",IF(R62<1,0,IF(R62=1,$C62+$C62-$C62,IF(R62=2,$C62+$D62)))) -> 0 | AW62: =IF(S62>2,"99",IF(S62<1,0,IF(S62=1,$C62+$C62-$C62,IF(S62=2,$C62+$D62)))) -> 0 | AX62: =IF(T62>2,"99",IF(T62<1,0,IF(T62=1,$C62+$C62-$C62,IF(T62=2,$C62+$D62)))) -> 0 | AY62: =IF(U62>2,"99",IF(U62<1,0,IF(U62=1,$C62+$C62-$C62,IF(U62=2,$C62+$D62)))) -> 0 | AZ62: =IF(V62>2,"99",IF(V62<1,0,IF(V62=1,$C62+$C62-$C62,IF(V62=2,$C62+$D62)))) -> 0 | BA62: =IF(W62>2,"99",IF(W62<1,0,IF(W62=1,$C62+$C62-$C62,IF(W62=2,$C62+$D62)))) -> 0 | BB62: =IF(X62>2,"99",IF(X62<1,0,IF(X62=1,$C62+$C62-$C62,IF(X62=2,$C62+$D62)))) -> 0 | BC62: =IF(Y62>2,"99",IF(Y62<1,0,IF(Y62=1,$C62+$C62-$C62,IF(Y62=2,$C62+$D62)))) -> 0 | BD62: =IF(Z62>2,"99",IF(Z62<1,0,IF(Z62=1,$C62+$C62-$C62,IF(Z62=2,$C62+$D62)))) -> 0 | BE62: =IF(AA62>2,"99",IF(AA62<1,0,IF(AA62=1,$C62+$C62-$C62,IF(AA62=2,$C62+$D62)))) -> 0 | BF62: =IF(AB62>2,"99",IF(AB62<1,0,IF(AB62=1,$C62+$C62-$C62,IF(AB62=2,$C62+$D62)))) -> 0
A63: Defensive Weaving | B63: =VLOOKUP(A63,AllaSkills!$A$3:$BV$317,'Ny NPC'!$A$2+3,FALSE) -> 20 | C63: =IF(LEN(B63)=3,LEFT(B63,1),IF(LEN(B63)<3,B63,99)) -> 20 | D63: =IF(RIGHT(B63,1)="*",LEFT(B63,1),IF(LEN(B63)=3,RIGHT(B63,1),IF(LEN(B63)<3,B63,RIGHT(B63,2)))) -> 20 | E63: Combat | AC63: 0 | AD63: =IF(AC63<1,-25,IF(AC63>30,60,IF(AC63>20,50+(AC63-20),IF(AC63>10,30+((AC63-10)*2),AC63*3)))) -> -25 | AF63: =HLOOKUP(Yrke,Levelbonus!$B$1:$CR$20,5,FALSE) -> 0 | AK63: -25 | AL63: 0 | AM63: 0 | AN63: 0 | AO63: 0 | AP63: 0 | AQ63: 0 | AR63: 0 | AS63: 0 | AT63: 0 | AU63: 0 | AV63: 0 | AW63: 0 | AX63: 0 | AY63: 0 | AZ63: 0 | BA63: 0 | BB63: 0 | BC63: 0 | BD63: 0 | BE63: 0 | BF63: 0
A64: Disarm, Armed | B64: =VLOOKUP(A64,AllaSkills!$A$3:$BV$317,'Ny NPC'!$A$2+3,FALSE) -> 6 | C64: =IF(LEN(B64)=3,LEFT(B64,1),IF(LEN(B64)<3,B64,99)) -> 6 | D64: =IF(RIGHT(B64,1)="*",LEFT(B64,1),IF(LEN(B64)=3,RIGHT(B64,1),IF(LEN(B64)<3,B64,RIGHT(B64,2)))) -> 6 | E64: Combat | AC64: =SUM(F64:AB64) -> 0 | AD64: =IF(AC64<1,-25,IF(AC64>30,80+((AC64-30)*0.5),IF(AC64>20,70+(AC64-20),IF(AC64>10,50+((AC64-10)*2),AC64*5)))) -> -25 | AE64: =(AG+EQ)/2 -> 2.5 | AF64: =HLOOKUP(Yrke,Levelbonus!$B$1:$CR$20,5,FALSE) -> 0 | AG64: =AF64*Level -> 0 | AH64: =IF(ISNUMBER(VLOOKUP($A64,Rasbonus!$A$61:$AJ$295,MATCH(Ras,Rasbonus!$A$1:$AJ$1,0),FALSE)),VLOOKUP($A64,Rasbonus!$A$61:$AJ$295,MATCH(Ras,Rasbonus!$A$1:$AJ$1,0),FALSE),"0") -> 0 | AK64: -23 | AL64: 0 | AM64: 0 | AN64: 0 | AO64: 0 | AP64: 0 | AQ64: 0 | AR64: 0 | AS64: 0 | AT64: 0 | AU64: 0 | AV64: 0 | AW64: 0 | AX64: 0 | AY64: 0 | AZ64: 0 | BA64: 0 | BB64: 0 | BC64: 0 | BD64: 0 | BE64: 0 | BF64: 0
A65: Disarm, Unarmed | B65: =VLOOKUP(A65,AllaSkills!$A$3:$BV$317,'Ny NPC'!$A$2+3,FALSE) -> 9 | C65: 9 | D65: 9 | E65: Combat | AC65: 0 | AD65: -25 | AE65: =(AG+EQ)/2 -> 2.5 | AF65: =HLOOKUP(Yrke,Levelbonus!$B$1:$CR$20,5,FALSE) -> 0 | AG65: 0 | AH65: =IF(ISNUMBER(VLOOKUP($A65,Rasbonus!$A$61:$AJ$295,MATCH(Ras,Rasbonus!$A$1:$AJ$1,0),FALSE)),VLOOKUP($A65,Rasbonus!$A$61:$AJ$295,MATCH(Ras,Rasbonus!$A$1:$AJ$1,0),FALSE),"0") -> 0 | AK65: -23 | AL65: 0 | AM65: 0 | AN65: 0 | AO65: 0 | AP65: 0 | AQ65: 0 | AR65: 0 | AS65: 0 | AT65: 0 | AU65: 0 | AV65: 0 | AW65: 0 | AX65: 0 | AY65: 0 | AZ65: 0 | BA65: 0 | BB65: 0 | BC65: 0 | BD65: 0 | BE65: 0 | BF65: 0
A66: Donning/Doffing Chain | B66: =VLOOKUP(A66,AllaSkills!$A$3:$BV$317,'Ny NPC'!$A$2+3,FALSE) -> 10 | C66: 10 | D66: 10 | E66: Combat | AC66: 0 | AD66: -25 | AE66: =(AG+QU)/2 -> 0 | AF66: =HLOOKUP(Yrke,Levelbonus!$B$1:$CR$20,5,FALSE) -> 0 | AG66: 0 | AH66: =IF(ISNUMBER(VLOOKUP($A66,Rasbonus!$A$61:$AJ$295,MATCH(Ras,Rasbonus!$A$1:$AJ$1,0),FALSE)),VLOOKUP($A66,Rasbonus!$A$61:$AJ$295,MATCH(Ras,Rasbonus!$A$1:$AJ$1,0),FALSE),"0") -> 0 | AK66: -25 | AL66: 0 | AM66: 0 | AN66: 0 | AO66: 0 | AP66: 0 | AQ66: 0 | AR66: 0 | AS66: 0 | AT66: 0 | AU66: 0 | AV66: 0 | AW66: 0 | AX66: 0 | AY66: 0 | AZ66: 0 | BA66: 0 | BB66: 0 | BC66: 0 | BD66: 0 | BE66: 0 | BF66: 0
A67: Donning/Doffing Plate | B67: =VLOOKUP(A67,AllaSkills!$A$3:$BV$317,'Ny NPC'!$A$2+3,FALSE) -> 11 | C67: 11 | D67: 11 | E67: Combat | AC67: 0 | AD67: -25 | AE67: =(AG+QU)/2 -> 0 | AF67: =HLOOKUP(Yrke,Levelbonus!$B$1:$CR$20,5,FALSE) -> 0 | AG67: 0 | AH67: =IF(ISNUMBER(VLOOKUP($A67,Rasbonus!$A$61:$AJ$295,MATCH(Ras,Rasbonus!$A$1:$AJ$1,0),FALSE)),VLOOKUP($A67,Rasbonus!$A$61:$AJ$295,MATCH(Ras,Rasbonus!$A$1:$AJ$1,0),FALSE),"0") -> 0 | AK67: -25 | AL67: 0 | AM67: 0 | AN67: 0 | AO67: 0 | AP67: 0 | AQ67: 0 | AR67: 0 | AS67: 0 | AT67: 0 | AU67: 0 | AV67: 0 | AW67: 0 | AX67: 0 | AY67: 0 | AZ67: 0 | BA67: 0 | BB67: 0 | BC67: 0 | BD67: 0 | BE67: 0 | BF67: 0
A68: Donning/Doffing RL | B68: =VLOOKUP(A68,AllaSkills!$A$3:$BV$317,'Ny NPC'!$A$2+3,FALSE) -> 9 | C68: 9 | D68: 9 | E68: Combat | AC68: 0 | AD68: -25 | AE68: =(AG+QU)/2 -> 0 | AF68: =HLOOKUP(Yrke,Levelbonus!$B$1:$CR$20,5,FALSE) -> 0 | AG68: 0 | AH68: =IF(ISNUMBER(VLOOKUP($A68,Rasbonus!$A$61:$AJ$295,MATCH(Ras,Rasbonus!$A$1:$AJ$1,0),FALSE)),VLOOKUP($A68,Rasbonus!$A$61:$AJ$295,MATCH(Ras,Rasbonus!$A$1:$AJ$1,0),FALSE),"0") -> 0 | AK68: =ROUND(AD68+AE68+AG68+AH68+AI68+AJ68,0) -> -25 | AL68: =IF(F68>2,"99",IF(F68<1,0,IF(F68=1,$C68+$C68-$C68,IF(F68=2,$C68+$D68)))) -> 0 | AM68: 0 | AN68: 0 | AO68: 0 | AP68: 0 | AQ68: 0 | AR68: 0 | AS68: 0 | AT68: 0 | AU68: 0 | AV68: 0 | AW68: 0 | AX68: 0 | AY68: 0 | AZ68: 0 | BA68: 0 | BB68: 0 | BC68: 0 | BD68: 0 | BE68: 0 | BF68: 0
A69: Donning/Doffing SL | B69: =VLOOKUP(A69,AllaSkills!$A$3:$BV$317,'Ny NPC'!$A$2+3,FALSE) -> 9 | C69: 9 | D69: 9 | E69: Combat | AC69: 0 | AD69: -25 | AE69: =(AG+QU)/2 -> 0 | AF69: =HLOOKUP(Yrke,Levelbonus!$B$1:$CR$20,5,FALSE) -> 0 | AG69: 0 | AH69: =IF(ISNUMBER(VLOOKUP($A69,Rasbonus!$A$61:$AJ$295,MATCH(Ras,Rasbonus!$A$1:$AJ$1,0),FALSE)),VLOOKUP($A69,Rasbonus!$A$61:$AJ$295,MATCH(Ras,Rasbonus!$A$1:$AJ$1,0),FALSE),"0") -> 0 | AK69: -25 | AL69: 0 | AM69: 0 | AN69: 0 | AO69: 0 | AP69: 0 | AQ69: 0 | AR69: 0 | AS69: 0 | AT69: 0 | AU69: 0 | AV69: 0 | AW69: 0 | AX69: 0 | AY69: 0 | AZ69: 0 | BA69: 0 | BB69: 0 | BC69: 0 | BD69: 0 | BE69: 0 | BF69: 0
A70: Expertise | B70: =VLOOKUP(A70,AllaSkills!$A$3:$BV$317,'Ny NPC'!$A$2+3,FALSE) -> 20 | C70: 20 | D70: 20 | E70: Combat | AC70: 0 | AF70: =HLOOKUP(Yrke,Levelbonus!$B$1:$CR$20,5,FALSE) -> 0 | AK70: =ROUND(AC70+AD70+AE70+AG70+AH70+AI70+AJ70,0) -> 0 | AL70: 0 | AM70: 0 | AN70: 0 | AO70: 0 | AP70: 0 | AQ70: 0 | AR70: 0 | AS70: 0 | AT70: 0 | AU70: 0 | AV70: 0 | AW70: 0 | AX70: 0 | AY70: 0 | AZ70: 0 | BA70: 0 | BB70: 0 | BC70: 0 | BD70: 0 | BE70: 0 | BF70: 0
A71: Feinting | B71: =VLOOKUP(A71,AllaSkills!$A$3:$BV$317,'Ny NPC'!$A$2+3,FALSE) -> 6 | C71: 6 | D71: 6 | E71: Combat | AC71: 0 | AD71: -25 | AE71: =(QU+PR)/2 -> 0 | AF71: =HLOOKUP(Yrke,Levelbonus!$B$1:$CR$20,5,FALSE) -> 0 | AG71: 0 | AH71: =IF(ISNUMBER(VLOOKUP($A71,Rasbonus!$A$61:$AJ$295,MATCH(Ras,Rasbonus!$A$1:$AJ$1,0),FALSE)),VLOOKUP($A71,Rasbonus!$A$61:$AJ$295,MATCH(Ras,Rasbonus!$A$1:$AJ$1,0),FALSE),"0") -> 0 | AI71: ='Ny NPC'!$N$3 -> 0 | AK71: -25 | AL71: 0 | AM71: 0 | AN71: 0 | AO71: 0 | AP71: 0 | AQ71: 0 | AR71: 0 | AS71: 0 | AT71: 0 | AU71: 0 | AV71: 0 | AW71: 0 | AX71: 0 | AY71: 0 | AZ71: 0 | BA71: 0 | BB71: 0 | BC71: 0 | BD71: 0 | BE71: 0 | BF71: 0
A72: Grappling Hook | B72: =VLOOKUP(A72,AllaSkills!$A$3:$BV$317,'Ny NPC'!$A$2+3,FALSE) -> 3 | C72: 3 | D72: 3 | E72: Combat | AC72: 0 | AD72: -25 | AE72: =AG -> 0 | AF72: =HLOOKUP(Yrke,Levelbonus!$B$1:$CR$20,5,FALSE) -> 0 | AG72: 0 | AH72: =IF(ISNUMBER(VLOOKUP($A72,Rasbonus!$A$61:$AJ$295,MATCH(Ras,Rasbonus!$A$1:$AJ$1,0),FALSE)),VLOOKUP($A72,Rasbonus!$A$61:$AJ$295,MATCH(Ras,Rasbonus!$A$1:$AJ$1,0),FALSE),"0") -> 0 | AI72: ='Ny NPC'!$AB$62 -> 0 | AK72: -25 | AL72: 0 | AM72: 0 | AN72: 0 | AO72: 0 | AP72: 0 | AQ72: 0 | AR72: 0 | AS72: 0 | AT72: 0 | AU72: 0 | AV72: 0 | AW72: 0 | AX72: 0 | AY72: 0 | AZ72: 0 | BA72: 0 | BB72: 0 | BC72: 0 | BD72: 0 | BE72: 0 | BF72: 0
A73: Honing | B73: =VLOOKUP(A73,AllaSkills!$A$3:$BV$317,'Ny NPC'!$A$2+3,FALSE) -> 20 | C73: 20 | D73: 20 | E73: Combat | AC73: 0 | AD73: -25 | AE73: =(AG+EM)/2 -> 0 | AF73: =HLOOKUP(Yrke,Levelbonus!$B$1:$CR$20,5,FALSE) -> 0 | AG73: 0 | AH73: =IF(ISNUMBER(VLOOKUP($A73,Rasbonus!$A$61:$AJ$295,MATCH(Ras,Rasbonus!$A$1:$AJ$1,0),FALSE)),VLOOKUP($A73,Rasbonus!$A$61:$AJ$295,MATCH(Ras,Rasbonus!$A$1:$AJ$1,0),FALSE),"0") -> 0 | AK73: -25 | AL73: 0 | AM73: 0 | AN73: 0 | AO73: 0 | AP73: 0 | AQ73: 0 | AR73: 0 | AS73: 0 | AT73: 0 | AU73: 0 | AV73: 0 | AW73: 0 | AX73: 0 | AY73: 0 | AZ73: 0 | BA73: 0 | BB73: 0 | BC73: 0 | BD73: 0 | BE73: 0 | BF73: 0
A74: Iai | B74: =VLOOKUP(A74,AllaSkills!$A$3:$BV$317,'Ny NPC'!$A$2+3,FALSE) -> 15 | C74: 15 | D74: 15 | E74: Combat | AC74: 0 | AD74: -25 | AE74: =(QU+EQ)/2 -> 2.5 | AF74: =HLOOKUP(Yrke,Levelbonus!$B$1:$CR$20,5,FALSE) -> 0 | AG74: 0 | AH74: =IF(ISNUMBER(VLOOKUP($A74,Rasbonus!$A$61:$AJ$295,MATCH(Ras,Rasbonus!$A$1:$AJ$1,0),FALSE)),VLOOKUP($A74,Rasbonus!$A$61:$AJ$295,MATCH(Ras,Rasbonus!$A$1:$AJ$1,0),FALSE),"0") -> 0 | AI74: ='Ny NPC'!$N$3 -> 0 | AK74: -23 | AL74: 0 | AM74: 0 | AN74: 0 | AO74: 0 | AP74: 0 | AQ74: 0 | AR74: 0 | AS74: 0 | AT74: 0 | AU74: 0 | AV74: 0 | AW74: 0 | AX74: 0 | AY74: 0 | AZ74: 0 | BA74: 0 | BB74: 0 | BC74: 0 | BD74: 0 | BE74: 0 | BF74: 0
A75: Instinctive Maneuver | B75: =VLOOKUP(A75,AllaSkills!$A$3:$BV$317,'Ny NPC'!$A$2+3,FALSE) -> 6 | C75: 6 | D75: 6 | E75: Combat | AC75: 0 | AD75: -25 | AE75: =(QU+EQ)/2 -> 2.5 | AF75: =HLOOKUP(Yrke,Levelbonus!$B$1:$CR$20,5,FALSE) -> 0 | AG75: 0 | AH75: =IF(ISNUMBER(VLOOKUP($A75,Rasbonus!$A$61:$AJ$295,MATCH(Ras,Rasbonus!$A$1:$AJ$1,0),FALSE)),VLOOKUP($A75,Rasbonus!$A$61:$AJ$295,MATCH(Ras,Rasbonus!$A$1:$AJ$1,0),FALSE),"0") -> 0 | AK75: -23 | AL75: 0 | AM75: 0 | AN75: 0 | AO75: 0 | AP75: 0 | AQ75: 0 | AR75: 0 | AS75: 0 | AT75: 0 | AU75: 0 | AV75: 0 | AW75: 0 | AX75: 0 | AY75: 0 | AZ75: 0 | BA75: 0 | BB75: 0 | BC75: 0 | BD75: 0 | BE75: 0 | BF75: 0
A76: Lancing | B76: =VLOOKUP(A76,AllaSkills!$A$3:$BV$317,'Ny NPC'!$A$2+3,FALSE) -> 18 | C76: 18 | D76: 18 | E76: Combat | AC76: 0 | AD76: -25 | AE76: =(ST+AG)/2 -> 7.5 | AF76: =HLOOKUP(Yrke,Levelbonus!$B$1:$CR$20,5,FALSE) -> 0 | AG76: 0 | AH76: =IF(ISNUMBER(VLOOKUP($A76,Rasbonus!$A$61:$AJ$295,MATCH(Ras,Rasbonus!$A$1:$AJ$1,0),FALSE)),VLOOKUP($A76,Rasbonus!$A$61:$AJ$295,MATCH(Ras,Rasbonus!$A$1:$AJ$1,0),FALSE),"0") -> 0 | AK76: -18 | AL76: 0 | AM76: 0 | AN76: 0 | AO76: 0 | AP76: 0 | AQ76: 0 | AR76: 0 | AS76: 0 | AT76: 0 | AU76: 0 | AV76: 0 | AW76: 0 | AX76: 0 | AY76: 0 | AZ76: 0 | BA76: 0 | BB76: 0 | BC76: 0 | BD76: 0 | BE76: 0 | BF76: 0
A77: Melee Scuffle | B77: =VLOOKUP(A77,AllaSkills!$A$3:$BV$317,'Ny NPC'!$A$2+3,FALSE) -> 8 | C77: 8 | D77: 8 | E77: Combat | AC77: 0 | AD77: -25 | AE77: =(ST+AG)/2 -> 7.5 | AF77: =HLOOKUP(Yrke,Levelbonus!$B$1:$CR$20,5,FALSE) -> 0 | AG77: 0 | AH77: =IF(ISNUMBER(VLOOKUP($A77,Rasbonus!$A$61:$AJ$295,MATCH(Ras,Rasbonus!$A$1:$AJ$1,0),FALSE)),VLOOKUP($A77,Rasbonus!$A$61:$AJ$295,MATCH(Ras,Rasbonus!$A$1:$AJ$1,0),FALSE),"0") -> 10 | AI77: ='Ny NPC'!$AB$63 -> 0 | AK77: -8 | AL77: 0 | AM77: 0 | AN77: 0 | AO77: 0 | AP77: 0 | AQ77: 0 | AR77: 0 | AS77: 0 | AT77: 0 | AU77: 0 | AV77: 0 | AW77: 0 | AX77: 0 | AY77: 0 | AZ77: 0 | BA77: 0 | BB77: 0 | BC77: 0 | BD77: 0 | BE77: 0 | BF77: 0
A78: Missile Artillery | B78: =VLOOKUP(A78,AllaSkills!$A$3:$BV$317,'Ny NPC'!$A$2+3,FALSE) -> 3/6 | C78: 3 | D78: 6 | E78: Combat | AC78: 0 | AD78: -25 | AE78: =(IN+AG)/2 -> 2.5 | AF78: =HLOOKUP(Yrke,Levelbonus!$B$1:$CR$20,5,FALSE) -> 0 | AG78: 0 | AH78: =IF(ISNUMBER(VLOOKUP($A78,Rasbonus!$A$61:$AJ$295,MATCH(Ras,Rasbonus!$A$1:$AJ$1,0),FALSE)),VLOOKUP($A78,Rasbonus!$A$61:$AJ$295,MATCH(Ras,Rasbonus!$A$1:$AJ$1,0),FALSE),"0") -> 0 | AK78: -23 | AL78: 0 | AM78: 0 | AN78: 0 | AO78: 0 | AP78: 0 | AQ78: 0 | AR78: 0 | AS78: 0 | AT78: 0 | AU78: 0 | AV78: 0 | AW78: 0 | AX78: 0 | AY78: 0 | AZ78: 0 | BA78: 0 | BB78: 0 | BC78: 0 | BD78: 0 | BE78: 0 | BF78: 0
A79: SeaBorn Combat | B79: =VLOOKUP(A79,AllaSkills!$A$3:$BV$317,'Ny NPC'!$A$2+3,FALSE) -> 3 | C79: 3 | D79: 3 | E79: Combat | AC79: 0 | AD79: -25 | AE79: =(AG+AG+EQ)/3 -> 1.666666667 | AF79: =HLOOKUP(Yrke,Levelbonus!$B$1:$CR$20,5,FALSE) -> 0 | AG79: 0 | AH79: =IF(ISNUMBER(VLOOKUP($A79,Rasbonus!$A$61:$AJ$295,MATCH(Ras,Rasbonus!$A$1:$AJ$1,0),FALSE)),VLOOKUP($A79,Rasbonus!$A$61:$AJ$295,MATCH(Ras,Rasbonus!$A$1:$AJ$1,0),FALSE),"0") -> 0 | AI79: ='Ny NPC'!$N$3 -> 0 | AK79: -23 | AL79: 0 | AM79: 0 | AN79: 0 | AO79: 0 | AP79: 0 | AQ79: 0 | AR79: 0 | AS79: 0 | AT79: 0 | AU79: 0 | AV79: 0 | AW79: 0 | AX79: 0 | AY79: 0 | AZ79: 0 | BA79: 0 | BB79: 0 | BC79: 0 | BD79: 0 | BE79: 0 | BF79: 0
A80: Shield Bash | B80: =VLOOKUP(A80,AllaSkills!$A$3:$BV$317,'Ny NPC'!$A$2+3,FALSE) -> 20 | C80: 20 | D80: 20 | E80: Combat | AC80: 0 | AD80: -25 | AE80: =(ST+ST+AG)/3 -> 10 | AF80: =HLOOKUP(Yrke,Levelbonus!$B$1:$CR$20,5,FALSE) -> 0 | AG80: 0 | AH80: =IF(ISNUMBER(VLOOKUP($A80,Rasbonus!$A$61:$AJ$295,MATCH(Ras,Rasbonus!$A$1:$AJ$1,0),FALSE)),VLOOKUP($A80,Rasbonus!$A$61:$AJ$295,MATCH(Ras,Rasbonus!$A$1:$AJ$1,0),FALSE),"0") -> 0 | AK80: -15 | AL80: 0 | AM80: 0 | AN80: 0 | AO80: 0 | AP80: 0 | AQ80: 0 | AR80: 0 | AS80: 0 | AT80: 0 | AU80: 0 | AV80: 0 | AW80: 0 | AX80: 0 | AY80: 0 | AZ80: 0 | BA80: 0 | BB80: 0 | BC80: 0 | BD80: 0 | BE80: 0 | BF80: 0
A81: Shield Expertise | B81: =VLOOKUP(A81,AllaSkills!$A$3:$BV$317,'Ny NPC'!$A$2+3,FALSE) -> 20 | C81: 20 | D81: =IF(RIGHT(B81,1)="*",LEFT(B81,1),IF(LEN(B81)=3,RIGHT(B81,1),IF(LEN(B81)<3,B81,RIGHT(B81,2)))) -> 20 | E81: Combat | AC81: =SUM(F81:AB81) -> 0 | AF81: =HLOOKUP(Yrke,Levelbonus!$B$1:$CR$20,5,FALSE) -> 0 | AK81: =ROUND(AC81+AD81+AE81+AG81+AH81+AI81+AJ81,0) -> 0 | AL81: 0 | AM81: =IF(I81>2,"99",IF(I81<1,0,IF(I81=1,$C81+$C81-$C81,IF(I81=2,$C81+$D81)))) -> 0 | AN81: 0 | AO81: 0 | AP81: 0 | AQ81: 0 | AR81: 0 | AS81: 0 | AT81: 0 | AU81: 0 | AV81: 0 | AW81: 0 | AX81: 0 | AY81: 0 | AZ81: 0 | BA81: 0 | BB81: 0 | BC81: 0 | BD81: 0 | BE81: 0 | BF81: 0
A82: Stunned Maneuver | B82: =VLOOKUP(A82,AllaSkills!$A$3:$BV$317,'Ny NPC'!$A$2+3,FALSE) -> 4 | C82: 4 | D82: 4 | E82: Combat | AC82: 0 | AD82: -25 | AE82: =SD -> 10 | AF82: =HLOOKUP(Yrke,Levelbonus!$B$1:$CR$20,5,FALSE) -> 0 | AG82: 0 | AH82: =IF(ISNUMBER(VLOOKUP($A82,Rasbonus!$A$61:$AJ$295,MATCH(Ras,Rasbonus!$A$1:$AJ$1,0),FALSE)),VLOOKUP($A82,Rasbonus!$A$61:$AJ$295,MATCH(Ras,Rasbonus!$A$1:$AJ$1,0),FALSE),"0") -> 0 | AK82: -15 | AL82: 0 | AM82: =IF(I82>2,"99",IF(I82<1,0,IF(I82=1,$C82+$C82-$C82,IF(I82=2,$C82+$D82)))) -> 0 | AN82: 0 | AO82: 0 | AP82: 0 | AQ82: 0 | AR82: 0 | AS82: 0 | AT82: 0 | AU82: 0 | AV82: 0 | AW82: 0 | AX82: 0 | AY82: 0 | AZ82: 0 | BA82: 0 | BB82: 0 | BC82: 0 | BD82: 0 | BE82: 0 | BF82: 0
A83: Subduing | B83: =VLOOKUP(A83,AllaSkills!$A$3:$BV$317,'Ny NPC'!$A$2+3,FALSE) -> 6 | C83: 6 | D83: 6 | E83: Combat | AC83: 0 | AD83: -25 | AE83: =(AG+QU)/2 -> 0 | AF83: =HLOOKUP(Yrke,Levelbonus!$B$1:$CR$20,5,FALSE) -> 0 | AG83: 0 | AH83: =IF(ISNUMBER(VLOOKUP($A83,Rasbonus!$A$61:$AJ$295,MATCH(Ras,Rasbonus!$A$1:$AJ$1,0),FALSE)),VLOOKUP($A83,Rasbonus!$A$61:$AJ$295,MATCH(Ras,Rasbonus!$A$1:$AJ$1,0),FALSE),"0") -> 0 | AK83: -25 | AL83: 0 | AM83: 0 | AN83: 0 | AO83: 0 | AP83: 0 | AQ83: 0 | AR83: 0 | AS83: 0 | AT83: 0 | AU83: 0 | AV83: 0 | AW83: 0 | AX83: 0 | AY83: 0 | AZ83: 0 | BA83: 0 | BB83: 0 | BC83: 0 | BD83: 0 | BE83: 0 | BF83: 0
A84: Tackling | B84: =VLOOKUP(A84,AllaSkills!$A$3:$BV$317,'Ny NPC'!$A$2+3,FALSE) -> 9 | C84: 9 | D84: 9 | E84: Combat | AC84: 0 | AD84: -25 | AE84: =(ST+AG)/2 -> 7.5 | AF84: =HLOOKUP(Yrke,Levelbonus!$B$1:$CR$20,5,FALSE) -> 0 | AG84: 0 | AH84: =IF(ISNUMBER(VLOOKUP($A84,Rasbonus!$A$61:$AJ$295,MATCH(Ras,Rasbonus!$A$1:$AJ$1,0),FALSE)),VLOOKUP($A84,Rasbonus!$A$61:$AJ$295,MATCH(Ras,Rasbonus!$A$1:$AJ$1,0),FALSE),"0") -> 10 | AI84: ='Ny NPC'!$AB$63 -> 0 | AK84: -8 | AL84: 0 | AM84: 0 | AN84: 0 | AO84: 0 | AP84: 0 | AQ84: 0 | AR84: 0 | AS84: 0 | AT84: 0 | AU84: 0 | AV84: 0 | AW84: 0 | AX84: 0 | AY84: 0 | AZ84: 0 | BA84: 0 | BB84: 0 | BC84: 0 | BD84: 0 | BE84: 0 | BF84: 0
A85: Unarmed Expertise | B85: =VLOOKUP(A85,AllaSkills!$A$3:$BV$317,'Ny NPC'!$A$2+3,FALSE) -> 9 | C85: 9 | D85: =IF(RIGHT(B85,1)="*",LEFT(B85,1),IF(LEN(B85)=3,RIGHT(B85,1),IF(LEN(B85)<3,B85,RIGHT(B85,2)))) -> 9 | E85: Combat | AC85: =SUM(F85:AB85) -> 0 | AD85: -25 | AE85: =(ST+AG+EQ)/3 -> 6.666666667 | AF85: =HLOOKUP(Yrke,Levelbonus!$B$1:$CR$20,5,FALSE) -> 0 | AG85: 0 | AH85: =IF(ISNUMBER(VLOOKUP($A85,Rasbonus!$A$61:$AJ$295,MATCH(Ras,Rasbonus!$A$1:$AJ$1,0),FALSE)),VLOOKUP($A85,Rasbonus!$A$61:$AJ$295,MATCH(Ras,Rasbonus!$A$1:$AJ$1,0),FALSE),"0") -> 0 | AI85: ='Ny NPC'!$N$3 -> 0 | AK85: -18 | AL85: 0 | AM85: 0 | AN85: 0 | AO85: 0 | AP85: 0 | AQ85: 0 | AR85: 0 | AS85: 0 | AT85: 0 | AU85: 0 | AV85: 0 | AW85: 0 | AX85: 0 | AY85: 0 | AZ85: 0 | BA85: 0 | BB85: 0 | BC85: 0 | BD85: 0 | BE85: 0 | BF85: 0
A86: Weapon Brawling | B86: =VLOOKUP(A86,AllaSkills!$A$3:$BV$317,'Ny NPC'!$A$2+3,FALSE) -> 9 | C86: 9 | D86: 9 | E86: Combat | AC86: 0 | AD86: -25 | AE86: =(ST+AG+QU)/3 -> 5 | AF86: =HLOOKUP(Yrke,Levelbonus!$B$1:$CR$20,5,FALSE) -> 0 | AG86: 0 | AH86: =IF(ISNUMBER(VLOOKUP($A86,Rasbonus!$A$61:$AJ$295,MATCH(Ras,Rasbonus!$A$1:$AJ$1,0),FALSE)),VLOOKUP($A86,Rasbonus!$A$61:$AJ$295,MATCH(Ras,Rasbonus!$A$1:$AJ$1,0),FALSE),"0") -> 0 | AK86: -20 | AL86: 0 | AM86: 0 | AN86: 0 | AO86: 0 | AP86: 0 | AQ86: 0 | AR86: 0 | AS86: 0 | AT86: 0 | AU86: 0 | AV86: 0 | AW86: 0 | AX86: 0 | AY86: 0 | AZ86: 0 | BA86: 0 | BB86: 0 | BC86: 0 | BD86: 0 | BE86: 0 | BF86: 0
A87: Weapon Kata | B87: =VLOOKUP(A87,AllaSkills!$A$3:$BV$317,'Ny NPC'!$A$2+3,FALSE) -> 9 | C87: 9 | D87: 9 | E87: Combat | AC87: 0 | AD87: -25 | AE87: =(ST+AG+EQ)/3 -> 6.666666667 | AF87: =HLOOKUP(Yrke,Levelbonus!$B$1:$CR$20,5,FALSE) -> 0 | AG87: 0 | AH87: =IF(ISNUMBER(VLOOKUP($A87,Rasbonus!$A$61:$AJ$295,MATCH(Ras,Rasbonus!$A$1:$AJ$1,0),FALSE)),VLOOKUP($A87,Rasbonus!$A$61:$AJ$295,MATCH(Ras,Rasbonus!$A$1:$AJ$1,0),FALSE),"0") -> 0 | AI87: ='Ny NPC'!$N$3 -> 0 | AK87: -18 | AL87: 0 | AM87: 0 | AN87: 0 | AO87: 0 | AP87: 0 | AQ87: 0 | AR87: 0 | AS87: 0 | AT87: 0 | AU87: 0 | AV87: 0 | AW87: 0 | AX87: 0 | AY87: 0 | AZ87: 0 | BA87: 0 | BB87: 0 | BC87: 0 | BD87: 0 | BE87: 0 | BF87: 0
A88: Yado | B88: =VLOOKUP(A88,AllaSkills!$A$3:$BV$317,'Ny NPC'!$A$2+3,FALSE) -> 6 | C88: 6 | D88: 6 | E88: Combat | AC88: 0 | AD88: -25 | AE88: =(QU+AG)/2 -> 0 | AF88: =HLOOKUP(Yrke,Levelbonus!$B$1:$CR$20,5,FALSE) -> 0 | AG88: 0 | AH88: =IF(ISNUMBER(VLOOKUP($A88,Rasbonus!$A$61:$AJ$295,MATCH(Ras,Rasbonus!$A$1:$AJ$1,0),FALSE)),VLOOKUP($A88,Rasbonus!$A$61:$AJ$295,MATCH(Ras,Rasbonus!$A$1:$AJ$1,0),FALSE),"0") -> 0 | AI88: ='Ny NPC'!$N$3 -> 0 | AK88: -25 | AL88: 0 | AM88: 0 | AN88: 0 | AO88: 0 | AP88: 0 | AQ88: 0 | AR88: 0 | AS88: 0 | AT88: 0 | AU88: 0 | AV88: 0 | AW88: 0 | AX88: 0 | AY88: 0 | AZ88: 0 | BA88: 0 | BB88: 0 | BC88: 0 | BD88: 0 | BE88: 0 | BF88: 0
A89: Concentration | B89: =HLOOKUP(Diverse!$G$2,'2nd'!$B$1:$CR$18,6,FALSE) -> 1 | F89: =SUM(AL90:AL107) -> 0 | I89: =SUM(AM90:AM107) -> 0 | J89: =SUM(AN90:AN107) -> 0 | K89: 0 | L89: 0 | M89: 0 | N89: 0 | O89: 0 | P89: 0 | Q89: 0 | R89: 0 | S89: 0 | T89: 0 | U89: 0 | V89: 0 | W89: 0 | X89: 0 | Y89: 0 | Z89: 0 | AA89: 0 | AB89: 0 | AC89: Rank | AD89: Skill | AE89: Stat | AG89: Lvl | AH89: Race | AI89: Armor | AJ89: Item | AK89: Total
A90: AM Quickdraw | B90: =VLOOKUP(A90,AllaSkills!$A$3:$BV$317,'Ny NPC'!$A$2+3,FALSE) -> 4 | C90: 4 | D90: 4 | E90: Concentration | AC90: 0 | AD90: -25 | AE90: =(AG+EQ)/2 -> 2.5 | AF90: =HLOOKUP(Yrke,Levelbonus!$B$1:$CR$20,6,FALSE) -> 0 | AG90: 0 | AH90: =IF(ISNUMBER(VLOOKUP($A90,Rasbonus!$A$61:$AJ$295,MATCH(Ras,Rasbonus!$A$1:$AJ$1,0),FALSE)),VLOOKUP($A90,Rasbonus!$A$61:$AJ$295,MATCH(Ras,Rasbonus!$A$1:$AJ$1,0),FALSE),"0") -> 0 | AI90: ='Ny NPC'!$N$3 -> 0 | AK90: -23 | AL90: 0 | AM90: =IF(I90>2,"99",IF(I90<1,0,IF(I90=1,$C90+$C90-$C90,IF(I90=2,$C90+$D90)))) -> 0 | AN90: =IF(J90>2,"99",IF(J90<1,0,IF(J90=1,$C90+$C90-$C90,IF(J90=2,$C90+$D90)))) -> 0 | AO90: 0 | AP90: 0 | AQ90: 0 | AR90: 0 | AS90: 0 | AT90: 0 | AU90: 0 | AV90: 0 | AW90: 0 | AX90: 0 | AY90: 0 | AZ90: 0 | BA90: 0 | BB90: 0 | BC90: 0 | BD90: 0 | BE90: 0 | BF90: 0
A91: Blind Fighting | B91: =VLOOKUP(A91,AllaSkills!$A$3:$BV$317,'Ny NPC'!$A$2+3,FALSE) -> 10 | C91: 10 | D91: 10 | E91: Concentration | AC91: 0 | AD91: -25 | AE91: =(RE+EM)/2 -> 2.5 | AF91: =HLOOKUP(Yrke,Levelbonus!$B$1:$CR$20,6,FALSE) -> 0 | AG91: 0 | AH91: =IF(ISNUMBER(VLOOKUP($A91,Rasbonus!$A$61:$AJ$295,MATCH(Ras,Rasbonus!$A$1:$AJ$1,0),FALSE)),VLOOKUP($A91,Rasbonus!$A$61:$AJ$295,MATCH(Ras,Rasbonus!$A$1:$AJ$1,0),FALSE),"0") -> 0 | AK91: -23 | AL91: 0 | AM91: =IF(I91>2,"99",IF(I91<1,0,IF(I91=1,$C91+$C91-$C91,IF(I91=2,$C91+$D91)))) -> 0 | AN91: =IF(J91>2,"99",IF(J91<1,0,IF(J91=1,$C91+$C91-$C91,IF(J91=2,$C91+$D91)))) -> 0 | AO91: =IF(K91>2,"99",IF(K91<1,0,IF(K91=1,$C91+$C91-$C91,IF(K91=2,$C91+$D91)))) -> 0 | AP91: =IF(L91>2,"99",IF(L91<1,0,IF(L91=1,$C91+$C91-$C91,IF(L91=2,$C91+$D91)))) -> 0 | AQ91: =IF(M91>2,"99",IF(M91<1,0,IF(M91=1,$C91+$C91-$C91,IF(M91=2,$C91+$D91)))) -> 0 | AR91: =IF(N91>2,"99",IF(N91<1,0,IF(N91=1,$C91+$C91-$C91,IF(N91=2,$C91+$D91)))) -> 0 | AS91: =IF(O91>2,"99",IF(O91<1,0,IF(O91=1,$C91+$C91-$C91,IF(O91=2,$C91+$D91)))) -> 0 | AT91: =IF(P91>2,"99",IF(P91<1,0,IF(P91=1,$C91+$C91-$C91,IF(P91=2,$C91+$D91)))) -> 0 | AU91: =IF(Q91>2,"99",IF(Q91<1,0,IF(Q91=1,$C91+$C91-$C91,IF(Q91=2,$C91+$D91)))) -> 0 | AV91: =IF(R91>2,"99",IF(R91<1,0,IF(R91=1,$C91+$C91-$C91,IF(R91=2,$C91+$D91)))) -> 0 | AW91: =IF(S91>2,"99",IF(S91<1,0,IF(S91=1,$C91+$C91-$C91,IF(S91=2,$C91+$D91)))) -> 0 | AX91: =IF(T91>2,"99",IF(T91<1,0,IF(T91=1,$C91+$C91-$C91,IF(T91=2,$C91+$D91)))) -> 0 | AY91: =IF(U91>2,"99",IF(U91<1,0,IF(U91=1,$C91+$C91-$C91,IF(U91=2,$C91+$D91)))) -> 0 | AZ91: =IF(V91>2,"99",IF(V91<1,0,IF(V91=1,$C91+$C91-$C91,IF(V91=2,$C91+$D91)))) -> 0 | BA91: =IF(W91>2,"99",IF(W91<1,0,IF(W91=1,$C91+$C91-$C91,IF(W91=2,$C91+$D91)))) -> 0 | BB91: =IF(X91>2,"99",IF(X91<1,0,IF(X91=1,$C91+$C91-$C91,IF(X91=2,$C91+$D91)))) -> 0 | BC91: =IF(Y91>2,"99",IF(Y91<1,0,IF(Y91=1,$C91+$C91-$C91,IF(Y91=2,$C91+$D91)))) -> 0 | BD91: =IF(Z91>2,"99",IF(Z91<1,0,IF(Z91=1,$C91+$C91-$C91,IF(Z91=2,$C91+$D91)))) -> 0 | BE91: =IF(AA91>2,"99",IF(AA91<1,0,IF(AA91=1,$C91+$C91-$C91,IF(AA91=2,$C91+$D91)))) -> 0 | BF91: =IF(AB91>2,"99",IF(AB91<1,0,IF(AB91=1,$C91+$C91-$C91,IF(AB91=2,$C91+$D91)))) -> 0
A92: Body Damage Stabilization | B92: =VLOOKUP(A92,AllaSkills!$A$3:$BV$317,'Ny NPC'!$A$2+3,FALSE) -> 3/5 | C92: 3 | D92: 5 | E92: Concentration | AC92: 0 | AD92: -25 | AE92: =(SD+EM)/2 -> 5 | AF92: =HLOOKUP(Yrke,Levelbonus!$B$1:$CR$20,6,FALSE) -> 0 | AG92: 0 | AH92: =IF(ISNUMBER(VLOOKUP($A92,Rasbonus!$A$61:$AJ$295,MATCH(Ras,Rasbonus!$A$1:$AJ$1,0),FALSE)),VLOOKUP($A92,Rasbonus!$A$61:$AJ$295,MATCH(Ras,Rasbonus!$A$1:$AJ$1,0),FALSE),"0") -> 0 | AK92: -20 | AL92: 0 | AM92: 0 | AN92: 0 | AO92: 0 | AP92: 0 | AQ92: 0 | AR92: 0 | AS92: 0 | AT92: 0 | AU92: 0 | AV92: 0 | AW92: 0 | AX92: 0 | AY92: 0 | AZ92: 0 | BA92: 0 | BB92: 0 | BC92: 0 | BD92: 0 | BE92: 0 | BF92: 0
A93: Control Lycantrophy | B93: =VLOOKUP(A93,AllaSkills!$A$3:$BV$317,'Ny NPC'!$A$2+3,FALSE) -> 3/6 | C93: 3 | D93: 6 | E93: Concentration | AC93: 0 | AD93: -25 | AE93: =SD -> 10 | AF93: =HLOOKUP(Yrke,Levelbonus!$B$1:$CR$20,6,FALSE) -> 0 | AG93: 0 | AH93: =IF(ISNUMBER(VLOOKUP($A93,Rasbonus!$A$61:$AJ$295,MATCH(Ras,Rasbonus!$A$1:$AJ$1,0),FALSE)),VLOOKUP($A93,Rasbonus!$A$61:$AJ$295,MATCH(Ras,Rasbonus!$A$1:$AJ$1,0),FALSE),"0") -> 0 | AK93: -15 | AL93: 0 | AM93: 0 | AN93: 0 | AO93: 0 | AP93: 0 | AQ93: 0 | AR93: 0 | AS93: 0 | AT93: 0 | AU93: 0 | AV93: 0 | AW93: 0 | AX93: 0 | AY93: 0 | AZ93: 0 | BA93: 0 | BB93: 0 | BC93: 0 | BD93: 0 | BE93: 0 | BF93: 0
A94: Dowsing | B94: =VLOOKUP(A94,AllaSkills!$A$3:$BV$317,'Ny NPC'!$A$2+3,FALSE) -> 2/5 | C94: 2 | D94: 5 | E94: Concentration | AC94: 0 | AD94: -25 | AE94: =EM -> 0 | AF94: =HLOOKUP(Yrke,Levelbonus!$B$1:$CR$20,6,FALSE) -> 0 | AG94: 0 | AH94: =IF(ISNUMBER(VLOOKUP($A94,Rasbonus!$A$61:$AJ$295,MATCH(Ras,Rasbonus!$A$1:$AJ$1,0),FALSE)),VLOOKUP($A94,Rasbonus!$A$61:$AJ$295,MATCH(Ras,Rasbonus!$A$1:$AJ$1,0),FALSE),"0") -> 0 | AK94: -25 | AL94: 0 | AM94: 0 | AN94: 0 | AO94: 0 | AP94: 0 | AQ94: 0 | AR94: 0 | AS94: 0 | AT94: 0 | AU94: 0 | AV94: 0 | AW94: 0 | AX94: 0 | AY94: 0 | AZ94: 0 | BA94: 0 | BB94: 0 | BC94: 0 | BD94: 0 | BE94: 0 | BF94: 0
A95: Frenzy | B95: =VLOOKUP(A95,AllaSkills!$A$3:$BV$317,'Ny NPC'!$A$2+3,FALSE) -> 6 | C95: 6 | D95: 6 | E95: Concentration | AC95: 0 | AD95: -25 | AE95: =(EM+SD)/2 -> 5 | AF95: =HLOOKUP(Yrke,Levelbonus!$B$1:$CR$20,6,FALSE) -> 0 | AG95: 0 | AH95: =IF(ISNUMBER(VLOOKUP($A95,Rasbonus!$A$61:$AJ$295,MATCH(Ras,Rasbonus!$A$1:$AJ$1,0),FALSE)),VLOOKUP($A95,Rasbonus!$A$61:$AJ$295,MATCH(Ras,Rasbonus!$A$1:$AJ$1,0),FALSE),"0") -> 0 | AK95: -20 | AL95: 0 | AM95: 0 | AN95: 0 | AO95: 0 | AP95: 0 | AQ95: 0 | AR95: 0 | AS95: 0 | AT95: 0 | AU95: 0 | AV95: 0 | AW95: 0 | AX95: 0 | AY95: 0 | AZ95: 0 | BA95: 0 | BB95: 0 | BC95: 0 | BD95: 0 | BE95: 0 | BF95: 0
A96: Meditation Cleansing | B96: =VLOOKUP(A96,AllaSkills!$A$3:$BV$317,'Ny NPC'!$A$2+3,FALSE) -> 2/4 | C96: 2 | D96: 4 | E96: Concentration | AC96: 0 | AD96: -25 | AE96: =(SD+EM)/2 -> 5 | AF96: =HLOOKUP(Yrke,Levelbonus!$B$1:$CR$20,6,FALSE) -> 0 | AG96: 0 | AH96: =IF(ISNUMBER(VLOOKUP($A96,Rasbonus!$A$61:$AJ$295,MATCH(Ras,Rasbonus!$A$1:$AJ$1,0),FALSE)),VLOOKUP($A96,Rasbonus!$A$61:$AJ$295,MATCH(Ras,Rasbonus!$A$1:$AJ$1,0),FALSE),"0") -> 0 | AK96: -20 | AL96: 0 | AM96: 0 | AN96: 0 | AO96: 0 | AP96: 0 | AQ96: 0 | AR96: 0 | AS96: 0 | AT96: 0 | AU96: 0 | AV96: 0 | AW96: 0 | AX96: 0 | AY96: 0 | AZ96: 0 | BA96: 0 | BB96: 0 | BC96: 0 | BD96: 0 | BE96: 0 | BF96: 0
A97: Meditation Death | B97: =VLOOKUP(A97,AllaSkills!$A$3:$BV$317,'Ny NPC'!$A$2+3,FALSE) -> 1/5 | C97: 1 | D97: 5 | E97: Concentration | AC97: 0 | AD97: -25 | AE97: =(SD+PR)/2 -> 5 | AF97: =HLOOKUP(Yrke,Levelbonus!$B$1:$CR$20,6,FALSE) -> 0 | AG97: 0 | AH97: =IF(ISNUMBER(VLOOKUP($A97,Rasbonus!$A$61:$AJ$295,MATCH(Ras,Rasbonus!$A$1:$AJ$1,0),FALSE)),VLOOKUP($A97,Rasbonus!$A$61:$AJ$295,MATCH(Ras,Rasbonus!$A$1:$AJ$1,0),FALSE),"0") -> 0 | AK97: -20 | AL97: 0 | AM97: 0 | AN97: 0 | AO97: 0 | AP97: 0 | AQ97: 0 | AR97: 0 | AS97: 0 | AT97: 0 | AU97: 0 | AV97: 0 | AW97: 0 | AX97: 0 | AY97: 0 | AZ97: 0 | BA97: 0 | BB97: 0 | BC97: 0 | BD97: 0 | BE97: 0 | BF97: 0
A98: Meditation Healing | B98: =VLOOKUP(A98,AllaSkills!$A$3:$BV$317,'Ny NPC'!$A$2+3,FALSE) -> 2/4 | C98: 2 | D98: 4 | E98: Concentration | AC98: 0 | AD98: -25 | AE98: =(SD+EM)/2 -> 5 | AF98: =HLOOKUP(Yrke,Levelbonus!$B$1:$CR$20,6,FALSE) -> 0 | AG98: 0 | AH98: =IF(ISNUMBER(VLOOKUP($A98,Rasbonus!$A$61:$AJ$295,MATCH(Ras,Rasbonus!$A$1:$AJ$1,0),FALSE)),VLOOKUP($A98,Rasbonus!$A$61:$AJ$295,MATCH(Ras,Rasbonus!$A$1:$AJ$1,0),FALSE),"0") -> 0 | AK98: -20 | AL98: 0 | AM98: 0 | AN98: 0 | AO98: 0 | AP98: 0 | AQ98: 0 | AR98: 0 | AS98: 0 | AT98: 0 | AU98: 0 | AV98: 0 | AW98: 0 | AX98: 0 | AY98: 0 | AZ98: 0 | BA98: 0 | BB98: 0 | BC98: 0 | BD98: 0 | BE98: 0 | BF98: 0
A99: Meditation Ki | B99: =VLOOKUP(A99,AllaSkills!$A$3:$BV$317,'Ny NPC'!$A$2+3,FALSE) -> 3/5 | C99: 3 | D99: 5 | E99: Concentration | AC99: 0 | AD99: -25 | AE99: =(SD+PR)/2 -> 5 | AF99: =HLOOKUP(Yrke,Levelbonus!$B$1:$CR$20,6,FALSE) -> 0 | AG99: 0 | AH99: =IF(ISNUMBER(VLOOKUP($A99,Rasbonus!$A$61:$AJ$295,MATCH(Ras,Rasbonus!$A$1:$AJ$1,0),FALSE)),VLOOKUP($A99,Rasbonus!$A$61:$AJ$295,MATCH(Ras,Rasbonus!$A$1:$AJ$1,0),FALSE),"0") -> 0 | AK99: -20 | AL99: 0 | AM99: 0 | AN99: 0 | AO99: 0 | AP99: 0 | AQ99: 0 | AR99: 0 | AS99: 0 | AT99: 0 | AU99: 0 | AV99: 0 | AW99: 0 | AX99: 0 | AY99: 0 | AZ99: 0 | BA99: 0 | BB99: 0 | BC99: 0 | BD99: 0 | BE99: 0 | BF99: 0
A100: Meditation Sleep | B100: =VLOOKUP(A100,AllaSkills!$A$3:$BV$317,'Ny NPC'!$A$2+3,FALSE) -> 1/4 | C100: 1 | D100: 4 | E100: Concentration | AC100: 0 | AD100: -25 | AE100: =(SD+IN)/2 -> 7.5 | AF100: =HLOOKUP(Yrke,Levelbonus!$B$1:$CR$20,6,FALSE) -> 0 | AG100: 0 | AH100: =IF(ISNUMBER(VLOOKUP($A100,Rasbonus!$A$61:$AJ$295,MATCH(Ras,Rasbonus!$A$1:$AJ$1,0),FALSE)),VLOOKUP($A100,Rasbonus!$A$61:$AJ$295,MATCH(Ras,Rasbonus!$A$1:$AJ$1,0),FALSE),"0") -> 0 | AK100: -18 | AL100: 0 | AM100: 0 | AN100: 0 | AO100: 0 | AP100: 0 | AQ100: 0 | AR100: 0 | AS100: 0 | AT100: 0 | AU100: 0 | AV100: 0 | AW100: 0 | AX100: 0 | AY100: 0 | AZ100: 0 | BA100: 0 | BB100: 0 | BC100: 0 | BD100: 0 | BE100: 0 | BF100: 0
A101: Meditation Trance | B101: =VLOOKUP(A101,AllaSkills!$A$3:$BV$317,'Ny NPC'!$A$2+3,FALSE) -> 1/4 | C101: 1 | D101: 4 | E101: Concentration | AC101: 0 | AD101: -25 | AE101: =(SD+PR)/2 -> 5 | AF101: =HLOOKUP(Yrke,Levelbonus!$B$1:$CR$20,6,FALSE) -> 0 | AG101: 0 | AH101: =IF(ISNUMBER(VLOOKUP($A101,Rasbonus!$A$61:$AJ$295,MATCH(Ras,Rasbonus!$A$1:$AJ$1,0),FALSE)),VLOOKUP($A101,Rasbonus!$A$61:$AJ$295,MATCH(Ras,Rasbonus!$A$1:$AJ$1,0),FALSE),"0") -> 0 | AK101: -20 | AL101: 0 | AM101: 0 | AN101: 0 | AO101: 0 | AP101: 0 | AQ101: 0 | AR101: 0 | AS101: 0 | AT101: 0 | AU101: 0 | AV101: 0 | AW101: 0 | AX101: 0 | AY101: 0 | AZ101: 0 | BA101: 0 | BB101: 0 | BC101: 0 | BD101: 0 | BE101: 0 | BF101: 0
A102: Mnemonics | B102: =VLOOKUP(A102,AllaSkills!$A$3:$BV$317,'Ny NPC'!$A$2+3,FALSE) -> 1/4 | C102: 1 | D102: 4 | E102: Concentration | AC102: 0 | AD102: -25 | AE102: =(RE+SD)/2 -> 7.5 | AF102: =HLOOKUP(Yrke,Levelbonus!$B$1:$CR$20,6,FALSE) -> 0 | AG102: 0 | AH102: =IF(ISNUMBER(VLOOKUP($A102,Rasbonus!$A$61:$AJ$295,MATCH(Ras,Rasbonus!$A$1:$AJ$1,0),FALSE)),VLOOKUP($A102,Rasbonus!$A$61:$AJ$295,MATCH(Ras,Rasbonus!$A$1:$AJ$1,0),FALSE),"0") -> 0 | AK102: -18 | AL102: 0 | AM102: 0 | AN102: 0 | AO102: 0 | AP102: 0 | AQ102: 0 | AR102: 0 | AS102: 0 | AT102: 0 | AU102: 0 | AV102: 0 | AW102: 0 | AX102: 0 | AY102: 0 | AZ102: 0 | BA102: 0 | BB102: 0 | BC102: 0 | BD102: 0 | BE102: 0 | BF102: 0
A103: Prepared Shot | B103: =VLOOKUP(A103,AllaSkills!$A$3:$BV$317,'Ny NPC'!$A$2+3,FALSE) -> 6 | C103: 6 | D103: 6 | E103: Concentration | AC103: 0 | AD103: -25 | AE103: =(SD+IN)/2 -> 7.5 | AF103: =HLOOKUP(Yrke,Levelbonus!$B$1:$CR$20,6,FALSE) -> 0 | AG103: 0 | AH103: =IF(ISNUMBER(VLOOKUP($A103,Rasbonus!$A$61:$AJ$295,MATCH(Ras,Rasbonus!$A$1:$AJ$1,0),FALSE)),VLOOKUP($A103,Rasbonus!$A$61:$AJ$295,MATCH(Ras,Rasbonus!$A$1:$AJ$1,0),FALSE),"0") -> 0 | AK103: -18 | AL103: 0 | AM103: 0 | AN103: 0 | AO103: 0 | AP103: 0 | AQ103: 0 | AR103: 0 | AS103: 0 | AT103: 0 | AU103: 0 | AV103: 0 | AW103: 0 | AX103: 0 | AY103: 0 | AZ103: 0 | BA103: 0 | BB103: 0 | BC103: 0 | BD103: 0 | BE103: 0 | BF103: 0
A104: WOW Fatigue | B104: =VLOOKUP(A104,AllaSkills!$A$3:$BV$317,'Ny NPC'!$A$2+3,FALSE) -> 20 | C104: 20 | D104: 20 | E104: Concentration | AC104: 0 | AD104: -25 | AE104: =SD -> 10 | AF104: =HLOOKUP(Yrke,Levelbonus!$B$1:$CR$20,6,FALSE) -> 0 | AG104: 0 | AH104: =IF(ISNUMBER(VLOOKUP($A104,Rasbonus!$A$61:$AJ$295,MATCH(Ras,Rasbonus!$A$1:$AJ$1,0),FALSE)),VLOOKUP($A104,Rasbonus!$A$61:$AJ$295,MATCH(Ras,Rasbonus!$A$1:$AJ$1,0),FALSE),"0") -> 10 | AK104: -5 | AL104: 0 | AM104: 0 | AN104: 0 | AO104: 0 | AP104: 0 | AQ104: 0 | AR104: 0 | AS104: 0 | AT104: 0 | AU104: 0 | AV104: 0 | AW104: 0 | AX104: 0 | AY104: 0 | AZ104: 0 | BA104: 0 | BB104: 0 | BC104: 0 | BD104: 0 | BE104: 0 | BF104: 0
A105: WOW Pain | B105: =VLOOKUP(A105,AllaSkills!$A$3:$BV$317,'Ny NPC'!$A$2+3,FALSE) -> 20 | C105: =IF(LEN(B105)=3,LEFT(B105,1),IF(LEN(B105)<3,B105,99)) -> 20 | D105: 20 | E105: Concentration | AC105: 0 | AD105: =IF(AC105<1,-25,IF(AC105>30,80+((AC105-30)*0.5),IF(AC105>20,70+(AC105-20),IF(AC105>10,50+((AC105-10)*2),AC105*5)))) -> -25 | AE105: =SD -> 10 | AF105: =HLOOKUP(Yrke,Levelbonus!$B$1:$CR$20,6,FALSE) -> 0 | AG105: =AF105*Level -> 0 | AH105: =IF(ISNUMBER(VLOOKUP($A105,Rasbonus!$A$61:$AJ$295,MATCH(Ras,Rasbonus!$A$1:$AJ$1,0),FALSE)),VLOOKUP($A105,Rasbonus!$A$61:$AJ$295,MATCH(Ras,Rasbonus!$A$1:$AJ$1,0),FALSE),"0") -> 10 | AK105: -5 | AL105: 0 | AM105: 0 | AN105: 0 | AO105: 0 | AP105: 0 | AQ105: 0 | AR105: 0 | AS105: 0 | AT105: 0 | AU105: 0 | AV105: 0 | AW105: 0 | AX105: 0 | AY105: 0 | AZ105: 0 | BA105: 0 | BB105: 0 | BC105: 0 | BD105: 0 | BE105: 0 | BF105: 0
A106: WOW Unconsciousness | B106: =VLOOKUP(A106,AllaSkills!$A$3:$BV$317,'Ny NPC'!$A$2+3,FALSE) -> 20 | C106: 20 | D106: 20 | E106: Concentration | AC106: 0 | AD106: -25 | AE106: =SD -> 10 | AF106: =HLOOKUP(Yrke,Levelbonus!$B$1:$CR$20,6,FALSE) -> 0 | AG106: 0 | AH106: =IF(ISNUMBER(VLOOKUP($A106,Rasbonus!$A$61:$AJ$295,MATCH(Ras,Rasbonus!$A$1:$AJ$1,0),FALSE)),VLOOKUP($A106,Rasbonus!$A$61:$AJ$295,MATCH(Ras,Rasbonus!$A$1:$AJ$1,0),FALSE),"0") -> 10 | AK106: -5 | AL106: 0 | AM106: 0 | AN106: 0 | AO106: 0 | AP106: 0 | AQ106: 0 | AR106: 0 | AS106: 0 | AT106: 0 | AU106: 0 | AV106: 0 | AW106: 0 | AX106: 0 | AY106: 0 | AZ106: 0 | BA106: 0 | BB106: 0 | BC106: 0 | BD106: 0 | BE106: 0 | BF106: 0
A107: WOW Will | B107: =VLOOKUP(A107,AllaSkills!$A$3:$BV$317,'Ny NPC'!$A$2+3,FALSE) -> 20 | C107: 20 | D107: =IF(RIGHT(B107,1)="*",LEFT(B107,1),IF(LEN(B107)=3,RIGHT(B107,1),IF(LEN(B107)<3,B107,RIGHT(B107,2)))) -> 20 | E107: Concentration | AC107: =SUM(F107:AB107) -> 0 | AD107: -25 | AE107: =SD -> 10 | AF107: =HLOOKUP(Yrke,Levelbonus!$B$1:$CR$20,6,FALSE) -> 0 | AG107: 0 | AH107: =IF(ISNUMBER(VLOOKUP($A107,Rasbonus!$A$61:$AJ$295,MATCH(Ras,Rasbonus!$A$1:$AJ$1,0),FALSE)),VLOOKUP($A107,Rasbonus!$A$61:$AJ$295,MATCH(Ras,Rasbonus!$A$1:$AJ$1,0),FALSE),"0") -> 10 | AK107: -5 | AL107: 0 | AM107: 0 | AN107: 0 | AO107: 0 | AP107: 0 | AQ107: 0 | AR107: 0 | AS107: 0 | AT107: 0 | AU107: 0 | AV107: 0 | AW107: 0 | AX107: 0 | AY107: 0 | AZ107: 0 | BA107: 0 | BB107: 0 | BC107: 0 | BD107: 0 | BE107: 0 | BF107: 0
A108: Deadly | B108: =HLOOKUP(Diverse!$G$2,'2nd'!$B$1:$CR$18,7,FALSE) -> 0 | F108: =SUM(AL109:AL110) -> 0 | I108: =SUM(AM109:AM110) -> 0 | J108: =SUM(AN109:AN110) -> 0 | K108: 0 | L108: 0 | M108: 0 | N108: 0 | O108: 0 | P108: 0 | Q108: 0 | R108: 0 | S108: 0 | T108: 0 | U108: 0 | V108: 0 | W108: 0 | X108: 0 | Y108: 0 | Z108: 0 | AA108: 0 | AB108: 0 | AC108: Rank | AD108: Skill | AE108: Stat | AG108: Lvl | AH108: Race | AI108: Armor | AJ108: Item | AK108: Total
A109: Silent Kill | B109: =VLOOKUP(A109,AllaSkills!$A$3:$BV$317,'Ny NPC'!$A$2+3,FALSE) -> 6 | C109: 6 | D109: 6 | E109: Deadly | AC109: 0 | AD109: -25 | AE109: =AG -> 0 | AF109: =HLOOKUP(Yrke,Levelbonus!$B$1:$CR$20,7,FALSE) -> 0 | AG109: 0 | AH109: =IF(ISNUMBER(VLOOKUP($A109,Rasbonus!$A$61:$AJ$295,MATCH(Ras,Rasbonus!$A$1:$AJ$1,0),FALSE)),VLOOKUP($A109,Rasbonus!$A$61:$AJ$295,MATCH(Ras,Rasbonus!$A$1:$AJ$1,0),FALSE),"0") -> 0 | AI109: ='Ny NPC'!$N$3 -> 0 | AK109: -25 | AL109: 0 | AM109: =IF(I109>2,"99",IF(I109<1,0,IF(I109=1,$C109+$C109-$C109,IF(I109=2,$C109+$D109)))) -> 0 | AN109: =IF(J109>2,"99",IF(J109<1,0,IF(J109=1,$C109+$C109-$C109,IF(J109=2,$C109+$D109)))) -> 0 | AO109: 0 | AP109: 0 | AQ109: 0 | AR109: 0 | AS109: 0 | AT109: 0 | AU109: 0 | AV109: 0 | AW109: 0 | AX109: 0 | AY109: 0 | AZ109: 0 | BA109: 0 | BB109: 0 | BC109: 0 | BD109: 0 | BE109: 0 | BF109: 0
A110: Use/Remove Poison | B110: =VLOOKUP(A110,AllaSkills!$A$3:$BV$317,'Ny NPC'!$A$2+3,FALSE) -> 1/4 | C110: 1 | D110: 4 | E110: Deadly | AC110: 0 | AD110: -25 | AE110: =(AG+IN)/2 -> 2.5 | AF110: =HLOOKUP(Yrke,Levelbonus!$B$1:$CR$20,7,FALSE) -> 0 | AG110: 0 | AH110: =IF(ISNUMBER(VLOOKUP($A110,Rasbonus!$A$61:$AJ$295,MATCH(Ras,Rasbonus!$A$1:$AJ$1,0),FALSE)),VLOOKUP($A110,Rasbonus!$A$61:$AJ$295,MATCH(Ras,Rasbonus!$A$1:$AJ$1,0),FALSE),"0") -> 0 | AK110: -23 | AL110: 0 | AM110: =IF(I110>2,"99",IF(I110<1,0,IF(I110=1,$C110+$C110-$C110,IF(I110=2,$C110+$D110)))) -> 0 | AN110: =IF(J110>2,"99",IF(J110<1,0,IF(J110=1,$C110+$C110-$C110,IF(J110=2,$C110+$D110)))) -> 0 | AO110: 0 | AP110: 0 | AQ110: 0 | AR110: 0 | AS110: 0 | AT110: 0 | AU110: 0 | AV110: 0 | AW110: 0 | AX110: 0 | AY110: 0 | AZ110: 0 | BA110: 0 | BB110: 0 | BC110: 0 | BD110: 0 | BE110: 0 | BF110: 0
A111: Evaluation | B111: =HLOOKUP(Diverse!$G$2,'2nd'!$B$1:$CR$18,8,FALSE) -> 10 | F111: =SUM(AL112:AL116) -> 0 | I111: =SUM(AM112:AM116) -> 0 | J111: =SUM(AN112:AN116) -> 0 | K111: 0 | L111: 0 | M111: 0 | N111: 0 | O111: 0 | P111: 0 | Q111: 0 | R111: 0 | S111: 0 | T111: 0 | U111: 0 | V111: 0 | W111: 0 | X111: 0 | Y111: 0 | Z111: 0 | AA111: 0 | AB111: 0 | AC111: Rank | AD111: Skill | AE111: Stat | AG111: Lvl | AH111: Race | AI111: Armor | AJ111: Item | AK111: Total
A112: Appraisal | B112: =VLOOKUP(A112,AllaSkills!$A$3:$BV$317,'Ny NPC'!$A$2+3,FALSE) -> 1/2 | C112: 1 | D112: 2 | E112: Evaluation | AC112: 0 | AD112: -25 | AE112: =(RE) -> 5 | AF112: =HLOOKUP(Yrke,Levelbonus!$B$1:$CR$20,8,FALSE) -> 2 | AG112: 6 | AH112: =IF(ISNUMBER(VLOOKUP($A112,Rasbonus!$A$61:$AJ$295,MATCH(Ras,Rasbonus!$A$1:$AJ$1,0),FALSE)),VLOOKUP($A112,Rasbonus!$A$61:$AJ$295,MATCH(Ras,Rasbonus!$A$1:$AJ$1,0),FALSE),"0") -> 5 | AK112: -9 | AL112: 0 | AM112: =IF(I112>2,"99",IF(I112<1,0,IF(I112=1,$C112+$C112-$C112,IF(I112=2,$C112+$D112)))) -> 0 | AN112: =IF(J112>2,"99",IF(J112<1,0,IF(J112=1,$C112+$C112-$C112,IF(J112=2,$C112+$D112)))) -> 0 | AO112: 0 | AP112: 0 | AQ112: 0 | AR112: 0 | AS112: 0 | AT112: 0 | AU112: 0 | AV112: 0 | AW112: 0 | AX112: 0 | AY112: 0 | AZ112: 0 | BA112: 0 | BB112: 0 | BC112: 0 | BD112: 0 | BE112: 0 | BF112: 0
A113: Armor Evaluation | B113: =VLOOKUP(A113,AllaSkills!$A$3:$BV$317,'Ny NPC'!$A$2+3,FALSE) -> 1/3 | C113: 1 | D113: 3 | E113: Evaluation | AC113: 0 | AD113: -25 | AE113: =(IN+RE)/2 -> 5 | AF113: =HLOOKUP(Yrke,Levelbonus!$B$1:$CR$20,8,FALSE) -> 2 | AG113: 6 | AH113: =IF(ISNUMBER(VLOOKUP($A113,Rasbonus!$A$61:$AJ$295,MATCH(Ras,Rasbonus!$A$1:$AJ$1,0),FALSE)),VLOOKUP($A113,Rasbonus!$A$61:$AJ$295,MATCH(Ras,Rasbonus!$A$1:$AJ$1,0),FALSE),"0") -> 5 | AK113: -9 | AL113: 0 | AM113: =IF(I113>2,"99",IF(I113<1,0,IF(I113=1,$C113+$C113-$C113,IF(I113=2,$C113+$D113)))) -> 0 | AN113: =IF(J113>2,"99",IF(J113<1,0,IF(J113=1,$C113+$C113-$C113,IF(J113=2,$C113+$D113)))) -> 0 | AO113: 0 | AP113: 0 | AQ113: 0 | AR113: 0 | AS113: 0 | AT113: 0 | AU113: 0 | AV113: 0 | AW113: 0 | AX113: =IF(T113>2,"99",IF(T113<1,0,IF(T113=1,$C113+$C113-$C113,IF(T113=2,$C113+$D113)))) -> 0 | AY113: 0 | AZ113: 0 | BA113: 0 | BB113: 0 | BC113: 0 | BD113: 0 | BE113: 0 | BF113: 0
A114: Metal Evaluation | B114: =VLOOKUP(A114,AllaSkills!$A$3:$BV$317,'Ny NPC'!$A$2+3,FALSE) -> 1/2 | C114: 1 | D114: 2 | E114: Evaluation | AC114: 0 | AD114: -25 | AE114: =(IN+RE)/2 -> 5 | AF114: =HLOOKUP(Yrke,Levelbonus!$B$1:$CR$20,8,FALSE) -> 2 | AG114: 6 | AH114: =IF(ISNUMBER(VLOOKUP($A114,Rasbonus!$A$61:$AJ$295,MATCH(Ras,Rasbonus!$A$1:$AJ$1,0),FALSE)),VLOOKUP($A114,Rasbonus!$A$61:$AJ$295,MATCH(Ras,Rasbonus!$A$1:$AJ$1,0),FALSE),"0") -> 5 | AK114: -9 | AL114: 0 | AM114: =IF(I114>2,"99",IF(I114<1,0,IF(I114=1,$C114+$C114-$C114,IF(I114=2,$C114+$D114)))) -> 0 | AN114: 0 | AO114: 0 | AP114: 0 | AQ114: 0 | AR114: 0 | AS114: 0 | AT114: 0 | AU114: 0 | AV114: 0 | AW114: 0 | AX114: 0 | AY114: 0 | AZ114: 0 | BA114: 0 | BB114: 0 | BC114: 0 | BD114: 0 | BE114: 0 | BF114: 0
A115: Stone Evaluation | B115: =VLOOKUP(A115,AllaSkills!$A$3:$BV$317,'Ny NPC'!$A$2+3,FALSE) -> 1/2 | C115: 1 | D115: 2 | E115: Evaluation | AC115: 0 | AD115: -25 | AE115: =(IN+RE)/2 -> 5 | AF115: =HLOOKUP(Yrke,Levelbonus!$B$1:$CR$20,8,FALSE) -> 2 | AG115: 6 | AH115: =IF(ISNUMBER(VLOOKUP($A115,Rasbonus!$A$61:$AJ$295,MATCH(Ras,Rasbonus!$A$1:$AJ$1,0),FALSE)),VLOOKUP($A115,Rasbonus!$A$61:$AJ$295,MATCH(Ras,Rasbonus!$A$1:$AJ$1,0),FALSE),"0") -> 5 | AK115: -9 | AL115: 0 | AM115: =IF(I115>2,"99",IF(I115<1,0,IF(I115=1,$C115+$C115-$C115,IF(I115=2,$C115+$D115)))) -> 0 | AN115: 0 | AO115: 0 | AP115: 0 | AQ115: 0 | AR115: 0 | AS115: 0 | AT115: 0 | AU115: 0 | AV115: 0 | AW115: 0 | AX115: 0 | AY115: 0 | AZ115: 0 | BA115: 0 | BB115: 0 | BC115: 0 | BD115: 0 | BE115: 0 | BF115: 0
A116: Weapon Evaluation | B116: =VLOOKUP(A116,AllaSkills!$A$3:$BV$317,'Ny NPC'!$A$2+3,FALSE) -> 1/3 | C116: 1 | D116: 3 | E116: Evaluation | AC116: 0 | AD116: -25 | AE116: =(IN+RE)/2 -> 5 | AF116: =HLOOKUP(Yrke,Levelbonus!$B$1:$CR$20,8,FALSE) -> 2 | AG116: 6 | AH116: =IF(ISNUMBER(VLOOKUP($A116,Rasbonus!$A$61:$AJ$295,MATCH(Ras,Rasbonus!$A$1:$AJ$1,0),FALSE)),VLOOKUP($A116,Rasbonus!$A$61:$AJ$295,MATCH(Ras,Rasbonus!$A$1:$AJ$1,0),FALSE),"0") -> 5 | AK116: -9 | AL116: 0 | AM116: =IF(I116>2,"99",IF(I116<1,0,IF(I116=1,$C116+$C116-$C116,IF(I116=2,$C116+$D116)))) -> 0 | AN116: 0 | AO116: 0 | AP116: 0 | AQ116: 0 | AR116: 0 | AS116: 0 | AT116: 0 | AU116: 0 | AV116: 0 | AW116: 0 | AX116: 0 | AY116: 0 | AZ116: 0 | BA116: 0 | BB116: 0 | BC116: 0 | BD116: 0 | BE116: 0 | BF116: 0
A117: General | B117: =HLOOKUP(Diverse!$G$2,'2nd'!$B$1:$CR$18,9,FALSE) -> 12 | F117: =SUM(AL118:AL137) -> 0 | I117: =SUM(AM118:AM137) -> 0 | J117: =SUM(AN118:AN137) -> 0 | K117: 0 | L117: 0 | M117: 0 | N117: 0 | O117: 0 | P117: 0 | Q117: 0 | R117: 0 | S117: 0 | T117: 0 | U117: 0 | V117: 0 | W117: 0 | X117: 0 | Y117: 0 | Z117: 0 | AA117: 0 | AB117: 0 | AC117: Rank | AD117: Skill | AE117: Stat | AG117: Lvl | AH117: Race | AI117: Armor | AJ117: Item | AK117: Total
A118: Advertising | B118: =VLOOKUP(A118,AllaSkills!$A$3:$BV$317,'Ny NPC'!$A$2+3,FALSE) -> 3/5 | C118: 3 | D118: 5 | E118: General | AC118: 0 | AD118: -25 | AE118: =(IN+RE)/2 -> 5 | AF118: =HLOOKUP(Yrke,Levelbonus!$B$1:$CR$20,9,FALSE) -> 2 | AG118: 6 | AH118: =IF(ISNUMBER(VLOOKUP($A118,Rasbonus!$A$61:$AJ$295,MATCH(Ras,Rasbonus!$A$1:$AJ$1,0),FALSE)),VLOOKUP($A118,Rasbonus!$A$61:$AJ$295,MATCH(Ras,Rasbonus!$A$1:$AJ$1,0),FALSE),"0") -> 0 | AK118: -14 | AL118: 0 | AM118: =IF(I118>2,"99",IF(I118<1,0,IF(I118=1,$C118+$C118-$C118,IF(I118=2,$C118+$D118)))) -> 0 | AN118: 0 | AO118: 0 | AP118: 0 | AQ118: 0 | AR118: 0 | AS118: 0 | AT118: 0 | AU118: 0 | AV118: 0 | AW118: 0 | AX118: 0 | AY118: 0 | AZ118: 0 | BA118: 0 | BB118: 0 | BC118: 0 | BD118: 0 | BE118: 0 | BF118: 0
A119: Cookery | B119: =VLOOKUP(A119,AllaSkills!$A$3:$BV$317,'Ny NPC'!$A$2+3,FALSE) -> 1/2 | C119: 1 | D119: 2 | E119: General | AC119: 0 | AD119: -25 | AE119: =(IN+RE)/2 -> 5 | AF119: =HLOOKUP(Yrke,Levelbonus!$B$1:$CR$20,9,FALSE) -> 2 | AG119: 6 | AH119: =IF(ISNUMBER(VLOOKUP($A119,Rasbonus!$A$61:$AJ$295,MATCH(Ras,Rasbonus!$A$1:$AJ$1,0),FALSE)),VLOOKUP($A119,Rasbonus!$A$61:$AJ$295,MATCH(Ras,Rasbonus!$A$1:$AJ$1,0),FALSE),"0") -> 0 | AK119: -14 | AL119: 0 | AM119: =IF(I119>2,"99",IF(I119<1,0,IF(I119=1,$C119+$C119-$C119,IF(I119=2,$C119+$D119)))) -> 0 | AN119: =IF(J119>2,"99",IF(J119<1,0,IF(J119=1,$C119+$C119-$C119,IF(J119=2,$C119+$D119)))) -> 0 | AO119: =IF(K119>2,"99",IF(K119<1,0,IF(K119=1,$C119+$C119-$C119,IF(K119=2,$C119+$D119)))) -> 0 | AP119: =IF(L119>2,"99",IF(L119<1,0,IF(L119=1,$C119+$C119-$C119,IF(L119=2,$C119+$D119)))) -> 0 | AQ119: =IF(M119>2,"99",IF(M119<1,0,IF(M119=1,$C119+$C119-$C119,IF(M119=2,$C119+$D119)))) -> 0 | AR119: =IF(N119>2,"99",IF(N119<1,0,IF(N119=1,$C119+$C119-$C119,IF(N119=2,$C119+$D119)))) -> 0 | AS119: =IF(O119>2,"99",IF(O119<1,0,IF(O119=1,$C119+$C119-$C119,IF(O119=2,$C119+$D119)))) -> 0 | AT119: =IF(P119>2,"99",IF(P119<1,0,IF(P119=1,$C119+$C119-$C119,IF(P119=2,$C119+$D119)))) -> 0 | AU119: =IF(Q119>2,"99",IF(Q119<1,0,IF(Q119=1,$C119+$C119-$C119,IF(Q119=2,$C119+$D119)))) -> 0 | AV119: =IF(R119>2,"99",IF(R119<1,0,IF(R119=1,$C119+$C119-$C119,IF(R119=2,$C119+$D119)))) -> 0 | AW119: =IF(S119>2,"99",IF(S119<1,0,IF(S119=1,$C119+$C119-$C119,IF(S119=2,$C119+$D119)))) -> 0 | AX119: =IF(T119>2,"99",IF(T119<1,0,IF(T119=1,$C119+$C119-$C119,IF(T119=2,$C119+$D119)))) -> 0 | AY119: =IF(U119>2,"99",IF(U119<1,0,IF(U119=1,$C119+$C119-$C119,IF(U119=2,$C119+$D119)))) -> 0 | AZ119: =IF(V119>2,"99",IF(V119<1,0,IF(V119=1,$C119+$C119-$C119,IF(V119=2,$C119+$D119)))) -> 0 | BA119: =IF(W119>2,"99",IF(W119<1,0,IF(W119=1,$C119+$C119-$C119,IF(W119=2,$C119+$D119)))) -> 0 | BB119: =IF(X119>2,"99",IF(X119<1,0,IF(X119=1,$C119+$C119-$C119,IF(X119=2,$C119+$D119)))) -> 0 | BC119: =IF(Y119>2,"99",IF(Y119<1,0,IF(Y119=1,$C119+$C119-$C119,IF(Y119=2,$C119+$D119)))) -> 0 | BD119: =IF(Z119>2,"99",IF(Z119<1,0,IF(Z119=1,$C119+$C119-$C119,IF(Z119=2,$C119+$D119)))) -> 0 | BE119: =IF(AA119>2,"99",IF(AA119<1,0,IF(AA119=1,$C119+$C119-$C119,IF(AA119=2,$C119+$D119)))) -> 0 | BF119: =IF(AB119>2,"99",IF(AB119<1,0,IF(AB119=1,$C119+$C119-$C119,IF(AB119=2,$C119+$D119)))) -> 0
A120: Crafting | B120: =VLOOKUP(A120,AllaSkills!$A$3:$BV$317,'Ny NPC'!$A$2+3,FALSE) -> 1/2 | C120: 1 | D120: 2 | E120: General | AC120: 0 | AD120: -25 | AE120: =(AG+SD)/2 -> 5 | AF120: =HLOOKUP(Yrke,Levelbonus!$B$1:$CR$20,9,FALSE) -> 2 | AG120: 6 | AH120: =IF(ISNUMBER(VLOOKUP($A120,Rasbonus!$A$61:$AJ$295,MATCH(Ras,Rasbonus!$A$1:$AJ$1,0),FALSE)),VLOOKUP($A120,Rasbonus!$A$61:$AJ$295,MATCH(Ras,Rasbonus!$A$1:$AJ$1,0),FALSE),"0") -> 0 | AK120: -14 | AL120: 0 | AM120: 0 | AN120: 0 | AO120: 0 | AP120: 0 | AQ120: 0 | AR120: 0 | AS120: 0 | AT120: 0 | AU120: 0 | AV120: 0 | AW120: 0 | AX120: 0 | AY120: 0 | AZ120: 0 | BA120: 0 | BB120: 0 | BC120: 0 | BD120: 0 | BE120: 0 | BF120: 0
A121: Fletching | B121: =VLOOKUP(A121,AllaSkills!$A$3:$BV$317,'Ny NPC'!$A$2+3,FALSE) -> 1/3 | C121: 1 | D121: 3 | E121: General | AC121: 0 | AD121: -25 | AE121: =(AG+SD)/2 -> 5 | AF121: =HLOOKUP(Yrke,Levelbonus!$B$1:$CR$20,9,FALSE) -> 2 | AG121: 6 | AH121: =IF(ISNUMBER(VLOOKUP($A121,Rasbonus!$A$61:$AJ$295,MATCH(Ras,Rasbonus!$A$1:$AJ$1,0),FALSE)),VLOOKUP($A121,Rasbonus!$A$61:$AJ$295,MATCH(Ras,Rasbonus!$A$1:$AJ$1,0),FALSE),"0") -> 0 | AK121: -14 | AL121: 0 | AM121: 0 | AN121: 0 | AO121: 0 | AP121: 0 | AQ121: 0 | AR121: 0 | AS121: 0 | AT121: 0 | AU121: 0 | AV121: 0 | AW121: 0 | AX121: 0 | AY121: 0 | AZ121: 0 | BA121: 0 | BB121: 0 | BC121: 0 | BD121: 0 | BE121: 0 | BF121: 0
A122: Gimmickry | B122: =VLOOKUP(A122,AllaSkills!$A$3:$BV$317,'Ny NPC'!$A$2+3,FALSE) -> 2/4 | C122: 2 | D122: 4 | E122: General | AC122: 0 | AD122: -25 | AE122: =RE -> 5 | AF122: =HLOOKUP(Yrke,Levelbonus!$B$1:$CR$20,9,FALSE) -> 2 | AG122: 6 | AH122: =IF(ISNUMBER(VLOOKUP($A122,Rasbonus!$A$61:$AJ$295,MATCH(Ras,Rasbonus!$A$1:$AJ$1,0),FALSE)),VLOOKUP($A122,Rasbonus!$A$61:$AJ$295,MATCH(Ras,Rasbonus!$A$1:$AJ$1,0),FALSE),"0") -> 0 | AK122: -14 | AL122: 0 | AM122: 0 | AN122: 0 | AO122: 0 | AP122: 0 | AQ122: 0 | AR122: 0 | AS122: 0 | AT122: 0 | AU122: 0 | AV122: 0 | AW122: 0 | AX122: 0 | AY122: 0 | AZ122: 0 | BA122: 0 | BB122: 0 | BC122: 0 | BD122: 0 | BE122: 0 | BF122: 0
A123: Horticulture | B123: =VLOOKUP(A123,AllaSkills!$A$3:$BV$317,'Ny NPC'!$A$2+3,FALSE) -> 1/4 | C123: 1 | D123: 4 | E123: General | AC123: 0 | AD123: -25 | AE123: =(IN+EM)/2 -> 2.5 | AF123: =HLOOKUP(Yrke,Levelbonus!$B$1:$CR$20,9,FALSE) -> 2 | AG123: 6 | AH123: =IF(ISNUMBER(VLOOKUP($A123,Rasbonus!$A$61:$AJ$295,MATCH(Ras,Rasbonus!$A$1:$AJ$1,0),FALSE)),VLOOKUP($A123,Rasbonus!$A$61:$AJ$295,MATCH(Ras,Rasbonus!$A$1:$AJ$1,0),FALSE),"0") -> 0 | AK123: -17 | AL123: 0 | AM123: 0 | AN123: 0 | AO123: 0 | AP123: 0 | AQ123: 0 | AR123: 0 | AS123: 0 | AT123: 0 | AU123: 0 | AV123: 0 | AW123: 0 | AX123: 0 | AY123: 0 | AZ123: 0 | BA123: 0 | BB123: 0 | BC123: 0 | BD123: 0 | BE123: 0 | BF123: 0
A124: Hygien | B124: =VLOOKUP(A124,AllaSkills!$A$3:$BV$317,'Ny NPC'!$A$2+3,FALSE) -> 3 | C124: 3 | D124: 3 | E124: General | AC124: 0 | AD124: -25 | AE124: =(CO+SD)/2 -> 15 | AF124: =HLOOKUP(Yrke,Levelbonus!$B$1:$CR$20,9,FALSE) -> 2 | AG124: 6 | AH124: =IF(ISNUMBER(VLOOKUP($A124,Rasbonus!$A$61:$AJ$295,MATCH(Ras,Rasbonus!$A$1:$AJ$1,0),FALSE)),VLOOKUP($A124,Rasbonus!$A$61:$AJ$295,MATCH(Ras,Rasbonus!$A$1:$AJ$1,0),FALSE),"0") -> 0 | AK124: -4 | AL124: 0 | AM124: 0 | AN124: 0 | AO124: 0 | AP124: 0 | AQ124: 0 | AR124: 0 | AS124: 0 | AT124: 0 | AU124: 0 | AV124: 0 | AW124: 0 | AX124: 0 | AY124: 0 | AZ124: 0 | BA124: 0 | BB124: 0 | BC124: 0 | BD124: 0 | BE124: 0 | BF124: 0
A125: Leatherworking | B125: =VLOOKUP(A125,AllaSkills!$A$3:$BV$317,'Ny NPC'!$A$2+3,FALSE) -> 3 | C125: 3 | D125: 3 | E125: General | AC125: 0 | AD125: -25 | AE125: =(AG+RE)/2 -> 2.5 | AF125: =HLOOKUP(Yrke,Levelbonus!$B$1:$CR$20,9,FALSE) -> 2 | AG125: 6 | AH125: =IF(ISNUMBER(VLOOKUP($A125,Rasbonus!$A$61:$AJ$295,MATCH(Ras,Rasbonus!$A$1:$AJ$1,0),FALSE)),VLOOKUP($A125,Rasbonus!$A$61:$AJ$295,MATCH(Ras,Rasbonus!$A$1:$AJ$1,0),FALSE),"0") -> 0 | AK125: -17 | AL125: 0 | AM125: 0 | AN125: 0 | AO125: 0 | AP125: 0 | AQ125: 0 | AR125: 0 | AS125: 0 | AT125: 0 | AU125: 0 | AV125: 0 | AW125: 0 | AX125: 0 | AY125: 0 | AZ125: 0 | BA125: 0 | BB125: 0 | BC125: 0 | BD125: 0 | BE125: 0 | BF125: 0
A126: Painting | B126: =VLOOKUP(A126,AllaSkills!$A$3:$BV$317,'Ny NPC'!$A$2+3,FALSE) -> 2/5 | C126: 2 | D126: 5 | E126: General | AC126: 0 | AD126: -25 | AE126: =(IN+AG)/2 -> 2.5 | AF126: =HLOOKUP(Yrke,Levelbonus!$B$1:$CR$20,9,FALSE) -> 2 | AG126: 6 | AH126: =IF(ISNUMBER(VLOOKUP($A126,Rasbonus!$A$61:$AJ$295,MATCH(Ras,Rasbonus!$A$1:$AJ$1,0),FALSE)),VLOOKUP($A126,Rasbonus!$A$61:$AJ$295,MATCH(Ras,Rasbonus!$A$1:$AJ$1,0),FALSE),"0") -> 0 | AK126: -17 | AL126: 0 | AM126: 0 | AN126: 0 | AO126: 0 | AP126: 0 | AQ126: 0 | AR126: 0 | AS126: 0 | AT126: 0 | AU126: 0 | AV126: 0 | AW126: 0 | AX126: 0 | AY126: 0 | AZ126: 0 | BA126: 0 | BB126: 0 | BC126: 0 | BD126: 0 | BE126: 0 | BF126: 0
A127: Play instrument #1 | B127: =VLOOKUP(A127,AllaSkills!$A$3:$BV$317,'Ny NPC'!$A$2+3,FALSE) -> 2/6 | C127: 2 | D127: 6 | E127: General | AC127: 0 | AD127: -25 | AE127: =(AG+RE)/2 -> 2.5 | AF127: =HLOOKUP(Yrke,Levelbonus!$B$1:$CR$20,9,FALSE) -> 2 | AG127: 6 | AH127: =IF(ISNUMBER(VLOOKUP($A127,Rasbonus!$A$61:$AJ$295,MATCH(Ras,Rasbonus!$A$1:$AJ$1,0),FALSE)),VLOOKUP($A127,Rasbonus!$A$61:$AJ$295,MATCH(Ras,Rasbonus!$A$1:$AJ$1,0),FALSE),"0") -> 0 | AK127: -17 | AL127: 0 | AM127: 0 | AN127: 0 | AO127: 0 | AP127: 0 | AQ127: 0 | AR127: 0 | AS127: 0 | AT127: 0 | AU127: 0 | AV127: 0 | AW127: 0 | AX127: 0 | AY127: 0 | AZ127: 0 | BA127: 0 | BB127: 0 | BC127: 0 | BD127: 0 | BE127: 0 | BF127: 0
A128: Play instrument #2 | B128: =VLOOKUP(A128,AllaSkills!$A$3:$BV$317,'Ny NPC'!$A$2+3,FALSE) -> 3/7 | C128: 3 | D128: 7 | E128: General | AC128: 0 | AD128: -25 | AE128: =(AG+RE)/2 -> 2.5 | AF128: =HLOOKUP(Yrke,Levelbonus!$B$1:$CR$20,9,FALSE) -> 2 | AG128: 6 | AH128: =IF(ISNUMBER(VLOOKUP($A128,Rasbonus!$A$61:$AJ$295,MATCH(Ras,Rasbonus!$A$1:$AJ$1,0),FALSE)),VLOOKUP($A128,Rasbonus!$A$61:$AJ$295,MATCH(Ras,Rasbonus!$A$1:$AJ$1,0),FALSE),"0") -> 0 | AK128: -17 | AL128: 0 | AM128: 0 | AN128: 0 | AO128: 0 | AP128: 0 | AQ128: 0 | AR128: 0 | AS128: 0 | AT128: 0 | AU128: 0 | AV128: 0 | AW128: 0 | AX128: 0 | AY128: 0 | AZ128: 0 | BA128: 0 | BB128: 0 | BC128: 0 | BD128: 0 | BE128: 0 | BF128: 0
A129: Play instrument #3 | B129: =VLOOKUP(A129,AllaSkills!$A$3:$BV$317,'Ny NPC'!$A$2+3,FALSE) -> 3 | C129: 3 | D129: 3 | E129: General | AC129: 0 | AD129: -25 | AE129: =(AG+RE)/2 -> 2.5 | AF129: =HLOOKUP(Yrke,Levelbonus!$B$1:$CR$20,9,FALSE) -> 2 | AG129: 6 | AH129: =IF(ISNUMBER(VLOOKUP($A129,Rasbonus!$A$61:$AJ$295,MATCH(Ras,Rasbonus!$A$1:$AJ$1,0),FALSE)),VLOOKUP($A129,Rasbonus!$A$61:$AJ$295,MATCH(Ras,Rasbonus!$A$1:$AJ$1,0),FALSE),"0") -> 0 | AK129: -17 | AL129: 0 | AM129: 0 | AN129: 0 | AO129: 0 | AP129: 0 | AQ129: 0 | AR129: 0 | AS129: 0 | AT129: 0 | AU129: 0 | AV129: 0 | AW129: 0 | AX129: 0 | AY129: 0 | AZ129: 0 | BA129: 0 | BB129: 0 | BC129: 0 | BD129: 0 | BE129: 0 | BF129: 0
A130: Rope Mastery | B130: =VLOOKUP(A130,AllaSkills!$A$3:$BV$317,'Ny NPC'!$A$2+3,FALSE) -> 3 | C130: 3 | D130: 3 | E130: General | AC130: 0 | AD130: -25 | AE130: =(AG+RE)/2 -> 2.5 | AF130: =HLOOKUP(Yrke,Levelbonus!$B$1:$CR$20,9,FALSE) -> 2 | AG130: 6 | AH130: =IF(ISNUMBER(VLOOKUP($A130,Rasbonus!$A$61:$AJ$295,MATCH(Ras,Rasbonus!$A$1:$AJ$1,0),FALSE)),VLOOKUP($A130,Rasbonus!$A$61:$AJ$295,MATCH(Ras,Rasbonus!$A$1:$AJ$1,0),FALSE),"0") -> 0 | AK130: -17 | AL130: 0 | AM130: 0 | AN130: 0 | AO130: 0 | AP130: 0 | AQ130: 0 | AR130: 0 | AS130: 0 | AT130: 0 | AU130: 0 | AV130: 0 | AW130: 0 | AX130: 0 | AY130: 0 | AZ130: 0 | BA130: 0 | BB130: 0 | BC130: 0 | BD130: 0 | BE130: 0 | BF130: 0
A131: Sculpting | B131: =VLOOKUP(A131,AllaSkills!$A$3:$BV$317,'Ny NPC'!$A$2+3,FALSE) -> 1/4 | C131: 1 | D131: 4 | E131: General | AC131: 0 | AD131: -25 | AE131: =(IN+AG)/2 -> 2.5 | AF131: =HLOOKUP(Yrke,Levelbonus!$B$1:$CR$20,9,FALSE) -> 2 | AG131: 6 | AH131: =IF(ISNUMBER(VLOOKUP($A131,Rasbonus!$A$61:$AJ$295,MATCH(Ras,Rasbonus!$A$1:$AJ$1,0),FALSE)),VLOOKUP($A131,Rasbonus!$A$61:$AJ$295,MATCH(Ras,Rasbonus!$A$1:$AJ$1,0),FALSE),"0") -> 0 | AK131: -17 | AL131: 0 | AM131: 0 | AN131: 0 | AO131: 0 | AP131: 0 | AQ131: 0 | AR131: 0 | AS131: 0 | AT131: 0 | AU131: 0 | AV131: 0 | AW131: 0 | AX131: 0 | AY131: 0 | AZ131: 0 | BA131: 0 | BB131: 0 | BC131: 0 | BD131: 0 | BE131: 0 | BF131: 0
A132: Skinning | B132: =VLOOKUP(A132,AllaSkills!$A$3:$BV$317,'Ny NPC'!$A$2+3,FALSE) -> 3 | C132: 3 | D132: 3 | E132: General | AC132: 0 | AD132: -25 | AE132: =(IN+AG)/2 -> 2.5 | AF132: =HLOOKUP(Yrke,Levelbonus!$B$1:$CR$20,9,FALSE) -> 2 | AG132: 6 | AH132: =IF(ISNUMBER(VLOOKUP($A132,Rasbonus!$A$61:$AJ$295,MATCH(Ras,Rasbonus!$A$1:$AJ$1,0),FALSE)),VLOOKUP($A132,Rasbonus!$A$61:$AJ$295,MATCH(Ras,Rasbonus!$A$1:$AJ$1,0),FALSE),"0") -> 0 | AK132: =ROUND(AD132+AE132+AG132+AH132+AI132+AJ132,0) -> -17 | AL132: =IF(F132>2,"99",IF(F132<1,0,IF(F132=1,$C132+$C132-$C132,IF(F132=2,$C132+$D132)))) -> 0 | AM132: 0 | AN132: 0 | AO132: 0 | AP132: 0 | AQ132: 0 | AR132: 0 | AS132: 0 | AT132: 0 | AU132: 0 | AV132: 0 | AW132: 0 | AX132: 0 | AY132: 0 | AZ132: 0 | BA132: 0 | BB132: 0 | BC132: 0 | BD132: 0 | BE132: 0 | BF132: 0
A133: Smithing | B133: =VLOOKUP(A133,AllaSkills!$A$3:$BV$317,'Ny NPC'!$A$2+3,FALSE) -> 1/2 | C133: 1 | D133: 2 | E133: General | AC133: 0 | AD133: -25 | AE133: =(ST+AG)/2 -> 7.5 | AF133: =HLOOKUP(Yrke,Levelbonus!$B$1:$CR$20,9,FALSE) -> 2 | AG133: 6 | AH133: =IF(ISNUMBER(VLOOKUP($A133,Rasbonus!$A$61:$AJ$295,MATCH(Ras,Rasbonus!$A$1:$AJ$1,0),FALSE)),VLOOKUP($A133,Rasbonus!$A$61:$AJ$295,MATCH(Ras,Rasbonus!$A$1:$AJ$1,0),FALSE),"0") -> 0 | AK133: -12 | AL133: 0 | AM133: 0 | AN133: 0 | AO133: 0 | AP133: 0 | AQ133: 0 | AR133: 0 | AS133: 0 | AT133: 0 | AU133: 0 | AV133: 0 | AW133: 0 | AX133: 0 | AY133: 0 | AZ133: 0 | BA133: 0 | BB133: 0 | BC133: 0 | BD133: 0 | BE133: 0 | BF133: 0
A134: Stonecrafts | B134: =VLOOKUP(A134,AllaSkills!$A$3:$BV$317,'Ny NPC'!$A$2+3,FALSE) -> 1/2 | C134: 1 | D134: 2 | E134: General | AC134: 0 | AD134: -25 | AE134: =(AG+SD)/2 -> 5 | AF134: =HLOOKUP(Yrke,Levelbonus!$B$1:$CR$20,9,FALSE) -> 2 | AG134: 6 | AH134: =IF(ISNUMBER(VLOOKUP($A134,Rasbonus!$A$61:$AJ$295,MATCH(Ras,Rasbonus!$A$1:$AJ$1,0),FALSE)),VLOOKUP($A134,Rasbonus!$A$61:$AJ$295,MATCH(Ras,Rasbonus!$A$1:$AJ$1,0),FALSE),"0") -> 10 | AK134: -4 | AL134: 0 | AM134: 0 | AN134: 0 | AO134: 0 | AP134: 0 | AQ134: 0 | AR134: 0 | AS134: 0 | AT134: 0 | AU134: 0 | AV134: 0 | AW134: 0 | AX134: 0 | AY134: 0 | AZ134: 0 | BA134: 0 | BB134: 0 | BC134: 0 | BD134: 0 | BE134: 0 | BF134: 0
A135: Tactical Games | B135: =VLOOKUP(A135,AllaSkills!$A$3:$BV$317,'Ny NPC'!$A$2+3,FALSE) -> 1/4 | C135: 1 | D135: 4 | E135: General | AC135: 0 | AD135: -25 | AE135: =(RE) -> 5 | AF135: =HLOOKUP(Yrke,Levelbonus!$B$1:$CR$20,9,FALSE) -> 2 | AG135: 6 | AH135: =IF(ISNUMBER(VLOOKUP($A135,Rasbonus!$A$61:$AJ$295,MATCH(Ras,Rasbonus!$A$1:$AJ$1,0),FALSE)),VLOOKUP($A135,Rasbonus!$A$61:$AJ$295,MATCH(Ras,Rasbonus!$A$1:$AJ$1,0),FALSE),"0") -> 0 | AK135: -14 | AL135: 0 | AM135: 0 | AN135: 0 | AO135: 0 | AP135: 0 | AQ135: 0 | AR135: 0 | AS135: 0 | AT135: 0 | AU135: 0 | AV135: 0 | AW135: 0 | AX135: 0 | AY135: 0 | AZ135: 0 | BA135: 0 | BB135: 0 | BC135: 0 | BD135: 0 | BE135: 0 | BF135: 0
A136: WA Maintenance | B136: =VLOOKUP(A136,AllaSkills!$A$3:$BV$317,'Ny NPC'!$A$2+3,FALSE) -> 1/2 | C136: 1 | D136: 2 | E136: General | AC136: 0 | AD136: -25 | AE136: =(AG+SD)/2 -> 5 | AF136: =HLOOKUP(Yrke,Levelbonus!$B$1:$CR$20,9,FALSE) -> 2 | AG136: 6 | AH136: =IF(ISNUMBER(VLOOKUP($A136,Rasbonus!$A$61:$AJ$295,MATCH(Ras,Rasbonus!$A$1:$AJ$1,0),FALSE)),VLOOKUP($A136,Rasbonus!$A$61:$AJ$295,MATCH(Ras,Rasbonus!$A$1:$AJ$1,0),FALSE),"0") -> 0 | AK136: -14 | AL136: 0 | AM136: 0 | AN136: 0 | AO136: 0 | AP136: 0 | AQ136: 0 | AR136: 0 | AS136: 0 | AT136: 0 | AU136: 0 | AV136: 0 | AW136: 0 | AX136: 0 | AY136: 0 | AZ136: 0 | BA136: 0 | BB136: 0 | BC136: 0 | BD136: 0 | BE136: 0 | BF136: 0
A137: Woodcrafts | B137: =VLOOKUP(A137,AllaSkills!$A$3:$BV$317,'Ny NPC'!$A$2+3,FALSE) -> 1/3 | C137: 1 | D137: 3 | E137: General | AC137: 0 | AD137: -25 | AE137: =(AG+EM)/2 -> 0 | AF137: =HLOOKUP(Yrke,Levelbonus!$B$1:$CR$20,9,FALSE) -> 2 | AG137: 6 | AH137: =IF(ISNUMBER(VLOOKUP($A137,Rasbonus!$A$61:$AJ$295,MATCH(Ras,Rasbonus!$A$1:$AJ$1,0),FALSE)),VLOOKUP($A137,Rasbonus!$A$61:$AJ$295,MATCH(Ras,Rasbonus!$A$1:$AJ$1,0),FALSE),"0") -> 0 | AK137: -19 | AL137: 0 | AM137: 0 | AN137: 0 | AO137: 0 | AP137: 0 | AQ137: 0 | AR137: 0 | AS137: 0 | AT137: 0 | AU137: 0 | AV137: 0 | AW137: 0 | AX137: 0 | AY137: 0 | AZ137: 0 | BA137: 0 | BB137: 0 | BC137: 0 | BD137: 0 | BE137: 0 | BF137: 0
A138: Gymnastic | B138: =HLOOKUP(Diverse!$G$2,'2nd'!$B$1:$CR$18,10,FALSE) -> 0 | F138: =SUM(AL139:AL147) -> 0 | I138: =SUM(AM139:AM147) -> 0 | J138: =SUM(AN139:AN147) -> 0 | K138: 0 | L138: 0 | M138: 0 | N138: 0 | O138: 0 | P138: 0 | Q138: 0 | R138: 0 | S138: 0 | T138: 0 | U138: 0 | V138: 0 | W138: 0 | X138: 0 | Y138: 0 | Z138: 0 | AA138: 0 | AB138: 0 | AC138: Rank | AD138: Skill | AE138: Stat | AG138: Lvl | AH138: Race | AI138: Armor | AJ138: Item | AK138: Total
A139: Acrobatics | B139: =VLOOKUP(A139,AllaSkills!$A$3:$BV$317,'Ny NPC'!$A$2+3,FALSE) -> 3 | C139: 3 | D139: 3 | E139: Gymnastic | AC139: 0 | AD139: -25 | AE139: =(AG+QU)/2 -> 0 | AF139: =HLOOKUP(Yrke,Levelbonus!$B$1:$CR$20,10,FALSE) -> 0 | AG139: 0 | AH139: =IF(ISNUMBER(VLOOKUP($A139,Rasbonus!$A$61:$AJ$295,MATCH(Ras,Rasbonus!$A$1:$AJ$1,0),FALSE)),VLOOKUP($A139,Rasbonus!$A$61:$AJ$295,MATCH(Ras,Rasbonus!$A$1:$AJ$1,0),FALSE),"0") -> 0 | AI139: ='Ny NPC'!$N$3 -> 0 | AK139: =ROUND(AD139+AE139+AG139+AH139+AI139+AJ139,0) -> -25 | AL139: =IF(F139>2,"99",IF(F139<1,0,IF(F139=1,$C139+$C139-$C139,IF(F139=2,$C139+$D139)))) -> 0 | AM139: =IF(I139>2,"99",IF(I139<1,0,IF(I139=1,$C139+$C139-$C139,IF(I139=2,$C139+$D139)))) -> 0 | AN139: 0 | AO139: 0 | AP139: 0 | AQ139: 0 | AR139: 0 | AS139: 0 | AT139: 0 | AU139: 0 | AV139: 0 | AW139: 0 | AX139: 0 | AY139: 0 | AZ139: 0 | BA139: 0 | BB139: 0 | BC139: 0 | BD139: 0 | BE139: 0 | BF139: 0
A140: Calisthenics | B140: =VLOOKUP(A140,AllaSkills!$A$3:$BV$317,'Ny NPC'!$A$2+3,FALSE) -> 20 | C140: 20 | D140: 20 | E140: Gymnastic | AC140: 0 | AD140: -25 | AG140: 0 | AH140: =IF(ISNUMBER(VLOOKUP($A140,Rasbonus!$A$61:$AJ$295,MATCH(Ras,Rasbonus!$A$1:$AJ$1,0),FALSE)),VLOOKUP($A140,Rasbonus!$A$61:$AJ$295,MATCH(Ras,Rasbonus!$A$1:$AJ$1,0),FALSE),"0") -> 0 | AK140: -25 | AL140: 0 | AM140: 0 | AN140: 0 | AO140: 0 | AP140: 0 | AQ140: 0 | AR140: 0 | AS140: 0 | AT140: 0 | AU140: 0 | AV140: 0 | AW140: 0 | AX140: 0 | AY140: 0 | AZ140: 0 | BA140: 0 | BB140: 0 | BC140: 0 | BD140: 0 | BE140: 0 | BF140: 0
A141: Contortions | B141: =VLOOKUP(A141,AllaSkills!$A$3:$BV$317,'Ny NPC'!$A$2+3,FALSE) -> 5 | C141: 5 | D141: 5 | E141: Gymnastic | AC141: 0 | AD141: -25 | AE141: =(AG+SD)/2 -> 5 | AF141: =HLOOKUP(Yrke,Levelbonus!$B$1:$CR$20,10,FALSE) -> 0 | AG141: 0 | AH141: =IF(ISNUMBER(VLOOKUP($A141,Rasbonus!$A$61:$AJ$295,MATCH(Ras,Rasbonus!$A$1:$AJ$1,0),FALSE)),VLOOKUP($A141,Rasbonus!$A$61:$AJ$295,MATCH(Ras,Rasbonus!$A$1:$AJ$1,0),FALSE),"0") -> 0 | AI141: ='Ny NPC'!$N$3 -> 0 | AK141: -20 | AL141: 0 | AM141: 0 | AN141: 0 | AO141: 0 | AP141: 0 | AQ141: 0 | AR141: 0 | AS141: 0 | AT141: 0 | AU141: 0 | AV141: 0 | AW141: 0 | AX141: 0 | AY141: 0 | AZ141: 0 | BA141: 0 | BB141: 0 | BC141: 0 | BD141: 0 | BE141: 0 | BF141: 0
A142: Juggling | B142: =VLOOKUP(A142,AllaSkills!$A$3:$BV$317,'Ny NPC'!$A$2+3,FALSE) -> 3 | C142: 3 | D142: 3 | E142: Gymnastic | AC142: 0 | AD142: -25 | AE142: =(AG+IN)/2 -> 2.5 | AF142: =HLOOKUP(Yrke,Levelbonus!$B$1:$CR$20,10,FALSE) -> 0 | AG142: 0 | AH142: =IF(ISNUMBER(VLOOKUP($A142,Rasbonus!$A$61:$AJ$295,MATCH(Ras,Rasbonus!$A$1:$AJ$1,0),FALSE)),VLOOKUP($A142,Rasbonus!$A$61:$AJ$295,MATCH(Ras,Rasbonus!$A$1:$AJ$1,0),FALSE),"0") -> 0 | AI142: ='Ny NPC'!$N$3 -> 0 | AK142: -23 | AL142: 0 | AM142: 0 | AN142: 0 | AO142: 0 | AP142: 0 | AQ142: 0 | AR142: 0 | AS142: 0 | AT142: 0 | AU142: 0 | AV142: 0 | AW142: 0 | AX142: 0 | AY142: 0 | AZ142: 0 | BA142: 0 | BB142: 0 | BC142: 0 | BD142: 0 | BE142: 0 | BF142: 0
A143: Jumping | B143: =VLOOKUP(A143,AllaSkills!$A$3:$BV$317,'Ny NPC'!$A$2+3,FALSE) -> 4 | C143: 4 | D143: 4 | E143: Gymnastic | AC143: 0 | AD143: -25 | AE143: =(ST+AG)/2 -> 7.5 | AF143: =HLOOKUP(Yrke,Levelbonus!$B$1:$CR$20,10,FALSE) -> 0 | AG143: 0 | AH143: =IF(ISNUMBER(VLOOKUP($A143,Rasbonus!$A$61:$AJ$295,MATCH(Ras,Rasbonus!$A$1:$AJ$1,0),FALSE)),VLOOKUP($A143,Rasbonus!$A$61:$AJ$295,MATCH(Ras,Rasbonus!$A$1:$AJ$1,0),FALSE),"0") -> 0 | AI143: ='Ny NPC'!$N$3 -> 0 | AK143: -18 | AL143: 0 | AM143: 0 | AN143: 0 | AO143: 0 | AP143: 0 | AQ143: 0 | AR143: 0 | AS143: 0 | AT143: 0 | AU143: 0 | AV143: 0 | AW143: 0 | AX143: 0 | AY143: 0 | AZ143: 0 | BA143: 0 | BB143: 0 | BC143: 0 | BD143: 0 | BE143: 0 | BF143: 0
A144: Pole Vaulting | B144: =VLOOKUP(A144,AllaSkills!$A$3:$BV$317,'Ny NPC'!$A$2+3,FALSE) -> 5 | C144: 5 | D144: 5 | E144: Gymnastic | AC144: 0 | AD144: -25 | AE144: =(ST+AG)/2 -> 7.5 | AF144: =HLOOKUP(Yrke,Levelbonus!$B$1:$CR$20,10,FALSE) -> 0 | AG144: 0 | AH144: =IF(ISNUMBER(VLOOKUP($A144,Rasbonus!$A$61:$AJ$295,MATCH(Ras,Rasbonus!$A$1:$AJ$1,0),FALSE)),VLOOKUP($A144,Rasbonus!$A$61:$AJ$295,MATCH(Ras,Rasbonus!$A$1:$AJ$1,0),FALSE),"0") -> 0 | AI144: ='Ny NPC'!$N$3 -> 0 | AK144: -18 | AL144: 0 | AM144: 0 | AN144: 0 | AO144: 0 | AP144: 0 | AQ144: 0 | AR144: 0 | AS144: 0 | AT144: 0 | AU144: 0 | AV144: 0 | AW144: 0 | AX144: 0 | AY144: 0 | AZ144: 0 | BA144: 0 | BB144: 0 | BC144: 0 | BD144: 0 | BE144: 0 | BF144: 0
A145: Stilt Walking | B145: =VLOOKUP(A145,AllaSkills!$A$3:$BV$317,'Ny NPC'!$A$2+3,FALSE) -> 4 | C145: 4 | D145: 4 | E145: Gymnastic | AC145: 0 | AD145: -25 | AE145: =(ST+AG)/2 -> 7.5 | AF145: =HLOOKUP(Yrke,Levelbonus!$B$1:$CR$20,10,FALSE) -> 0 | AG145: 0 | AH145: =IF(ISNUMBER(VLOOKUP($A145,Rasbonus!$A$61:$AJ$295,MATCH(Ras,Rasbonus!$A$1:$AJ$1,0),FALSE)),VLOOKUP($A145,Rasbonus!$A$61:$AJ$295,MATCH(Ras,Rasbonus!$A$1:$AJ$1,0),FALSE),"0") -> 0 | AI145: ='Ny NPC'!$N$3 -> 0 | AK145: -18 | AL145: 0 | AM145: 0 | AN145: 0 | AO145: 0 | AP145: 0 | AQ145: 0 | AR145: 0 | AS145: 0 | AT145: 0 | AU145: 0 | AV145: 0 | AW145: 0 | AX145: 0 | AY145: 0 | AZ145: 0 | BA145: 0 | BB145: 0 | BC145: 0 | BD145: 0 | BE145: 0 | BF145: 0
A146: Tightrope Walking | B146: =VLOOKUP(A146,AllaSkills!$A$3:$BV$317,'Ny NPC'!$A$2+3,FALSE) -> 3 | C146: 3 | D146: 3 | E146: Gymnastic | AC146: 0 | AD146: -25 | AE146: =(AG+SD)/2 -> 5 | AF146: =HLOOKUP(Yrke,Levelbonus!$B$1:$CR$20,10,FALSE) -> 0 | AG146: 0 | AH146: =IF(ISNUMBER(VLOOKUP($A146,Rasbonus!$A$61:$AJ$295,MATCH(Ras,Rasbonus!$A$1:$AJ$1,0),FALSE)),VLOOKUP($A146,Rasbonus!$A$61:$AJ$295,MATCH(Ras,Rasbonus!$A$1:$AJ$1,0),FALSE),"0") -> 0 | AI146: ='Ny NPC'!$N$3 -> 0 | AK146: -20 | AL146: 0 | AM146: 0 | AN146: 0 | AO146: 0 | AP146: 0 | AQ146: 0 | AR146: 0 | AS146: 0 | AT146: 0 | AU146: 0 | AV146: 0 | AW146: 0 | AX146: 0 | AY146: 0 | AZ146: 0 | BA146: 0 | BB146: 0 | BC146: 0 | BD146: 0 | BE146: 0 | BF146: 0
A147: Tumbling | B147: =VLOOKUP(A147,AllaSkills!$A$3:$BV$317,'Ny NPC'!$A$2+3,FALSE) -> 3 | C147: 3 | D147: 3 | E147: Gymnastic | AC147: 0 | AD147: -25 | AE147: =(AG+QU)/2 -> 0 | AF147: =HLOOKUP(Yrke,Levelbonus!$B$1:$CR$20,10,FALSE) -> 0 | AG147: 0 | AH147: =IF(ISNUMBER(VLOOKUP($A147,Rasbonus!$A$61:$AJ$295,MATCH(Ras,Rasbonus!$A$1:$AJ$1,0),FALSE)),VLOOKUP($A147,Rasbonus!$A$61:$AJ$295,MATCH(Ras,Rasbonus!$A$1:$AJ$1,0),FALSE),"0") -> 0 | AI147: ='Ny NPC'!$N$3 -> 0 | AK147: -25 | AL147: 0 | AM147: 0 | AN147: 0 | AO147: 0 | AP147: 0 | AQ147: 0 | AR147: 0 | AS147: 0 | AT147: 0 | AU147: 0 | AV147: 0 | AW147: 0 | AX147: 0 | AY147: 0 | AZ147: 0 | BA147: 0 | BB147: 0 | BC147: 0 | BD147: 0 | BE147: 0 | BF147: 0
A148: Linguistic | B148: =HLOOKUP(Diverse!$G$2,'2nd'!$B$1:$CR$18,11,FALSE) -> 3 | F148: =SUM(AL149:AL161) -> 0 | I148: =SUM(AM149:AM161) -> 0 | J148: =SUM(AN149:AN161) -> 0 | K148: 0 | L148: 0 | M148: 0 | N148: 0 | O148: 0 | P148: 0 | Q148: 0 | R148: 0 | S148: 0 | T148: 0 | U148: 0 | V148: 0 | W148: 0 | X148: 0 | Y148: 0 | Z148: 0 | AA148: 0 | AB148: 0 | AC148: Rank | AD148: Skill | AE148: Stat | AG148: Lvl | AH148: Race | AI148: Armor | AJ148: Item | AK148: Total
A149: Language | B149: =VLOOKUP(A149,AllaSkills!$A$3:$BV$317,'Ny NPC'!$A$2+3,FALSE) -> 1/* | C149: 1 | D149: 1 | E149: Linguistic | AC149: 0 | AD149: -25 | AF149: =HLOOKUP(Yrke,Levelbonus!$B$1:$CR$20,11,FALSE) -> 0 | AG149: 0 | AH149: =IF(ISNUMBER(VLOOKUP($A149,Rasbonus!$A$61:$AJ$295,MATCH(Ras,Rasbonus!$A$1:$AJ$1,0),FALSE)),VLOOKUP($A149,Rasbonus!$A$61:$AJ$295,MATCH(Ras,Rasbonus!$A$1:$AJ$1,0),FALSE),"0") -> 0 | AK149: -25 | AL149: =IF(F149>2,"99",IF(F149<1,0,IF(F149=1,$C149+$C149-$C149,IF(F149=2,$C149+$D149)))) -> 0 | AM149: =IF(I149>2,"99",IF(I149<1,0,IF(I149=1,$C149+$C149-$C149,IF(I149=2,$C149+$D149)))) -> 0 | AN149: 0 | AO149: 0 | AP149: 0 | AQ149: 0 | AR149: 0 | AS149: 0 | AT149: 0 | AU149: 0 | AV149: 0 | AW149: 0 | AX149: 0 | AY149: 0 | AZ149: 0 | BA149: 0 | BB149: 0 | BC149: 0 | BD149: 0 | BE149: 0 | BF149: 0
AL150: 0 | AM150: 0 | AN150: 0 | AO150: 0 | AP150: 0 | AQ150: 0 | AR150: 0 | AS150: 0 | AT150: 0 | AU150: 0 | AV150: 0 | AW150: 0 | AX150: 0 | AY150: 0 | AZ150: 0 | BA150: 0 | BB150: 0 | BC150: 0 | BD150: 0 | BE150: 0 | BF150: 0
A151: Lip Reading | B151: =VLOOKUP(A151,AllaSkills!$A$3:$BV$317,'Ny NPC'!$A$2+3,FALSE) -> 3/5 | C151: 3 | D151: 5 | E151: Linguistic | AC151: 0 | AD151: -25 | AE151: =(IN+RE)/2 -> 5 | AF151: =HLOOKUP(Yrke,Levelbonus!$B$1:$CR$20,11,FALSE) -> 0 | AG151: 0 | AH151: =IF(ISNUMBER(VLOOKUP($A151,Rasbonus!$A$61:$AJ$295,MATCH(Ras,Rasbonus!$A$1:$AJ$1,0),FALSE)),VLOOKUP($A151,Rasbonus!$A$61:$AJ$295,MATCH(Ras,Rasbonus!$A$1:$AJ$1,0),FALSE),"0") -> 0 | AK151: -20 | AL151: 0 | AM151: 0 | AN151: 0 | AO151: 0 | AP151: 0 | AQ151: 0 | AR151: 0 | AS151: 0 | AT151: 0 | AU151: 0 | AV151: 0 | AW151: 0 | AX151: 0 | AY151: 0 | AZ151: 0 | BA151: 0 | BB151: 0 | BC151: 0 | BD151: 0 | BE151: 0 | BF151: 0
A152: Mimicry | B152: =VLOOKUP(A152,AllaSkills!$A$3:$BV$317,'Ny NPC'!$A$2+3,FALSE) -> 2/6 | C152: 2 | D152: 6 | E152: Linguistic | AC152: 0 | AD152: -25 | AE152: =(IN+SD)/2 -> 7.5 | AF152: =HLOOKUP(Yrke,Levelbonus!$B$1:$CR$20,11,FALSE) -> 0 | AG152: 0 | AH152: =IF(ISNUMBER(VLOOKUP($A152,Rasbonus!$A$61:$AJ$295,MATCH(Ras,Rasbonus!$A$1:$AJ$1,0),FALSE)),VLOOKUP($A152,Rasbonus!$A$61:$AJ$295,MATCH(Ras,Rasbonus!$A$1:$AJ$1,0),FALSE),"0") -> 0 | AK152: -18 | AL152: 0 | AM152: 0 | AN152: 0 | AO152: 0 | AP152: 0 | AQ152: 0 | AR152: 0 | AS152: 0 | AT152: 0 | AU152: 0 | AV152: 0 | AW152: 0 | AX152: 0 | AY152: 0 | AZ152: 0 | BA152: 0 | BB152: 0 | BC152: 0 | BD152: 0 | BE152: 0 | BF152: 0
A153: Music | B153: =VLOOKUP(A153,AllaSkills!$A$3:$BV$317,'Ny NPC'!$A$2+3,FALSE) -> 2/6 | C153: 2 | D153: 6 | E153: Linguistic | AC153: 0 | AD153: -25 | AE153: =(AG+EM)/2 -> 0 | AF153: =HLOOKUP(Yrke,Levelbonus!$B$1:$CR$20,11,FALSE) -> 0 | AG153: 0 | AH153: =IF(ISNUMBER(VLOOKUP($A153,Rasbonus!$A$61:$AJ$295,MATCH(Ras,Rasbonus!$A$1:$AJ$1,0),FALSE)),VLOOKUP($A153,Rasbonus!$A$61:$AJ$295,MATCH(Ras,Rasbonus!$A$1:$AJ$1,0),FALSE),"0") -> 0 | AK153: -25 | AL153: 0 | AM153: 0 | AN153: 0 | AO153: 0 | AP153: 0 | AQ153: 0 | AR153: 0 | AS153: 0 | AT153: 0 | AU153: 0 | AV153: 0 | AW153: 0 | AX153: 0 | AY153: 0 | AZ153: 0 | BA153: 0 | BB153: 0 | BC153: 0 | BD153: 0 | BE153: 0 | BF153: 0
A154: Poetic Improvisation | B154: =VLOOKUP(A154,AllaSkills!$A$3:$BV$317,'Ny NPC'!$A$2+3,FALSE) -> 2/6 | C154: 2 | D154: 6 | E154: Linguistic | AC154: 0 | AD154: -25 | AE154: =(IN+RE)/2 -> 5 | AF154: =HLOOKUP(Yrke,Levelbonus!$B$1:$CR$20,11,FALSE) -> 0 | AG154: 0 | AH154: =IF(ISNUMBER(VLOOKUP($A154,Rasbonus!$A$61:$AJ$295,MATCH(Ras,Rasbonus!$A$1:$AJ$1,0),FALSE)),VLOOKUP($A154,Rasbonus!$A$61:$AJ$295,MATCH(Ras,Rasbonus!$A$1:$AJ$1,0),FALSE),"0") -> 0 | AK154: -20 | AL154: 0 | AM154: 0 | AN154: 0 | AO154: 0 | AP154: 0 | AQ154: 0 | AR154: 0 | AS154: 0 | AT154: 0 | AU154: 0 | AV154: 0 | AW154: 0 | AX154: 0 | AY154: 0 | AZ154: 0 | BA154: 0 | BB154: 0 | BC154: 0 | BD154: 0 | BE154: 0 | BF154: 0
A155: Propaganda | B155: =VLOOKUP(A155,AllaSkills!$A$3:$BV$317,'Ny NPC'!$A$2+3,FALSE) -> 3/5 | C155: 3 | D155: 5 | E155: Linguistic | AC155: 0 | AD155: -25 | AE155: =(IN+EM)/2 -> 2.5 | AF155: =HLOOKUP(Yrke,Levelbonus!$B$1:$CR$20,11,FALSE) -> 0 | AG155: 0 | AH155: =IF(ISNUMBER(VLOOKUP($A155,Rasbonus!$A$61:$AJ$295,MATCH(Ras,Rasbonus!$A$1:$AJ$1,0),FALSE)),VLOOKUP($A155,Rasbonus!$A$61:$AJ$295,MATCH(Ras,Rasbonus!$A$1:$AJ$1,0),FALSE),"0") -> 0 | AK155: -23 | AL155: 0 | AM155: 0 | AN155: 0 | AO155: 0 | AP155: 0 | AQ155: 0 | AR155: 0 | AS155: 0 | AT155: 0 | AU155: 0 | AV155: 0 | AW155: 0 | AX155: 0 | AY155: 0 | AZ155: 0 | BA155: 0 | BB155: 0 | BC155: 0 | BD155: 0 | BE155: 0 | BF155: 0
A156: Public Speaking | B156: =VLOOKUP(A156,AllaSkills!$A$3:$BV$317,'Ny NPC'!$A$2+3,FALSE) -> 3/5 | C156: 3 | D156: 5 | E156: Linguistic | AC156: 0 | AD156: -25 | AE156: =AVERAGE(EM,PR) -> 0 | AF156: =HLOOKUP(Yrke,Levelbonus!$B$1:$CR$20,11,FALSE) -> 0 | AG156: 0 | AH156: =IF(ISNUMBER(VLOOKUP($A156,Rasbonus!$A$61:$AJ$295,MATCH(Ras,Rasbonus!$A$1:$AJ$1,0),FALSE)),VLOOKUP($A156,Rasbonus!$A$61:$AJ$295,MATCH(Ras,Rasbonus!$A$1:$AJ$1,0),FALSE),"0") -> 0 | AK156: -25 | AL156: 0 | AM156: 0 | AN156: 0 | AO156: 0 | AP156: 0 | AQ156: 0 | AR156: 0 | AS156: 0 | AT156: 0 | AU156: 0 | AV156: 0 | AW156: 0 | AX156: 0 | AY156: 0 | AZ156: 0 | BA156: 0 | BB156: 0 | BC156: 0 | BD156: 0 | BE156: 0 | BF156: 0
A157: Signaling | B157: =VLOOKUP(A157,AllaSkills!$A$3:$BV$317,'Ny NPC'!$A$2+3,FALSE) -> 1/5 | C157: 1 | D157: 5 | E157: Linguistic | AC157: 0 | AD157: -25 | AE157: =(RE+SD)/2 -> 7.5 | AF157: =HLOOKUP(Yrke,Levelbonus!$B$1:$CR$20,11,FALSE) -> 0 | AG157: 0 | AH157: =IF(ISNUMBER(VLOOKUP($A157,Rasbonus!$A$61:$AJ$295,MATCH(Ras,Rasbonus!$A$1:$AJ$1,0),FALSE)),VLOOKUP($A157,Rasbonus!$A$61:$AJ$295,MATCH(Ras,Rasbonus!$A$1:$AJ$1,0),FALSE),"0") -> 0 | AK157: -18 | AL157: 0 | AM157: 0 | AN157: 0 | AO157: 0 | AP157: 0 | AQ157: 0 | AR157: 0 | AS157: 0 | AT157: 0 | AU157: 0 | AV157: 0 | AW157: 0 | AX157: 0 | AY157: 0 | AZ157: 0 | BA157: 0 | BB157: 0 | BC157: 0 | BD157: 0 | BE157: 0 | BF157: 0
A158: Singing | B158: =VLOOKUP(A158,AllaSkills!$A$3:$BV$317,'Ny NPC'!$A$2+3,FALSE) -> 2/6 | C158: 2 | D158: 6 | E158: Linguistic | AC158: 0 | AD158: -25 | AE158: =(PR+IN)/2 -> 2.5 | AF158: =HLOOKUP(Yrke,Levelbonus!$B$1:$CR$20,11,FALSE) -> 0 | AG158: 0 | AH158: =IF(ISNUMBER(VLOOKUP($A158,Rasbonus!$A$61:$AJ$295,MATCH(Ras,Rasbonus!$A$1:$AJ$1,0),FALSE)),VLOOKUP($A158,Rasbonus!$A$61:$AJ$295,MATCH(Ras,Rasbonus!$A$1:$AJ$1,0),FALSE),"0") -> 0 | AK158: -23 | AL158: 0 | AM158: 0 | AN158: 0 | AO158: 0 | AP158: 0 | AQ158: 0 | AR158: 0 | AS158: 0 | AT158: 0 | AU158: 0 | AV158: 0 | AW158: 0 | AX158: 0 | AY158: 0 | AZ158: 0 | BA158: 0 | BB158: 0 | BC158: 0 | BD158: 0 | BE158: 0 | BF158: 0
A159: Tale Telling | B159: =VLOOKUP(A159,AllaSkills!$A$3:$BV$317,'Ny NPC'!$A$2+3,FALSE) -> 2/6 | C159: 2 | D159: 6 | E159: Linguistic | AC159: 0 | AD159: -25 | AE159: =PR -> 0 | AF159: =HLOOKUP(Yrke,Levelbonus!$B$1:$CR$20,11,FALSE) -> 0 | AG159: 0 | AH159: =IF(ISNUMBER(VLOOKUP($A159,Rasbonus!$A$61:$AJ$295,MATCH(Ras,Rasbonus!$A$1:$AJ$1,0),FALSE)),VLOOKUP($A159,Rasbonus!$A$61:$AJ$295,MATCH(Ras,Rasbonus!$A$1:$AJ$1,0),FALSE),"0") -> 0 | AK159: -25 | AL159: 0 | AM159: 0 | AN159: 0 | AO159: 0 | AP159: 0 | AQ159: 0 | AR159: 0 | AS159: 0 | AT159: 0 | AU159: 0 | AV159: 0 | AW159: 0 | AX159: 0 | AY159: 0 | AZ159: 0 | BA159: 0 | BB159: 0 | BC159: 0 | BD159: 0 | BE159: 0 | BF159: 0
A160: Trading | B160: =VLOOKUP(A160,AllaSkills!$A$3:$BV$317,'Ny NPC'!$A$2+3,FALSE) -> 3/5 | C160: 3 | D160: 5 | E160: Linguistic | AC160: 0 | AD160: -25 | AE160: =(RE) -> 5 | AF160: =HLOOKUP(Yrke,Levelbonus!$B$1:$CR$20,11,FALSE) -> 0 | AG160: 0 | AH160: =IF(ISNUMBER(VLOOKUP($A160,Rasbonus!$A$61:$AJ$295,MATCH(Ras,Rasbonus!$A$1:$AJ$1,0),FALSE)),VLOOKUP($A160,Rasbonus!$A$61:$AJ$295,MATCH(Ras,Rasbonus!$A$1:$AJ$1,0),FALSE),"0") -> 0 | AK160: -20 | AL160: 0 | AM160: 0 | AN160: 0 | AO160: 0 | AP160: 0 | AQ160: 0 | AR160: 0 | AS160: 0 | AT160: 0 | AU160: 0 | AV160: 0 | AW160: 0 | AX160: 0 | AY160: 0 | AZ160: 0 | BA160: 0 | BB160: 0 | BC160: 0 | BD160: 0 | BE160: 0 | BF160: 0
A161: Ventriloquism | B161: =VLOOKUP(A161,AllaSkills!$A$3:$BV$317,'Ny NPC'!$A$2+3,FALSE) -> 3/6 | C161: 3 | D161: 6 | E161: Linguistic | AC161: 0 | AD161: -25 | AE161: =(SD+IN)/2 -> 7.5 | AF161: =HLOOKUP(Yrke,Levelbonus!$B$1:$CR$20,11,FALSE) -> 0 | AG161: 0 | AH161: =IF(ISNUMBER(VLOOKUP($A161,Rasbonus!$A$61:$AJ$295,MATCH(Ras,Rasbonus!$A$1:$AJ$1,0),FALSE)),VLOOKUP($A161,Rasbonus!$A$61:$AJ$295,MATCH(Ras,Rasbonus!$A$1:$AJ$1,0),FALSE),"0") -> 0 | AK161: -18 | AL161: 0 | AM161: 0 | AN161: 0 | AO161: 0 | AP161: 0 | AQ161: 0 | AR161: 0 | AS161: 0 | AT161: 0 | AU161: 0 | AV161: 0 | AW161: 0 | AX161: 0 | AY161: 0 | AZ161: 0 | BA161: 0 | BB161: 0 | BC161: 0 | BD161: 0 | BE161: 0 | BF161: 0
A162: Magical | B162: =HLOOKUP(Diverse!$G$2,'2nd'!$B$1:$CR$18,12,FALSE) -> 26 | F162: =SUM(AL163:AL181) -> 0 | I162: =SUM(AM163:AM181) -> 0 | J162: =SUM(AN163:AN181) -> 0 | K162: 0 | L162: 0 | M162: 0 | N162: 0 | O162: 0 | P162: 0 | Q162: 0 | R162: 0 | S162: 0 | T162: 0 | U162: 0 | V162: 0 | W162: 0 | X162: 0 | Y162: 0 | Z162: 0 | AA162: 0 | AB162: 0 | AC162: Rank | AD162: Skill | AE162: Stat | AG162: Lvl | AH162: Race | AI162: Armor | AJ162: Item | AK162: Total
A163: Circle Lore | B163: =VLOOKUP(A163,AllaSkills!$A$3:$BV$317,'Ny NPC'!$A$2+3,FALSE) -> 2/4 | C163: 2 | D163: 4 | E163: Magical | AC163: 0 | AD163: -25 | AE163: =RE -> 5 | AF163: =HLOOKUP(Yrke,Levelbonus!$B$1:$CR$20,12,FALSE) -> 3 | AG163: 9 | AH163: =IF(ISNUMBER(VLOOKUP($A163,Rasbonus!$A$61:$AJ$295,MATCH(Ras,Rasbonus!$A$1:$AJ$1,0),FALSE)),VLOOKUP($A163,Rasbonus!$A$61:$AJ$295,MATCH(Ras,Rasbonus!$A$1:$AJ$1,0),FALSE),"0") -> 0 | AK163: -11 | AL163: =IF(F163>2,"99",IF(F163<1,0,IF(F163=1,$C163+$C163-$C163,IF(F163=2,$C163+$D163)))) -> 0 | AM163: =IF(I163>2,"99",IF(I163<1,0,IF(I163=1,$C163+$C163-$C163,IF(I163=2,$C163+$D163)))) -> 0 | AN163: 0 | AO163: 0 | AP163: 0 | AQ163: 0 | AR163: 0 | AS163: 0 | AT163: 0 | AU163: 0 | AV163: 0 | AW163: 0 | AX163: 0 | AY163: 0 | AZ163: 0 | BA163: 0 | BB163: 0 | BC163: 0 | BD163: 0 | BE163: 0 | BF163: 0
AL164: 0 | AM164: 0 | AN164: 0 | AO164: 0 | AP164: 0 | AQ164: 0 | AR164: 0 | AS164: 0 | AT164: 0 | AU164: 0 | AV164: 0 | AW164: 0 | AX164: 0 | AY164: 0 | AZ164: 0 | BA164: 0 | BB164: 0 | BC164: 0 | BD164: 0 | BE164: 0 | BF164: 0
A165: Divination | B165: =VLOOKUP(A165,AllaSkills!$A$3:$BV$317,'Ny NPC'!$A$2+3,FALSE) -> 2/4 | C165: 2 | D165: 4 | E165: Magical | AC165: 0 | AD165: -25 | AE165: =(IN+EM)/2 -> 2.5 | AF165: =HLOOKUP(Yrke,Levelbonus!$B$1:$CR$20,12,FALSE) -> 3 | AG165: 9 | AH165: =IF(ISNUMBER(VLOOKUP($A165,Rasbonus!$A$61:$AJ$295,MATCH(Ras,Rasbonus!$A$1:$AJ$1,0),FALSE)),VLOOKUP($A165,Rasbonus!$A$61:$AJ$295,MATCH(Ras,Rasbonus!$A$1:$AJ$1,0),FALSE),"0") -> 0 | AK165: =ROUND(AD165+AE165+AG165+AH165+AI165+AJ165,0) -> -14 | AL165: 0 | AM165: 0 | AN165: 0 | AO165: 0 | AP165: 0 | AQ165: 0 | AR165: 0 | AS165: 0 | AT165: 0 | AU165: 0 | AV165: 0 | AW165: 0 | AX165: 0 | AY165: 0 | AZ165: 0 | BA165: 0 | BB165: 0 | BC165: 0 | BD165: 0 | BE165: 0 | BF165: 0
A166: Magical Rituals | B166: =VLOOKUP(A166,AllaSkills!$A$3:$BV$317,'Ny NPC'!$A$2+3,FALSE) -> 1/4 | C166: 1 | D166: 4 | E166: Magical | AC166: 0 | AD166: -25 | AE166: =(IN+RE)/2 -> 5 | AF166: =HLOOKUP(Yrke,Levelbonus!$B$1:$CR$20,12,FALSE) -> 3 | AG166: 9 | AH166: =IF(ISNUMBER(VLOOKUP($A166,Rasbonus!$A$61:$AJ$295,MATCH(Ras,Rasbonus!$A$1:$AJ$1,0),FALSE)),VLOOKUP($A166,Rasbonus!$A$61:$AJ$295,MATCH(Ras,Rasbonus!$A$1:$AJ$1,0),FALSE),"0") -> 0 | AK166: -11 | AL166: 0 | AM166: 0 | AN166: 0 | AO166: 0 | AP166: 0 | AQ166: 0 | AR166: 0 | AS166: 0 | AT166: 0 | AU166: 0 | AV166: 0 | AW166: 0 | AX166: 0 | AY166: 0 | AZ166: 0 | BA166: 0 | BB166: 0 | BC166: 0 | BD166: 0 | BE166: 0 | BF166: 0
A167: Magnitude | B167: =VLOOKUP(A167,AllaSkills!$A$3:$BV$317,'Ny NPC'!$A$2+3,FALSE) -> 3/8 | C167: 3 | D167: =IF(RIGHT(B167,1)="*",LEFT(B167,1),IF(LEN(B167)=3,RIGHT(B167,1),IF(LEN(B167)<3,B167,RIGHT(B167,2)))) -> 8 | E167: Magical | AC167: =SUM(F167:AB167) -> 0 | AD167: -25 | AE167: =(EM+IN)/2 -> 2.5 | AF167: =HLOOKUP(Yrke,Levelbonus!$B$1:$CR$20,12,FALSE) -> 3 | AG167: 9 | AH167: =IF(ISNUMBER(VLOOKUP($A167,Rasbonus!$A$61:$AJ$295,MATCH(Ras,Rasbonus!$A$1:$AJ$1,0),FALSE)),VLOOKUP($A167,Rasbonus!$A$61:$AJ$295,MATCH(Ras,Rasbonus!$A$1:$AJ$1,0),FALSE),"0") -> 0 | AK167: -14 | AL167: 0 | AM167: 0 | AN167: 0 | AO167: 0 | AP167: 0 | AQ167: 0 | AR167: 0 | AS167: 0 | AT167: 0 | AU167: 0 | AV167: 0 | AW167: 0 | AX167: 0 | AY167: 0 | AZ167: 0 | BA167: 0 | BB167: 0 | BC167: 0 | BD167: 0 | BE167: 0 | BF167: 0
A168: Overcasting | B168: =VLOOKUP(A168,AllaSkills!$A$3:$BV$317,'Ny NPC'!$A$2+3,FALSE) -> 2/5 | C168: 2 | D168: =IF(RIGHT(B168,1)="*",LEFT(B168,1),IF(LEN(B168)=3,RIGHT(B168,1),IF(LEN(B168)<3,B168,RIGHT(B168,2)))) -> 5 | E168: Magical | AC168: =SUM(F168:AB168) -> 0 | AD168: -25 | AE168: =IF('Ny NPC'!U45=1,IN,IF('Ny NPC'!U45=2,EM,IF('Ny NPC'!U45=3,PR,IF('Ny NPC'!U45=4,(EM+IN)*0.5,IF('Ny NPC'!U45=5,(PR+IN)*0.5,IF('Ny NPC'!U45=6,(EM+PR)*0.5,(EM+IN+PR)*0.33)))))) -> 5 | AF168: =HLOOKUP(Yrke,Levelbonus!$B$1:$CR$20,12,FALSE) -> 3 | AG168: 9 | AH168: =IF(ISNUMBER(VLOOKUP($A168,Rasbonus!$A$61:$AJ$295,MATCH(Ras,Rasbonus!$A$1:$AJ$1,0),FALSE)),VLOOKUP($A168,Rasbonus!$A$61:$AJ$295,MATCH(Ras,Rasbonus!$A$1:$AJ$1,0),FALSE),"0") -> 0 | AK168: -11 | AL168: 0 | AM168: 0 | AN168: 0 | AO168: 0 | AP168: 0 | AQ168: 0 | AR168: 0 | AS168: 0 | AT168: 0 | AU168: 0 | AV168: 0 | AW168: 0 | AX168: 0 | AY168: 0 | AZ168: 0 | BA168: 0 | BB168: 0 | BC168: 0 | BD168: 0 | BE168: 0 | BF168: 0
A169: Power Manipulation | B169: =VLOOKUP(A169,AllaSkills!$A$3:$BV$317,'Ny NPC'!$A$2+3,FALSE) -> 3/6 | C169: 3 | D169: 6 | E169: Magical | AC169: 0 | AL169: =IF(F169>2,"99",IF(F169<1,0,IF(F169=1,$C169+$C169-$C169,IF(F169=2,$C169+$D169)))) -> 0 | AM169: =IF(I169>2,"99",IF(I169<1,0,IF(I169=1,$C169+$C169-$C169,IF(I169=2,$C169+$D169)))) -> 0 | AN169: =IF(J169>2,"99",IF(J169<1,0,IF(J169=1,$C169+$C169-$C169,IF(J169=2,$C169+$D169)))) -> 0 | AO169: =IF(K169>2,"99",IF(K169<1,0,IF(K169=1,$C169+$C169-$C169,IF(K169=2,$C169+$D169)))) -> 0 | AP169: =IF(L169>2,"99",IF(L169<1,0,IF(L169=1,$C169+$C169-$C169,IF(L169=2,$C169+$D169)))) -> 0 | AQ169: =IF(M169>2,"99",IF(M169<1,0,IF(M169=1,$C169+$C169-$C169,IF(M169=2,$C169+$D169)))) -> 0 | AR169: =IF(N169>2,"99",IF(N169<1,0,IF(N169=1,$C169+$C169-$C169,IF(N169=2,$C169+$D169)))) -> 0 | AS169: =IF(O169>2,"99",IF(O169<1,0,IF(O169=1,$C169+$C169-$C169,IF(O169=2,$C169+$D169)))) -> 0 | AT169: =IF(P169>2,"99",IF(P169<1,0,IF(P169=1,$C169+$C169-$C169,IF(P169=2,$C169+$D169)))) -> 0 | AU169: =IF(Q169>2,"99",IF(Q169<1,0,IF(Q169=1,$C169+$C169-$C169,IF(Q169=2,$C169+$D169)))) -> 0 | AV169: =IF(R169>2,"99",IF(R169<1,0,IF(R169=1,$C169+$C169-$C169,IF(R169=2,$C169+$D169)))) -> 0 | AW169: =IF(S169>2,"99",IF(S169<1,0,IF(S169=1,$C169+$C169-$C169,IF(S169=2,$C169+$D169)))) -> 0 | AX169: =IF(T169>2,"99",IF(T169<1,0,IF(T169=1,$C169+$C169-$C169,IF(T169=2,$C169+$D169)))) -> 0 | AY169: =IF(U169>2,"99",IF(U169<1,0,IF(U169=1,$C169+$C169-$C169,IF(U169=2,$C169+$D169)))) -> 0 | AZ169: =IF(V169>2,"99",IF(V169<1,0,IF(V169=1,$C169+$C169-$C169,IF(V169=2,$C169+$D169)))) -> 0 | BA169: =IF(W169>2,"99",IF(W169<1,0,IF(W169=1,$C169+$C169-$C169,IF(W169=2,$C169+$D169)))) -> 0 | BB169: =IF(X169>2,"99",IF(X169<1,0,IF(X169=1,$C169+$C169-$C169,IF(X169=2,$C169+$D169)))) -> 0 | BC169: =IF(Y169>2,"99",IF(Y169<1,0,IF(Y169=1,$C169+$C169-$C169,IF(Y169=2,$C169+$D169)))) -> 0 | BD169: =IF(Z169>2,"99",IF(Z169<1,0,IF(Z169=1,$C169+$C169-$C169,IF(Z169=2,$C169+$D169)))) -> 0 | BE169: =IF(AA169>2,"99",IF(AA169<1,0,IF(AA169=1,$C169+$C169-$C169,IF(AA169=2,$C169+$D169)))) -> 0 | BF169: =IF(AB169>2,"99",IF(AB169<1,0,IF(AB169=1,$C169+$C169-$C169,IF(AB169=2,$C169+$D169)))) -> 0
A170: Power Perception | B170: =VLOOKUP(A170,AllaSkills!$A$3:$BV$317,'Ny NPC'!$A$2+3,FALSE) -> 1/3 | C170: 1 | D170: 3 | E170: Magical | AC170: 0 | AD170: -25 | AE170: =EM -> 0 | AF170: =HLOOKUP(Yrke,Levelbonus!$B$1:$CR$20,12,FALSE) -> 3 | AG170: 9 | AH170: =IF(ISNUMBER(VLOOKUP($A170,Rasbonus!$A$61:$AJ$295,MATCH(Ras,Rasbonus!$A$1:$AJ$1,0),FALSE)),VLOOKUP($A170,Rasbonus!$A$61:$AJ$295,MATCH(Ras,Rasbonus!$A$1:$AJ$1,0),FALSE),"0") -> 0 | AK170: -16 | AL170: 0 | AM170: 0 | AN170: 0 | AO170: 0 | AP170: 0 | AQ170: 0 | AR170: 0 | AS170: 0 | AT170: 0 | AU170: 0 | AV170: 0 | AW170: 0 | AX170: 0 | AY170: 0 | AZ170: 0 | BA170: 0 | BB170: 0 | BC170: 0 | BD170: 0 | BE170: 0 | BF170: 0
A171: PP Development | B171: =VLOOKUP(A171,AllaSkills!$A$3:$BV$317,'Ny NPC'!$A$2+3,FALSE) -> 2/5 | C171: 2 | D171: 5 | E171: Magical | AC171: 0 | AD171: =(AC171)*3 -> 0 | AE171: =IF('Ny NPC'!U45=1,IN/2,IF('Ny NPC'!U45=2,EM/2,IF('Ny NPC'!U45=3,PR/2,IF('Ny NPC'!U45=4,(EM+IN)*0.25,IF('Ny NPC'!U45=5,(PR+IN)*0.25,IF('Ny NPC'!U45=6,(EM+PR)*0.25,(EM+IN+PR)/6)))))) -> 2.5 | AF171: =HLOOKUP(Yrke,Levelbonus!$B$1:$CR$20,18,FALSE) -> 2 | AG171: 6 | AH171: =IF(ISNUMBER(VLOOKUP($A171,Rasbonus!$A$61:$AJ$295,MATCH(Ras,Rasbonus!$A$1:$AJ$1,0),FALSE)),VLOOKUP($A171,Rasbonus!$A$61:$AJ$295,MATCH(Ras,Rasbonus!$A$1:$AJ$1,0),FALSE),"0") -> 0 | AK171: 9 | AL171: 0 | AM171: 0 | AN171: 0 | AO171: 0 | AP171: 0 | AQ171: 0 | AR171: 0 | AS171: 0 | AT171: 0 | AU171: 0 | AV171: 0 | AW171: 0 | AX171: 0 | AY171: 0 | AZ171: 0 | BA171: 0 | BB171: 0 | BC171: 0 | BD171: 0 | BE171: 0 | BF171: 0
A172: Power Projection | B172: =VLOOKUP(A172,AllaSkills!$A$3:$BV$317,'Ny NPC'!$A$2+3,FALSE) -> 1/4 | C172: 1 | D172: 4 | E172: Magical | AC172: 0 | AD172: -25 | AE172: =EM -> 0 | AF172: =HLOOKUP(Yrke,Levelbonus!$B$1:$CR$20,12,FALSE) -> 3 | AG172: 9 | AH172: =IF(ISNUMBER(VLOOKUP($A172,Rasbonus!$A$61:$AJ$295,MATCH(Ras,Rasbonus!$A$1:$AJ$1,0),FALSE)),VLOOKUP($A172,Rasbonus!$A$61:$AJ$295,MATCH(Ras,Rasbonus!$A$1:$AJ$1,0),FALSE),"0") -> 0 | AK172: -16 | AL172: 0 | AM172: 0 | AN172: 0 | AO172: 0 | AP172: 0 | AQ172: 0 | AR172: 0 | AS172: 0 | AT172: 0 | AU172: 0 | AV172: 0 | AW172: 0 | AX172: 0 | AY172: 0 | AZ172: 0 | BA172: 0 | BB172: 0 | BC172: 0 | BD172: 0 | BE172: 0 | BF172: 0
A173: Rejuvenation | B173: =VLOOKUP(A173,AllaSkills!$A$3:$BV$317,'Ny NPC'!$A$2+3,FALSE) -> 2/5 | C173: 2 | D173: =IF(RIGHT(B173,1)="*",LEFT(B173,1),IF(LEN(B173)=3,RIGHT(B173,1),IF(LEN(B173)<3,B173,RIGHT(B173,2)))) -> 5 | E173: Magical | AC173: =SUM(F173:AB173) -> 0 | AD173: -25 | AE173: =SD -> 10 | AF173: =HLOOKUP(Yrke,Levelbonus!$B$1:$CR$20,12,FALSE) -> 3 | AG173: 9 | AH173: =IF(ISNUMBER(VLOOKUP($A173,Rasbonus!$A$61:$AJ$295,MATCH(Ras,Rasbonus!$A$1:$AJ$1,0),FALSE)),VLOOKUP($A173,Rasbonus!$A$61:$AJ$295,MATCH(Ras,Rasbonus!$A$1:$AJ$1,0),FALSE),"0") -> 0 | AK173: -6 | AL173: 0 | AM173: 0 | AN173: 0 | AO173: 0 | AP173: 0 | AQ173: 0 | AR173: 0 | AS173: 0 | AT173: 0 | AU173: 0 | AV173: 0 | AW173: 0 | AX173: 0 | AY173: 0 | AZ173: 0 | BA173: 0 | BB173: 0 | BC173: 0 | BD173: 0 | BE173: 0 | BF173: 0
A174: Scrying | B174: =VLOOKUP(A174,AllaSkills!$A$3:$BV$317,'Ny NPC'!$A$2+3,FALSE) -> 2/4 | C174: 2 | D174: =IF(RIGHT(B174,1)="*",LEFT(B174,1),IF(LEN(B174)=3,RIGHT(B174,1),IF(LEN(B174)<3,B174,RIGHT(B174,2)))) -> 4 | E174: Magical | AC174: =SUM(F174:AB174) -> 0 | AD174: -25 | AE174: =(IN+PR)/2 -> 2.5 | AF174: =HLOOKUP(Yrke,Levelbonus!$B$1:$CR$20,12,FALSE) -> 3 | AG174: 9 | AH174: =IF(ISNUMBER(VLOOKUP($A174,Rasbonus!$A$61:$AJ$295,MATCH(Ras,Rasbonus!$A$1:$AJ$1,0),FALSE)),VLOOKUP($A174,Rasbonus!$A$61:$AJ$295,MATCH(Ras,Rasbonus!$A$1:$AJ$1,0),FALSE),"0") -> 0 | AK174: -14 | AL174: 0 | AM174: 0 | AN174: 0 | AO174: 0 | AP174: 0 | AQ174: 0 | AR174: 0 | AS174: 0 | AT174: 0 | AU174: 0 | AV174: 0 | AW174: 0 | AX174: 0 | AY174: 0 | AZ174: 0 | BA174: 0 | BB174: 0 | BC174: 0 | BD174: 0 | BE174: 0 | BF174: 0
A175: Spell Artistery | B175: =VLOOKUP(A175,AllaSkills!$A$3:$BV$317,'Ny NPC'!$A$2+3,FALSE) -> 1/3 | C175: 1 | D175: 3 | E175: Magical | AC175: 0 | AD175: -25 | AE175: =(EM+IN)/2 -> 2.5 | AF175: =HLOOKUP(Yrke,Levelbonus!$B$1:$CR$20,12,FALSE) -> 3 | AG175: 9 | AH175: =IF(ISNUMBER(VLOOKUP($A175,Rasbonus!$A$61:$AJ$295,MATCH(Ras,Rasbonus!$A$1:$AJ$1,0),FALSE)),VLOOKUP($A175,Rasbonus!$A$61:$AJ$295,MATCH(Ras,Rasbonus!$A$1:$AJ$1,0),FALSE),"0") -> 0 | AK175: -14 | AL175: 0 | AM175: 0 | AN175: 0 | AO175: 0 | AP175: 0 | AQ175: 0 | AR175: 0 | AS175: 0 | AT175: 0 | AU175: 0 | AV175: 0 | AW175: 0 | AX175: 0 | AY175: 0 | AZ175: 0 | BA175: 0 | BB175: 0 | BC175: 0 | BD175: 0 | BE175: 0 | BF175: 0
A176: Spell Mastery | B176: =VLOOKUP(A176,AllaSkills!$A$3:$BV$317,'Ny NPC'!$A$2+3,FALSE) -> 2/7 | C176: 2 | D176: 7 | E176: Magical | AC176: 0 | AD176: -25 | AE176: =(EM+PR)/2 -> 0 | AF176: =HLOOKUP(Yrke,Levelbonus!$B$1:$CR$20,12,FALSE) -> 3 | AG176: =AF176*Level -> 9 | AH176: =IF(ISNUMBER(VLOOKUP($A176,Rasbonus!$A$61:$AJ$295,MATCH(Ras,Rasbonus!$A$1:$AJ$1,0),FALSE)),VLOOKUP($A176,Rasbonus!$A$61:$AJ$295,MATCH(Ras,Rasbonus!$A$1:$AJ$1,0),FALSE),"0") -> 0 | AK176: -16 | AL176: 0 | AM176: 0 | AN176: 0 | AO176: 0 | AP176: 0 | AQ176: 0 | AR176: 0 | AS176: 0 | AT176: 0 | AU176: 0 | AV176: 0 | AW176: 0 | AX176: 0 | AY176: 0 | AZ176: 0 | BA176: 0 | BB176: 0 | BC176: 0 | BD176: 0 | BE176: 0 | BF176: 0
A177: Summoning | B177: =VLOOKUP(A177,AllaSkills!$A$3:$BV$317,'Ny NPC'!$A$2+3,FALSE) -> 2/4 | C177: =IF(LEN(B177)=3,LEFT(B177,1),IF(LEN(B177)<3,B177,99)) -> 2 | D177: =IF(RIGHT(B177,1)="*",LEFT(B177,1),IF(LEN(B177)=3,RIGHT(B177,1),IF(LEN(B177)<3,B177,RIGHT(B177,2)))) -> 4 | E177: Magical | AC177: =SUM(F177:AB177) -> 0 | AD177: =IF(AC177<1,-25,IF(AC177>30,80+((AC177-30)*0.5),IF(AC177>20,70+(AC177-20),IF(AC177>10,50+((AC177-10)*2),AC177*5)))) -> -25 | AE177: =(EM+RE)/2 -> 2.5 | AF177: =HLOOKUP(Yrke,Levelbonus!$B$1:$CR$20,12,FALSE) -> 3 | AG177: 9 | AH177: =IF(ISNUMBER(VLOOKUP($A177,Rasbonus!$A$61:$AJ$295,MATCH(Ras,Rasbonus!$A$1:$AJ$1,0),FALSE)),VLOOKUP($A177,Rasbonus!$A$61:$AJ$295,MATCH(Ras,Rasbonus!$A$1:$AJ$1,0),FALSE),"0") -> 0 | AK177: -14 | AL177: 0 | AM177: 0 | AN177: 0 | AO177: 0 | AP177: 0 | AQ177: 0 | AR177: 0 | AS177: 0 | AT177: 0 | AU177: 0 | AV177: 0 | AW177: 0 | AX177: 0 | AY177: 0 | AZ177: 0 | BA177: 0 | BB177: 0 | BC177: 0 | BD177: 0 | BE177: 0 | BF177: 0
A178: Symbol Lore | B178: =VLOOKUP(A178,AllaSkills!$A$3:$BV$317,'Ny NPC'!$A$2+3,FALSE) -> 1/4 | C178: 1 | D178: 4 | E178: Magical | AC178: 0 | AD178: -25 | AE178: =RE -> 5 | AF178: =HLOOKUP(Yrke,Levelbonus!$B$1:$CR$20,12,FALSE) -> 3 | AG178: 9 | AH178: =IF(ISNUMBER(VLOOKUP($A178,Rasbonus!$A$61:$AJ$295,MATCH(Ras,Rasbonus!$A$1:$AJ$1,0),FALSE)),VLOOKUP($A178,Rasbonus!$A$61:$AJ$295,MATCH(Ras,Rasbonus!$A$1:$AJ$1,0),FALSE),"0") -> 0 | AK178: -11 | AL178: 0 | AM178: 0 | AN178: 0 | AO178: 0 | AP178: 0 | AQ178: 0 | AR178: 0 | AS178: 0 | AT178: 0 | AU178: 0 | AV178: 0 | AW178: 0 | AX178: 0 | AY178: 0 | AZ178: 0 | BA178: 0 | BB178: 0 | BC178: 0 | BD178: 0 | BE178: 0 | BF178: 0
A179: Targeting Skill | B179: =VLOOKUP(A179,AllaSkills!$A$3:$BV$317,'Ny NPC'!$A$2+3,FALSE) -> 2/5 | C179: 2 | D179: 5 | E179: Magical | AC179: 0 | AD179: -25 | AE179: =IN -> 5 | AF179: =HLOOKUP(Yrke,Levelbonus!$B$1:$CR$20,12,FALSE) -> 3 | AG179: 9 | AH179: =IF(ISNUMBER(VLOOKUP($A179,Rasbonus!$A$61:$AJ$295,MATCH(Ras,Rasbonus!$A$1:$AJ$1,0),FALSE)),VLOOKUP($A179,Rasbonus!$A$61:$AJ$295,MATCH(Ras,Rasbonus!$A$1:$AJ$1,0),FALSE),"0") -> 0 | AK179: -11 | AL179: 0 | AM179: 0 | AN179: 0 | AO179: 0 | AP179: 0 | AQ179: 0 | AR179: 0 | AS179: 0 | AT179: 0 | AU179: 0 | AV179: 0 | AW179: 0 | AX179: 0 | AY179: 0 | AZ179: 0 | BA179: 0 | BB179: 0 | BC179: 0 | BD179: 0 | BE179: 0 | BF179: 0
A180: Transcend Armor | B180: =VLOOKUP(A180,AllaSkills!$A$3:$BV$317,'Ny NPC'!$A$2+3,FALSE) -> 4 | C180: 4 | D180: 4 | E180: Magical | AC180: 0 | AD180: -25 | AE180: =IF('Ny NPC'!U45=1,IN,IF('Ny NPC'!U45=2,EM,IF('Ny NPC'!U45=3,PR,IF('Ny NPC'!U45=4,(EM+IN)*0.5,IF('Ny NPC'!U45=5,(PR+IN)*0.5,IF('Ny NPC'!U45=6,(EM+PR)*0.5,(EM+IN+PR)*0.33)))))) -> 5 | AF180: =HLOOKUP(Yrke,Levelbonus!$B$1:$CR$20,12,FALSE) -> 3 | AG180: 9 | AH180: =IF(ISNUMBER(VLOOKUP($A180,Rasbonus!$A$61:$AJ$295,MATCH(Ras,Rasbonus!$A$1:$AJ$1,0),FALSE)),VLOOKUP($A180,Rasbonus!$A$61:$AJ$295,MATCH(Ras,Rasbonus!$A$1:$AJ$1,0),FALSE),"0") -> 0 | AK180: -11 | AL180: 0 | AM180: 0 | AN180: 0 | AO180: 0 | AP180: 0 | AQ180: 0 | AR180: 0 | AS180: 0 | AT180: 0 | AU180: 0 | AV180: 0 | AW180: 0 | AX180: 0 | AY180: 0 | AZ180: 0 | BA180: 0 | BB180: 0 | BC180: 0 | BD180: 0 | BE180: 0 | BF180: 0
A181: Warding Lore | B181: =VLOOKUP(A181,AllaSkills!$A$3:$BV$317,'Ny NPC'!$A$2+3,FALSE) -> 1/4 | C181: 1 | D181: 4 | E181: Magical | AC181: 0 | AD181: -25 | AE181: =(RE+IN)/2 -> 5 | AF181: =HLOOKUP(Yrke,Levelbonus!$B$1:$CR$20,12,FALSE) -> 3 | AG181: 9 | AH181: =IF(ISNUMBER(VLOOKUP($A181,Rasbonus!$A$61:$AJ$295,MATCH(Ras,Rasbonus!$A$1:$AJ$1,0),FALSE)),VLOOKUP($A181,Rasbonus!$A$61:$AJ$295,MATCH(Ras,Rasbonus!$A$1:$AJ$1,0),FALSE),"0") -> 0 | AK181: -11 | AL181: 0 | AM181: 0 | AN181: 0 | AO181: 0 | AP181: 0 | AQ181: 0 | AR181: 0 | AS181: 0 | AT181: 0 | AU181: 0 | AV181: 0 | AW181: 0 | AX181: 0 | AY181: 0 | AZ181: 0 | BA181: 0 | BB181: 0 | BC181: 0 | BD181: 0 | BE181: 0 | BF181: 0
A182: Medical | B182: =HLOOKUP(Diverse!$G$2,'2nd'!$B$1:$CR$18,13,FALSE) -> 0 | F182: =SUM(AL183:AL192) -> 0 | I182: =SUM(AM183:AM192) -> 0 | J182: =SUM(AN183:AN192) -> 0 | K182: 0 | L182: 0 | M182: 0 | N182: 0 | O182: 0 | P182: 0 | Q182: 0 | R182: 0 | S182: 0 | T182: 0 | U182: 0 | V182: 0 | W182: 0 | X182: 0 | Y182: 0 | Z182: 0 | AA182: 0 | AB182: 0 | AC182: Rank | AD182: Skill | AE182: Stat | AG182: Lvl | AH182: Race | AI182: Armor | AJ182: Item | AK182: Total
A183: Animal healing | B183: =VLOOKUP(A183,AllaSkills!$A$3:$BV$317,'Ny NPC'!$A$2+3,FALSE) -> 2/5 | C183: 2 | D183: 5 | E183: Medical | AC183: 0 | AD183: -25 | AE183: =(EM+RE)/2 -> 2.5 | AF183: =HLOOKUP(Yrke,Levelbonus!$B$1:$CR$20,13,FALSE) -> 0 | AG183: 0 | AH183: =IF(ISNUMBER(VLOOKUP($A183,Rasbonus!$A$61:$AJ$295,MATCH(Ras,Rasbonus!$A$1:$AJ$1,0),FALSE)),VLOOKUP($A183,Rasbonus!$A$61:$AJ$295,MATCH(Ras,Rasbonus!$A$1:$AJ$1,0),FALSE),"0") -> 0 | AK183: -23 | AL183: =IF(F183>2,"99",IF(F183<1,0,IF(F183=1,$C183+$C183-$C183,IF(F183=2,$C183+$D183)))) -> 0 | AM183: =IF(I183>2,"99",IF(I183<1,0,IF(I183=1,$C183+$C183-$C183,IF(I183=2,$C183+$D183)))) -> 0 | AN183: =IF(J183>2,"99",IF(J183<1,0,IF(J183=1,$C183+$C183-$C183,IF(J183=2,$C183+$D183)))) -> 0 | AO183: =IF(K183>2,"99",IF(K183<1,0,IF(K183=1,$C183+$C183-$C183,IF(K183=2,$C183+$D183)))) -> 0 | AP183: =IF(L183>2,"99",IF(L183<1,0,IF(L183=1,$C183+$C183-$C183,IF(L183=2,$C183+$D183)))) -> 0 | AQ183: =IF(M183>2,"99",IF(M183<1,0,IF(M183=1,$C183+$C183-$C183,IF(M183=2,$C183+$D183)))) -> 0 | AR183: =IF(N183>2,"99",IF(N183<1,0,IF(N183=1,$C183+$C183-$C183,IF(N183=2,$C183+$D183)))) -> 0 | AS183: =IF(O183>2,"99",IF(O183<1,0,IF(O183=1,$C183+$C183-$C183,IF(O183=2,$C183+$D183)))) -> 0 | AT183: =IF(P183>2,"99",IF(P183<1,0,IF(P183=1,$C183+$C183-$C183,IF(P183=2,$C183+$D183)))) -> 0 | AU183: =IF(Q183>2,"99",IF(Q183<1,0,IF(Q183=1,$C183+$C183-$C183,IF(Q183=2,$C183+$D183)))) -> 0 | AV183: =IF(R183>2,"99",IF(R183<1,0,IF(R183=1,$C183+$C183-$C183,IF(R183=2,$C183+$D183)))) -> 0 | AW183: =IF(S183>2,"99",IF(S183<1,0,IF(S183=1,$C183+$C183-$C183,IF(S183=2,$C183+$D183)))) -> 0 | AX183: =IF(T183>2,"99",IF(T183<1,0,IF(T183=1,$C183+$C183-$C183,IF(T183=2,$C183+$D183)))) -> 0 | AY183: =IF(U183>2,"99",IF(U183<1,0,IF(U183=1,$C183+$C183-$C183,IF(U183=2,$C183+$D183)))) -> 0 | AZ183: =IF(V183>2,"99",IF(V183<1,0,IF(V183=1,$C183+$C183-$C183,IF(V183=2,$C183+$D183)))) -> 0 | BA183: =IF(W183>2,"99",IF(W183<1,0,IF(W183=1,$C183+$C183-$C183,IF(W183=2,$C183+$D183)))) -> 0 | BB183: =IF(X183>2,"99",IF(X183<1,0,IF(X183=1,$C183+$C183-$C183,IF(X183=2,$C183+$D183)))) -> 0 | BC183: =IF(Y183>2,"99",IF(Y183<1,0,IF(Y183=1,$C183+$C183-$C183,IF(Y183=2,$C183+$D183)))) -> 0 | BD183: =IF(Z183>2,"99",IF(Z183<1,0,IF(Z183=1,$C183+$C183-$C183,IF(Z183=2,$C183+$D183)))) -> 0 | BE183: =IF(AA183>2,"99",IF(AA183<1,0,IF(AA183=1,$C183+$C183-$C183,IF(AA183=2,$C183+$D183)))) -> 0 | BF183: =IF(AB183>2,"99",IF(AB183<1,0,IF(AB183=1,$C183+$C183-$C183,IF(AB183=2,$C183+$D183)))) -> 0
A184: Dentistry | B184: =VLOOKUP(A184,AllaSkills!$A$3:$BV$317,'Ny NPC'!$A$2+3,FALSE) -> 5 | C184: 5 | D184: 5 | E184: Medical | AC184: 0 | AD184: -25 | AE184: =(RE+AG)/2 -> 2.5 | AF184: =HLOOKUP(Yrke,Levelbonus!$B$1:$CR$20,13,FALSE) -> 0 | AG184: 0 | AH184: =IF(ISNUMBER(VLOOKUP($A184,Rasbonus!$A$61:$AJ$295,MATCH(Ras,Rasbonus!$A$1:$AJ$1,0),FALSE)),VLOOKUP($A184,Rasbonus!$A$61:$AJ$295,MATCH(Ras,Rasbonus!$A$1:$AJ$1,0),FALSE),"0") -> 0 | AK184: -23 | AL184: 0 | AM184: 0 | AN184: 0 | AO184: 0 | AP184: 0 | AQ184: 0 | AR184: 0 | AS184: 0 | AT184: 0 | AU184: 0 | AV184: 0 | AW184: 0 | AX184: 0 | AY184: 0 | AZ184: 0 | BA184: 0 | BB184: 0 | BC184: 0 | BD184: 0 | BE184: 0 | BF184: 0
A185: Diagnostics | B185: =VLOOKUP(A185,AllaSkills!$A$3:$BV$317,'Ny NPC'!$A$2+3,FALSE) -> 2 | C185: 2 | D185: 2 | E185: Medical | AC185: 0 | AD185: -25 | AE185: =(IN+RE)/2 -> 5 | AF185: =HLOOKUP(Yrke,Levelbonus!$B$1:$CR$20,13,FALSE) -> 0 | AG185: 0 | AH185: =IF(ISNUMBER(VLOOKUP($A185,Rasbonus!$A$61:$AJ$295,MATCH(Ras,Rasbonus!$A$1:$AJ$1,0),FALSE)),VLOOKUP($A185,Rasbonus!$A$61:$AJ$295,MATCH(Ras,Rasbonus!$A$1:$AJ$1,0),FALSE),"0") -> 0 | AK185: -20 | AL185: 0 | AM185: 0 | AN185: 0 | AO185: 0 | AP185: 0 | AQ185: 0 | AR185: 0 | AS185: 0 | AT185: 0 | AU185: 0 | AV185: 0 | AW185: 0 | AX185: 0 | AY185: 0 | AZ185: 0 | BA185: 0 | BB185: 0 | BC185: 0 | BD185: 0 | BE185: 0 | BF185: 0
A186: Drug Tolerance | B186: =VLOOKUP(A186,AllaSkills!$A$3:$BV$317,'Ny NPC'!$A$2+3,FALSE) -> 2/5 | C186: 2 | D186: 5 | E186: Medical | AC186: 0 | AD186: -25 | AE186: =(CO+SD)/2 -> 15 | AF186: =HLOOKUP(Yrke,Levelbonus!$B$1:$CR$20,13,FALSE) -> 0 | AG186: 0 | AH186: =IF(ISNUMBER(VLOOKUP($A186,Rasbonus!$A$61:$AJ$295,MATCH(Ras,Rasbonus!$A$1:$AJ$1,0),FALSE)),VLOOKUP($A186,Rasbonus!$A$61:$AJ$295,MATCH(Ras,Rasbonus!$A$1:$AJ$1,0),FALSE),"0") -> 0 | AK186: -10 | AL186: 0 | AM186: 0 | AN186: 0 | AO186: 0 | AP186: 0 | AQ186: 0 | AR186: 0 | AS186: 0 | AT186: 0 | AU186: 0 | AV186: 0 | AW186: 0 | AX186: 0 | AY186: 0 | AZ186: 0 | BA186: 0 | BB186: 0 | BC186: 0 | BD186: 0 | BE186: 0 | BF186: 0
AL187: 0 | AM187: 0 | AN187: 0 | AO187: 0 | AP187: 0 | AQ187: 0 | AR187: 0 | AS187: 0 | AT187: 0 | AU187: 0 | AV187: 0 | AW187: 0 | AX187: 0 | AY187: 0 | AZ187: 0 | BA187: 0 | BB187: 0 | BC187: 0 | BD187: 0 | BE187: 0 | BF187: 0
A188: First Aid | B188: =VLOOKUP(A188,AllaSkills!$A$3:$BV$317,'Ny NPC'!$A$2+3,FALSE) -> 2/5 | C188: 2 | D188: 5 | E188: Medical | AC188: 0 | AD188: -25 | AE188: =(SD+EM)/2 -> 5 | AF188: =HLOOKUP(Yrke,Levelbonus!$B$1:$CR$20,13,FALSE) -> 0 | AG188: 0 | AH188: =IF(ISNUMBER(VLOOKUP($A188,Rasbonus!$A$61:$AJ$295,MATCH(Ras,Rasbonus!$A$1:$AJ$1,0),FALSE)),VLOOKUP($A188,Rasbonus!$A$61:$AJ$295,MATCH(Ras,Rasbonus!$A$1:$AJ$1,0),FALSE),"0") -> 0 | AK188: -20 | AL188: 0 | AM188: 0 | AN188: 0 | AO188: 0 | AP188: 0 | AQ188: 0 | AR188: 0 | AS188: 0 | AT188: 0 | AU188: 0 | AV188: 0 | AW188: 0 | AX188: 0 | AY188: 0 | AZ188: 0 | BA188: 0 | BB188: 0 | BC188: 0 | BD188: 0 | BE188: 0 | BF188: 0
A189: Hypnosis | B189: =VLOOKUP(A189,AllaSkills!$A$3:$BV$317,'Ny NPC'!$A$2+3,FALSE) -> 2/4 | C189: 2 | D189: 4 | E189: Medical | AC189: 0 | AD189: -25 | AE189: =(PR+SD)/2 -> 5 | AF189: =HLOOKUP(Yrke,Levelbonus!$B$1:$CR$20,13,FALSE) -> 0 | AG189: 0 | AH189: =IF(ISNUMBER(VLOOKUP($A189,Rasbonus!$A$61:$AJ$295,MATCH(Ras,Rasbonus!$A$1:$AJ$1,0),FALSE)),VLOOKUP($A189,Rasbonus!$A$61:$AJ$295,MATCH(Ras,Rasbonus!$A$1:$AJ$1,0),FALSE),"0") -> 0 | AK189: -20 | AL189: 0 | AM189: 0 | AN189: 0 | AO189: 0 | AP189: 0 | AQ189: 0 | AR189: 0 | AS189: 0 | AT189: 0 | AU189: 0 | AV189: 0 | AW189: 0 | AX189: 0 | AY189: 0 | AZ189: 0 | BA189: 0 | BB189: 0 | BC189: 0 | BD189: 0 | BE189: 0 | BF189: 0
A190: Midwifery | B190: =VLOOKUP(A190,AllaSkills!$A$3:$BV$317,'Ny NPC'!$A$2+3,FALSE) -> 4 | C190: 4 | D190: 4 | E190: Medical | AC190: 0 | AD190: -25 | AE190: =(EM+RE+IN)/3 -> 3.333333333 | AF190: =HLOOKUP(Yrke,Levelbonus!$B$1:$CR$20,13,FALSE) -> 0 | AG190: 0 | AH190: =IF(ISNUMBER(VLOOKUP($A190,Rasbonus!$A$61:$AJ$295,MATCH(Ras,Rasbonus!$A$1:$AJ$1,0),FALSE)),VLOOKUP($A190,Rasbonus!$A$61:$AJ$295,MATCH(Ras,Rasbonus!$A$1:$AJ$1,0),FALSE),"0") -> 0 | AK190: -22 | AL190: 0 | AM190: 0 | AN190: 0 | AO190: 0 | AP190: 0 | AQ190: 0 | AR190: 0 | AS190: 0 | AT190: 0 | AU190: 0 | AV190: 0 | AW190: 0 | AX190: 0 | AY190: 0 | AZ190: 0 | BA190: 0 | BB190: 0 | BC190: 0 | BD190: 0 | BE190: 0 | BF190: 0
A191: Second Aid | B191: =VLOOKUP(A191,AllaSkills!$A$3:$BV$317,'Ny NPC'!$A$2+3,FALSE) -> 3/6 | C191: 3 | D191: 6 | E191: Medical | AC191: 0 | AD191: -25 | AE191: =(SD+EM+IN)/3 -> 5 | AF191: =HLOOKUP(Yrke,Levelbonus!$B$1:$CR$20,13,FALSE) -> 0 | AG191: 0 | AH191: =IF(ISNUMBER(VLOOKUP($A191,Rasbonus!$A$61:$AJ$295,MATCH(Ras,Rasbonus!$A$1:$AJ$1,0),FALSE)),VLOOKUP($A191,Rasbonus!$A$61:$AJ$295,MATCH(Ras,Rasbonus!$A$1:$AJ$1,0),FALSE),"0") -> 0 | AK191: -20 | AL191: 0 | AM191: 0 | AN191: 0 | AO191: 0 | AP191: 0 | AQ191: 0 | AR191: 0 | AS191: 0 | AT191: 0 | AU191: 0 | AV191: 0 | AW191: 0 | AX191: 0 | AY191: 0 | AZ191: 0 | BA191: 0 | BB191: 0 | BC191: 0 | BD191: 0 | BE191: 0 | BF191: 0
A192: Surgery | B192: =VLOOKUP(A192,AllaSkills!$A$3:$BV$317,'Ny NPC'!$A$2+3,FALSE) -> 5 | C192: 5 | D192: 5 | E192: Medical | AC192: 0 | AD192: -25 | AE192: =(SD+EM+IN)/3 -> 5 | AF192: =HLOOKUP(Yrke,Levelbonus!$B$1:$CR$20,13,FALSE) -> 0 | AG192: 0 | AH192: =IF(ISNUMBER(VLOOKUP($A192,Rasbonus!$A$61:$AJ$295,MATCH(Ras,Rasbonus!$A$1:$AJ$1,0),FALSE)),VLOOKUP($A192,Rasbonus!$A$61:$AJ$295,MATCH(Ras,Rasbonus!$A$1:$AJ$1,0),FALSE),"0") -> 0 | AK192: -20 | AL192: 0 | AM192: 0 | AN192: 0 | AO192: 0 | AP192: 0 | AQ192: 0 | AR192: 0 | AS192: 0 | AT192: 0 | AU192: 0 | AV192: 0 | AW192: 0 | AX192: 0 | AY192: 0 | AZ192: 0 | BA192: 0 | BB192: 0 | BC192: 0 | BD192: 0 | BE192: 0 | BF192: 0
A193: Perception | B193: =HLOOKUP(Diverse!$G$2,'2nd'!$B$1:$CR$18,14,FALSE) -> 5 | F193: =SUM(AL194:AL201) -> 0 | I193: =SUM(AM194:AM201) -> 0 | J193: =SUM(AN194:AN201) -> 0 | K193: 0 | L193: 0 | M193: 0 | N193: 0 | O193: 0 | P193: 0 | Q193: 0 | R193: 0 | S193: 0 | T193: 0 | U193: 0 | V193: 0 | W193: 0 | X193: 0 | Y193: 0 | Z193: 0 | AA193: 0 | AB193: 0 | AC193: Rank | AD193: Skill | AE193: Stat | AG193: Lvl | AH193: Race | AI193: Armor | AJ193: Item | AK193: Total
A194: Awakening | B194: =VLOOKUP(A194,AllaSkills!$A$3:$BV$317,'Ny NPC'!$A$2+3,FALSE) -> 18 | C194: 18 | D194: 18 | E194: Perception | AC194: 0 | AD194: -25 | AE194: =IN -> 5 | AF194: =HLOOKUP(Yrke,Levelbonus!$B$1:$CR$20,14,FALSE) -> 1 | AG194: 3 | AH194: =IF(ISNUMBER(VLOOKUP($A194,Rasbonus!$A$61:$AJ$295,MATCH(Ras,Rasbonus!$A$1:$AJ$1,0),FALSE)),VLOOKUP($A194,Rasbonus!$A$61:$AJ$295,MATCH(Ras,Rasbonus!$A$1:$AJ$1,0),FALSE),"0") -> 0 | AK194: -17 | AL194: =IF(F194>2,"99",IF(F194<1,0,IF(F194=1,$C194+$C194-$C194,IF(F194=2,$C194+$D194)))) -> 0 | AM194: =IF(I194>2,"99",IF(I194<1,0,IF(I194=1,$C194+$C194-$C194,IF(I194=2,$C194+$D194)))) -> 0 | AN194: 0 | AO194: 0 | AP194: 0 | AQ194: 0 | AR194: 0 | AS194: 0 | AT194: 0 | AU194: 0 | AV194: 0 | AW194: 0 | AX194: 0 | AY194: 0 | AZ194: 0 | BA194: 0 | BB194: 0 | BC194: 0 | BD194: 0 | BE194: 0 | BF194: 0
A195: Direction Sense | B195: =VLOOKUP(A195,AllaSkills!$A$3:$BV$317,'Ny NPC'!$A$2+3,FALSE) -> 2/4 | C195: 2 | D195: 4 | E195: Perception | AC195: 0 | AD195: -25 | AE195: =(IN+RE)/2 -> 5 | AF195: =HLOOKUP(Yrke,Levelbonus!$B$1:$CR$20,14,FALSE) -> 1 | AG195: 3 | AH195: =IF(ISNUMBER(VLOOKUP($A195,Rasbonus!$A$61:$AJ$295,MATCH(Ras,Rasbonus!$A$1:$AJ$1,0),FALSE)),VLOOKUP($A195,Rasbonus!$A$61:$AJ$295,MATCH(Ras,Rasbonus!$A$1:$AJ$1,0),FALSE),"0") -> 0 | AK195: -17 | AL195: 0 | AM195: 0 | AN195: 0 | AO195: 0 | AP195: 0 | AQ195: 0 | AR195: 0 | AS195: 0 | AT195: 0 | AU195: 0 | AV195: 0 | AW195: 0 | AX195: 0 | AY195: 0 | AZ195: 0 | BA195: 0 | BB195: 0 | BC195: 0 | BD195: 0 | BE195: 0 | BF195: 0
A196: Lie Perception | B196: =VLOOKUP(A196,AllaSkills!$A$3:$BV$317,'Ny NPC'!$A$2+3,FALSE) -> 3/5 | C196: 3 | D196: 5 | E196: Perception | AC196: 0 | AD196: -25 | AE196: =(IN+RE)/2 -> 5 | AF196: =HLOOKUP(Yrke,Levelbonus!$B$1:$CR$20,14,FALSE) -> 1 | AG196: 3 | AH196: =IF(ISNUMBER(VLOOKUP($A196,Rasbonus!$A$61:$AJ$295,MATCH(Ras,Rasbonus!$A$1:$AJ$1,0),FALSE)),VLOOKUP($A196,Rasbonus!$A$61:$AJ$295,MATCH(Ras,Rasbonus!$A$1:$AJ$1,0),FALSE),"0") -> 0 | AK196: -17 | AL196: 0 | AM196: 0 | AN196: 0 | AO196: 0 | AP196: 0 | AQ196: 0 | AR196: 0 | AS196: 0 | AT196: 0 | AU196: 0 | AV196: 0 | AW196: 0 | AX196: 0 | AY196: 0 | AZ196: 0 | BA196: 0 | BB196: 0 | BC196: 0 | BD196: 0 | BE196: 0 | BF196: 0
A197: Poison Perception | B197: =VLOOKUP(A197,AllaSkills!$A$3:$BV$317,'Ny NPC'!$A$2+3,FALSE) -> 1/4 | C197: 1 | D197: 4 | E197: Perception | AC197: 0 | AD197: -25 | AE197: =(IN+RE)/2 -> 5 | AF197: =HLOOKUP(Yrke,Levelbonus!$B$1:$CR$20,14,FALSE) -> 1 | AG197: 3 | AH197: =IF(ISNUMBER(VLOOKUP($A197,Rasbonus!$A$61:$AJ$295,MATCH(Ras,Rasbonus!$A$1:$AJ$1,0),FALSE)),VLOOKUP($A197,Rasbonus!$A$61:$AJ$295,MATCH(Ras,Rasbonus!$A$1:$AJ$1,0),FALSE),"0") -> 0 | AK197: -17 | AL197: 0 | AM197: 0 | AN197: 0 | AO197: 0 | AP197: 0 | AQ197: 0 | AR197: 0 | AS197: 0 | AT197: 0 | AU197: 0 | AV197: 0 | AW197: 0 | AX197: 0 | AY197: 0 | AZ197: 0 | BA197: 0 | BB197: 0 | BC197: 0 | BD197: 0 | BE197: 0 | BF197: 0
A198: Sense Ambush | B198: =VLOOKUP(A198,AllaSkills!$A$3:$BV$317,'Ny NPC'!$A$2+3,FALSE) -> 3 | C198: 3 | D198: 3 | E198: Perception | AC198: 0 | AD198: -25 | AE198: =(IN+RE)/2 -> 5 | AF198: =HLOOKUP(Yrke,Levelbonus!$B$1:$CR$20,14,FALSE) -> 1 | AG198: 3 | AH198: =IF(ISNUMBER(VLOOKUP($A198,Rasbonus!$A$61:$AJ$295,MATCH(Ras,Rasbonus!$A$1:$AJ$1,0),FALSE)),VLOOKUP($A198,Rasbonus!$A$61:$AJ$295,MATCH(Ras,Rasbonus!$A$1:$AJ$1,0),FALSE),"0") -> 0 | AK198: -17 | AL198: 0 | AM198: 0 | AN198: 0 | AO198: 0 | AP198: 0 | AQ198: 0 | AR198: 0 | AS198: 0 | AT198: 0 | AU198: 0 | AV198: 0 | AW198: 0 | AX198: 0 | AY198: 0 | AZ198: 0 | BA198: 0 | BB198: 0 | BC198: 0 | BD198: 0 | BE198: 0 | BF198: 0
A199: Surveillance | B199: =VLOOKUP(A199,AllaSkills!$A$3:$BV$317,'Ny NPC'!$A$2+3,FALSE) -> 2/6 | C199: 2 | D199: 6 | E199: Perception | AC199: 0 | AD199: -25 | AE199: =(IN+SD)/2 -> 7.5 | AF199: =HLOOKUP(Yrke,Levelbonus!$B$1:$CR$20,14,FALSE) -> 1 | AG199: 3 | AH199: =IF(ISNUMBER(VLOOKUP($A199,Rasbonus!$A$61:$AJ$295,MATCH(Ras,Rasbonus!$A$1:$AJ$1,0),FALSE)),VLOOKUP($A199,Rasbonus!$A$61:$AJ$295,MATCH(Ras,Rasbonus!$A$1:$AJ$1,0),FALSE),"0") -> 0 | AK199: -15 | AL199: 0 | AM199: 0 | AN199: 0 | AO199: 0 | AP199: 0 | AQ199: 0 | AR199: 0 | AS199: 0 | AT199: 0 | AU199: 0 | AV199: 0 | AW199: 0 | AX199: 0 | AY199: 0 | AZ199: 0 | BA199: 0 | BB199: 0 | BC199: 0 | BD199: 0 | BE199: 0 | BF199: 0
A200: Time Sense | B200: =VLOOKUP(A200,AllaSkills!$A$3:$BV$317,'Ny NPC'!$A$2+3,FALSE) -> 1/3 | C200: 1 | D200: 3 | E200: Perception | AC200: 0 | AD200: -25 | AE200: =(IN+RE)/2 -> 5 | AF200: =HLOOKUP(Yrke,Levelbonus!$B$1:$CR$20,14,FALSE) -> 1 | AG200: 3 | AH200: =IF(ISNUMBER(VLOOKUP($A200,Rasbonus!$A$61:$AJ$295,MATCH(Ras,Rasbonus!$A$1:$AJ$1,0),FALSE)),VLOOKUP($A200,Rasbonus!$A$61:$AJ$295,MATCH(Ras,Rasbonus!$A$1:$AJ$1,0),FALSE),"0") -> 0 | AK200: -17 | AL200: 0 | AM200: 0 | AN200: 0 | AO200: 0 | AP200: 0 | AQ200: 0 | AR200: 0 | AS200: 0 | AT200: 0 | AU200: 0 | AV200: 0 | AW200: 0 | AX200: 0 | AY200: 0 | AZ200: 0 | BA200: 0 | BB200: 0 | BC200: 0 | BD200: 0 | BE200: 0 | BF200: 0
... 29 more rows

Sheet Bonuses
A2: Combat (Attacks) | E2: Statistics | I2: Most used skills | N2: Abilities & Drawbacks
A3: Attack | B3: With what? | C3: OB | E3: Statistic | F3: Total | G3: Current | I3: Skill | J3: Bonus | K3: Skill | L3: Bonus | N3: Cost | O3: Ability | P3: Description
A4: Primary Attack | B4: My magical mace | C4: ='Ny NPC'!$P30 -> 21.66666667 | E4: Hit Points | F4: ='Ny NPC'!$U43 -> 25 | I4: AM Speed | J4: ='Ny NPC'!$P6 -> -20 | K4: General Perception | L4: ='Ny NPC'!$P17 -> 13
A5: Secondary Attack | B5: My extraordinary warhammer | C5: ='Ny NPC'!$P31 -> -16.25 | E5: PP (incl. adder/multiplier) | F5: ='Ny NPC'!$P42 -> 9 | I5: AM Strength | J5: ='Ny NPC'!$P7 -> 23
A6: Tert. Attack | B6: My horrible crossbow | C6: ='Ny NPC'!$P32 -> 12.5 | E6: Initiative | F6: ='Ny NPC'!$B72 -> 0
A7: Weapon Brawling | C7: =Secondary!$AK86 -> -20
A8: Shield Bash | C8: =Secondary!$AK80 -> -15
B15: Please feel free to change the
B16: above attacks to those favored
A19: Combat (Defenses)
A20: Defense | C20: Bonus
A21: Shield skill (incl. Shield expertise) | C21: ='Ny NPC'!$P36 -> 21
A22: Total DB (incl. Inherent) | C22: ='Ny NPC'!B53 -> 21
A23: Inherent DB | C23: ='Ny NPC'!$B51 -> 0
A24: Stunned Maneuver | C24: =Secondary!$AK82 -> -15
B29: Please feel free to change the
B30: above defensive skills to those
B31: favored

Sheet Items
A2: # | B2: Item | C2: lbs | D2: # | E2: Item | F2: lbs | G2: # | H2: Item | I2: lbs | J2: # | K2: Item (not carried) | M2: # | N2: Herbs & Potions
A3: 0 | B3: Example Dagger | D3: 1 | E3: Delicious Cookie | G3: 0 | H3: Example gold coins | J3: 0 | K3: Horse | N3: Hit Point Recovery
A4: 2 | B4: Example Waterskin | D4: 10 | E4: Example Torches | N4: Abaas | O4: Leaf/Ingest
N5: Akbutege | O5: Leaf/Ingest
N6: Arkasu | O6: Sap/Apply
N7: Arlan | O7: Leaf/Apply
N8: Caranan | O8: Leaves/Ingest
N9: Carefree Mustard | O9: Leaves/Brew
N10: Carneyar | O10: Flower/Brew
N11: Cusamar | O11: Flower/Ingest
N12: Darsurion | O12: Leaf/Apply
N13: Draaf | O13: Leaf/Ingest
N14: Dugmuthur | O14: Berry/Ingest
N15: Fiis | O15: Resin/Apply
N16: Gariig | O16: Cactus/Ingest
A17: # | B17: Magical Items | C17: lbs | E17: Location | F17: Notes & Abilities | N17: Gefnul | O17: Lichen/Ingest
A18: 1 | B18: Example Broadsword | C18: 4 | E18: Side scabbard | F18: Magical +10 | N18: Harwite | O18: Moss/Ingest
N19: Kargijak | O19: Berry/Paste
N20: Madarch | O20: Mushroom/Brew
N21: Mirenna | O21: Berry/Ingest
N22: Reglen | O22: Moss/Brew
N23: Reglen | O23: Moss/Brew
N24: Rewk | O24: Nodule/Brew
N25: Telperion | O25: Leaf/Ingest
N26: Thurl | O26: Clove/Brew
N27: Winclamit | O27: Fruit/Ingest
N28: Yavethalion | O28: Fruit/Ingest
N31: Herb | O31: Form/Prep
N32: Circulatory Repair
N33: Anserke | O33: Root/Apply
N34: Belan | O34: Nut/Ingest
N35: Fek | O35: Nut/Brew
N36: Golden Cress | O36: Fern/Apply
N37: Harfy | O37: Resin/Apply
N38: Hugburtun | O38: Fruit/Brew
N39: Miretars Crown | O39: Flower/Apply
N40: Rumareth | O40: Leaves/Brew
N41: Sindoluin | O41: Flower/Apply
N42: Tulaxar | O42: Leaves/Brew
N45: Herb | O45: Form/Prep
N46: Antidotes
N47: Arduvaar | O47: Plant/Brew
N48: Argsbargie | O48: Flower/Ingest
N49: Baranie | O49: Leaves/Brew
N50: Carnerem | O50: Leaf/Apply
N51: Cashdir | O51: Flower/Ingest
N52: Culan | O52: Leaf/Brew
N53: Eldaana | O53: Leaf/Brew
N54: Elendils Basket | O54: Root/Brew
N55: Flur-rort | O55: Flower/Liquid
N56: Maiana | O56: Leaf/Brew
N57: Menelar | O57: Cone/Brew
N58: Mir-Melellen | O58: Nectar/Apply
N59: Mook | O59: Berry/Ingest
N60: Naza | O60: Leaf/Ingest
N61: Quilmufur | O61: Root/Brew
N62: Shen | O62: Leaf/Ingest
N63: Sorel nut | O63: Nut/Ingest
N64: Sweet Sorrel | O64: Leaves/Inhale
N65: Taynaga | O65: Bark/Powder
N66: Ul-Naza | O66: Leaf/Ingest
N67: Valanar | O67: Leaf/Ingest
N68: Vipersweed | O68: Root/Brew
N69: Yuth | O69: Flower/Ingest
N72: Herb | O72: Form/Prep
N73: Bone, Nerve, Muscle and Organ Repair
N74: Arfandas | O74: Stem/Apply
N75: Arnuminas | O75: Leaf/Apply
N76: Arpsusar | O76: Stalk/Brew
N77: Baalak | O77: Reed/Brew
N78: Baldakur | O78: Root/Brew
N79: Belramba | O79: Lichen/Brew
N80: Boneset | O80: Root/Ingest
N81: Bursthelas | O81: Stalk/Brew
N82: Curfalka | O82: Fruit/Ingest
N83: Dagmather | O83: Spine/Brew
N84: Ebur | O84: Flower/Ingest
N85: Edram | O85: Moss/Ingest
N86: Febfendu | O86: Root/Brew
N87: Gildarion | O87: Leaf/Paste
N88: Gorfon | O88: Fruit/Ingest
N89: Gursamel | O89: Stalk/Apply
N90: Hegheg | O90: Root/Paste
N91: Hoak-Foer | O91: Flower/Ingest
N92: Kakduram | O92: Fruit/Ingest
N93: Klandun | O93: Fern/Ingest
N94: Kolandor | O94: Leaves/Apply
N95: Laurre | O95: Flower/Ingest
N96: Numenelos | O96: Moss/Powder
N97: Siran | O97: Clove/Ingest
N98: Tarnas | O98: Nodule/Brew
N99: Tatharsul | O99: Bread/Ingest
N100: Terbas | O100: Leaf/Apply
N101: Ucason | O101: Grass/Smoke
N102: Ul-Ucason | O102: Grass/Smoke
N103: Wek-wek | O103: Nodule/Brew
N104: Wifurwif | O104: Lichen/Ingest
N107: Herb | O107: Form/Prep
N108: Nutrition
N109: Chap Beech Nut | O109: Nut/Ingest
N110: Cram | O110: Bread/Ingest
N111: Furry Oak Acorn | O111: Nut/Ingest
N112: Grapeleaf | O112: Nectar/Ingest
N113: Hiam | O113: Moss/Ingest
N114: Kujanikapurd | O114: Mushroom/Ingest
N115: Lembas | O115: Bread/Ingest
N116: Lemsang | O116: Mushroom/Ingest
N117: Nelisse | O117: Leaf/Brew
N118: Ukur | O118: Nut/Ingest
N119: Ulginor | O119: Bread/Ingest
N122: Herb | O122: Form/Prep
N123: General Purpose Herbs
N124: Ajkara | O124: Incense/Smoke
N125: Ankii | O125: Berry/Ingest
N126: Arlan | O126: Root/Ingest
N127: Arunya | O127: Root/Brew
N128: Athelas | O128: Leaf/Brew
N129: Attanar | O129: Moss/Apply
N130: Awn | O130: Bark/Brew
N131: Brorkwilb | O131: Flower/Ingest
N132: Cicino | O132: Leaf/Brew
N133: Delrean | O133: Bark/Apply
N134: Faghiu | O134: Flower/Brew
N135: Felmather | O135: Leaf/Ingest
N136: Fleabane | O136: Leaves/Apply
N137: Fukavar | O137: Flower/Smoke
N138: Harlindar | O138: Plant/Brew
N139: Hevik | O139: Leaves/Ingest
N140: Hugar | O140: Root/Ingest
N141: Joef | O141: Plant/Ingest
N142: Klynyk | O142: Oyster/Apply
N143: Latha | O143: Stem/Brew
N144: Lestagii | O144: Crystal/Ingest
N145: Lichen Gloriosa | O145: Lichen/Apply
N146: Lu-jy-Mirenna | O146: Berry/Ingest
N147: Nelthandon | O147: Plant/Ingest
N148: Red Willow | O148: Leaf/Brew
N149: Silraen | O149: Plant/Brew
N150: Sulimquelote | O150: Flower/Brew
N151: Tharm | O151: Kelp/Apply
N152: Tukamur | O152: Grass/Brew
N153: Waters of Fire | O153: Acid/Liquid
N156: Herb | O156: Form/Prep
N157: Physical Enhancement
N158: Agaath | O158: Berry/Ingest
N159: Alshana | O159: Bread/Ingest
N160: Atigax | O160: Root/Brew
N161: Blue Eyes | O161: Flower/Brew
N162: Boskone | O162: Powder/Inhale
N163: Breldiar | O163: Flower/Ingest
N164: Chrume | O164: Mushroom/Ingest
N165: Dragul | O165: Root/Brew
N166: Ecsasse | O166: Clove/Brew
N167: Elbens Basket | O167: Root/Brew
N168: Eledena | O168: Bud/Ingest
N169: Feduilas | O169: Flower/Smoke
N170: Galenas | O170: Leaf/Smoke
N171: Gort | O171: Leaf/Ingest
N172: Gylvir | O172: Algae/Ingest
N173: Hesguratu | O173: Bread/Ingest
N174: Kaskamak | O174: Leaves/Ingest
N175: Kathkusa | O175: Leaf/Ingest
N176: Kilmakur | O176: Root/Brew
N177: Kirsemal | O177: Bark/Brew
N178: Kirtir | O178: Buds/Inhale
N179: Klagul | O179: Bud/Brew
N180: Kykykyl | O180: Bread/Ingest
N181: Lothnimgil | O181: Flower/Ingest
N182: Marku | O182: Nut/Ingest
N183: Megillos | O183: Leaf/Ingest
N184: Merrig | O184: Thorn/Brew
N185: Phacalus | O185: Root/Ingest
N186: Rud-tekma | O186: Fruit/Ingest
N187: Sailchas | O187: Flower/Wear
N188: Sha | O188: Flower/Brew
N189: Splayfoot | O189: Seeds/Brew
N190: Sweet Galenas | O190: Leaf/Smoke
N191: Swigmakril | O191: Flower/Brew
N192: Tartiella | O192: Leaf/Smoke
N193: Thembitul | O193: Flower/Ingest
N194: Trudurs | O194: Moss/Brew
N195: Yaran | O195: Pollen/Ingest
N196: Zulsendura | O196: Mushroom
N197: Zur | O197: Fungus/Brew
N200: Herb | O200: Form/Prep
N201: Burn and Exposure Relief
N202: Alambas | O202: Grass/Apply
N203: Aloe | O203: Leaf/Apply
N204: Culkas | O204: Leaf/Apply
N205: Himros | O205: Leaves/Apply
N206: Jojojopo | O206: Leaf/Apply
N207: Kelventari | O207: Berry/Rub
N208: Telek | O208: Berry/Apply
N209: Veldurak | O209: Kelp/Apply
N210: Vessin | O210: Clams/Apply
N213: Herb | O213: Form/Prep
N214: Poisons and Rotten things
N215: Acaana | O215: Flower/Paste
N216: Adder Venom | O216: Venom/Paste
N217: Ancalthur | O217: Grass/Liquid
... 130 more rows

Sheet Spells
A2: Known Spell Lists | E2: Favourite Spells or entire spell lists | K2: Favourite Spells
A3: Lvl | B3: Spell list | C3: Book | E3: Lvl | F3: Spell | G3: Book | H3: A | I3: Duration | K3: Lvl | L3: Spell list | M3: Book | N3: A | O3: Duration
A4: 20 | B4: Weapon enchantments | C4: Öberg | E4: 13 | F4: Hammerstrike II, x2 damage | G4: Öberg | I4: =CONCATENATE(Level*2," rnd") -> 6 rnd | K4: 1 | L4: Sly ears | M4: RMCII | N4: x | O4: =CONCATENATE(Level*10*2," min") -> 60 min
A5: 10 | B5: Earth law | C5: SpLaw | E5: 16 | F5: Eldritch weapon II | G5: Öberg | I5: =CONCATENATE(Level," rnd") -> 3 rnd | K5: 2 | L5: Nightvision | M5: RMCII | O5: =CONCATENATE(Level*10*2," min") -> 60 min
A6: 10 | B6: Sense enhanchement | C6: RMCII | E6: 3 | F6: Stoneskin I, AT12 | G6: RMCVII | I6: =CONCATENATE(Level*2," rnd") -> 6 rnd | K6: 3 | L6: Smelling | M6: RMCII | N6: x | O6: 60 min
A7: 10 | B7: Movement enhancement | C7: RMCII | E7: 5 | F7: Earthmight II, +20 ST | G7: RMCVII | I7: =CONCATENATE(Level*2," rnd") -> 6 rnd | K7: 4 | L7: Sidevision | M7: RMCII | N7: x | O7: 60 min
A8: 5 | B8: Invisible ways | C8: SpLaw | E8: 3 | F8: Stun relief I* | G8: SpLaw | K8: 5 | L8: Tasting | M8: RMCII | O8: 60 min
A9: 10 | B9: Earth forms | C9: RMCVII | E9: 9 | F9: Stun relief III* | G9: SpLaw | K9: 6 | L9: Sharp eyes | M9: RMCII | N9: x | O9: 60 min
A10: 20 | B10: Body renewal | C10: SpLaw | E10: 1 | F10: Blur* | G10: Ess.C | I10: =CONCATENATE(Level*2," min") -> 6 min | K10: 7 | L10: Fine touch | M10: RMCII | N10: x | O10: 60 min
A11: 10 | B11: Highriding | C11: RMCII | E11: 7 | F11: Mirror image I | G11: Ess.C | H11: x | I11: =CONCATENATE(Level*2," min") -> 6 min | K11: 9 | L11: Watervision | M11: RMCII | N11: x | O11: 60 min
A12: 10 | B12: Minds touch | C12: RMCII | E12: 9 | F12: Displacement III*, 30% | G12: Ess.C | H12: x | I12: =CONCATENATE(Level*2," min") -> 6 min | K12: 10 | L12: Darkvision | M12: RMCII | N12: x | O12: 60 min
B13: Rapid ways | C13: SpLaw | E13: 10 | F13: Parry illusion* | G13: Ess.C | I13: =CONCATENATE(Level*2," rnd") -> 6 rnd | K13: 4 | L13: Silent movement* | M13: RMCII | O13: =CONCATENATE(Level*10*2," min") -> 60 min
B14: Unbarring ways | C14: SpLaw | K14: 5 | L14: Suggestion | M14: RMCII
A15: 20 | B15: Familiar mastery | C15: Ess.C | K15: 9 | L15: Master of kind | M15: RMCII | O15: =CONCATENATE(Level*10*2," min") -> 60 min
A16: 5 | B16: Sustain body | C16: Ess.C | K16: 4 | L16: Leaving I | M16: RMCII
A17: 10 | B17: Combat illusions | C17: Ess.C | K17: 7 | L17: Leaving II, 200' | M17: RMCII
K18: 10 | L18: Long door I | M18: RMCII
K19: 2 | L19: Shadow | M19: Ess.C | N19: x | O19: =CONCATENATE(Level*10*2," min") -> 60 min

Sheet Rasbonus
B1: Dwarf | C1: Noldo (Academic) | D1: Noldo (Martial) | E1: Sinda | F1: Silvan | G1: Half-elf | H1: Hobbit | I1: Northman | J1: Eothraim | K1: Lesser Dunadan | L1: Common (rural) | M1: Common (city-folk) | N1: Corsair | O1: Dorwinadan | P1: Wose | Q1: Woodman | R1: Beorning | S1: Greater Dunadan | T1: Dunlending | U1: Black Numenorean | V1: Easterling | W1: Sagath/Logath | X1: Gathmarim | Y1: Variag | Z1: Orc | AA1: Uruk-Hai | AB1: Half-orc | AC1: Half-troll | AD1: Forest Troll | AE1: Stone Troll | AF1: Hill Troll | AG1: Snow Troll | AH1: Mountain Troll | AI1: Cave Troll | AJ1: Olog-Hai
A2: Constitution | B2: 15 | C2: 10 | D2: 10 | E2: 5 | F2: 0 | G2: 5 | H2: 15 | I2: 5 | J2: 5 | K2: 5 | L2: 5 | M2: 5 | N2: 5 | O2: 5 | P2: 5 | Q2: 5 | R2: 15 | S2: 10 | T2: 10 | U2: 10 | V2: 5 | W2: 5 | X2: 5 | Y2: 5 | Z2: 10 | AA2: 15 | AB2: 10 | AC2: 15 | AD2: 20 | AE2: 35 | AF2: 25 | AG2: 30 | AH2: 30 | AI2: 40 | AJ2: 35
A3: Agility | B3: -5 | C3: 15 | D3: 15 | E3: 10 | F3: 10 | G3: 5 | H3: 15 | I3: 0 | J3: 0 | K3: 0 | L3: 0 | M3: 0 | N3: 0 | O3: 0 | P3: 0 | Q3: 5 | R3: 0 | S3: 0 | T3: 0 | U3: 0 | V3: 5 | W3: 0 | X3: 0 | Y3: 0 | Z3: 0 | AA3: 0 | AB3: 0 | AC3: 0 | AD3: 0 | AE3: -10 | AF3: -10 | AG3: -10 | AH3: -10 | AI3: -10 | AJ3: -5
A4: Self Discipline | B4: 5 | C4: 0 | D4: 0 | E4: 0 | F4: 0 | G4: 0 | H4: 0 | I4: 5 | J4: 5 | K4: 5 | L4: 0 | M4: 0 | N4: 0 | O4: 5 | P4: 0 | Q4: 0 | R4: 0 | S4: 5 | T4: 0 | U4: 5 | V4: -5 | W4: 0 | X4: -5 | Y4: -5 | Z4: -5 | AA4: 0 | AB4: 0 | AC4: 0 | AD4: -5 | AE4: -10 | AF4: -10 | AG4: -10 | AH4: -10 | AI4: -10 | AJ4: -5
A5: Reasoning | B5: 0 | C5: 5 | D5: 5 | E5: 0 | F5: 0 | G5: 0 | H5: 0 | I5: 0 | J5: 0 | K5: 0 | L5: 0 | M5: 0 | N5: 0 | O5: 0 | P5: 0 | Q5: 0 | R5: 0 | S5: 0 | T5: 0 | U5: 0 | V5: 0 | W5: 0 | X5: 0 | Y5: 0 | Z5: -5 | AA5: 0 | AB5: 0 | AC5: -5 | AD5: -10 | AE5: -15 | AF5: -15 | AG5: -15 | AH5: -15 | AI5: -15 | AJ5: -5
A6: Eloquence | B6: 0 | C6: 0 | D6: 0 | E6: 0 | F6: 0 | G6: 0 | H6: 0 | I6: 0 | J6: 0 | K6: 0 | L6: 0 | M6: 0 | N6: 0 | O6: 0 | P6: 0 | Q6: 0 | R6: 0 | S6: 0 | T6: 0 | U6: 0 | V6: 0 | W6: 0 | X6: 0 | Y6: 0 | Z6: 0 | AA6: 0 | AB6: 0 | AC6: 0 | AD6: 0 | AE6: -5 | AF6: 0 | AG6: 0 | AH6: 0 | AI6: -5 | AJ6: 0
A7: Strength | B7: 10 | C7: 0 | D7: 0 | E7: 0 | F7: 0 | G7: 5 | H7: -15 | I7: 10 | J7: 10 | K7: 5 | L7: 5 | M7: 5 | N7: 5 | O7: 5 | P7: 5 | Q7: 5 | R7: 15 | S7: 10 | T7: 10 | U7: 10 | V7: 5 | W7: 5 | X7: 5 | Y7: 5 | Z7: 5 | AA7: 10 | AB7: 5 | AC7: 15 | AD7: 15 | AE7: 30 | AF7: 20 | AG7: 25 | AH7: 25 | AI7: 35 | AJ7: 30
A8: Quickness | B8: -5 | C8: 5 | D8: 5 | E8: 10 | F8: 10 | G8: 5 | H8: 15 | I8: 0 | J8: 0 | K8: 0 | L8: 0 | M8: 0 | N8: 5 | O8: 0 | P8: 0 | Q8: 0 | R8: -5 | S8: 0 | T8: 0 | U8: 0 | V8: 5 | W8: 5 | X8: 10 | Y8: 5 | Z8: 0 | AA8: 0 | AB8: 0 | AC8: -5 | AD8: -5 | AE8: -10 | AF8: -10 | AG8: -15 | AH8: -15 | AI8: -15 | AJ8: -10
A9: Presence | B9: -5 | C9: 15 | D9: 15 | E9: 10 | F9: 5 | G9: 5 | H9: -5 | I9: 0 | J9: 0 | K9: 5 | L9: 0 | M9: 0 | N9: 0 | O9: 0 | P9: -5 | Q9: 0 | R9: 5 | S9: 10 | T9: 0 | U9: 10 | V9: 0 | W9: 0 | X9: 0 | Y9: 0 | Z9: -10 | AA9: 0 | AB9: -5 | AC9: -5 | AD9: -10 | AE9: -10 | AF9: -10 | AG9: -10 | AH9: -10 | AI9: -10 | AJ9: -10
A10: Intuition | B10: 0 | C10: 5 | D10: 5 | E10: 5 | F10: 5 | G10: 0 | H10: -5 | I10: 0 | J10: 0 | K10: 0 | L10: 0 | M10: 0 | N10: 0 | O10: 0 | P10: 5 | Q10: 0 | R10: 0 | S10: 0 | T10: 0 | U10: 0 | V10: 0 | W10: 0 | X10: 0 | Y10: 0 | Z10: -10 | AA10: 0 | AB10: -5 | AC10: -5 | AD10: -10 | AE10: -10 | AF10: -10 | AG10: -10 | AH10: -10 | AI10: -10 | AJ10: -10
A11: Empathy | B11: -5 | C11: 5 | D11: 5 | E11: 0 | F11: 0 | G11: 0 | H11: 0 | I11: 0 | J11: 0 | K11: 0 | L11: 0 | M11: 0 | N11: 0 | O11: 0 | P11: 0 | Q11: 0 | R11: 0 | S11: 5 | T11: 0 | U11: 0 | V11: -5 | W11: 0 | X11: -5 | Y11: -5 | Z11: -10 | AA11: -5 | AB11: -5 | AC11: -5 | AD11: -10 | AE11: -10 | AF11: -10 | AG11: -10 | AH11: -10 | AI11: -10 | AJ11: -10
A12: Appearance | AJ12: 1
A13: Hit D type | B13: D10 | C13: D10 | D13: D10 | E13: D8 | F13: D8 | G13: D10 | H13: D8 | I13: D10 | J13: D10 | K13: D8 | L13: D8 | M13: D8 | N13: D8 | O13: D8 | P13: D8 | Q13: D8 | R13: D10 | S13: D10 | T13: D10 | U13: D10 | V13: D8 | W13: D8 | X13: D8 | Y13: D8 | Z13: D8 | AA13: D10 | AB13: D8 | AC13: D10 | AD13: D10 | AE13: D12 | AF13: D12 | AG13: D12 | AH13: D12 | AI13: D12 | AJ13: D12
A14: Soul Departure | B14: 18 | C14: 1 | D14: 1 | E14: 2 | F14: 3 | G14: 5 | H14: 18 | I14: 12 | J14: 12 | K14: 12 | L14: 12 | M14: 12 | N14: 12 | O14: 12 | P14: 12 | Q14: 12 | R14: 12 | S14: 10 | T14: 12 | U14: 10 | V14: 12 | W14: 12 | X14: 12 | Y14: 12 | Z14: 2 | AA14: 2 | AB14: 6 | AC14: 8 | AD14: 3 | AE14: 3 | AF14: 3 | AG14: 3 | AH14: 3 | AI14: 3 | AJ14: 6
A15: Rec. Mult | B15: 0.5 | C15: 3 | D15: 3 | E15: 2 | F15: 1.5 | G15: 1.5 | H15: 0.5 | I15: 1 | J15: 1 | L15: 1 | M15: 1 | N15: 1 | O15: 1 | P15: 1 | Q15: 1 | R15: 0.75 | S15: 0.75 | T15: 1 | U15: 0.75 | V15: 1 | W15: 1 | X15: 1 | Y15: 1 | Z15: 0.8 | AA15: 0.8 | AB15: 1 | AC15: 0.8 | AD15: 0.5 | AE15: 0.5 | AF15: 0.5 | AG15: 0.5 | AH15: 0.5 | AI15: 0.5 | AJ15: 0.5
A16: Max Hits | B16: 120 | C16: 120 | D16: 120 | E16: 110 | F16: 100 | G16: 130 | H16: 60 | I16: 130 | J16: 130 | K16: 120 | L16: 120 | M16: 120 | N16: 120 | O16: 120 | P16: 120 | Q16: 120 | R16: 150 | S16: 140 | T16: 120 | U16: 140 | V16: 120 | W16: 120 | X16: 110 | Y16: 120 | Z16: 120 | AA16: 140 | AB16: 120 | AC16: 160 | AD16: 150 | AE16: 170 | AF16: 180 | AG16: 200 | AH16: 180 | AI16: 240 | AJ16: 200
A17: RR Fear | B17: 0 | C17: 0 | D17: 0 | E17: 0 | F17: 0 | G17: 0 | H17: 0 | I17: 0 | J17: 0 | K17: 0 | L17: 0 | M17: 0 | N17: 0 | O17: 0 | P17: 0 | Q17: 0 | R17: 0 | S17: 0 | T17: 0 | U17: 0 | V17: 0 | W17: 0 | X17: 0 | Y17: 0 | Z17: 0 | AA17: 0 | AB17: 0 | AC17: 0 | AD17: 0 | AE17: 0 | AF17: 0 | AG17: 0 | AH17: 0 | AI17: 0 | AJ17: 0
A18: RR Disease | B18: 10 | C18: 100 | D18: 100 | E18: 100 | F18: 100 | G18: 50 | H18: 30 | I18: 0 | J18: 0 | K18: 0 | L18: 0 | M18: 0 | N18: 0 | O18: 0 | P18: 0 | Q18: 0 | R18: 0 | S18: 5 | T18: 0 | U18: 5 | V18: 0 | W18: 0 | X18: 0 | Y18: 0 | Z18: 0 | AA18: 0 | AB18: 0 | AC18: 0 | AD18: 0 | AE18: 10 | AF18: 0 | AG18: 20 | AH18: 0 | AI18: 0 | AJ18: 0
A19: RR Poison | B19: 10 | C19: 10 | D19: 10 | E19: 10 | F19: 10 | G19: 5 | H19: 15 | I19: 0 | J19: 0 | K19: 0 | L19: 0 | M19: 0 | N19: 0 | O19: 30 | P19: 0 | Q19: 0 | R19: 0 | S19: 5 | T19: 0 | U19: 5 | V19: 0 | W19: 0 | X19: 0 | Y19: 0 | Z19: 0 | AA19: 0 | AB19: 0 | AC19: 0 | AD19: 0 | AE19: 10 | AF19: 0 | AG19: 20 | AH19: 0 | AI19: 0 | AJ19: 0
A20: RR Essence | B20: 40 | C20: 0 | D20: 0 | E20: 0 | F20: 0 | G20: 0 | H20: 50 | I20: 0 | J20: 0 | K20: 0 | L20: 0 | M20: 0 | N20: 0 | O20: 0 | P20: 20 | Q20: 0 | R20: 0 | S20: 0 | T20: 0 | U20: 0 | V20: 0 | W20: 0 | X20: 0 | Y20: 0 | Z20: 0 | AA20: 0 | AB20: 0 | AC20: 0 | AD20: 0 | AE20: 0 | AF20: 0 | AG20: 0 | AH20: 0 | AI20: 0 | AJ20: 0
A21: RR Channeling | B21: 0 | C21: 0 | D21: 0 | E21: 0 | F21: 0 | G21: 0 | H21: 20 | I21: 0 | J21: 0 | K21: 0 | L21: 0 | M21: 0 | N21: 0 | O21: 0 | P21: 10 | Q21: 0 | R21: 0 | S21: 0 | T21: 0 | U21: 0 | V21: 0 | W21: 0 | X21: 0 | Y21: 0 | Z21: 0 | AA21: 0 | AB21: 0 | AC21: 0 | AD21: 0 | AE21: 0 | AF21: 0 | AG21: 0 | AH21: 0 | AI21: 0 | AJ21: 0
A22: RR Mentalism | B22: 40 | C22: 0 | D22: 0 | E22: 0 | F22: 0 | G22: 0 | H22: 40 | I22: 0 | J22: 0 | K22: 0 | L22: 0 | M22: 0 | N22: 0 | O22: 0 | P22: 0 | Q22: 0 | R22: 0 | S22: 0 | T22: 0 | U22: 0 | V22: 0 | W22: 0 | X22: 0 | Y22: 0 | Z22: 0 | AA22: 0 | AB22: 0 | AC22: 0 | AD22: 0 | AE22: 0 | AF22: 0 | AG22: 0 | AH22: 0 | AI22: 0 | AJ22: 0
A23: B. opt | B23: 350 | C23: 275 | D23: 275 | E23: 300 | F23: 325 | G23: 300 | H23: 450 | I23: 375 | J23: 350 | K23: 350 | L23: 425 | M23: 425 | N23: 400 | O23: 400 | P23: 400 | Q23: 400 | R23: 300 | S23: 275 | T23: 375 | U23: 300 | V23: 400 | W23: 375 | X23: 375 | Y23: 400 | Z23: 200 | AA23: 300 | AB23: 300 | AC23: 250 | AD23: 200 | AE23: 200 | AF23: 200 | AG23: 200 | AH23: 200 | AI23: 200 | AJ23: 300
A24: vs Cold | B24: 30 | C24: 20 | D24: 20 | E24: 15 | F24: 10 | G24: 5 | H24: 0 | I24: 0 | J24: 0 | K24: 0 | L24: 0 | M24: 0 | N24: 0 | O24: 0 | P24: 0 | Q24: 0 | R24: 0 | S24: 0 | T24: 0 | U24: 0 | V24: 0 | W24: 0 | X24: 0 | Y24: 0 | Z24: 0 | AA24: 0 | AB24: 0 | AC24: 0 | AD24: 0 | AE24: 10 | AF24: 0 | AG24: 30 | AH24: 0 | AI24: 20 | AJ24: 20
A25: vs Heat | B25: 30 | C25: 0 | D25: 0 | E25: 0 | F25: 0 | G25: 0 | H25: 0 | I25: 0 | J25: 0 | K25: 0 | L25: 0 | M25: 0 | N25: 0 | O25: 0 | P25: 0 | Q25: 0 | R25: 0 | S25: 0 | T25: 0 | U25: 0 | V25: 0 | W25: 0 | X25: 0 | Y25: 0 | Z25: 30 | AA25: 0 | AB25: 0 | AC25: 15 | AD25: 0 | AE25: 10 | AF25: 0 | AG25: 0 | AH25: 0 | AI25: 10 | AJ25: 20
A26: Spell list | B26: 0.03 | C26: 0.5 | D26: 0.3 | E26: 0.3 | F26: 0.2 | G26: 0.1 | H26: N/A | I26: 0 | J26: 0 | K26: 0.1 | L26: 0.03 | M26: 0.15 | N26: 0.05 | O26: 0.1 | P26: 0.05 | Q26: 0.03 | R26: 0.03 | S26: 0.25 | T26: 0.02 | U26: 0.25 | V26: 0.02 | W26: 0.02 | X26: 0.02 | Y26: 0.02 | Z26: 0 | AA26: 0 | AB26: 0 | AC26: 0 | AD26: 0 | AE26: 0 | AF26: 0 | AG26: 0 | AH26: 0 | AI26: 0 | AJ26: 0
A28: Adolescent skills
A29: 1H Crush | B29: 4 | O29: 1 | P29: 2 | T29: 2 | Z29: 3 | AA29: 1 | AB29: 3 | AC29: 2 | AD29: 2 | AF29: 3 | AG29: 2 | AH29: 3 | AI29: 3 | AJ29: 3
A30: 1H Slash | D30: 2 | E30: 2 | F30: 2 | G30: 2 | I30: 2 | J30: 2 | K30: 2 | L30: 1 | M30: 1 | N30: 2 | O30: 1 | Q30: 1 | S30: 2 | U30: 3 | V30: 1 | W30: 2 | X30: 2 | Y30: 2 | AA30: 4 | AJ30: 3
A31: 1H Thrust | E31: 1 | N31: 1 | S31: 1 | U31: 2 | AA31: 1
A32: 2 Handed | B32: 2 | D32: 2 | I32: 2 | K32: 1 | R32: 2 | S32: 2 | U32: 3 | AA32: 1 | AC32: 4 | AD32: 3 | AE32: 3 | AF32: 3 | AG32: 3 | AH32: 3 | AI32: 4 | AJ32: 5
A33: AM Balance | F33: 1 | N33: 2 | Q33: 1 | V33: 1 | W33: 1 | X33: 2
A34: AM Speed | H34: 1 | N34: 1 | V34: 1 | X34: 2
A35: AM Strength | B35: 2 | R35: 2 | AC35: 1 | AD35: 1 | AE35: 1 | AF35: 2 | AG35: 2 | AH35: 2 | AI35: 2 | AJ35: 2
A36: Ambush | P36: 2 | Z36: 1 | AA36: 1 | AB36: 1
A37: Body Development | B37: 3 | C37: 1 | D37: 2 | E37: 1 | F37: 1 | G37: 1 | H37: 2 | I37: 2 | J37: 2 | K37: 2 | L37: 2 | M37: 1 | N37: 2 | O37: 1 | P37: 3 | Q37: 2 | R37: 3 | S37: 3 | T37: 3 | U37: 3 | V37: 2 | W37: 2 | X37: 1 | Y37: 2 | Z37: 2 | AA37: 3 | AB37: 2 | AC37: 4 | AD37: 4 | AE37: 5 | AF37: 5 | AG37: 5 | AH37: 5 | AI37: 5 | AJ37: 5
A38: Bow | B38: 1 | D38: 1 | E38: 2 | F38: 3 | G38: 2 | H38: 2 | I38: 1 | J38: 1 | K38: 1 | L38: 1 | M38: 1 | N38: 1 | O38: 1 | Q38: 2 | S38: 1 | T38: 1 | U38: 1 | V38: 2 | W38: 2 | X38: 1 | Y38: 1 | AA38: 1 | AB38: 1
A39: Climbing | B39: 1 | E39: 1 | F39: 2 | G39: 1 | H39: 2 | I39: 1 | L39: 1 | N39: 2 | P39: 3 | Q39: 3 | R39: 2 | T39: 5 | X39: 1 | Z39: 1 | AA39: 1 | AB39: 1 | AC39: 1 | AD39: 1 | AE39: 1 | AF39: 1 | AG39: 1 | AH39: 2 | AI39: 1 | AJ39: 1
A40: Disarm traps | B40: 1 | H40: 1
A41: General perception | B41: 1 | C41: 3 | D41: 3 | E41: 3 | F41: 3 | G41: 1 | H41: 4 | I41: 1 | J41: 1 | K41: 1 | L41: 1 | M41: 1 | N41: 1 | O41: 1 | P41: 2 | Q41: 1 | R41: 1 | S41: 1 | T41: 1 | U41: 1 | V41: 1 | W41: 2 | X41: 1 | Y41: 1 | Z41: 1 | AA41: 1 | AB41: 1 | AC41: 1 | AD41: 1 | AF41: 1 | AG41: 1 | AH41: 1 | AI41: 1 | AJ41: 1
A42: MA Strikes | B42: 2 | R42: 2 | X42: 2 | AC42: 2 | AD42: 2 | AE42: 4 | AF42: 3 | AG42: 3 | AH42: 3 | AI42: 4 | AJ42: 4
A43: MA Sweeps | X43: 2
A44: Man. Chain | B44: 3 | G44: 1 | I44: 2 | J44: 2 | K44: 2 | L44: 1 | S44: 2 | U44: 3 | Y44: 2 | Z44: 2 | AA44: 3 | AB44: 1 | AC44: 3 | AJ44: 2
A45: Man. Plate | B45: 1 | G45: 1 | S45: 1 | U45: 2 | AA45: 2 | AC45: 3 | AJ45: 2
A46: Man. Rigid L | B46: 1 | G46: 1 | I46: 1 | J46: 1 | K46: 1 | L46: 1 | N46: 2 | O46: 1 | S46: 1 | T46: 1 | U46: 1 | V46: 1 | W46: 1 | Y46: 1 | Z46: 3 | AA46: 2 | AB46: 3 | AC46: 2
A47: Man. Soft L | B47: 1 | E47: 1 | F47: 1 | I47: 1 | J47: 1 | K47: 1 | L47: 1 | M47: 1 | N47: 1 | O47: 1 | P47: 3 | Q47: 2 | R47: 1 | T47: 1 | V47: 1 | W47: 1 | X47: 1 | Y47: 1 | Z47: 2 | AA47: 1 | AB47: 1 | AC47: 1
A48: Pick locks | B48: 2 | H48: 1
A49: Polearm | E49: 1 | F49: 1 | J49: 2 | K49: 1 | L49: 1 | O49: 1 | P49: 1 | Q49: 1 | R49: 2 | S49: 1 | T49: 2 | V49: 2 | Y49: 2 | Z49: 1 | AA49: 1 | AB49: 1 | AG49: 2 | AJ49: 2
A50: Riding | C50: 1 | D50: 1 | E50: 1 | F50: 1 | G50: 1 | I50: 1 | J50: 8 | K50: 1 | L50: 1 | M50: 1 | O50: 2 | S50: 1 | U50: 1 | V50: 5 | W50: 5 | Y50: 1
A51: Runes | C51: 2 | D51: 1 | E51: 1 | G51: 1 | K51: 1 | S51: 1 | U51: 2
A52: Shield | B52: 2 | D52: 2 | E52: 1 | F52: 1 | G52: 1 | I52: 1 | J52: 1 | K52: 1 | L52: 1 | N52: 1 | S52: 1 | T52: 1 | U52: 2 | V52: 1 | W52: 1 | X52: 1 | Y52: 1 | Z52: 1 | AA52: 2 | AB52: 1 | AJ52: 2
A53: Stalk & Hide | C53: 1 | D53: 2 | E53: 3 | F53: 4 | G53: 2 | H53: 5 | I53: 1 | J53: 1 | L53: 1 | M53: 1 | P53: 4 | Q53: 4 | R53: 4 | T53: 2 | V53: 1 | X53: 2 | Z53: 1 | AD53: 1
A54: Staves & wands | B54: 2 | C54: 2 | D54: 2 | E54: 1 | F54: 1 | G54: 1 | K54: 1 | M54: 1 | S54: 1 | U54: 2
A55: Swimming | C55: 1 | D55: 2 | E55: 2 | F55: 3 | G55: 1 | K55: 1 | L55: 1 | M55: 1 | N55: 2 | P55: 2 | Q55: 1 | R55: 2 | S55: 1 | T55: 1 | U55: 1 | X55: 1
A56: Thrown | B56: 1 | H56: 2 | L56: 1 | N56: 1 | O56: 1 | P56: 4 | Q56: 1 | R56: 1 | T56: 2 | V56: 1 | W56: 2 | Y56: 2 | Z56: 1 | AA56: 1 | AB56: 1 | AC56: 2 | AD56: 2 | AE56: 1 | AF56: 2 | AG56: 1 | AH56: 2 | AI56: 2 | AJ56: 2
A58: Total | B58: =SUM(B29:B56) -> 30 | C58: =SUM(C29:C56) -> 11 | D58: 20 | E58: 21 | F58: 24 | G58: 17 | H58: 20 | I58: 16 | J58: 22 | K58: 17 | L58: 15 | M58: 9 | N58: 19 | O58: 11 | P58: 26 | Q58: 19 | R58: 22 | S58: 20 | T58: 22 | U58: =SUM(U29:U56) -> 27 | V58: 20 | W58: 19 | X58: 19 | Y58: 16 | Z58: 19 | AA58: 26 | AB58: 17 | AC58: 26 | AD58: 17 | AE58: 15 | AF58: 20 | AG58: 20 | AH58: 21 | AI58: 22 | AJ58: 34
A60: Racial bonuses
A61: AM Balance | F61: 10 | N61: 10 | Q61: 20 | T61: 20 | W61: 5 | X61: 10
A62: AM Landing | X62: 10
A63: AM Leaping | X63: 10
A64: AM Speed | X64: 10
A65: AM Strength | AC65: 10 | AD65: 10 | AE65: 20 | AF65: 10 | AG65: 15 | AH65: 20 | AI65: 20 | AJ65: 20
A66: Adrenal Defense
A67: Armored AD
A68: Ambush | P68: 10
A69: Sniping | P69: 10
A70: Body Development | AC70: 10 | AD70: 15 | AE70: 20 | AF70: 20 | AG70: 20 | AH70: 20 | AI70: 20 | AJ70: 20
A71: Channeling | P71: 10
A72: Climbing | Q72: 20 | T72: 20 | X72: 10
A73: Directed Spells
A74: Disarm Traps
A75: General Perception | C75: 20 | D75: 20 | E75: 20 | F75: 20
A76: MA Strikes
A77: MA Sweeps
A78: Man. Soft L
A79: Man. Rigid L
A80: Man. Chain
A81: Man. Plate
A82: Pick locks
A83: Riding | J83: 20 | V83: 10
A84: Runes | C84: 20
A85: Staves & Wands | C85: 20 | D85: 20
A86: Stalk & Hide | F86: 10
A87: Swimming
A88: Administration | C88: 10 | S88: 10 | U88: 10
A89: Alchemy | C89: 10
A90: Architecture | C90: 10 | S90: 10 | U90: 10
A91: Basic Mathematics | C91: 10 | S91: 10 | U91: 10
A92: Biochemistry | C92: 10
A93: Boat Pilot | C93: 10 | E93: 10 | N93: 10 | O93: 10
A94: Cryptography | C94: 10
A95: Demon/Devil Lore | C95: 10
A96: Drafting | C96: 10
A97: Dragon Lore | C97: 10
A98: Engineering | C98: 10
A99: Faerie Lore | C99: 10
A100: Fauna Lore | C100: 10 | F100: 10 | Q100: 10 | R100: 20
A101: Flora Lore | C101: 10 | F101: 10 | P101: 10 | Q101: 10
A102: Heraldry | C102: 10 | O102: 5 | S102: 10 | U102: 10
A103: Herb Lore | C103: 10 | F103: 10 | O103: 5 | P103: 10
A104: Lock Lore | B104: 10 | C104: 10
A105: Mapping | C105: 10
A106: Mechanition | C106: 10
A107: Metal Lore | B107: 10 | C107: 10
A108: Military Organization | C108: 10 | N108: 10 | S108: 10 | U108: 10 | AA108: 5
A109: Mining | B109: 10 | C109: 10
A110: Navigation | C110: 10 | E110: 10 | N110: 15 | O110: 10
A111: Phil/Relig. Doctrine | C111: 10
A112: Poison Lore | C112: 10 | O112: 10 | P112: 10
A113: Racial History | C113: 10 | S113: 10 | U113: 10
C114: 10
A115: Sanity Healing Lore | C115: 10
A116: Siege Engineer | C116: 10
A117: Spec. know. Lore | C117: 10
C118: 10
A119: Star-gazing | C119: 10 | N119: 10 | O119: 5
A120: Stone Lore | B120: 10 | C120: 10
A121: Tactics | C121: 10 | S121: 10 | U121: 10 | AA121: 5
A122: Trading lore | C122: 10 | O122: 10
A123: Weather Watching | C123: 10 | E123: 10 | N123: 25 | O123: 5 | P123: 10 | R123: 10
A124: Animal handling | F124: 10 | J124: 10 | Q124: 5 | R124: 15 | V124: 10 | W124: 20
A125: Animal training | F125: 10 | J125: 10 | Q125: 5 | R125: 15 | V125: 10 | W125: 20
A126: Beast Master | F126: 10 | P126: 5 | R126: 25 | AD126: 10
A127: Driving | O127: 5 | T127: 10 | V127: 10 | W127: 10
A128: Herding | R128: 10
A129: Loading
A130: Athletic Games | Q130: 15
A131: Dancing
A132: Distance Running | R132: 15 | Z132: 10 | AA132: 10
A133: Diving
A134: Flying/Gliding
A135: Holding Breath
A136: Portaging | B136: 10 | R136: 10 | AC136: 10 | AD136: 20 | AE136: 30 | AF136: 25 | AH136: 25 | AI136: 25 | AJ136: 25
A137: Rappelling | N137: 15 | Q137: 10
A138: Rowing | N138: 10 | O138: 10
A139: Sailing | E139: 20 | N139: 20 | O139: 10
A140: Skating
A141: Skiing
A142: Sprinting
A143: Brawling | B143: 20 | R143: 20 | AC143: 10 | AD143: 20 | AE143: 30 | AF143: 25 | AG143: 30 | AH143: 25 | AI143: 30 | AJ143: 30
A144: Defensive Technique
A145: Defensive Weaving
A146: Disarm, Armed
A147: Disarm, Unarmed
A148: Donning/Doffing Chain
A149: Donning/Doffing Plate
A150: Donning/Doffing RL
A151: Donning/Doffing SL
A152: Expertise
A153: Feinting | N153: 10
A154: Grappling Hook | N154: 25
A155: Honing | P155: 10
A156: Iai
A157: Instinctive Maneuver
A158: Lancing
A159: Melee Scuffle | B159: 10 | R159: 20 | AC159: 15 | AD159: 25 | AE159: 30 | AF159: 25 | AG159: 30 | AH159: 25 | AI159: 30 | AJ159: 30
A160: Missile Artillery | N160: 10
A161: SeaBorn Combat | E161: 15 | N161: 25 | O161: 5
A162: Shield Bash | AD162: 25 | AF162: 25 | AG162: 15 | AH162: 25 | AJ162: 30
A163: Shield Expertise
A164: Stunned Maneuver | AC164: 15 | AD164: 25 | AE164: 30 | AF164: 25 | AG164: 30 | AH164: 30 | AI164: 30 | AJ164: 30
A165: Subduing
A166: Tackling | B166: 10 | R166: 20 | AC166: 15 | AD166: 25 | AE166: 30 | AF166: 25 | AG166: 30 | AH166: 30 | AI166: 30 | AJ166: 30
A167: Unarmed Expertise
A168: Weapon Brawling
A169: Weapon Kata
A170: Yado
A171: AM Quickdraw
A172: Blind Fighting | D172: 40 | E172: 20
A173: Body Damage Stabilization | AA173: 20 | AD173: 20
A174: Control Lycantrophy
A175: Dowsing
A176: Frenzy | R176: 15 | T176: 10 | AA176: 5 | AD176: 15 | AF176: 15 | AG176: 15 | AH176: 15 | AI176: 20 | AJ176: 15
A177: Meditation Cleansing | P177: 10
A178: Meditation Death | P178: 10
A179: Meditation Healing | P179: 10
A180: Meditation Ki | P180: 10
A181: Meditation Sleep | P181: 10
A182: Meditation Trance | C182: 25 | D182: 25 | E182: 20 | F182: 20
A183: Mnemonics
A184: Prepared Shot | P184: 10
A185: WOW Fatigue | B185: 10 | P185: 10 | R185: 10 | T185: 5 | AA185: 15 | AD185: 20 | AE185: 30 | AF185: 20 | AG185: 30 | AH185: 30 | AI185: 30 | AJ185: 30
A186: WOW Pain | B186: 10 | R186: 10 | T186: 5 | AA186: 15 | AD186: 20 | AE186: 30 | AF186: 20 | AG186: 30 | AH186: 30 | AI186: 30 | AJ186: 30
A187: WOW Unconsciousness | B187: 10 | R187: 10 | T187: 5 | AA187: 15 | AD187: 20 | AE187: 30 | AF187: 20 | AG187: 30 | AH187: 30 | AI187: 30 | AJ187: 30
A188: WOW Will | B188: 10 | P188: 10 | AA188: 5
A189: Silent Kill | P189: 10
A190: Use/Remove Poison | O190: 10 | P190: 10 | AA190: 5
A191: Appraisal | B191: 5 | C191: 10 | O191: 5
A192: Armor Evaluation | B192: 5 | C192: 10 | D192: 10 | O192: 5 | AA192: 5
A193: Metal Evaluation | B193: 5 | C193: 10 | O193: 5 | AA193: 5
A194: Stone Evaluation | B194: 5 | C194: 10 | O194: 5
A195: Weapon Evaluation | B195: 5 | C195: 10 | D195: 10 | O195: 5
A196: Advertising
A197: Cookery | H197: 10 | P197: 5
A198: Crafting
A199: Fletching | F199: 10 | Q199: 5
A200: Gimmickry
A201: Horticulture
A202: Hygien
A203: Leatherworking | P203: 5 | Q203: 5
... 92 more rows

Sheet Diverse
A1: Stat value | B1: Bonus | C1: Dev.pts | D1: Baserate | E1: Alchemist | F1: Dwarf | G1: Valt yrke | H1: Nada | J1: Frågor, din dumma djävulsdyrkande och löjliga rollspelsfåne! | K1: Svar på tal, din jävla tattare… du med så sparsam intellektuell begåvning ska passa dig noga! | L1: 1
A2: 1 | B2: -25 | C2: 1 | D2: 25 | E2: Archer | F2: Noldo (Academic) | G2: =INDEX(Diverse!E1:E84,'Ny NPC'!A2) -> Alchemist | H2: Ett varannan level | J2: Hur kan man sätta tre kryss på två levlar? | K2: Du sätter ett nu och två nästa level…
A3: 2 | B3: -23 | C3: 1.3 | D3: 30 | E3: Archmage | F3: Noldo (Martial) | H3: Ett varje level | J3: Vad kostar det för varje level att sätta tre kryss varannan level? | K3: Det kostar hälften av vad det gör totalt.
A4: 3 | B4: -21 | C4: 1.6 | D4: 35 | E4: Assassin | F4: Sinda | G4: Vald ras | H4: Tre på två levlar | J4: Kan jag redigera en gubbe som jag trodde att jag var klar med? | K4: Nä, är du klar så är du klar. Du kan gå in på bladet Master NPC table och ändra själv om du vill.
A5: 4 | B5: -19 | C5: 1.8 | D5: 35 | E5: Astrologer | F5: Silvan | G5: =INDEX(Diverse!F1:F94,'Ny NPC'!C2) -> Dwarf | H5: Två varje level | J5: Jag kan välja att slå högre på hits än vad jag borde kunna med den ras jag valt… | K5: Ja, jag vet… men eftersom du har märkt det så antar jag att du inte vill fuska så mycket. Att du alls är i närheten av max-slaget är orimligt!
A6: 5 | B6: -17 | C6: 2 | D6: 40 | E6: Barbarian | F6: Half-elf | J6: Kan jag fortfarande göra gubben trots att jag gjort av med mer dev.pts än jag har? | K6: Ja, det finns ingen sån spärr. Du är SL, du får bända på reglerna lite grann.
A7: 6 | B7: -15 | C7: 2.2 | D7: 40 | E7: Bard | F7: Hobbit | G7: Karaktärens level | H7: Dev.pts primary | J7: Varför är kalkylen så onödigt stor? Den är ju på över en MB… | K7: Bra fråga, svaret är att det är ganska mycket text som har skrivits in och att Excelkalkyler kan både svälla och bli långsamma efter ett tag.
A8: 7 | B8: -14 | C8: 2.4 | D8: 40 | E8: Bashkar | F8: Northman | G8: 3 | H8: =SUM('Ny NPC'!V3:V12)/2 -> 35 | J8: Måste man verkligen skriva så här mycket själv och räkna hela tiden? | K8: Du har nog valt att spelleda i fel rollspel, du kan nog ta att köra systemlöst och utan papper… latmask!
A9: 8 | B9: -13 | C9: 2.6 | D9: 40 | E9: Beastmaster | F9: Eothraim | H9: Dev.pts secondary | J9: Jag kan ju välja samma vapentyp på olika kategorier! | K9: …och vad har du tjänat på det då? Du har istället förlorat dev.pts och respekt!
A10: 9 | B10: -12 | C10: 2.7 | D10: 40 | E10: Bounty Hunter | F10: Lesser Dunadan | G10: Medelhits-slag | H10: =70+H8 -> 105 | J10: Varför är vissa kalkylblad låsta och/eller dolda? | K10: Risken är att om du skulle få gå in i dem så gör du större skada än nytta…
A11: 10 | B11: -11 | C11: 2.8 | D11: 45 | E11: Burglar | F11: Common (rural) | G11: 35 | J11: Jag vill lägga in egna raser, egna yrken och egna skills… går det bra? | K11: Visst, ta dig in i rätt blad och ändra det du vill (gärna i alfabetisk ordning) men du har ju lika lite support från mig vilket som…
A12: 11 | B12: -10 | C12: 2.9 | D12: 45 | E12: Cavalier | F12: Common (city-folk) | G12: =G11/10+1 -> 4.5 | J12: Jag vill ha några secondary skills också, har inte alla Stunned Maneuver nuförtiden? | K12: Jo, men det är lite trångt redan nu med 33 skills. Tror du inte att något av vapen-skillsen är lika höga som Stunned… borde vara?
A13: 12 | B13: -10 | C13: 2.9 | D13: 45 | E13: Channeler | F13: Corsair | J13: Såhär kan man väl inte göra en NPC, det är ju sterilt, fånigt och utan känsla! | K13: Jodå, det kan man. Jag kan göra mina riktiga karaktärer här ända tills jag kommer till skills med bara ett rank eller de över 30 då det inte är värt de poäng det kostar.
A14: 13 | B14: -9 | C14: 3 | D14: 45 | E14: Conjuror | F14: Dorwinadan | G14: Vapengrupp/stats | J14: Det saknas skillranks för level noll på trollen, orcherna och jättarna! | K14: Ja, antingen hade de ingen barndom eller så har ingen orkat göra level noll för dem. Har du nåt förslag så hör av dig!
A15: 14 | B15: -9 | C15: 3 | D15: 45 | E15: Craftsman | F15: Wose | G15: 1H Crush | H15: =(ST+ST+EQ)/3 -> 11.66666667 | J15: Fan va smått det är med alla knappar, text osv… | K15: Ja, antingen det eller sprida ut sig mer på bredden. Det är inte perfekt, men alla har varken 21"-skärmar eller upplösning som matchar. Använd Excels zoom-funktion eller låt bli…
A16: 15 | B16: -9 | C16: 3 | D16: 45 | E16: Crystal mage | F16: Woodman | G16: 1H Slash | H16: =(ST+ST+AG+EQ)/4 -> 8.75
A17: 16 | B17: -8 | C17: 3.3 | D17: 45 | E17: Cultist | F17: Beorning | G17: 1H Thrust | H17: =(AG+QU+ST+EQ)/4 -> 5
A18: 17 | B18: -8 | C18: 3.3 | D18: 45 | E18: Dancer | F18: Greater Dunadan | G18: 2 Handed | H18: =(ST+ST+EQ)/3 -> 11.66666667
A19: 18 | B19: -8 | C19: 3.3 | D19: 45 | E19: Dervish | F19: Dunlending | G19: Polearm | H19: =(ST+ST+AG+EQ)/4 -> 8.75
A20: 19 | B20: -7 | C20: 3.6 | D20: 45 | E20: Druid | F20: Black Numenorean | G20: Staff | H20: =(ST+ST+AG+EQ)/4 -> 8.75
A21: 20 | B21: -7 | C21: 3.6 | D21: 45 | E21: Duelist | F21: Easterling | G21: Bow | H21: =(AG+AG+ST)/3 -> 5
A22: 21 | B22: -7 | C22: 3.6 | D22: 45 | E22: Enchanter | F22: Sagath/Logath | G22: Crossbow | H22: =AG -> 0
A23: 22 | B23: -6 | C23: 3.8 | D23: 45 | E23: Farmer | F23: Gathmarim | G23: Blowgun | H23: =(CO+AG)/2 -> 10
A24: 23 | B24: -6 | C24: 3.8 | D24: 45 | E24: Feldsher | F24: Variag | G24: Thrown | H24: =(AG+ST)/2 -> 7.5 | J24: Är du så jävla bra själv då? | K24: Nä, men är du så jävla bra själv då? (jag har också hört på Riskradion)
A25: 24 | B25: -6 | C25: 3.8 | D25: 45 | E25: Fighter | F25: Orc
A26: 25 | B26: -5 | C26: 4 | D26: 45 | E26: Forcemage | F26: Uruk-Hai | G26: Primärt vapen | H26: 4 | L26: Channeling | M26: Essence | N26: Mentalism
A27: 26 | B27: -5 | C27: 4 | D27: 50 | E27: Healer | F27: Half-orc | G27: Sekundärt vapen | H27: 5 | J27: None | K27: 1 | L27: 0 | M27: 0 | N27: 0
A28: 27 | B28: -5 | C28: 4 | D28: 50 | E28: High War monk | F28: Half-troll | G28: Tertiärt vapen | H28: 10 | J28: Leather | K28: 2 | L28: 0 | M28: 16 | N28: 20
A29: 28 | B29: -4 | C29: 4.3 | D29: 50 | E29: Horseman | F29: Forest Troll | G29: Fjärde vapen | H29: 2 | J29: Leather and metal | K29: 3 | L29: 6 | M29: 22 | N29: 30
A30: 29 | B30: -4 | C30: 4.3 | D30: 50 | E30: Houri | F30: Stone Troll | G30: Femte vapen | H30: 3 | J30: Metal | K30: 4 | L30: 12 | M30: 32 | N30: 50
A31: 30 | B31: -3 | C31: 4.6 | D31: 50 | E31: Hunter | F31: Hill Troll | G31: Sjätte vapen | H31: 7
A32: 31 | B32: -3 | C32: 4.6 | D32: 50 | E32: Illusionist | F32: Snow Troll
A33: 32 | B33: -3 | C33: 4.6 | D33: 50 | E33: Indurate | F33: Mountain Troll | G33: Armor Type | H33: MMP | I33: Maximum Penalty | J33: Missile Attack Penalty | K33: Quickness Penalty | L33: Reverse | M33: Channeling | N33: Essence
A34: 33 | B34: -2 | C34: 4.8 | D34: 50 | E34: Lancer | F34: Cave Troll | G34: 1 | H34: 0 | I34: 0 | J34: 0 | K34: 0 | L34: 0 | M34: 0 | N34: 0
A35: 34 | B35: -2 | C35: 4.8 | D35: 50 | E35: Leader | F35: Olog-Hai | G35: 2 | H35: 0 | I35: 0 | J35: 0 | K35: 0 | L35: 0 | M35: 0 | N35: 0
A36: 35 | B36: -2 | C36: 4.8 | D36: 50 | E36: Macabre | G36: 3 | H36: 0 | I36: 0 | J36: 0 | K36: 0 | L36: 0 | M36: 0 | N36: 0
A37: 36 | B37: -2 | C37: 4.8 | D37: 50 | E37: Magician | G37: 4 | H37: 0 | I37: 0 | J37: 0 | K37: 0 | L37: 0 | M37: 0 | N37: 0
A38: 37 | B38: -1 | C38: 5 | D38: 50 | E38: Mentalist | G38: 5 | H38: 0 | I38: 0 | J38: 0 | K38: 0 | L38: 0 | M38: 0 | N38: 8
A39: 38 | B39: -1 | C39: 5 | D39: 50 | E39: Monk | G39: 6 | H39: 0 | I39: -20 | J39: -5 | K39: 0 | L39: 0 | M39: 0 | N39: 12
A40: 39 | B40: -1 | C40: 5 | D40: 50 | E40: Montebanc | G40: 7 | H40: -5 | I40: -40 | J40: -5 | K40: -5 | L40: 5 | M40: 0 | N40: 16
A41: 40 | B41: -1 | C41: 5 | D41: 50 | E41: Moon Mage | G41: 8 | H41: -10 | I41: -50 | J41: -10 | K41: -5 | L41: 10 | M41: 0 | N41: 20
A42: 41 | B42: 0 | C42: 5.5 | D42: 50 | E42: Mystic | G42: 9 | H42: -5 | I42: -50 | J42: 0 | K42: 0 | L42: 5 | M42: 0 | N42: 12
A43: 42 | B43: 0 | C43: 5.5 | D43: 50 | E43: Necromancer | G43: 10 | H43: -10 | I43: -70 | J43: -10 | K43: -5 | L43: 10 | M43: 0 | N43: 24
A44: 43 | B44: 0 | C44: 5.5 | D44: 50 | E44: Nightblade | G44: 11 | H44: -15 | I44: -90 | J44: -20 | K44: -15 | L44: 15 | M44: 0 | N44: 32
A45: 44 | B45: 0 | C45: 5.5 | D45: 50 | E45: No Profession | G45: 12 | H45: -15 | I45: -110 | J45: -30 | K45: -15 | L45: 15 | M45: 0 | N45: 40
A46: 45 | B46: 0 | C46: 5.5 | D46: 50 | E46: Outrider | G46: 13 | H46: -10 | I46: -70 | J46: 0 | K46: -5 | L46: 10 | M46: 15 | N46: 28
A47: 46 | B47: 0 | C47: 5.5 | D47: 50 | E47: Paladin | G47: 14 | H47: -15 | I47: -90 | J47: -10 | K47: -10 | L47: 15 | M47: 22 | N47: 36
A48: 47 | B48: 0 | C48: 5.5 | D48: 50 | E48: Ranger | G48: 15 | H48: -25 | I48: -120 | J48: -20 | K48: -20 | L48: 25 | M48: 36 | N48: 56
A49: 48 | B49: 0 | C49: 5.5 | D49: 50 | E49: Rogue | G49: 16 | H49: -25 | I49: -130 | J49: -20 | K49: -20 | L49: 25 | M49: 36 | N49: 56
A50: 49 | B50: 0 | C50: 5.5 | D50: 50 | E50: Romantic | G50: 17 | H50: -15 | I50: -90 | J50: 0 | K50: -10 | L50: 15 | M50: 20 | N50: 32
A51: 50 | B51: 0 | C51: 5.5 | D51: 50 | E51: Sage | G51: 18 | H51: -20 | I51: -110 | J51: -10 | K51: -20 | L51: 20 | M51: 32 | N51: 40
A52: 51 | B52: 0 | C52: 5.5 | D52: 50 | E52: Sailor | G52: 19 | H52: -35 | I52: -150 | J52: -30 | K52: -30 | L52: 35 | M52: 38 | N52: 60
A53: 52 | B53: 0 | C53: 5.5 | D53: 50 | E53: Scholar | G53: 20 | H53: -45 | I53: -165 | J53: -40 | K53: -40 | L53: 45 | M53: 45 | N53: 72
A54: 53 | B54: 0 | C54: 5.5 | D54: 50 | E54: Seer
A55: 54 | B55: 0 | C55: 5.5 | D55: 50 | E55: Shadow Mage | G55: Length | H55: Baserate
A56: 55 | B56: 0 | C56: 5.5 | D56: 50 | E56: Shaikan | G56: 1 | H56: -10
A57: 56 | B57: 0 | C57: 5.5 | D57: 50 | E57: Shaman | G57: 100 | H57: -5
A58: 57 | B58: 0 | C58: 5.5 | D58: 50 | E58: Sleuth | G58: 163 | H58: 0
A59: 58 | B59: 0 | C59: 5.5 | D59: 50 | E59: Sorceror | G59: 194 | H59: 5
A60: 59 | B60: 0 | C60: 5.5 | D60: 50 | E60: Swordsman | G60: 208 | H60: 10
A61: 60 | B61: 1 | C61: 6 | D61: 50 | E61: Templar | G61: 223 | H61: 15
A62: 61 | B62: 1 | C62: 6 | D62: 50 | E62: Thief | G62: 238 | H62: 20
A63: 62 | B63: 1 | C63: 6 | D63: 50 | E63: Trader
A64: 63 | B64: 1 | C64: 6 | D64: 50 | E64: Trench Fighter | G64: Weapon Type
A65: 64 | B65: 2 | C65: 6.3 | D65: 50 | E65: War Monk | G65: Unencumbered | I65: 90
A66: 65 | B66: 2 | C66: 6.3 | D66: 50 | E66: Warlock | G66: 1H weapon (no shield) | I66: 60
A67: 66 | B67: 2 | C67: 6.3 | D67: 50 | E67: Warrior | G67: 1H thrust & shield | I67: 40
A68: 67 | B68: 2 | C68: 6.3 | D68: 50 | E68: Warrior Mage | G68: 1H weapon & shield | I68: 30
A69: 68 | B69: 3 | C69: 6.6 | D69: 50 | E69: Witch | G69: 2w Combo (small weapons) | I69: 45
A70: 69 | B70: 3 | C70: 6.6 | D70: 50 | E70: Witch Hunter | G70: 2w Combo (large weapons) | I70: 30
A71: 70 | B71: 3 | C71: 6.6 | D71: 50 | E71: Wizard | G71: Twohanded weapon | I71: 30
A72: 71 | B72: 3 | C72: 6.6 | D72: 50
A73: 72 | B73: 4 | C73: 6.8 | D73: 50 | G73: Channeling
A74: 73 | B74: 4 | C74: 6.8 | D74: 50 | G74: Essence
A75: 74 | B75: 4 | C75: 6.8 | D75: 50 | G75: Mentalism
A76: 75 | B76: 5 | C76: 7 | D76: 50 | G76: Hybrid: Channeling/Essence
A77: 76 | B77: 5 | C77: 7 | D77: 50 | G77: Hybrid: Channeling/Mentalism
A78: 77 | B78: 5 | C78: 7 | D78: 50 | G78: Hybrid: Mentalism/Essence
A79: 78 | B79: 6 | C79: 7.4 | D79: 50 | G79: Arcane
A80: 79 | B80: 6 | C80: 7.4 | D80: 50
A81: 80 | B81: 6 | C81: 7.4 | D81: 50 | G81: Stat value | H81: PP Recovery
A82: 81 | B82: 7 | C82: 7.7 | D82: 50 | G82: 1 | H82: 0
A83: 82 | B83: 7 | C83: 7.7 | D83: 50 | G83: 2 | H83: 0
A84: 83 | B84: 7 | C84: 7.7 | D84: 50 | G84: 3 | H84: 0
A85: 84 | B85: 8 | C85: 8 | D85: 50 | G85: 4 | H85: 0
A86: 85 | B86: 8 | C86: 8 | D86: 50 | G86: 5 | H86: 0
A87: 86 | B87: 8 | C87: 8 | D87: 50 | G87: 6 | H87: 0
A88: 87 | B88: 9 | C88: 8.2 | D88: 50 | G88: 7 | H88: 0
A89: 88 | B89: 9 | C89: 8.2 | D89: 50 | G89: 8 | H89: 0
A90: 89 | B90: 9 | C90: 8.2 | D90: 50 | G90: 9 | H90: 0
A91: 90 | B91: 10 | C91: 8.4 | D91: 50 | G91: 10 | H91: 0
A92: 91 | B92: 11 | C92: 8.6 | D92: 51 | G92: 11 | H92: 0
A93: 92 | B93: 12 | C93: 8.7 | D93: 52 | G93: 12 | H93: 0
A94: 93 | B94: 13 | C94: 8.8 | D94: 53 | G94: 13 | H94: 0
A95: 94 | B95: 14 | C95: 8.9 | D95: 54 | G95: 14 | H95: 0
A96: 95 | B96: 15 | C96: 9 | D96: 55 | G96: 15 | H96: 0
A97: 96 | B97: 17 | C97: 9.2 | D97: 56 | G97: 16 | H97: 0
A98: 97 | B98: 19 | C98: 9.4 | D98: 57 | G98: 17 | H98: 0
A99: 98 | B99: 21 | C99: 9.6 | D99: 58 | G99: 18 | H99: 0
A100: 99 | B100: 23 | C100: 9.8 | D100: 59 | G100: 19 | H100: 0
A101: 100 | B101: 25 | C101: 10 | D101: 60 | G101: 20 | H101: 0
A102: 101 | B102: 30 | C102: 10.5 | D102: 62 | G102: 21 | H102: 0
A103: 102 | B103: 35 | C103: 11 | D103: 64 | G103: 22 | H103: 0
A104: 103 | B104: 40 | C104: 11.5 | D104: 66 | G104: 23 | H104: 0
A105: 104 | B105: 45 | C105: 12 | D105: 68 | G105: 24 | H105: 0
A106: 105 | B106: 50 | C106: 12.5 | D106: 70 | G106: 25 | H106: 1
A107: 106 | B107: 55 | C107: 13 | D107: 72 | G107: 26 | H107: 1
A108: 107 | B108: 60 | C108: 13.5 | D108: 74 | G108: 27 | H108: 1
A109: 108 | B109: 65 | C109: 14 | D109: 76 | G109: 28 | H109: 1
A110: 109 | B110: 70 | C110: 14.5 | D110: 78 | G110: 29 | H110: 1
A111: 110 | B111: 75 | C111: 15 | D111: 80 | G111: 30 | H111: 1
A112: 111 | B112: 80 | C112: 15.5 | D112: 82 | G112: 31 | H112: 1
A113: 112 | B113: 85 | C113: 16 | D113: 84 | G113: 32 | H113: 1
A114: 113 | B114: 90 | C114: 16.5 | D114: 86 | G114: 33 | H114: 1
A115: 114 | B115: 95 | C115: 17 | D115: 88 | G115: 34 | H115: 1
A116: 115 | B116: 100 | C116: 17.5 | D116: 90 | G116: 35 | H116: 1
A117: 116 | B117: 105 | C117: 18 | D117: 92 | G117: 36 | H117: 1
A118: 117 | B118: 110 | C118: 18.5 | D118: 94 | G118: 37 | H118: 1
A119: 118 | B119: 115 | C119: 19 | D119: 96 | G119: 38 | H119: 1
A120: 119 | B120: 120 | C120: 19.5 | D120: 98 | G120: 39 | H120: 1
A121: 120 | B121: 125 | C121: 20 | D121: 100 | G121: 40 | H121: 1
A122: 121 | B122: 130 | C122: 20.5 | D122: 102 | G122: 41 | H122: 1
A123: 122 | B123: 135 | C123: 21 | D123: 104 | G123: 42 | H123: 1
A124: 123 | B124: 140 | C124: 21.5 | D124: 106 | G124: 43 | H124: 1
A125: 124 | B125: 145 | C125: 22 | D125: 108 | G125: 44 | H125: 1
A126: 125 | B126: 150 | C126: 22.5 | D126: 110 | G126: 45 | H126: 1
A127: 126 | B127: 155 | C127: 23 | D127: 112 | G127: 46 | H127: 1
A128: 127 | B128: 160 | C128: 23.5 | D128: 114 | G128: 47 | H128: 1
A129: 128 | B129: 165 | C129: 24 | D129: 116 | G129: 48 | H129: 1
A130: 129 | B130: 170 | C130: 24.5 | D130: 118 | G130: 49 | H130: 1
A131: 130 | B131: 175 | C131: 25 | D131: 120 | G131: 50 | H131: 1
G132: 51 | H132: 1
G133: 52 | H133: 1
G134: 53 | H134: 1
G135: 54 | H135: 1
G136: 55 | H136: 1
G137: 56 | H137: 1
G138: 57 | H138: 1
G139: 58 | H139: 1
G140: 59 | H140: 1
G141: 60 | H141: 1.5
G142: 61 | H142: 1.5
G143: 62 | H143: 1.5
G144: 63 | H144: 1.5
G145: 64 | H145: 1.5
G146: 65 | H146: 1.5
G147: 66 | H147: 1.5
G148: 67 | H148: 1.5
G149: 68 | H149: 1.5
G150: 69 | H150: 1.5
G151: 70 | H151: 1.5
G152: 71 | H152: 1.5
G153: 72 | H153: 1.5
G154: 73 | H154: 1.5
G155: 74 | H155: 1.5
G156: 75 | H156: 2
G157: 76 | H157: 2
G158: 77 | H158: 2
G159: 78 | H159: 2
G160: 79 | H160: 2
G161: 80 | H161: 2
G162: 81 | H162: 2
G163: 82 | H163: 2
G164: 83 | H164: 2
G165: 84 | H165: 2
G166: 85 | H166: 2
G167: 86 | H167: 2
G168: 87 | H168: 2
G169: 88 | H169: 2
G170: 89 | H170: 2
G171: 90 | H171: 3
G172: 91 | H172: 3
G173: 92 | H173: 3
G174: 93 | H174: 3
G175: 94 | H175: 3
G176: 95 | H176: 3
G177: 96 | H177: 3.5
G178: 97 | H178: 3.5
G179: 98 | H179: 3.5
G180: 99 | H180: 3.5
G181: 100 | H181: 4
G182: 101 | H182: 4.5
G183: 102 | H183: 5
G184: 103 | H184: 5.5
G185: 104 | H185: 6
G186: 105 | H186: 6.5

Sheet Levelbonus
A1: Profession | B1: Alchemist | C1: Animist | D1: Archer | E1: Archmage | F1: Arcist | G1: Arms Master | H1: Assassin | I1: Astral Traveller | J1: Astrologer | K1: Barbarian | L1: Bard | M1: Bashkar | N1: Beastmaster | O1: Bounty Hunter | P1: Burglar | Q1: Cavalier | R1: Chaotic Lord | S1: Channeler | T1: Conjuror | U1: Crafter | V1: Craftsman | W1: Creator | X1: Crystal mage | Y1: Cultist | Z1: Dancer | AA1: Delver | AB1: Dervish | AC1: Doppelgänger | AD1: Dream Lord Illusionist | AE1: Dream Lord Shaman | AF1: Druid | AG1: Duelist | AH1: Elementalist | AI1: Enchanter | AJ1: Farmer | AK1: Feldsher | AL1: Fighter | AM1: Forcemage | AN1: Free Thinker | AO1: Gypsy | AP1: Healer | AQ1: High War monk | AR1: Horseman | AS1: Houri | AT1: Hunter | AU1: Illusionist | AV1: Indurate | AW1: Lancer | AX1: Lay Healer | AY1: Leader | AZ1: Macabre | BA1: Magician | BB1: Magus Chan | BC1: Magus Chan/Ess | BD1: Magus Ess | BE1: Maleficant | BF1: Mentalist | BG1: Monk | BH1: Montebanc | BI1: Moon Mage | BJ1: Mystic | BK1: Necromancer | BL1: Nightblade | BM1: No Profession | BN1: Noble Warrior | BO1: Outrider | BP1: Paladin | BQ1: Ranger (old) | BR1: Ranger | BS1: Rogue | BT1: Romantic | BU1: Runemaster | BV1: Sage | BW1: Sailor | BX1: Scholar | BY1: Seeker | BZ1: Seer | CA1: Shadow Mage | CB1: Shaikan | CC1: Shaman | CD1: Sleuth | CE1: Sorceror | CF1: Swordsman | CG1: Tarotmage | CH1: Templar | CI1: Thief | CJ1: Trader | CK1: Trench Fighter | CL1: War Monk | CM1: Warlock | CN1: Warrior | CO1: Warrior Mage | CP1: Witch | CQ1: Witch Hunter | CR1: Wizard
A2: Academic skills | B2: 3 | C2: 1 | D2: 0 | E2: 3 | F2: 3 | G2: 0 | H2: 0 | I2: 3 | J2: 2 | K2: 0 | L2: 2 | M2: 0 | N2: 0 | O2: 0 | P2: 0 | Q2: 0 | R2: 0 | S2: 2 | T2: 3 | U2: 3 | V2: 1 | W2: 2 | X2: 2 | Y2: 1 | Z2: 0 | AA2: 2 | AB2: 0 | AC2: 0 | AD2: 1 | AE2: 1 | AF2: 1 | AG2: 0 | AH2: 2 | AI2: 1 | AJ2: 0 | AK2: 1 | AL2: 0 | AM2: 3 | AN2: 3 | AO2: 0 | AP2: 2 | AQ2: 0 | AR2: 0 | AS2: 0 | AT2: 0 | AU2: 3 | AV2: 0 | AW2: 0 | AX2: 1 | AY2: 1 | AZ2: 1 | BA2: 3 | BB2: 2 | BC2: 2 | BD2: 2 | BE2: 2 | BF2: 2 | BG2: 1 | BH2: 0 | BI2: 0 | BJ2: 2 | BK2: 2 | BL2: 0 | BM2: 1 | BN2: 0 | BO2: 0 | BP2: 0 | BQ2: 0 | BR2: 0 | BS2: 0 | BT2: 0 | BU2: 3 | BV2: 1 | BW2: 0 | BX2: 3 | BY2: 3 | BZ2: 2 | CA2: 2 | CB2: 0 | CC2: 1 | CD2: 0 | CE2: 2 | CF2: 0 | CG2: 1 | CH2: 1 | CI2: 0 | CJ2: 0 | CK2: 0 | CL2: 0 | CM2: 2 | CN2: 0 | CO2: 0 | CP2: 2 | CQ2: 0 | CR2: 2
A3: Animal | B3: 0 | C3: 3 | D3: 0 | E3: 0 | F3: 0 | G3: 1 | H3: 0 | I3: 0 | J3: 1 | K3: 2 | L3: 0 | M3: 0 | N3: 2 | O3: 2 | P3: 0 | Q3: 1 | R3: 0 | S3: 0 | T3: 0 | U3: 0 | V3: 1 | W3: 0 | X3: 1 | Y3: 0 | Z3: 0 | AA3: 0 | AB3: 0 | AC3: 0 | AD3: 0 | AE3: 3 | AF3: 3 | AG3: 0 | AH3: 0 | AI3: 0 | AJ3: 3 | AK3: 0 | AL3: 1 | AM3: 0 | AN3: 0 | AO3: 1 | AP3: 0 | AQ3: 0 | AR3: 3 | AS3: 0 | AT3: 2 | AU3: 0 | AV3: 0 | AW3: 1 | AX3: 0 | AY3: 0 | AZ3: 0 | BA3: 0 | BB3: 0 | BC3: 0 | BD3: 0 | BE3: 1 | BF3: 0 | BG3: 0 | BH3: 0 | BI3: 0 | BJ3: 0 | BK3: 0 | BL3: 0 | BM3: 1 | BN3: 1 | BO3: 2 | BP3: 0 | BQ3: 3 | BR3: 2 | BS3: 1 | BT3: 0 | BU3: 0 | BV3: 0 | BW3: 0 | BX3: 0 | BY3: 0 | BZ3: 0 | CA3: 0 | CB3: 0 | CC3: 3 | CD3: 0 | CE3: 0 | CF3: 0 | CG3: 0 | CH3: 2 | CI3: 1 | CJ3: 1 | CK3: 1 | CL3: 2 | CM3: 0 | CN3: 0 | CO3: 0 | CP3: 1 | CQ3: 2 | CR3: 0
A4: Athletic | B4: 0 | C4: 0 | D4: 1 | E4: 0 | F4: 0 | G4: 2 | H4: 1 | I4: 0 | J4: 0 | K4: 2 | L4: 0 | M4: 2 | N4: 1 | O4: 1 | P4: 3 | Q4: 2 | R4: 1 | S4: 0 | T4: 0 | U4: 0 | V4: 1 | W4: 0 | X4: 0 | Y4: 0 | Z4: 3 | AA4: 0 | AB4: 1 | AC4: 0 | AD4: 0 | AE4: 0 | AF4: 0 | AG4: 2 | AH4: 1 | AI4: 1 | AJ4: 0 | AK4: 0 | AL4: 2 | AM4: 0 | AN4: 0 | AO4: 0 | AP4: 0 | AQ4: 2 | AR4: 1 | AS4: 0 | AT4: 0 | AU4: 0 | AV4: 2 | AW4: 2 | AX4: 0 | AY4: 2 | AZ4: 0 | BA4: 0 | BB4: 0 | BC4: 0 | BD4: 0 | BE4: 0 | BF4: 0 | BG4: 2 | BH4: 0 | BI4: 1 | BJ4: 0 | BK4: 0 | BL4: 2 | BM4: 1 | BN4: 2 | BO4: 0 | BP4: 1 | BQ4: 1 | BR4: 1 | BS4: 2 | BT4: 1 | BU4: 0 | BV4: 0 | BW4: 2 | BX4: 0 | BY4: 0 | BZ4: 0 | CA4: 0 | CB4: 1 | CC4: 0 | CD4: 0 | CE4: 0 | CF4: 2 | CG4: 0 | CH4: 1 | CI4: 2 | CJ4: 0 | CK4: 1 | CL4: 2 | CM4: 0 | CN4: 3 | CO4: 1 | CP4: 0 | CQ4: 0 | CR4: 0
A5: Combat | B5: 0 | C5: 0 | D5: 3 | E5: 0 | F5: 0 | G5: 3 | H5: 2 | I5: 0 | J5: 0 | K5: 3 | L5: 0 | M5: 3 | N5: 2 | O5: 2 | P5: 1 | Q5: 3 | R5: 2 | S5: 1 | T5: 0 | U5: 0 | V5: 1 | W5: 0 | X5: 0 | Y5: 2 | Z5: 1 | AA5: 2 | AB5: 2 | AC5: 0 | AD5: 0 | AE5: 0 | AF5: 0 | AG5: 3 | AH5: 2 | AI5: 0 | AJ5: 0 | AK5: 2 | AL5: 3 | AM5: 0 | AN5: 0 | AO5: 0 | AP5: 0 | AQ5: 3 | AR5: 3 | AS5: 0 | AT5: 2 | AU5: 0 | AV5: 3 | AW5: 3 | AX5: 0 | AY5: 3 | AZ5: 1 | BA5: 0 | BB5: 0 | BC5: 0 | BD5: 0 | BE5: 0 | BF5: 0 | BG5: 1 | BH5: 1 | BI5: 1 | BJ5: 0 | BK5: 0 | BL5: 2 | BM5: 1 | BN5: 3 | BO5: 2 | BP5: 3 | BQ5: 1 | BR5: 2 | BS5: 3 | BT5: 3 | BU5: 0 | BV5: 0 | BW5: 3 | BX5: 0 | BY5: 0 | BZ5: 0 | CA5: 0 | CB5: 3 | CC5: 0 | CD5: 1 | CE5: 0 | CF5: 3 | CG5: 1 | CH5: 3 | CI5: 2 | CJ5: 1 | CK5: 3 | CL5: 2 | CM5: 0 | CN5: 3 | CO5: 2 | CP5: 0 | CQ5: 2 | CR5: 0
A6: Concentration | B6: 0 | C6: 1 | D6: 1 | E6: 2 | F6: 2 | G6: 0 | H6: 0 | I6: 2 | J6: 1 | K6: 0 | L6: 1 | M6: 2 | N6: 0 | O6: 0 | P6: 1 | Q6: 0 | R6: 0 | S6: 0 | T6: 0 | U6: 0 | V6: 1 | W6: 0 | X6: 1 | Y6: 0 | Z6: 0 | AA6: 0 | AB6: 0 | AC6: 0 | AD6: 2 | AE6: 2 | AF6: 0 | AG6: 2 | AH6: 0 | AI6: 0 | AJ6: 0 | AK6: 1 | AL6: 0 | AM6: 0 | AN6: 2 | AO6: 0 | AP6: 2 | AQ6: 2 | AR6: 0 | AS6: 0 | AT6: 0 | AU6: 0 | AV6: 1 | AW6: 1 | AX6: 1 | AY6: 0 | AZ6: 0 | BA6: 1 | BB6: 0 | BC6: 0 | BD6: 0 | BE6: 0 | BF6: 2 | BG6: 1 | BH6: 0 | BI6: 1 | BJ6: 3 | BK6: 0 | BL6: 1 | BM6: 1 | BN6: 0 | BO6: 0 | BP6: 0 | BQ6: 0 | BR6: 0 | BS6: 0 | BT6: 0 | BU6: 1 | BV6: 3 | BW6: 0 | BX6: 2 | BY6: 0 | BZ6: 2 | CA6: 0 | CB6: 2 | CC6: 1 | CD6: 0 | CE6: 1 | CF6: 1 | CG6: 1 | CH6: 0 | CI6: 0 | CJ6: 0 | CK6: 2 | CL6: 2 | CM6: 0 | CN6: 0 | CO6: 0 | CP6: 0 | CQ6: 0 | CR6: 1
A7: Deadly | B7: 0 | C7: 0 | D7: 0 | E7: 0 | F7: 0 | G7: 0 | H7: 3 | I7: 0 | J7: 0 | K7: 0 | L7: 0 | M7: 0 | N7: 1 | O7: 1 | P7: 0 | Q7: 0 | R7: 1 | S7: 0 | T7: 0 | U7: 0 | V7: 0 | W7: 1 | X7: 0 | Y7: 1 | Z7: 0 | AA7: 0 | AB7: 2 | AC7: 0 | AD7: 0 | AE7: 0 | AF7: 0 | AG7: 0 | AH7: 0 | AI7: 0 | AJ7: 0 | AK7: 1 | AL7: 1 | AM7: 0 | AN7: 0 | AO7: 0 | AP7: 1 | AQ7: 0 | AR7: 0 | AS7: 1 | AT7: 2 | AU7: 0 | AV7: 0 | AW7: 0 | AX7: 0 | AY7: 0 | AZ7: 0 | BA7: 0 | BB7: 0 | BC7: 0 | BD7: 0 | BE7: 0 | BF7: 0 | BG7: 0 | BH7: 0 | BI7: 0 | BJ7: 0 | BK7: 0 | BL7: 3 | BM7: 0 | BN7: 0 | BO7: 0 | BP7: 0 | BQ7: 1 | BR7: 0 | BS7: 0 | BT7: 0 | BU7: 0 | BV7: 0 | BW7: 0 | BX7: 0 | BY7: 0 | BZ7: 0 | CA7: 0 | CB7: 0 | CC7: 0 | CD7: 0 | CE7: 0 | CF7: 0 | CG7: 0 | CH7: 0 | CI7: 1 | CJ7: 0 | CK7: 0 | CL7: 1 | CM7: 1 | CN7: 1 | CO7: 1 | CP7: 0 | CQ7: 0 | CR7: 0
A8: Evaluation | B8: 2 | C8: 0 | D8: 1 | E8: 0 | F8: 0 | G8: 1 | H8: 0 | I8: 0 | J8: 0 | K8: 0 | L8: 3 | M8: 0 | N8: 1 | O8: 0 | P8: 2 | Q8: 0 | R8: 0 | S8: 2 | T8: 0 | U8: 3 | V8: 1 | W8: 0 | X8: 0 | Y8: 0 | Z8: 0 | AA8: 2 | AB8: 0 | AC8: 1 | AD8: 2 | AE8: 2 | AF8: 0 | AG8: 0 | AH8: 1 | AI8: 0 | AJ8: 2 | AK8: 0 | AL8: 0 | AM8: 0 | AN8: 0 | AO8: 2 | AP8: 0 | AQ8: 0 | AR8: 0 | AS8: 0 | AT8: 0 | AU8: 0 | AV8: 0 | AW8: 0 | AX8: 1 | AY8: 0 | AZ8: 0 | BA8: 0 | BB8: 0 | BC8: 0 | BD8: 0 | BE8: 0 | BF8: 0 | BG8: 0 | BH8: 1 | BI8: 0 | BJ8: 0 | BK8: 0 | BL8: 0 | BM8: 1 | BN8: 1 | BO8: 0 | BP8: 0 | BQ8: 2 | BR8: 2 | BS8: 1 | BT8: 0 | BU8: 0 | BV8: 0 | BW8: 2 | BX8: 1 | BY8: 0 | BZ8: 0 | CA8: 0 | CB8: 1 | CC8: 1 | CD8: 0 | CE8: 0 | CF8: 1 | CG8: 1 | CH8: 1 | CI8: 0 | CJ8: 2 | CK8: 0 | CL8: 0 | CM8: 0 | CN8: 0 | CO8: 0 | CP8: 1 | CQ8: 0 | CR8: 0
A9: General | B9: 2 | C9: 1 | D9: 1 | E9: 0 | F9: 0 | G9: 1 | H9: 0 | I9: 0 | J9: 0 | K9: 0 | L9: 3 | M9: 0 | N9: 2 | O9: 0 | P9: 0 | Q9: 0 | R9: 0 | S9: 2 | T9: 0 | U9: 3 | V9: 1 | W9: 0 | X9: 0 | Y9: 0 | Z9: 0 | AA9: 2 | AB9: 0 | AC9: 1 | AD9: 2 | AE9: 2 | AF9: 0 | AG9: 0 | AH9: 1 | AI9: 0 | AJ9: 2 | AK9: 0 | AL9: 0 | AM9: 0 | AN9: 0 | AO9: 2 | AP9: 0 | AQ9: 0 | AR9: 1 | AS9: 0 | AT9: 2 | AU9: 0 | AV9: 0 | AW9: 0 | AX9: 1 | AY9: 0 | AZ9: 0 | BA9: 0 | BB9: 0 | BC9: 0 | BD9: 0 | BE9: 0 | BF9: 0 | BG9: 0 | BH9: 0 | BI9: 0 | BJ9: 0 | BK9: 0 | BL9: 0 | BM9: 1 | BN9: 1 | BO9: 0 | BP9: 0 | BQ9: 2 | BR9: 2 | BS9: 1 | BT9: 0 | BU9: 0 | BV9: 0 | BW9: 2 | BX9: 1 | BY9: 0 | BZ9: 0 | CA9: 0 | CB9: 1 | CC9: 1 | CD9: 0 | CE9: 0 | CF9: 1 | CG9: 1 | CH9: 1 | CI9: 0 | CJ9: 2 | CK9: 0 | CL9: 0 | CM9: 0 | CN9: 0 | CO9: 0 | CP9: 1 | CQ9: 0 | CR9: 0
A10: Gymnastic | B10: 0 | C10: 0 | D10: 1 | E10: 0 | F10: 0 | G10: 2 | H10: 1 | I10: 0 | J10: 0 | K10: 2 | L10: 0 | M10: 2 | N10: 1 | O10: 1 | P10: 3 | Q10: 3 | R10: 2 | S10: 0 | T10: 0 | U10: 0 | V10: 1 | W10: 0 | X10: 0 | Y10: 0 | Z10: 3 | AA10: 0 | AB10: 1 | AC10: 0 | AD10: 0 | AE10: 0 | AF10: 0 | AG10: 2 | AH10: 1 | AI10: 0 | AJ10: 0 | AK10: 0 | AL10: 2 | AM10: 0 | AN10: 0 | AO10: 0 | AP10: 0 | AQ10: 3 | AR10: 1 | AS10: 0 | AT10: 0 | AU10: 0 | AV10: 2 | AW10: 2 | AX10: 0 | AY10: 2 | AZ10: 0 | BA10: 0 | BB10: 0 | BC10: 0 | BD10: 0 | BE10: 0 | BF10: 0 | BG10: 2 | BH10: 0 | BI10: 1 | BJ10: 0 | BK10: 0 | BL10: 2 | BM10: 1 | BN10: 2 | BO10: 0 | BP10: 1 | BQ10: 1 | BR10: 1 | BS10: 2 | BT10: 1 | BU10: 0 | BV10: 0 | BW10: 2 | BX10: 0 | BY10: 0 | BZ10: 0 | CA10: 0 | CB10: 3 | CC10: 0 | CD10: 0 | CE10: 0 | CF10: 1 | CG10: 0 | CH10: 1 | CI10: 2 | CJ10: 0 | CK10: 1 | CL10: 2 | CM10: 0 | CN10: 3 | CO10: 1 | CP10: 0 | CQ10: 0 | CR10: 0
A11: Linguistic | B11: 0 | C11: 1 | D11: 0 | E11: 0 | F11: 0 | G11: 0 | H11: 0 | I11: 0 | J11: 0 | K11: 0 | L11: 3 | M11: 0 | N11: 0 | O11: 0 | P11: 0 | Q11: 0 | R11: 0 | S11: 0 | T11: 2 | U11: 0 | V11: 1 | W11: 0 | X11: 0 | Y11: 0 | Z11: 0 | AA11: 0 | AB11: 0 | AC11: 1 | AD11: 0 | AE11: 0 | AF11: 0 | AG11: 0 | AH11: 0 | AI11: 2 | AJ11: 0 | AK11: 0 | AL11: 0 | AM11: 0 | AN11: 3 | AO11: 2 | AP11: 0 | AQ11: 0 | AR11: 0 | AS11: 2 | AT11: 0 | AU11: 0 | AV11: 0 | AW11: 0 | AX11: 0 | AY11: 1 | AZ11: 0 | BA11: 0 | BB11: 2 | BC11: 2 | BD11: 2 | BE11: 0 | BF11: 1 | BG11: 0 | BH11: 1 | BI11: 1 | BJ11: 1 | BK11: 0 | BL11: 0 | BM11: 1 | BN11: 0 | BO11: 0 | BP11: 0 | BQ11: 0 | BR11: 0 | BS11: 0 | BT11: 1 | BU11: 2 | BV11: 3 | BW11: 0 | BX11: 3 | BY11: 0 | BZ11: 0 | CA11: 0 | CB11: 0 | CC11: 1 | CD11: 0 | CE11: 0 | CF11: 0 | CG11: 0 | CH11: 0 | CI11: 0 | CJ11: 2 | CK11: 0 | CL11: 0 | CM11: 0 | CN11: 0 | CO11: 0 | CP11: 1 | CQ11: 0 | CR11: 0
A12: Magical | B12: 3 | C12: 1 | D12: 0 | E12: 2 | F12: 2 | G12: 0 | H12: 0 | I12: 1 | J12: 2 | K12: 0 | L12: 0 | M12: 0 | N12: 0 | O12: 0 | P12: 0 | Q12: 0 | R12: 1 | S12: 2 | T12: 3 | U12: 0 | V12: 1 | W12: 2 | X12: 2 | Y12: 2 | Z12: 0 | AA12: 1 | AB12: 1 | AC12: 2 | AD12: 2 | AE12: 2 | AF12: 2 | AG12: 0 | AH12: 1 | AI12: 2 | AJ12: 0 | AK12: 0 | AL12: 0 | AM12: 3 | AN12: 0 | AO12: 1 | AP12: 2 | AQ12: 0 | AR12: 0 | AS12: 1 | AT12: 0 | AU12: 3 | AV12: 0 | AW12: 0 | AX12: 1 | AY12: 0 | AZ12: 2 | BA12: 3 | BB12: 3 | BC12: 3 | BD12: 3 | BE12: 3 | BF12: 2 | BG12: 0 | BH12: 0 | BI12: 2 | BJ12: 2 | BK12: 2 | BL12: 0 | BM12: 1 | BN12: 0 | BO12: 0 | BP12: 0 | BQ12: 0 | BR12: 0 | BS12: 0 | BT12: 0 | BU12: 3 | BV12: 1 | BW12: 0 | BX12: 0 | BY12: 3 | BZ12: 2 | CA12: 3 | CB12: 0 | CC12: 1 | CD12: 0 | CE12: 3 | CF12: 0 | CG12: 3 | CH12: 0 | CI12: 0 | CJ12: 0 | CK12: 0 | CL12: 0 | CM12: 3 | CN12: 0 | CO12: 2 | CP12: 1 | CQ12: 1 | CR12: 3
A13: Medical | B13: 0 | C13: 1 | D13: 1 | E13: 0 | F13: 0 | G13: 0 | H13: 0 | I13: 0 | J13: 0 | K13: 0 | L13: 0 | M13: 0 | N13: 0 | O13: 0 | P13: 0 | Q13: 0 | R13: 0 | S13: 1 | T13: 0 | U13: 0 | V13: 0 | W13: 3 | X13: 0 | Y13: 0 | Z13: 0 | AA13: 0 | AB13: 0 | AC13: 0 | AD13: 1 | AE13: 1 | AF13: 2 | AG13: 0 | AH13: 0 | AI13: 0 | AJ13: 0 | AK13: 3 | AL13: 0 | AM13: 0 | AN13: 2 | AO13: 1 | AP13: 3 | AQ13: 0 | AR13: 0 | AS13: 0 | AT13: 0 | AU13: 0 | AV13: 0 | AW13: 1 | AX13: 3 | AY13: 0 | AZ13: 0 | BA13: 0 | BB13: 0 | BC13: 0 | BD13: 0 | BE13: 2 | BF13: 0 | BG13: 1 | BH13: 0 | BI13: 0 | BJ13: 0 | BK13: 3 | BL13: 0 | BM13: 0 | BN13: 0 | BO13: 1 | BP13: 0 | BQ13: 0 | BR13: 0 | BS13: 0 | BT13: 0 | BU13: 0 | BV13: 0 | BW13: 0 | BX13: 1 | BY13: 0 | BZ13: 0 | CA13: 3 | CB13: 0 | CC13: 1 | CD13: 0 | CE13: 0 | CF13: 0 | CG13: 0 | CH13: 0 | CI13: 0 | CJ13: 0 | CK13: 0 | CL13: 0 | CM13: 0 | CN13: 0 | CO13: 0 | CP13: 1 | CQ13: 0 | CR13: 0
A14: Perception | B14: 1 | C14: 2 | D14: 2 | E14: 0 | F14: 0 | G14: 0 | H14: 1 | I14: 0 | J14: 1 | K14: 1 | L14: 0 | M14: 0 | N14: 1 | O14: 3 | P14: 2 | Q14: 0 | R14: 0 | S14: 2 | T14: 1 | U14: 0 | V14: 1 | W14: 0 | X14: 2 | Y14: 1 | Z14: 0 | AA14: 1 | AB14: 0 | AC14: 0 | AD14: 0 | AE14: 0 | AF14: 1 | AG14: 0 | AH14: 1 | AI14: 0 | AJ14: 0 | AK14: 2 | AL14: 0 | AM14: 2 | AN14: 0 | AO14: 1 | AP14: 2 | AQ14: 0 | AR14: 1 | AS14: 1 | AT14: 2 | AU14: 2 | AV14: 0 | AW14: 1 | AX14: 1 | AY14: 1 | AZ14: 0 | BA14: 0 | BB14: 1 | BC14: 1 | BD14: 1 | BE14: 0 | BF14: 1 | BG14: 1 | BH14: 2 | BI14: 0 | BJ14: 1 | BK14: 0 | BL14: 1 | BM14: 1 | BN14: 0 | BO14: 2 | BP14: 1 | BQ14: 1 | BR14: 1 | BS14: 1 | BT14: 0 | BU14: 1 | BV14: 0 | BW14: 1 | BX14: 0 | BY14: 3 | BZ14: 3 | CA14: 0 | CB14: 1 | CC14: 0 | CD14: 3 | CE14: 1 | CF14: 1 | CG14: 0 | CH14: 0 | CI14: 1 | CJ14: 1 | CK14: 0 | CL14: 1 | CM14: 2 | CN14: 0 | CO14: 1 | CP14: 1 | CQ14: 3 | CR14: 1
A15: Social | B15: 0 | C15: 0 | D15: 0 | E15: 0 | F15: 0 | G15: 1 | H15: 0 | I15: 1 | J15: 0 | K15: 0 | L15: 0 | M15: 0 | N15: 0 | O15: 0 | P15: 0 | Q15: 1 | R15: 1 | S15: 0 | T15: 0 | U15: 0 | V15: 1 | W15: 0 | X15: 0 | Y15: 0 | Z15: 2 | AA15: 0 | AB15: 2 | AC15: 3 | AD15: 0 | AE15: 0 | AF15: 0 | AG15: 0 | AH15: 0 | AI15: 2 | AJ15: 0 | AK15: 0 | AL15: 0 | AM15: 0 | AN15: 0 | AO15: 1 | AP15: 1 | AQ15: 0 | AR15: 0 | AS15: 3 | AT15: 0 | AU15: 0 | AV15: 0 | AW15: 0 | AX15: 0 | AY15: 2 | AZ15: 0 | BA15: 0 | BB15: 0 | BC15: 0 | BD15: 0 | BE15: 0 | BF15: 0 | BG15: 0 | BH15: 2 | BI15: 1 | BJ15: 0 | BK15: 0 | BL15: 0 | BM15: 1 | BN15: 1 | BO15: 2 | BP15: 1 | BQ15: 0 | BR15: 0 | BS15: 0 | BT15: 3 | BU15: 0 | BV15: 0 | BW15: 0 | BX15: 0 | BY15: 0 | BZ15: 0 | CA15: 0 | CB15: 0 | CC15: 1 | CD15: 3 | CE15: 0 | CF15: 0 | CG15: 0 | CH15: 1 | CI15: 0 | CJ15: 1 | CK15: 0 | CL15: 0 | CM15: 1 | CN15: 0 | CO15: 0 | CP15: 0 | CQ15: 0 | CR15: 0
A16: Subterfuge | B16: 0 | C16: 0 | D16: 0 | E16: 0 | F16: 0 | G16: 0 | H16: 2 | I16: 0 | J16: 0 | K16: 0 | L16: 0 | M16: 0 | N16: 1 | O16: 1 | P16: 3 | Q16: 0 | R16: 0 | S16: 0 | T16: 0 | U16: 1 | V16: 1 | W16: 0 | X16: 0 | Y16: 1 | Z16: 2 | AA16: 0 | AB16: 0 | AC16: 3 | AD16: 0 | AE16: 0 | AF16: 2 | AG16: 0 | AH16: 0 | AI16: 1 | AJ16: 0 | AK16: 0 | AL16: 0 | AM16: 0 | AN16: 0 | AO16: 1 | AP16: 0 | AQ16: 0 | AR16: 1 | AS16: 1 | AT16: 2 | AU16: 1 | AV16: 0 | AW16: 0 | AX16: 0 | AY16: 0 | AZ16: 1 | BA16: 0 | BB16: 0 | BC16: 0 | BD16: 0 | BE16: 0 | BF16: 0 | BG16: 1 | BH16: 3 | BI16: 0 | BJ16: 0 | BK16: 0 | BL16: 1 | BM16: 1 | BN16: 0 | BO16: 2 | BP16: 0 | BQ16: 1 | BR16: 1 | BS16: 2 | BT16: 0 | BU16: 0 | BV16: 0 | BW16: 2 | BX16: 0 | BY16: 0 | BZ16: 0 | CA16: 0 | CB16: 1 | CC16: 0 | CD16: 2 | CE16: 0 | CF16: 0 | CG16: 0 | CH16: 0 | CI16: 3 | CJ16: 1 | CK16: 0 | CL16: 0 | CM16: 0 | CN16: 0 | CO16: 0 | CP16: 1 | CQ16: 1 | CR16: 0
A17: Directed Spells | B17: 0 | C17: 0 | D17: 0 | E17: 0 | F17: 0 | G17: 0 | H17: 0 | I17: 1 | J17: 1 | K17: 0 | L17: 0 | M17: 0 | N17: 0 | O17: 0 | P17: 0 | Q17: 0 | R17: 1 | S17: 0 | T17: 0 | U17: 0 | V17: 0 | W17: 0 | X17: 0 | Y17: 0 | Z17: 0 | AA17: 0 | AB17: 0 | AC17: 0 | AD17: 1 | AE17: 1 | AF17: 0 | AG17: 0 | AH17: 0 | AI17: 0 | AJ17: 0 | AK17: 0 | AL17: 0 | AM17: 1 | AN17: 0 | AO17: 0 | AP17: 0 | AQ17: 0 | AR17: 0 | AS17: 0 | AT17: 0 | AU17: 1 | AV17: 0 | AW17: 0 | AX17: 0 | AY17: 0 | AZ17: 1 | BA17: 3 | BB17: 1 | BC17: 1 | BD17: 1 | BE17: 0 | BF17: 1 | BG17: 0 | BH17: 0 | BI17: 1 | BJ17: 0 | BK17: 1 | BL17: 0 | BM17: 0 | BN17: 0 | BO17: 0 | BP17: 0 | BQ17: 0 | BR17: 0 | BS17: 0 | BT17: 0 | BU17: 0 | BV17: 0 | BW17: 0 | BX17: 0 | BY17: 0 | BZ17: 0 | CA17: 0 | CB17: 0 | CC17: 0 | CD17: 0 | CE17: 2 | CF17: 0 | CG17: 1 | CH17: 0 | CI17: 0 | CJ17: 0 | CK17: 0 | CL17: 0 | CM17: 0 | CN17: 0 | CO17: 0 | CP17: 0 | CQ17: 0 | CR17: 2
A18: Base Spell Casting | B18: 2 | C18: 2 | D18: 0 | E18: 3 | F18: 3 | G18: 1 | H18: 0 | I18: 2 | J18: 2 | K18: 0 | L18: 1 | M18: 0 | N18: 1 | O18: 0 | P18: 0 | Q18: 0 | R18: 1 | S18: 2 | T18: 2 | U18: 1 | V18: 0 | W18: 2 | X18: 2 | Y18: 1 | Z18: 0 | AA18: 1 | AB18: 1 | AC18: 2 | AD18: 2 | AE18: 2 | AF18: 2 | AG18: 0 | AH18: 1 | AI18: 2 | AJ18: 0 | AK18: 1 | AL18: 0 | AM18: 2 | AN18: 0 | AO18: 0 | AP18: 2 | AQ18: 0 | AR18: 0 | AS18: 1 | AT18: 0 | AU18: 2 | AV18: 0 | AW18: 0 | AX18: 2 | AY18: 0 | AZ18: 2 | BA18: 2 | BB18: 2 | BC18: 2 | BD18: 2 | BE18: 2 | BF18: 2 | BG18: 1 | BH18: 1 | BI18: 1 | BJ18: 2 | BK18: 2 | BL18: 1 | BM18: 0 | BN18: 1 | BO18: 0 | BP18: 1 | BQ18: 0 | BR18: 1 | BS18: 0 | BT18: 0 | BU18: 2 | BV18: 2 | BW18: 0 | BX18: 0 | BY18: 2 | BZ18: 2 | CA18: 2 | CB18: 0 | CC18: 2 | CD18: 1 | CE18: 2 | CF18: 0 | CG18: 2 | CH18: 0 | CI18: 0 | CJ18: 0 | CK18: 0 | CL18: 0 | CM18: 2 | CN18: 0 | CO18: 1 | CP18: 2 | CQ18: 1 | CR18: 2
A19: Body Development | B19: 0 | C19: 0 | D19: 0 | E19: 0 | F19: 0 | G19: 2 | H19: 1 | I19: 0 | J19: 0 | K19: 3 | L19: 0 | M19: 3 | N19: 1 | O19: 1 | P19: 0 | Q19: 3 | R19: 2 | S19: 0 | T19: 0 | U19: 0 | V19: 0 | W19: 0 | X19: 0 | Y19: 1 | Z19: 2 | AA19: 1 | AB19: 1 | AC19: 0 | AD19: 0 | AE19: 0 | AF19: 0 | AG19: 3 | AH19: 2 | AI19: 0 | AJ19: 2 | AK19: 2 | AL19: 3 | AM19: 0 | AN19: 0 | AO19: 0 | AP19: 1 | AQ19: 3 | AR19: 2 | AS19: 0 | AT19: 1 | AU19: 0 | AV19: 3 | AW19: 2 | AX19: 0 | AY19: 2 | AZ19: 1 | BA19: 0 | BB19: 0 | BC19: 0 | BD19: 0 | BE19: 0 | BF19: 0 | BG19: 2 | BH19: 1 | BI19: 1 | BJ19: 0 | BK19: 0 | BL19: 1 | BM19: 0 | BN19: 3 | BO19: 1 | BP19: 3 | BQ19: 0 | BR19: 1 | BS19: 1 | BT19: 2 | BU19: 0 | BV19: 0 | BW19: 1 | BX19: 0 | BY19: 0 | BZ19: 0 | CA19: 0 | CB19: 1 | CC19: 0 | CD19: 0 | CE19: 0 | CF19: 3 | CG19: 0 | CH19: 2 | CI19: 0 | CJ19: 0 | CK19: 3 | CL19: 2 | CM19: 0 | CN19: 3 | CO19: 2 | CP19: 0 | CQ19: 1 | CR19: 0
A20: Survival | B20: 0 | C20: 3 | D20: 1 | E20: 0 | F20: 0 | G20: 1 | H20: 0 | I20: 0 | J20: 1 | K20: 2 | L20: 0 | M20: 0 | N20: 2 | O20: 3 | P20: 1 | Q20: 0 | R20: 0 | S20: 0 | T20: 0 | U20: 0 | V20: 1 | W20: 0 | X20: 1 | Y20: 0 | Z20: 0 | AA20: 0 | AB20: 0 | AC20: 0 | AD20: 0 | AE20: 3 | AF20: 3 | AG20: 0 | AH20: 0 | AI20: 0 | AJ20: 3 | AK20: 0 | AL20: 1 | AM20: 0 | AN20: 0 | AO20: 1 | AP20: 0 | AQ20: 0 | AR20: 3 | AS20: 0 | AT20: 3 | AU20: 0 | AV20: 0 | AW20: 1 | AX20: 0 | AY20: 0 | AZ20: 0 | BA20: 0 | BB20: 0 | BC20: 0 | BD20: 0 | BE20: 1 | BF20: 0 | BG20: 1 | BH20: 0 | BI20: 0 | BJ20: 0 | BK20: 0 | BL20: 0 | BM20: 1 | BN20: 1 | BO20: 2 | BP20: 0 | BQ20: 3 | BR20: 2 | BS20: 1 | BT20: 0 | BU20: 0 | BV20: 0 | BW20: 0 | BX20: 0 | BY20: 0 | BZ20: 0 | CA20: 0 | CB20: 0 | CC20: 3 | CD20: 0 | CE20: 0 | CF20: 0 | CG20: 0 | CH20: 1 | CI20: 1 | CJ20: 1 | CK20: 1 | CL20: 2 | CM20: 0 | CN20: 0 | CO20: 0 | CP20: 1 | CQ20: 2 | CR20: 0
B21: =SUM(B2:B20) -> 13 | C21: =SUM(C2:C20) -> 16 | D21: 12 | E21: 10 | F21: 10 | G21: 15 | H21: 11 | I21: 10 | J21: 11 | K21: 15 | L21: 13 | M21: 12 | N21: 16 | O21: 15 | P21: 16 | Q21: 13 | R21: 12 | S21: 14 | T21: 11 | U21: 11 | V21: 14 | W21: 10 | X21: 11 | Y21: 10 | Z21: 13 | AA21: 12 | AB21: 11 | AC21: 13 | AD21: 13 | AE21: 19 | AF21: 16 | AG21: 12 | AH21: 13 | AI21: 11 | AJ21: 12 | AK21: =SUM(AK2:AK20) -> 13 | AL21: 13 | AM21: 11 | AN21: 10 | AO21: 13 | AP21: 16 | AQ21: 13 | AR21: 16 | AS21: 10 | AT21: 16 | AU21: 12 | AV21: 11 | AW21: 14 | AX21: 11 | AY21: 14 | AZ21: 9 | BA21: 12 | BB21: 11 | BC21: 11 | BD21: 11 | BE21: 11 | BF21: 11 | BG21: 14 | BH21: 12 | BI21: 11 | BJ21: 11 | BK21: 10 | BL21: 14 | BM21: 14 | BN21: 16 | BO21: 14 | BP21: =SUM(BP2:BP20) -> 11 | BQ21: 16 | BR21: 16 | BS21: 15 | BT21: 11 | BU21: 12 | BV21: 10 | BW21: 15 | BX21: 11 | BY21: 11 | BZ21: 11 | CA21: 10 | CB21: 14 | CC21: 16 | CD21: 10 | CE21: 11 | CF21: 13 | CG21: 11 | CH21: 14 | CI21: 13 | CJ21: 12 | CK21: 12 | CL21: 16 | CM21: 11 | CN21: 13 | CO21: 11 | CP21: 13 | CQ21: 13 | CR21: 11
A22: Class | G22: S | H22: N | K22: N | L22: S | M22: N | N22: S | O22: N | P22: N | Q22: N | R22: S | S22: P | U22: S | V22: N | W22: H | Y22: S | Z22: N | AA22: S | AB22: S | AC22: P | AD22: H | AE22: H | AF22: P | AG22: N | AH22: S | AI22: H | AJ22: N | AK22: S | AL22: N | AM22: P | AO22: N | AQ22: N | AR22: N | AS22: S | AT22: N | AU22: P | AV22: N | AW22: N | AX22: P | AY22: N | AZ22: S | BA22: P | BB22: P | BC22: H | BD22: P | BE22: H | BF22: P | BG22: S | BH22: S | BI22: S | BJ22: H | BL22: S | BM22: N | BN22: S | BO22: N | BP22: S | BQ22: S | BR22: S | BS22: N | BT22: N | BW22: N | BX22: N | CA22: H | CB22: N | CC22: P | CD22: S | CE22: H | CF22: N | CH22: N | CI22: N | CJ22: N | CK22: N | CL22: N | CN22: N | CO22: S | CP22: H | CQ22: S | CR22: P

Sheet AllaSkills
A1: Skill | B1: Grupp | C1: Stats | D1: Alchemist | E1: Archer | F1: Archmage | G1: Assassin | H1: Astrologer | I1: Barbarian | J1: Bard | K1: Bashkar | L1: Beastmaster | M1: Bounty Hunter | N1: Burglar | O1: Cavalier | P1: Channeler | Q1: Conjuror | R1: Craftsman | S1: Crystal mage | T1: Cultist | U1: Dancer | V1: Dervish | W1: Druid | X1: Duelist | Y1: Enchanter | Z1: Farmer | AA1: Feldsher | AB1: Fighter | AC1: Forcemage | AD1: Healer | AE1: High War monk | AF1: Horseman | AG1: Houri | AH1: Hunter | AI1: Illusionist | AJ1: Indurate | AK1: Lancer | AL1: Leader | AM1: Macabre | AN1: Magician | AO1: Mentalist | AP1: Monk | AQ1: Montebanc | AR1: Moon Mage | AS1: Mystic | AT1: Necromancer | AU1: Nightblade | AV1: No Profession | AW1: Outrider | AX1: Paladin | AY1: Ranger | AZ1: Rogue | BA1: Romantic | BB1: Sage | BC1: Sailor | BD1: Scholar | BE1: Seer | BF1: Shadow Mage | BG1: Shaikan | BH1: Shaman | BI1: Sleuth | BJ1: Sorceror | BK1: Swordsman | BL1: Templar | BM1: Thief | BN1: Trader | BO1: Trench Fighter | BP1: War Monk | BQ1: Warlock | BR1: Warrior | BS1: Warrior Mage | BT1: Witch | BU1: Witch Hunter | BV1: Wizard | BW1: Wizard
A2: Administration | B2: Academic | C2: Re/Pr | D2: 2/5 | E2: 2/6 | F2: 2/5 | G2: 2/6 | H2: 2/5 | I2: 7 | J2: 1/5 | K2: 6 | L2: 7 | M2: 5 | N2: 2/6 | O2: 2/6 | P2: 2/4 | Q2: 2/5 | R2: 2/6 | S2: 2/4 | T2: 2/4 | U2: 2/5 | V2: 2/5 | W2: 6 | X2: 2/6 | Y2: 2/5 | Z2: 2/6 | AA2: 1/4 | AB2: 2/6 | AC2: 2/5 | AD2: 2/5 | AE2: 6 | AF2: 2/6 | AG2: 2/5 | AH2: 2/6 | AI2: 2/5 | AJ2: 4/9 | AK2: 2/6 | AL2: 1/3 | AM2: 2/5 | AN2: 2/5 | AO2: 2/5 | AP2: 3/7 | AQ2: 2/6 | AR2: 2/5 | AS2: 2/5 | AT2: 2/5 | AU2: 2/5 | AV2: 2/6 | AW2: 1/3 | AX2: 2/5 | AY2: 5 | AZ2: 2/6 | BA2: 2/6 | BB2: 1/2 | BC2: 2/6 | BD2: 1/3 | BE2: 2/5 | BF2: 2/5 | BG2: 2/6 | BH2: 6 | BI2: 1/5 | BJ2: 2/5 | BK2: 2/6 | BL2: 2/6 | BM2: 2/5 | BN2: 1/3 | BO2: 3/7 | BP2: 3/7 | BQ2: 2/4 | BR2: 6 | BS2: 2/5 | BT2: 5 | BU2: 5 | BV2: 2/5 | BW2: 2/5
A3: Advanced math | B3: Academic | C3: Re | D3: 2/5 | E3: 4/8 | F3: 3/7 | G3: 4/7 | H3: 2/3 | I3: 7 | J3: 3/6 | K3: 7 | L3: 7 | M3: 3/7 | N3: 3/7 | O3: 4/8 | P3: 3/6 | Q3: 3/7 | R3: 3/7 | S3: 3/7 | T3: 3/6 | U3: 5 | V3: 3/7 | W3: 3/7 | X3: 4/8 | Y3: 3/6 | Z3: 3/7 | AA3: 3/7 | AB3: 4/8 | AC3: 2/5 | AD3: 3/6 | AE3: 7 | AF3: 4/7 | AG3: 3/6 | AH3: 4/7 | AI3: 3/5 | AJ3: 4/8 | AK3: 4/8 | AL3: 4/8 | AM3: 3/7 | AN3: 3/7 | AO3: 3/6 | AP3: 3/6 | AQ3: 4/7 | AR3: 3/7 | AS3: 3/6 | AT3: 3/7 | AU3: 3/8 | AV3: 3/7 | AW3: 4/7 | AX3: 3/7 | AY3: 3/7 | AZ3: 4/7 | BA3: 4/8 | BB3: 1/3 | BC3: 4/7 | BD3: 1/4 | BE3: 3/6 | BF3: 3/7 | BG3: 4/8 | BH3: 3/7 | BI3: 3/6 | BJ3: 3/6 | BK3: 4/8 | BL3: 4/8 | BM3: 3/8 | BN3: 2/4 | BO3: 4/7 | BP3: 4/7 | BQ3: 3/7 | BR3: 6 | BS3: 3/7 | BT3: 3/7 | BU3: 3/7 | BV3: 3/7 | BW3: 3/7
A4: Alchemy | B4: Academic | C4: Re | D4: 1/3 | E4: 3/7 | F4: 2/4 | G4: 3/5 | H4: 2/4 | I4: 3/9 | J4: 2/4 | K4: 3/6 | L4: 3/5 | M4: 3/7 | N4: 2/6 | O4: 3/7 | P4: 2/4 | Q4: 2/5 | R4: 2/6 | S4: 3/5 | T4: 2/4 | U4: 3/7 | V4: 3/7 | W4: 3/6 | X4: 3/7 | Y4: 2/4 | Z4: 2/6 | AA4: 3/7 | AB4: 3/7 | AC4: 2/4 | AD4: 3/6 | AE4: 3/6 | AF4: 3/5 | AG4: 2/5 | AH4: 3/5 | AI4: 2/7 | AJ4: 3/7 | AK4: 3/7 | AL4: 3/7 | AM4: 2/6 | AN4: 2/4 | AO4: 2/6 | AP4: 2/5 | AQ4: 3/5 | AR4: 3/7 | AS4: 2/4 | AT4: 2/6 | AU4: 2/6 | AV4: 2/6 | AW4: 3/5 | AX4: 2/7 | AY4: 3/7 | AZ4: 3/5 | BA4: 3/7 | BB4: 1/3 | BC4: 3/5 | BD4: 1/4 | BE4: 2/6 | BF4: 2/6 | BG4: 3/7 | BH4: 3/6 | BI4: 2/4 | BJ4: 2/5 | BK4: 3/7 | BL4: 3/7 | BM4: 2/6 | BN4: 2/5 | BO4: 3/9 | BP4: 3/9 | BQ4: 2/6 | BR4: 6 | BS4: 3/5 | BT4: 1/4 | BU4: 3/7 | BV4: 2/4 | BW4: 2/4
A5: Anthopology | B5: Academic | C5: In/Em | D5: 2/5 | E5: 3 | F5: 2/5 | G5: 3 | H5: 2/5 | I5: 7 | J5: 1/4 | K5: 3/7 | L5: 6 | M5: 2/6 | N5: 3 | O5: 3 | P5: 2/5 | Q5: 2/5 | R5: 2/6 | S5: 2/7 | T5: 2/5 | U5: 3 | V5: 3 | W5: 2/5 | X5: 3 | Y5: 1/4 | Z5: 2/6 | AA5: 2/6 | AB5: 3 | AC5: 2/5 | AD5: 2/5 | AE5: 3/7 | AF5: 3 | AG5: 2/5 | AH5: 3 | AI5: 2/5 | AJ5: 3 | AK5: 3 | AL5: 3 | AM5: 2/5 | AN5: 2/5 | AO5: 2/5 | AP5: 2/6 | AQ5: 3 | AR5: 3 | AS5: 2/5 | AT5: 2/5 | AU5: 3/6 | AV5: 2/6 | AW5: 3 | AX5: 2/6 | AY5: 2/6 | AZ5: 3 | BA5: 3 | BB5: 1/3 | BC5: 3 | BD5: 1/4 | BE5: 2/5 | BF5: 2/5 | BG5: 3 | BH5: 2/5 | BI5: 1/4 | BJ5: 2/5 | BK5: 3 | BL5: 3 | BM5: 3 | BN5: 3 | BO5: 2/6 | BP5: 2/6 | BQ5: 1/5 | BR5: 6 | BS5: 2/6 | BT5: 2/5 | BU5: 2/6 | BV5: 2/5 | BW5: 2/5
A6: Architecture | B6: Academic | C6: Re/Em | D6: 2/5 | E6: 3/6 | F6: 2/5 | G6: 2/5 | H6: 2/5 | I6: 5 | J6: 2/5 | K6: 4 | L6: 5 | M6: 3/6 | N6: 2/5 | O6: 3/6 | P6: 2/4 | Q6: 2/5 | R6: 2/6 | S6: 4 | T6: 2/4 | U6: 3 | V6: 4 | W6: 3/6 | X6: 3/6 | Y6: 2/5 | Z6: 2/6 | AA6: 3/5 | AB6: 3/6 | AC6: 2/5 | AD6: 2/5 | AE6: 4 | AF6: 2/5 | AG6: 2/5 | AH6: 2/5 | AI6: 2/5 | AJ6: 3/6 | AK6: 3/6 | AL6: 2/5 | AM6: 2/5 | AN6: 2/5 | AO6: 2/5 | AP6: 3/6 | AQ6: 2/5 | AR6: 4 | AS6: 2/5 | AT6: 2/5 | AU6: 2/4 | AV6: 2/6 | AW6: 2/5 | AX6: 2/5 | AY6: 3/6 | AZ6: 2/5 | BA6: 3/6 | BB6: 1/3 | BC6: 2/5 | BD6: 1/3 | BE6: 2/5 | BF6: 2/5 | BG6: 3/6 | BH6: 3/6 | BI6: 2/5 | BJ6: 2/5 | BK6: 3/6 | BL6: 3/6 | BM6: 2/4 | BN6: 2/5 | BO6: 3/6 | BP6: 3/6 | BQ6: 4 | BR6: 6 | BS6: 3/5 | BT6: 2/5 | BU6: 3/6 | BV6: 2/5 | BW6: 2/5
A7: Astronomy | B7: Academic | C7: Re/Em | D7: 3/7 | E7: 3/7 | F7: 3/7 | G7: 3/7 | H7: 2/3 | I7: 3/7 | J7: 3/6 | K7: 7 | L7: 3/7 | M7: 3/5 | N7: 3/7 | O7: 3/7 | P7: 2/4 | Q7: 2/5 | R7: 3/7 | S7: 6 | T7: 2/4 | U7: 3/7 | V7: 3/7 | W7: 2/5 | X7: 3/7 | Y7: 2/5 | Z7: 3/7 | AA7: 2/8 | AB7: 3/7 | AC7: 3/7 | AD7: 2/5 | AE7: 7 | AF7: 3/7 | AG7: 3/6 | AH7: 3/7 | AI7: 3/7 | AJ7: 3/7 | AK7: 3/7 | AL7: 3/7 | AM7: 3/6 | AN7: 3/7 | AO7: 3/7 | AP7: 3/5 | AQ7: 3/7 | AR7: 3/7 | AS7: 2/5 | AT7: 3/6 | AU7: 3/7 | AV7: 3/7 | AW7: 3/7 | AX7: 3/6 | AY7: 3/5 | AZ7: 3/7 | BA7: 3/7 | BB7: 1/3 | BC7: 3/7 | BD7: 1/4 | BE7: 2/4 | BF7: 3/6 | BG7: 3/7 | BH7: 2/4 | BI7: 3/6 | BJ7: 2/5 | BK7: 3/7 | BL7: 3/7 | BM7: 3/7 | BN7: 2/5 | BO7: 3/7 | BP7: 3/7 | BQ7: 1/5 | BR7: 6 | BS7: 2/8 | BT7: 2/4 | BU7: 3/5 | BV7: 3/7 | BW7: 3/7
A8: Basic Mathematics | B8: Academic | C8: Re | D8: 1/4 | E8: 3/7 | F8: 2/6 | G8: 3/6 | H8: 1/2 | I8: 3/7 | J8: 2/5 | K8: 6 | L8: 3/6 | M8: 2/6 | N8: 2/6 | O8: 3/7 | P8: 2/5 | Q8: 2/6 | R8: 2/6 | S8: 2/6 | T8: 2/5 | U8: 3/9 | V8: 2/6 | W8: 2/6 | X8: 3/7 | Y8: 2/5 | Z8: 2/6 | AA8: 2/6 | AB8: 3/7 | AC8: 1/4 | AD8: 2/6 | AE8: 6 | AF8: 3/6 | AG8: 2/5 | AH8: 3/6 | AI8: 2/4 | AJ8: 3/7 | AK8: 3/7 | AL8: 3/7 | AM8: 2/6 | AN8: 2/6 | AO8: 2/5 | AP8: 2/5 | AQ8: 3/6 | AR8: 2/6 | AS8: 2/5 | AT8: 2/6 | AU8: 2/7 | AV8: 2/6 | AW8: 3/6 | AX8: 2/6 | AY8: 2/6 | AZ8: 3/6 | BA8: 3/7 | BB8: 1/2 | BC8: 3/6 | BD8: 1/4 | BE8: 2/5 | BF8: 2/6 | BG8: 3/7 | BH8: 2/6 | BI8: 2/5 | BJ8: 1/5 | BK8: 3/7 | BL8: 3/7 | BM8: 2/7 | BN8: 1/3 | BO8: 3/6 | BP8: 3/6 | BQ8: 2/6 | BR8: 6 | BS8: 2/6 | BT8: 2/5 | BU8: 2/6 | BV8: 2/6 | BW8: 2/6
A9: Biochemistry | B9: Academic | C9: In/Re | D9: 5 | E9: 5 | F9: 5 | G9: 5 | H9: 5 | I9: 4 | J9: 5 | K9: 5 | L9: 4 | M9: 5 | N9: 5 | O9: 5 | P9: 5 | Q9: 5 | R9: 4 | S9: 3/7 | T9: 5 | U9: 4 | V9: 4 | W9: 2/5 | X9: 5 | Y9: 5 | Z9: 4 | AA9: 3/5 | AB9: 5 | AC9: 5 | AD9: 2/4 | AE9: 5 | AF9: 5 | AG9: 5 | AH9: 5 | AI9: 5 | AJ9: 5 | AK9: 5 | AL9: 5 | AM9: 6 | AN9: 5 | AO9: 5 | AP9: 5 | AQ9: 5 | AR9: 4 | AS9: 5 | AT9: 6 | AU9: 5 | AV9: 4 | AW9: 5 | AX9: 5 | AY9: 5 | AZ9: 5 | BA9: 5 | BB9: 1/3 | BC9: 5 | BD9: 1/4 | BE9: 5 | BF9: 6 | BG9: 5 | BH9: 2/7 | BI9: 5 | BJ9: 7 | BK9: 5 | BL9: 5 | BM9: 5 | BN9: 5 | BO9: 5 | BP9: 5 | BQ9: 2/6 | BR9: 6 | BS9: 3/5 | BT9: 2/6 | BU9: 5 | BV9: 5 | BW9: 5
A10: Boat pilot | B10: Academic | C10: Re/Ag | D10: 2/6 | E10: 2/6 | F10: 2/6 | G10: 2/6 | H10: 2/4 | I10: 1/3 | J10: 2/6 | K10: 3/6 | L10: 2/4 | M10: 1/4 | N10: 2/6 | O10: 2/6 | P10: 2/5 | Q10: 2/6 | R10: 2/6 | S10: 3/7 | T10: 2/5 | U10: 3/7 | V10: 3/7 | W10: 1/5 | X10: 2/6 | Y10: 2/6 | Z10: 2/6 | AA10: 2/5 | AB10: 2/6 | AC10: 2/6 | AD10: 3/6 | AE10: 3/6 | AF10: 2/6 | AG10: 2/6 | AH10: 2/6 | AI10: 2/6 | AJ10: 2/6 | AK10: 2/6 | AL10: 2/6 | AM10: 2/6 | AN10: 2/6 | AO10: 2/6 | AP10: 2/6 | AQ10: 2/6 | AR10: 3/7 | AS10: 2/6 | AT10: 2/6 | AU10: 2/6 | AV10: 2/6 | AW10: 2/6 | AX10: 2/6 | AY10: 1/4 | AZ10: 2/6 | BA10: 2/6 | BB10: 1/3 | BC10: 1/4 | BD10: 1/4 | BE10: 1/4 | BF10: 2/6 | BG10: 2/6 | BH10: 2/5 | BI10: 2/6 | BJ10: 2/6 | BK10: 2/6 | BL10: 2/6 | BM10: 2/6 | BN10: 2/3 | BO10: 2/6 | BP10: 2/6 | BQ10: 3/7 | BR10: 6 | BS10: 2/5 | BT10: 2/5 | BU10: 1/4 | BV10: 2/6 | BW10: 2/6
A11: Cryptography | B11: Academic | C11: In/Re | D11: 2/6 | E11: 6 | F11: 2/6 | G11: 2/5 | H11: 2/4 | I11: 2/6 | J11: 1/2 | K11: 3 | L11: 2/6 | M11: 2/6 | N11: 2/5 | O11: 6 | P11: 2/5 | Q11: 1/5 | R11: 2/6 | S11: 2/5 | T11: 2/6 | U11: 1/4 | V11: 1/4 | W11: 2/5 | X11: 6 | Y11: 2/5 | Z11: 2/6 | AA11: 2/6 | AB11: 6 | AC11: 2/6 | AD11: 2/6 | AE11: 3 | AF11: 2/5 | AG11: 1/5 | AH11: 2/5 | AI11: 2/5 | AJ11: 6 | AK11: 6 | AL11: 6 | AM11: 2/6 | AN11: 2/6 | AO11: 2/5 | AP11: 2/6 | AQ11: 2/5 | AR11: 1/4 | AS11: 2/5 | AT11: 2/6 | AU11: 2/5 | AV11: 2/6 | AW11: 4/10 | AX11: 2/6 | AY11: 2/6 | AZ11: 2/5 | BA11: 6 | BB11: 1/2 | BC11: 2/5 | BD11: 1/3 | BE11: 2/4 | BF11: 2/6 | BG11: 6 | BH11: 1/5 | BI11: 2/6 | BJ11: 2/6 | BK11: 6 | BL11: 6 | BM11: 2/5 | BN11: 1/4 | BO11: 2/6 | BP11: 2/6 | BQ11: 1/5 | BR11: 6 | BS11: 2/6 | BT11: 1/4 | BU11: 2/6 | BV11: 2/6 | BW11: 2/6
A12: Demon/Devil Lore | B12: Academic | C12: Re | D12: 1/3 | E12: 5 | F12: 1/2 | G12: 4 | H12: 2/5 | I12: 5 | J12: 2/5 | K12: 4 | L12: 5 | M12: 2/5 | N12: 3 | O12: 5 | P12: 1/3 | Q12: 1/3 | R12: 2/6 | S12: 2/4 | T12: 1/3 | U12: 3 | V12: 2/4 | W12: 1/4 | X12: 5 | Y12: 2/5 | Z12: 2/6 | AA12: 2/6 | AB12: 5 | AC12: 1/2 | AD12: 2/5 | AE12: 4 | AF12: 4 | AG12: 2/5 | AH12: 4 | AI12: 1/2 | AJ12: 5 | AK12: 5 | AL12: 5 | AM12: 1/3 | AN12: 1/2 | AO12: 1/4 | AP12: 1/3 | AQ12: 4 | AR12: 2/4 | AS12: 1/3 | AT12: 1/3 | AU12: 3 | AV12: 2/6 | AW12: 4 | AX12: 2/4 | AY12: 2/5 | AZ12: 4 | BA12: 5 | BB12: 1/3 | BC12: 4 | BD12: 1/4 | BE12: 1/4 | BF12: 1/3 | BG12: 5 | BH12: 1/3 | BI12: 2/5 | BJ12: 1/2 | BK12: 5 | BL12: 5 | BM12: 3 | BN12: 4 | BO12: 4 | BP12: 4 | BQ12: 1/3 | BR12: 6 | BS12: 2/6 | BT12: 1/2 | BU12: 1/3 | BV12: 1/2 | BW12: 1/2
A13: Drafting | B13: Academic | C13: Re | D13: 1/3 | E13: 3/6 | F13: 2/4 | G13: 2/5 | H13: 2/4 | I13: 3/6 | J13: 2/4 | K13: 2/4 | L13: 2/5 | M13: 3/7 | N13: 2/5 | O13: 3/6 | P13: 1/4 | Q13: 2/5 | R13: 2/6 | S13: 3/7 | T13: 1/4 | U13: 2/5 | V13: 3 | W13: 1/3 | X13: 3/6 | Y13: 2/4 | Z13: 2/6 | AA13: 2/5 | AB13: 3/6 | AC13: 2/4 | AD13: 2/5 | AE13: 2/4 | AF13: 2/5 | AG13: 2/5 | AH13: 2/5 | AI13: 2/5 | AJ13: 3/6 | AK13: 3/6 | AL13: 2/5 | AM13: 2/5 | AN13: 2/4 | AO13: 2/4 | AP13: 1/3 | AQ13: 2/5 | AR13: 3 | AS13: 2/4 | AT13: 2/5 | AU13: 2/4 | AV13: 2/6 | AW13: 2/5 | AX13: 3/7 | AY13: 3/7 | AZ13: 2/5 | BA13: 3/6 | BB13: 1/3 | BC13: 2/5 | BD13: 1/4 | BE13: 2/4 | BF13: 2/5 | BG13: 3/6 | BH13: 1/5 | BI13: 2/4 | BJ13: 2/5 | BK13: 3/6 | BL13: 3/6 | BM13: 2/4 | BN13: 2/4 | BO13: 2/4 | BP13: 2/4 | BQ13: 3/7 | BR13: 6 | BS13: 2/5 | BT13: 3/6 | BU13: 3/7 | BV13: 2/4 | BW13: 2/4
A14: Dragon Lore | B14: Academic | C14: Re | D14: 1/3 | E14: 2 | F14: 1/3 | G14: 2 | H14: 1/4 | I14: 2 | J14: 2/5 | K14: 5 | L14: 4 | M14: 3 | N14: 4 | O14: 2 | P14: 1/4 | Q14: 1/3 | R14: 2/6 | S14: 2/5 | T14: 1/4 | U14: 5 | V14: 2/5 | W14: 1/3 | X14: 2 | Y14: 1/4 | Z14: 2/6 | AA14: 2/7 | AB14: 2 | AC14: 1/3 | AD14: 2/5 | AE14: 5 | AF14: 2 | AG14: 2/5 | AH14: 2 | AI14: 1/3 | AJ14: 2 | AK14: 2 | AL14: 2 | AM14: 2/4 | AN14: 1/3 | AO14: 2/4 | AP14: 2/5 | AQ14: 2 | AR14: 2/5 | AS14: 1/4 | AT14: 2/4 | AU14: 2 | AV14: 2/6 | AW14: 2 | AX14: 1/4 | AY14: 1/3 | AZ14: 2 | BA14: 2 | BB14: 1/3 | BC14: 2 | BD14: 1/4 | BE14: 3/4 | BF14: 2/4 | BG14: 2 | BH14: 1/5 | BI14: 2/5 | BJ14: 1/3 | BK14: 2 | BL14: 1 | BM14: 4 | BN14: 4 | BO14: 3 | BP14: 3 | BQ14: 2/4 | BR14: 6 | BS14: 2/7 | BT14: 1/4 | BU14: 1/3 | BV14: 1/3 | BW14: 1/3
A15: Engineering | B15: Academic | C15: In/Re | D15: 1/2 | E15: 3/6 | F15: 2/6 | G15: 2/5 | H15: 2/5 | I15: 3/6 | J15: 2/4 | K15: 2 | L15: 2/5 | M15: 3/7 | N15: 1/4 | O15: 3/6 | P15: 2/6 | Q15: 2/6 | R15: 2/6 | S15: 4 | T15: 2/6 | U15: 3 | V15: 4 | W15: 4 | X15: 3/6 | Y15: 2/6 | Z15: 2/6 | AA15: 3/5 | AB15: 3/6 | AC15: 2/6 | AD15: 3/7 | AE15: 2 | AF15: 2/5 | AG15: 2/5 | AH15: 2/5 | AI15: 2/6 | AJ15: 3/6 | AK15: 3/6 | AL15: 2/4 | AM15: 2/6 | AN15: 2/6 | AO15: 2/6 | AP15: 2/5 | AQ15: 2/5 | AR15: 4 | AS15: 2/6 | AT15: 2/6 | AU15: 1/4 | AV15: 2/6 | AW15: 2/5 | AX15: 3/5 | AY15: 3/7 | AZ15: 2/5 | BA15: 3/6 | BB15: 1/2 | BC15: 2/5 | BD15: 1/3 | BE15: 2/6 | BF15: 2/6 | BG15: 3/6 | BH15: 4 | BI15: 2/4 | BJ15: 2/6 | BK15: 3/6 | BL15: 3/6 | BM15: 1/4 | BN15: 2/5 | BO15: 2 | BP15: 2 | BQ15: 4 | BR15: 6 | BS15: 3/5 | BT15: 4 | BU15: 3/7 | BV15: 2/6 | BW15: 2/6
A16: Faerie Lore | B16: Academic | C16: Re | D16: 1/3 | E16: 6 | F16: 1/2 | G16: 4 | H16: 1/3 | I16: 3 | J16: 1/4 | K16: 4 | L16: 6 | M16: 1/4 | N16: 4 | O16: 1/5 | P16: 1/4 | Q16: 1/4 | R16: 2/6 | S16: 2/4 | T16: 1/4 | U16: 5 | V16: 2/5 | W16: 1/4 | X16: 6 | Y16: 1/2 | Z16: 2/6 | AA16: 3/7 | AB16: 6 | AC16: 1/2 | AD16: 2/5 | AE16: 4 | AF16: 4 | AG16: 2/5 | AH16: 4 | AI16: 1/3 | AJ16: 6 | AK16: 6 | AL16: 6 | AM16: 2/4 | AN16: 1/2 | AO16: 1/4 | AP16: 2/4 | AQ16: 4 | AR16: 2/5 | AS16: 1/2 | AT16: 2/4 | AU16: 3 | AV16: 2/6 | AW16: 4 | AX16: 2/5 | AY16: 1/4 | AZ16: 4 | BA16: 6 | BB16: 1/3 | BC16: 4 | BD16: 1/4 | BE16: 1/4 | BF16: 2/4 | BG16: 6 | BH16: 1/4 | BI16: 1/4 | BJ16: 1/3 | BK16: 6 | BL16: 6 | BM16: 3 | BN16: 4 | BO16: 3 | BP16: 3 | BQ16: 1/4 | BR16: 6 | BS16: 3/5 | BT16: 1/4 | BU16: 1/4 | BV16: 1/2 | BW16: 1/2
A17: Fauna Lore | B17: Academic | C17: Re | D17: 1/4 | E17: 3 | F17: 2/5 | G17: 2 | H17: 2/6 | I17: 2/4 | J17: 1/4 | K17: 3 | L17: 2 | M17: 1/4 | N17: 5 | O17: 1/5 | P17: 1/4 | Q17: 2/5 | R17: 2/6 | S17: 2/4 | T17: 1/4 | U17: 4 | V17: 2/5 | W17: 1/5 | X17: 3 | Y17: 1/4 | Z17: 1/4 | AA17: 2/6 | AB17: 3 | AC17: 2/5 | AD17: 1/3 | AE17: 3 | AF17: 2 | AG17: 2/5 | AH17: 1/4 | AI17: 2/5 | AJ17: 3 | AK17: 3 | AL17: 3 | AM17: 2/6 | AN17: 2/5 | AO17: 2/6 | AP17: 2/4 | AQ17: 2 | AR17: 2/5 | AS17: 1/4 | AT17: 2/6 | AU17: 3 | AV17: 2/6 | AW17: 2 | AX17: 2/5 | AY17: 1/4 | AZ17: 2 | BA17: 3 | BB17: 1/3 | BC17: 2 | BD17: 1/4 | BE17: 2/5 | BF17: 2/6 | BG17: 3 | BH17: 1/2 | BI17: 1/4 | BJ17: 2/6 | BK17: 3 | BL17: 3 | BM17: 2 | BN17: 1/4 | BO17: 2/6 | BP17: 2/6 | BQ17: 1/5 | BR17: 6 | BS17: 2/6 | BT17: 1/4 | BU17: 1/4 | BV17: 2/5 | BW17: 2/5
A18: Flora Lore | B18: Academic | C18: Re | D18: 1/4 | E18: 3 | F18: 2/5 | G18: 2 | H18: 2/6 | I18: 2/4 | J18: 2/4 | K18: 3 | L18: 2 | M18: 1/2 | N18: 5 | O18: 1/5 | P18: 1/4 | Q18: 2/5 | R18: 2/6 | S18: 2/5 | T18: 1/4 | U18: 4 | V18: 2/5 | W18: 1/5 | X18: 3 | Y18: 1/5 | Z18: 1/4 | AA18: 2/6 | AB18: 3 | AC18: 2/5 | AD18: 1/3 | AE18: 3 | AF18: 2 | AG18: 2/5 | AH18: 2 | AI18: 2/5 | AJ18: 3 | AK18: 3 | AL18: 3 | AM18: 2/6 | AN18: 2/5 | AO18: 2/5 | AP18: 2/5 | AQ18: 2 | AR18: 2/5 | AS18: 1/5 | AT18: 2/6 | AU18: 3 | AV18: 2/6 | AW18: 2 | AX18: 2/4 | AY18: 1/2 | AZ18: 2 | BA18: 3 | BB18: 1/3 | BC18: 2 | BD18: 1/4 | BE18: 2/5 | BF18: 2/6 | BG18: 3 | BH18: 1/2 | BI18: 2/4 | BJ18: 2/6 | BK18: 3 | BL18: 3 | BM18: 2 | BN18: 1/4 | BO18: 4/12 | BP18: 2/6 | BQ18: 1/5 | BR18: 6 | BS18: 2/6 | BT18: 1/4 | BU18: 1/2 | BV18: 2/5 | BW18: 2/5
A19: Heraldry | B19: Academic | C19: Re | D19: 3/5 | E19: 1/5 | F19: 3/5 | G19: 2/5 | H19: 2/4 | I19: 3/5 | J19: 1/2 | K19: 2/4 | L19: 2/5 | M19: 1/4 | N19: 2/6 | O19: 1/3 | P19: 2/4 | Q19: 3/5 | R19: 2/6 | S19: 2/6 | T19: 2/4 | U19: 3/5 | V19: 2/5 | W19: 3/5 | X19: 1/5 | Y19: 2/4 | Z19: 2/6 | AA19: 2/4 | AB19: 1/5 | AC19: 3/5 | AD19: 2/4 | AE19: 2/4 | AF19: 2/5 | AG19: 2/5 | AH19: 2/5 | AI19: 2/5 | AJ19: 1/5 | AK19: 1/5 | AL19: 1/4 | AM19: 3/5 | AN19: 3/5 | AO19: 2/5 | AP19: 2/6 | AQ19: 2/5 | AR19: 2/5 | AS19: 2/4 | AT19: 3/5 | AU19: 2/5 | AV19: 2/6 | AW19: 1/3 | AX19: 1/3 | AY19: 1/4 | AZ19: 2/5 | BA19: 1/5 | BB19: 1/3 | BC19: 2/5 | BD19: 1/3 | BE19: 1/4 | BF19: 3/5 | BG19: 1/5 | BH19: 3/7 | BI19: 2/5 | BJ19: 3/5 | BK19: 1/5 | BL19: 1/5 | BM19: 2/5 | BN19: 2/6 | BO19: 3/6 | BP19: 3/6 | BQ19: 2/4 | BR19: 3/7 | BS19: 2/4 | BT19: 3/6 | BU19: 1/4 | BV19: 3/5 | BW19: 3/5
A20: Herb Lore | B20: Academic | C20: Re | D20: 1/3 | E20: 2/6 | F20: 2/6 | G20: 2/6 | H20: 2/4 | I20: 2/6 | J20: 1/4 | K20: 2/4 | L20: 2/6 | M20: 1/3 | N20: 2/6 | O20: 1/5 | P20: 2/4 | Q20: 1/4 | R20: 2/6 | S20: 1/4 | T20: 2/4 | U20: 3/6 | V20: 2/4 | W20: 1/2 | X20: 2/6 | Y20: 1/4 | Z20: 1/5 | AA20: 1/4 | AB20: 2/6 | AC20: 2/6 | AD20: 1/2 | AE20: 2/4 | AF20: 2/6 | AG20: 2/5 | AH20: 2/6 | AI20: 2/6 | AJ20: 4/9 | AK20: 2/6 | AL20: 2/6 | AM20: 2/6 | AN20: 2/6 | AO20: 2/5 | AP20: 2/4 | AQ20: 2/6 | AR20: 2/4 | AS20: 1/4 | AT20: 2/6 | AU20: 2/6 | AV20: 2/6 | AW20: 2/6 | AX20: 1/4 | AY20: 1/3 | AZ20: 2/6 | BA20: 2/6 | BB20: 1/3 | BC20: 2/6 | BD20: 1/4 | BE20: 2/4 | BF20: 2/6 | BG20: 2/6 | BH20: 1/2 | BI20: 1/4 | BJ20: 2/6 | BK20: 2/6 | BL20: 2/6 | BM20: 2/6 | BN20: 2/5 | BO20: 4/8 | BP20: 2/4 | BQ20: 1/4 | BR20: 6 | BS20: 2/5 | BT20: 1/2 | BU20: 1/3 | BV20: 2/6 | BW20: 2/6
A21: Lock Lore | B21: Academic | C21: Re | D21: 1/3 | E21: 2/6 | F21: 2/4 | G21: 2/4 | H21: 2/6 | I21: 3/7 | J21: 1/3 | K21: 2/6 | L21: 2/6 | M21: 3/7 | N21: 1/2 | O21: 1/5 | P21: 2/6 | Q21: 2/5 | R21: 2/6 | S21: 3/6 | T21: 2/6 | U21: 1/4 | V21: 4 | W21: 2/7 | X21: 2/6 | Y21: 2/5 | Z21: 2/6 | AA21: 2/6 | AB21: 2/6 | AC21: 2/4 | AD21: 3/7 | AE21: 2/6 | AF21: 1/3 | AG21: 2/5 | AH21: 1/3 | AI21: 2/5 | AJ21: 2/6 | AK21: 2/6 | AL21: 2/6 | AM21: 2/6 | AN21: 2/4 | AO21: 3/6 | AP21: 1/4 | AQ21: 1/3 | AR21: 4 | AS21: 2/5 | AT21: 2/6 | AU21: 1/2 | AV21: 2/6 | AW21: 1/3 | AX21: 3/7 | AY21: 1/4 | AZ21: 1/3 | BA21: 2/6 | BB21: 1/4 | BC21: 1/3 | BD21: 1/5 | BE21: 2/5 | BF21: 2/6 | BG21: 2/6 | BH21: 3/7 | BI21: 1/3 | BJ21: 2/6 | BK21: 2/6 | BL21: 2/6 | BM21: 1/2 | BN21: 2/4 | BO21: 2/5 | BP21: 2/5 | BQ21: 2/5 | BR21: 6 | BS21: 2/6 | BT21: 3/7 | BU21: 1/4 | BV21: 2/5 | BW21: 2/5
A22: Mapping | B22: Academic | C22: Re | D22: 2 | E22: 7 | F22: 3 | G22: 6 | H22: 2/5 | I22: 7 | J22: 3 | K22: 5 | L22: 6 | M22: 2/6 | N22: 5 | O22: 7 | P22: 4 | Q22: 5 | R22: 2/6 | S22: 1/4 | T22: 4 | U22: 4 | V22: 3 | W22: 2/6 | X22: 7 | Y22: 3 | Z22: 2/6 | AA22: 3/7 | AB22: 7 | AC22: 3 | AD22: 5 | AE22: 5 | AF22: 6 | AG22: 3 | AH22: 6 | AI22: 4 | AJ22: 7 | AK22: 7 | AL22: 2/4 | AM22: 4 | AN22: 3 | AO22: 4 | AP22: 3 | AQ22: 6 | AR22: 3 | AS22: 3 | AT22: 4 | AU22: 5 | AV22: 2/6 | AW22: 6 | AX22: 3 | AY22: 2/6 | AZ22: 6 | BA22: 7 | BB22: 2 | BC22: 6 | BD22: 1/4 | BE22: 2/6 | BF22: 4 | BG22: 7 | BH22: 4 | BI22: 3 | BJ22: 4 | BK22: 7 | BL22: 7 | BM22: 5 | BN22: 2/4 | BO22: 5 | BP22: 5 | BQ22: 4 | BR22: 6 | BS22: 2/6 | BT22: 4 | BU22: 2/6 | BV22: 3 | BW22: 3
A23: Mechanition | B23: Academic | C23: Ag/Re | D23: 1/2 | E23: 3/6 | F23: 2/6 | G23: 2/5 | H23: 2/4 | I23: 3/7 | J23: 2/4 | K23: 2 | L23: 2/5 | M23: 3/7 | N23: 1/4 | O23: 3/6 | P23: 2/6 | Q23: 2/6 | R23: 2/6 | S23: 3/8 | T23: 2/6 | U23: 3/9 | V23: 4 | W23: 3/8 | X23: 3/6 | Y23: 2/6 | Z23: 2/6 | AA23: 3/7 | AB23: 3/6 | AC23: 2/6 | AD23: 3/7 | AE23: 2 | AF23: 2/5 | AG23: 2/5 | AH23: 2/5 | AI23: 2/6 | AJ23: 3/6 | AK23: 3/6 | AL23: 3/6 | AM23: 2/6 | AN23: 2/6 | AO23: 2/6 | AP23: 2/5 | AQ23: 2/5 | AR23: 4 | AS23: 2/6 | AT23: 2/6 | AU23: 1/4 | AV23: 2/6 | AW23: 2/5 | AX23: 3/5 | AY23: 3/7 | AZ23: 2/5 | BA23: 3/6 | BB23: 2/5 | BC23: 2/5 | BD23: 2/4 | BE23: 2/6 | BF23: 2/6 | BG23: 3/6 | BH23: 3/8 | BI23: 2/4 | BJ23: 2/6 | BK23: 3/6 | BL23: 3/6 | BM23: 1/4 | BN23: 2/5 | BO23: 2 | BP23: 2 | BQ23: 3/9 | BR23: 6 | BS23: 2/6 | BT23: 3/8 | BU23: 3/7 | BV23: 2/6 | BW23: 2/6
A24: Metal Lore | B24: Academic | C24: Re | D24: 1/2 | E24: 2/6 | F24: 1/4 | G24: 2/5 | H24: 1/4 | I24: 3/6 | J24: 2/4 | K24: 3 | L24: 2/6 | M24: 2/5 | N24: 2/4 | O24: 1/5 | P24: 2/6 | Q24: 2/4 | R24: 2/6 | S24: 1/4 | T24: 2/6 | U24: 2/5 | V24: 3 | W24: 2/6 | X24: 2/6 | Y24: 2/5 | Z24: 2/6 | AA24: 2/5 | AB24: 2/6 | AC24: 1/4 | AD24: 3/7 | AE24: 3 | AF24: 2/5 | AG24: 2/5 | AH24: 2/5 | AI24: 2/4 | AJ24: 2/6 | AK24: 2/6 | AL24: 2/6 | AM24: 2/4 | AN24: 1/4 | AO24: 3/6 | AP24: 2/6 | AQ24: 2/5 | AR24: 3 | AS24: 2/5 | AT24: 2/4 | AU24: 2/4 | AV24: 2/6 | AW24: 2/5 | AX24: 2/4 | AY24: 2/5 | AZ24: 2/5 | BA24: 2/6 | BB24: 1/3 | BC24: 2/5 | BD24: 1/4 | BE24: 3/6 | BF24: 2/4 | BG24: 2/6 | BH24: 3/7 | BI24: 2/4 | BJ24: 2/4 | BK24: 2/6 | BL24: 2/6 | BM24: 2/4 | BN24: 2/4 | BO24: 2 | BP24: 2 | BQ24: 2/6 | BR24: 6 | BS24: 2/5 | BT24: 2/6 | BU24: 2/5 | BV24: 2/4 | BW24: 2/4
A25: Military Organization | B25: Academic | C25: Pr/Re | D25: 3/6 | E25: 1/3 | F25: 3/6 | G25: 1/4 | H25: 3/6 | I25: 2/4 | J25: 2/5 | K25: 2/5 | L25: 2/5 | M25: 2/5 | N25: 1/4 | O25: 1/3 | P25: 3/6 | Q25: 3/6 | R25: 3/6 | S25: 2/4 | T25: 3/6 | U25: 3/6 | V25: 3/6 | W25: 3 | X25: 1/5 | Y25: 3/6 | Z25: 3/6 | AA25: 1/4 | AB25: 1/3 | AC25: 3/6 | AD25: 4 | AE25: 1/5 | AF25: 1/4 | AG25: 2/5 | AH25: 2/5 | AI25: 3/6 | AJ25: 1/3 | AK25: 1/3 | AL25: 1/2 | AM25: 3/6 | AN25: 3/6 | AO25: 3/6 | AP25: 2/5 | AQ25: 1/4 | AR25: 3/6 | AS25: 3/6 | AT25: 3/6 | AU25: 2/5 | AV25: 3/6 | AW25: 1/2 | AX25: 1/4 | AY25: 2/5 | AZ25: 1/4 | BA25: 1/3 | BB25: 1/3 | BC25: 1/4 | BD25: 1/4 | BE25: 3/6 | BF25: 3/6 | BG25: 1/3 | BH25: 2/6 | BI25: 2/5 | BJ25: 3/6 | BK25: 1/3 | BL25: 1/3 | BM25: 1/4 | BN25: 3/6 | BO25: 2/5 | BP25: 1/5 | BQ25: 2/4 | BR25: 2/5 | BS25: 1/5 | BT25: 4 | BU25: 2/5 | BV25: 3/6 | BW25: 3/6
A26: Mining | B26: Academic | C26: Re/In | D26: 3 | E26: 2/6 | F26: 3 | G26: 2/4 | H26: 3 | I26: 2/6 | J26: 2/6 | K26: 6 | L26: 2/6 | M26: 2/6 | N26: 1/4 | O26: 2/6 | P26: 3/7 | Q26: 3 | R26: 2/6 | S26: 1/4 | T26: 3/7 | U26: 4 | V26: 5 | W26: 2/7 | X26: 2/6 | Y26: 3 | Z26: 2/6 | AA26: 3/6 | AB26: 2/6 | AC26: 3 | AD26: 2/7 | AE26: 6 | AF26: 2/4 | AG26: 2/6 | AH26: 2/4 | AI26: 3 | AJ26: 2/6 | AK26: 2/6 | AL26: 2/5 | AM26: 2/5 | AN26: 3 | AO26: 3 | AP26: 2/6 | AQ26: 2/4 | AR26: 5 | AS26: 3 | AT26: 2/5 | AU26: 3/6 | AV26: 2/6 | AW26: 2/4 | AX26: 3/6 | AY26: 2/6 | AZ26: 2/4 | BA26: 2/6 | BB26: 2/4 | BC26: 2/4 | BD26: 2/4 | BE26: 1/2 | BF26: 2/5 | BG26: 2/6 | BH26: 2/7 | BI26: 2/6 | BJ26: 3 | BK26: 2/6 | BL26: 2/6 | BM26: 1/4 | BN26: 2/6 | BO26: 2/5 | BP26: 2/5 | BQ26: 4 | BR26: 6 | BS26: 3/6 | BT26: 2/7 | BU26: 2/6 | BV26: 3 | BW26: 3
A27: Navigation | B27: Academic | C27: Re/In | D27: 2/6 | E27: 2/6 | F27: 2/6 | G27: 2/5 | H27: 1/3 | I27: 2/6 | J27: 2/6 | K27: 6 | L27: 2/5 | M27: 1/4 | N27: 2/6 | O27: 2/6 | P27: 2/4 | Q27: 2/6 | R27: 2/6 | S27: 3/7 | T27: 2/4 | U27: 2/6 | V27: 2/4 | W27: 1/4 | X27: 2/6 | Y27: 2/6 | Z27: 2/6 | AA27: 2/6 | AB27: 2/6 | AC27: 2/6 | AD27: 2/4 | AE27: 6 | AF27: 2/5 | AG27: 2/6 | AH27: 2/5 | AI27: 2/6 | AJ27: 2/6 | AK27: 2/6 | AL27: 2/5 | AM27: 2/6 | AN27: 2/6 | AO27: 2/6 | AP27: 2/6 | AQ27: 2/5 | AR27: 2/4 | AS27: 2/6 | AT27: 2/6 | AU27: 2/6 | AV27: 2/6 | AW27: 1/3 | AX27: 2/5 | AY27: 1/4 | AZ27: 2/5 | BA27: 2/6 | BB27: 1/4 | BC27: 2/4 | BD27: 2/5 | BE27: 1/2 | BF27: 2/6 | BG27: 2/6 | BH27: 1/4 | BI27: 2/6 | BJ27: 2/6 | BK27: 2/6 | BL27: 2/6 | BM27: 2/6 | BN27: 1/4 | BO27: 2/6 | BP27: 2/6 | BQ27: 2/5 | BR27: 6 | BS27: 2/6 | BT27: 2/5 | BU27: 1/4 | BV27: 2/6 | BW27: 2/6
A28: Phil/Relig. Doctrine | B28: Academic | C28: In/Re | D28: 1/2 | E28: 2 | F28: 1/2 | G28: 2 | H28: 1/2 | I28: 7 | J28: 1/3 | K28: 3 | L28: 2 | M28: 1/3 | N28: 2 | O28: 2 | P28: 1/2 | Q28: 1/2 | R28: 2/6 | S28: 1/2 | T28: 1/2 | U28: 3 | V28: 1/2 | W28: 1/2 | X28: 2 | Y28: 1/2 | Z28: 2/6 | AA28: 1/4 | AB28: 2 | AC28: 1/2 | AD28: 1/2 | AE28: 1/3 | AF28: 2 | AG28: 2/5 | AH28: 2 | AI28: 1/2 | AJ28: 4 | AK28: 2 | AL28: 1/5 | AM28: 1/2 | AN28: 1/2 | AO28: 1/2 | AP28: 1/3 | AQ28: 2 | AR28: 1/2 | AS28: 1/2 | AT28: 1/2 | AU28: 2 | AV28: 2/6 | AW28: 2 | AX28: 1/2 | AY28: 1/3 | AZ28: 2 | BA28: 2 | BB28: 1/2 | BC28: 2 | BD28: 1/3 | BE28: 1/2 | BF28: 1/2 | BG28: 2 | BH28: 1/2 | BI28: 2/6 | BJ28: 1/2 | BK28: 2 | BL28: 1/2/2 | BM28: 2 | BN28: 2 | BO28: 1/4 | BP28: 1/4 | BQ28: 1/2 | BR28: 6 | BS28: 1/4 | BT28: 1/2 | BU28: 1/3 | BV28: 1/2 | BW28: 1/2
A29: Physics | B29: Academic | C29: Re | D29: 2/5 | E29: 4/8 | F29: 3/7 | G29: 4/7 | H29: 2/3 | I29: 7 | J29: 3/6 | K29: 7 | L29: 7 | M29: 3/7 | N29: 3/7 | O29: 4/8 | P29: 3/6 | Q29: 3/7 | R29: 3/7 | S29: 3/7 | T29: 3/6 | U29: 5 | V29: 5 | W29: 5 | X29: 4/8 | Y29: 3/6 | Z29: 3/7 | AA29: 3/7 | AB29: 4/8 | AC29: 1/3 | AD29: 3/6 | AE29: 7 | AF29: 4/7 | AG29: 3/6 | AH29: 4/7 | AI29: 3/5 | AJ29: 4/8 | AK29: 4/8 | AL29: 4/8 | AM29: 3/7 | AN29: 3/7 | AO29: 3/6 | AP29: 3/6 | AQ29: 4/7 | AR29: 5 | AS29: 3/6 | AT29: 3/7 | AU29: 3/8 | AV29: 3/7 | AW29: 4/7 | AX29: 3/7 | AY29: 3/7 | AZ29: 4/7 | BA29: 4/8 | BB29: 1/3 | BC29: 4/7 | BD29: 1/4 | BE29: 3/6 | BF29: 3/7 | BG29: 4/8 | BH29: 4/7 | BI29: 3/6 | BJ29: 3/6 | BK29: 4/8 | BL29: 4/8 | BM29: 3/8 | BN29: 2/4 | BO29: 4/7 | BP29: 4/7 | BQ29: 3/7 | BR29: 6 | BS29: 3/7 | BT29: 4/7 | BU29: 3/7 | BV29: 3/7 | BW29: 3/7
A30: Planetology | B30: Academic | C30: Re/Em | D30: 4 | E30: 6 | F30: 4 | G30: 6 | H30: 3 | I30: 5 | J30: 5 | K30: 6 | L30: 5 | M30: 5 | N30: 6 | O30: 6 | P30: 4 | Q30: 4 | R30: 4 | S30: 4 | T30: 4 | U30: 6 | V30: 6 | W30: 2/7 | X30: 6 | Y30: 4 | Z30: 4 | AA30: 3/7 | AB30: 6 | AC30: 4 | AD30: 4 | AE30: 6 | AF30: 6 | AG30: 5 | AH30: 6 | AI30: 4 | AJ30: 6 | AK30: 6 | AL30: 6 | AM30: 4 | AN30: 4 | AO30: 4 | AP30: 5 | AQ30: 6 | AR30: 6 | AS30: 4 | AT30: 4 | AU30: 5 | AV30: 4 | AW30: 6 | AX30: 5 | AY30: 5 | AZ30: 6 | BA30: 6 | BB30: 1/4 | BC30: 6 | BD30: 1/4 | BE30: 4 | BF30: 4 | BG30: 6 | BH30: 4 | BI30: 5 | BJ30: 4 | BK30: 6 | BL30: 6 | BM30: 6 | BN30: 6 | BO30: 6 | BP30: 6 | BQ30: 5 | BR30: 6 | BS30: 3/7 | BT30: 4 | BU30: 5 | BV30: 4 | BW30: 4
A31: Poison Lore | B31: Academic | C31: Re | D31: 1/3 | E31: 1/4 | F31: 2/6 | G31: 1/2 | H31: 2/6 | I31: 2/4 | J31: 1/4 | K31: 3/6 | L31: 1/4 | M31: 1/3 | N31: 1/4 | O31: 1/5 | P31: 2/5 | Q31: 2/6 | R31: 2/6 | S31: 1/4 | T31: 2/5 | U31: 1/4 | V31: 1/4 | W31: 1/3 | X31: 1/4 | Y31: 1/3 | Z31: 2/6 | AA31: 2/5 | AB31: 1/4 | AC31: 2/6 | AD31: 1/2 | AE31: 3/6 | AF31: 1/4 | AG31: 2/5 | AH31: 1/4 | AI31: 2/6 | AJ31: 1/4 | AK31: 1/4 | AL31: 1/4 | AM31: 1/3 | AN31: 2/6 | AO31: 2/6 | AP31: 2/4 | AQ31: 1/4 | AR31: 1/4 | AS31: 1/4 | AT31: 1/3 | AU31: 1/3 | AV31: 2/6 | AW31: 1/4 | AX31: 2/4 | AY31: 1/3 | AZ31: 1/4 | BA31: 1/4 | BB31: 1/3 | BC31: 1/4 | BD31: 1/4 | BE31: 2/5 | BF31: 1/3 | BG31: 1/4 | BH31: 1/2 | BI31: 1/4 | BJ31: 1/3 | BK31: 1/4 | BL31: 1/4 | BM31: 1/4 | BN31: 1/4 | BO31: 2/5 | BP31: 2/5 | BQ31: 1/3 | BR31: 6 | BS31: 2/5 | BT31: 1/2 | BU31: 1/3 | BV31: 2/6 | BW31: 2/6
A32: Racial History | B32: Academic | C32: Re | D32: 1/4 | E32: 3 | F32: 1/4 | G32: 3 | H32: 1/4 | I32: 7 | J32: 1/2 | K32: 2/6 | L32: 3 | M32: 2/4 | N32: 3 | O32: 3 | P32: 1/4 | Q32: 1/4 | R32: 2/6 | S32: 2/5 | T32: 1/4 | U32: 4 | V32: 2/5 | W32: 1/4 | X32: 3 | Y32: 1/4 | Z32: 2/6 | AA32: 2/6 | AB32: 3 | AC32: 1/4 | AD32: 1/4 | AE32: 2/6 | AF32: 3 | AG32: 2/5 | AH32: 3 | AI32: 1/4 | AJ32: 3 | AK32: 3 | AL32: 1/5 | AM32: 1/4 | AN32: 1/4 | AO32: 1/4 | AP32: 2/4 | AQ32: 3 | AR32: 2/5 | AS32: 1/4 | AT32: 1/4 | AU32: 3 | AV32: 2/6 | AW32: 3 | AX32: 2/4 | AY32: 2/4 | AZ32: 3 | BA32: 3 | BB32: 1/2 | BC32: 3 | BD32: 1/3 | BE32: 1/4 | BF32: 1/4 | BG32: 3 | BH32: 1/4 | BI32: 2/6 | BJ32: 1/4 | BK32: 3 | BL32: 3 | BM32: 3 | BN32: 3 | BO32: 2/6 | BP32: 2/6 | BQ32: 1/4 | BR32: 6 | BS32: 2/6 | BT32: 1/4 | BU32: 2/4 | BV32: 1/4 | BW32: 1/4
A33: Research | B33: Academic | C33: Re/In | D33: 1/2 | E33: 2 | F33: 1/2 | G33: 2 | H33: 1/2 | I33: 7 | J33: 1/3 | K33: 3 | L33: 2 | M33: 1/3 | N33: 2 | O33: 2 | P33: 1/2 | Q33: 1/2 | R33: 2/6 | S33: 1/2 | T33: 1/2 | U33: 3 | V33: 1/2 | W33: 1/2 | X33: 2 | Y33: 1/2 | Z33: 2/6 | AA33: 1/4 | AB33: 2 | AC33: 1/2 | AD33: 1/2 | AE33: 1/3 | AF33: 2 | AG33: 2/5 | AH33: 2 | AI33: 1/2 | AJ33: 4 | AK33: 2 | AL33: 1/5 | AM33: 1/2 | AN33: 1/2 | AO33: 1/2 | AP33: 1/3 | AQ33: 2 | AR33: 1/2 | AS33: 1/2 | AT33: 1/2 | AU33: 2 | AV33: 2/6 | AW33: 2 | AX33: 1/2 | AY33: 1/3 | AZ33: 2 | BA33: 2 | BB33: 1/2 | BC33: 2 | BD33: 1/3 | BE33: 1/2 | BF33: 1/2 | BG33: 2 | BH33: 1/2 | BI33: 2/6 | BJ33: 1/2 | BK33: 2 | BL33: 1/2/2 | BM33: 2 | BN33: 2 | BO33: 1/4 | BP33: 1/4 | BQ33: 1/2 | BR33: 6 | BS33: 1/4 | BT33: 1/2 | BU33: 1/3 | BV33: 1/2 | BW33: 1/2
A34: Sanity Healing Lore | B34: Academic | C34: Re/Em | D34: 2 | E34: 8 | F34: 2 | G34: 6 | H34: 2/5 | I34: 10 | J34: 3/6 | K34: 3 | L34: 8 | M34: 2/5 | N34: 7 | O34: 8 | P34: 2/5 | Q34: 2 | R34: 2/6 | S34: 3/5 | T34: 2/5 | U34: 7 | V34: 2 | W34: 1/4 | X34: 8 | Y34: 1/3 | Z34: 2/6 | AA34: 2/5 | AB34: 8 | AC34: 2 | AD34: 1/2 | AE34: 3 | AF34: 6 | AG34: 3/6 | AH34: 6 | AI34: 2/5 | AJ34: 8 | AK34: 8 | AL34: 6 | AM34: 2/5 | AN34: 2 | AO34: 1/3 | AP34: 2/5 | AQ34: 6 | AR34: 2 | AS34: 1/3 | AT34: 2/5 | AU34: 7 | AV34: 2/6 | AW34: 6 | AX34: 1/5 | AY34: 2/5 | AZ34: 6 | BA34: 8 | BB34: 1/3 | BC34: 6 | BD34: 2/5 | BE34: 1/4 | BF34: 2/5 | BG34: 8 | BH34: 1/3 | BI34: 3/6 | BJ34: 2 | BK34: 8 | BL34: 8 | BM34: 7 | BN34: 7 | BO34: 3 | BP34: 3 | BQ34: 1/3 | BR34: 8 | BS34: 4 | BT34: 1/5 | BU34: 2/5 | BV34: 2 | BW34: 2
A35: Siege Engineer | B35: Academic | C35: Re/In | D35: 2/4 | E35: 1/2 | F35: 2/4 | G35: 1/4 | H35: 2/5 | I35: 3/6 | J35: 2/4 | K35: 3/6 | L35: 1/3 | M35: 1/4 | N35: 2/6 | O35: 1/2 | P35: 2/5 | Q35: 1/4 | R35: 2/6 | S35: 2/4 | T35: 2/5 | U35: 2/6 | V35: 2/6 | W35: 2/5 | X35: 1/2 | Y35: 2/4 | Z35: 2/6 | AA35: 1/4 | AB35: 1/2 | AC35: 2/4 | AD35: 2/5 | AE35: 3/6 | AF35: 1/4 | AG35: 2/5 | AH35: 1/4 | AI35: 1/4 | AJ35: 1/2 | AK35: 1/2 | AL35: 1/2/2 | AM35: 1/4 | AN35: 2/4 | AO35: 2/4 | AP35: 2/4 | AQ35: 1/4 | AR35: 2/6 | AS35: 2/4 | AT35: 1/4 | AU35: 1/3 | AV35: 2/6 | AW35: 1/4 | AX35: 1/3 | AY35: 1/4 | AZ35: 1/4 | BA35: 1/2 | BB35: 1/3 | BC35: 1/4 | BD35: 1/4 | BE35: 2/5 | BF35: 1/4 | BG35: 1/2 | BH35: 1/6 | BI35: 2/4 | BJ35: 2/4 | BK35: 1/2 | BL35: 1/2 | BM35: 2/6 | BN35: 2/5 | BO35: 2/6 | BP35: 2/6 | BQ35: 1/3 | BR35: 4 | BS35: 1/4 | BT35: 2/6 | BU35: 1/4 | BV35: 2/4 | BW35: 2/4
A36: Spec. Know. Lore | B36: Academic | C36: Re | D36: 1/3 | E36: 1/3 | F36: 1/3 | G36: 1/3 | H36: 1/3 | I36: 1/3 | J36: 1/3 | K36: 1/3 | L36: 1/3 | M36: 1/3 | N36: 1/3 | O36: 1/3 | P36: 1/3 | Q36: 1/3 | R36: 1/3 | S36: 1/3 | T36: 1/3 | U36: 1/3 | V36: 1/3 | W36: 1/3 | X36: 1/3 | Y36: 1/3 | Z36: 1/3 | AA36: 1/3 | AB36: 1/3 | AC36: 1/3 | AD36: 1/3 | AE36: 1/3 | AF36: 1/3 | AG36: 1/3 | AH36: 1/3 | AI36: 1/3 | AJ36: 1/3 | AK36: 1/3 | AL36: 1/3 | AM36: 1/3 | AN36: 1/3 | AO36: 1/3 | AP36: 1/3 | AQ36: 1/3 | AR36: 1/3 | AS36: 1/3 | AT36: 1/3 | AU36: 1/3 | AV36: 1/3 | AW36: 1/3 | AX36: 1/3 | AY36: 1/3 | AZ36: 1/3 | BA36: 1/3 | BB36: 1/3 | BC36: 1/3 | BD36: 1/3 | BE36: 1/3 | BF36: 1/3 | BG36: 1/3 | BH36: 1/3 | BI36: 1/3 | BJ36: 1/3 | BK36: 1/3 | BL36: 1/3 | BM36: 1/3 | BN36: 1/3 | BO36: 1/3 | BP36: 1/3 | BQ36: 1/3 | BR36: 1/3 | BS36: 1/3 | BT36: 1/3 | BU36: 1/3 | BV36: 1/3 | BW36: 1/3
A37: Star-gazing | B37: Academic | C37: In/Re | D37: 2/6 | E37: 2/6 | F37: 2/6 | G37: 2/6 | H37: 1/2 | I37: 2/6 | J37: 2/5 | K37: 6 | L37: 2/6 | M37: 2/4 | N37: 2/6 | O37: 2/6 | P37: 1/3 | Q37: 1/4 | R37: 2/6 | S37: 2/6 | T37: 1/3 | U37: 3/9 | V37: 2/5 | W37: 1/2 | X37: 2/6 | Y37: 1/4 | Z37: 2/6 | AA37: 2/6 | AB37: 2/6 | AC37: 2/6 | AD37: 1/4 | AE37: 6 | AF37: 2/6 | AG37: 2/5 | AH37: 2/6 | AI37: 2/6 | AJ37: 2/6 | AK37: 2/6 | AL37: 2/6 | AM37: 2/5 | AN37: 2/6 | AO37: 2/6 | AP37: 2/5 | AQ37: 2/6 | AR37: 2/5 | AS37: 1/4 | AT37: 2/5 | AU37: 2/6 | AV37: 2/6 | AW37: 2/6 | AX37: 2/5 | AY37: 2/4 | AZ37: 2/6 | BA37: 2/6 | BB37: 1/3 | BC37: 1/4 | BD37: 1/4 | BE37: 1/3 | BF37: 2/5 | BG37: 4/12 | BH37: 1/2 | BI37: 2/5 | BJ37: 1/3 | BK37: 2/6 | BL37: 2/6 | BM37: 2/6 | BN37: 1/4 | BO37: 2/5 | BP37: 2/5 | BQ37: 1/4 | BR37: 6 | BS37: 2/6 | BT37: 1/2 | BU37: 2/4 | BV37: 2/6 | BW37: 2/6
A38: Stone Lore | B38: Academic | C38: Re | D38: 1/2 | E38: 2/6 | F38: 1/4 | G38: 2/5 | H38: 1/4 | I38: 3/7 | J38: 2/4 | K38: 3 | L38: 2/5 | M38: 2/5 | N38: 2/4 | O38: 1/5 | P38: 2/6 | Q38: 2/4 | R38: 2/6 | S38: 1/4 | T38: 2/6 | U38: 2/5 | V38: 2/5 | W38: 2/5 | X38: 2/6 | Y38: 2/5 | Z38: 1/5 | AA38: 3/7 | AB38: 2/6 | AC38: 1/4 | AD38: 3/7 | AE38: 3 | AF38: 2/5 | AG38: 2/5 | AH38: 2/5 | AI38: 2/4 | AJ38: 2/6 | AK38: 2/6 | AL38: 2/6 | AM38: 2/4 | AN38: 1/4 | AO38: 3/6 | AP38: 2/6 | AQ38: 2/5 | AR38: 2/5 | AS38: 2/5 | AT38: 2/4 | AU38: 2/4 | AV38: 2/6 | AW38: 2/5 | AX38: 2/4 | AY38: 2/5 | AZ38: 2/5 | BA38: 2/6 | BB38: 1/3 | BC38: 2/5 | BD38: 1/4 | BE38: 3/6 | BF38: 2/4 | BG38: 2/6 | BH38: 2/5 | BI38: 2/4 | BJ38: 2/4 | BK38: 2/6 | BL38: 2/6 | BM38: 2/4 | BN38: 2/4 | BO38: 2 | BP38: 2 | BQ38: 2/6 | BR38: 6 | BS38: 2/4 | BT38: 2/6 | BU38: 2/5 | BV38: 2/4 | BW38: 2/4
A39: Tactics | B39: Academic | C39: In/Re | D39: 2/4 | E39: 1/2 | F39: 2/4 | G39: 2/5 | H39: 2/5 | I39: 1/2 | J39: 2/4 | K39: 5 | L39: 1/3 | M39: 1/4 | N39: 1/3 | O39: 1/2 | P39: 2/5 | Q39: 1/4 | R39: 2/6 | S39: 2/4 | T39: 2/5 | U39: 2/7 | V39: 2/6 | W39: 2/5 | X39: 1/2 | Y39: 2/4 | Z39: 2/6 | AA39: 1/4 | AB39: 1/2 | AC39: 2/4 | AD39: 2/5 | AE39: 1/4 | AF39: 1/3 | AG39: 2/5 | AH39: 1/3 | AI39: 1/4 | AJ39: 1/2 | AK39: 1/2 | AL39: 1/2/2 | AM39: 1/4 | AN39: 2/4 | AO39: 2/4 | AP39: 2/4 | AQ39: 1/3 | AR39: 2/6 | AS39: 2/4 | AT39: 1/4 | AU39: 1/3 | AV39: 2/6 | AW39: 1/3 | AX39: 1/3 | AY39: 1/4 | AZ39: 1/3 | BA39: 1/2 | BB39: 1/4 | BC39: 1/3 | BD39: 1/4 | BE39: 2/5 | BF39: 1/4 | BG39: 1/2 | BH39: 1/6 | BI39: 2/4 | BJ39: 2/4 | BK39: 1/2 | BL39: 1/2 | BM39: 1/3 | BN39: 2/5 | BO39: 1/4 | BP39: 1/4 | BQ39: 2/4 | BR39: 4 | BS39: 1/4 | BT39: 2/6 | BU39: 1/4 | BV39: 2/4 | BW39: 2/4
A40: Trading Lore | B40: Academic | C40: Re | D40: 2/6 | E40: 2/7 | F40: 2/5 | G40: 2/7 | H40: 2/6 | I40: 2/6 | J40: 1/4 | K40: 2/7 | L40: 1/3 | M40: 1/2 | N40: 2/5 | O40: 1/5 | P40: 2/4 | Q40: 2/5 | R40: 2/6 | S40: 2/4 | T40: 2/4 | U40: 2/4 | V40: 2/6 | W40: 2/4 | X40: 2/7 | Y40: 1/4 | Z40: 1/5 | AA40: 2/6 | AB40: 2/7 | AC40: 2/5 | AD40: 2/4 | AE40: 2/7 | AF40: 2/7 | AG40: 2/5 | AH40: 1/2 | AI40: 2/5 | AJ40: 4/9 | AK40: 2/7 | AL40: 2/7 | AM40: 2/6 | AN40: 2/5 | AO40: 2/6 | AP40: 2/5 | AQ40: 2/7 | AR40: 2/6 | AS40: 2/4 | AT40: 2/6 | AU40: 2/5 | AV40: 2/6 | AW40: 2/7 | AX40: 1/4 | AY40: 1/2 | AZ40: 2/7 | BA40: 2/7 | BB40: 1/3 | BC40: 2/7 | BD40: 1/3 | BE40: 2/5 | BF40: 2/6 | BG40: 2/7 | BH40: 2/4 | BI40: 1/4 | BJ40: 2/6 | BK40: 2/7 | BL40: 2/7 | BM40: 2/5 | BN40: 1/2 | BO40: 2/6 | BP40: 2/6 | BQ40: 2/4 | BR40: 6 | BS40: 2/6 | BT40: 3/5 | BU40: 1/2 | BV40: 2/5 | BW40: 2/5
A41: Weather Watching | B41: Academic | C41: In/Em | D41: 1/4 | E41: 3/7 | F41: 1/4 | G41: 3/7 | H41: 1/2 | I41: 3/7 | J41: 2/6 | K41: 6 | L41: 1/4 | M41: 1/5 | N41: 3/7 | O41: 3/7 | P41: 1/3 | Q41: 1/4 | R41: 2/6 | S41: 3/7 | T41: 1/3 | U41: 3/7 | V41: 2/5 | W41: 1/3 | X41: 3/7 | Y41: 1/4 | Z41: 1/3 | AA41: 2/5 | AB41: 3/7 | AC41: 1/4 | AD41: 1/3 | AE41: 6 | AF41: 3/7 | AG41: 2/6 | AH41: 3/7 | AI41: 1/4 | AJ41: 3/7 | AK41: 3/7 | AL41: 2/6 | AM41: 2/6 | AN41: 1/4 | AO41: 2/6 | AP41: 1/5 | AQ41: 3/7 | AR41: 2/5 | AS41: 1/4 | AT41: 2/6 | AU41: 3/7 | AV41: 2/6 | AW41: 3/7 | AX41: 2/5 | AY41: 1/5 | AZ41: 3/7 | BA41: 3/7 | BB41: 1/4 | BC41: 2/4 | BD41: 2/5 | BE41: 1/2 | BF41: 2/6 | BG41: 3/7 | BH41: 1/3 | BI41: 2/6 | BJ41: 1/3 | BK41: 3/7 | BL41: 3/7 | BM41: 3/7 | BN41: 2/5 | BO41: 2/7 | BP41: 2/7 | BQ41: 1/4 | BR41: 6 | BS41: 2/5 | BT41: 1/3 | BU41: 1/5 | BV41: 1/4 | BW41: 1/4
A42: Xeno lore | B42: Academic | C42: varies | D42: 4/6 | E42: 6 | F42: 4/7 | G42: 6 | H42: 4/7 | I42: 6 | J42: 3/5 | K42: 6 | L42: 4 | M42: 4 | N42: 6 | O42: 1/5 | P42: 4/7 | Q42: 4/7 | R42: 6 | S42: 4/7 | T42: 4/7 | U42: 6 | V42: 6 | W42: 4/7 | X42: 6 | Y42: 4/7 | Z42: 6 | AA42: 5 | AB42: 6 | AC42: 4/7 | AD42: 4/7 | AE42: 6 | AF42: 6 | AG42: 3/5 | AH42: 6 | AI42: 4/7 | AJ42: 6 | AK42: 6 | AL42: 6 | AM42: 4/7 | AN42: 4/7 | AO42: 4/7 | AP42: 4 | AQ42: 6 | AR42: 6 | AS42: 4/7 | AT42: 4/7 | AU42: 4 | AV42: 6 | AW42: 6 | AX42: 4 | AY42: 4 | AZ42: 6 | BA42: 6 | BB42: 3/6 | BC42: 6 | BD42: 3/8 | BE42: 4/7 | BF42: 4/7 | BG42: 6 | BH42: 4/7 | BI42: 3/5 | BJ42: 4/7 | BK42: 6 | BL42: 6 | BM42: 5 | BN42: 5 | BO42: 6 | BP42: 6 | BQ42: 4/7 | BR42: 6 | BS42: 5 | BT42: 4/7 | BU42: 4 | BV42: 4/7 | BW42: 4/7
A43: Animal Handling | B43: Animal | C43: Em/Pr/Ap | D43: 2/5 | E43: 2/8 | F43: 4 | G43: 3 | H43: 2 | I43: 1/3 | J43: 1/5 | K43: 4 | L43: 1/2 | M43: 1/3 | N43: 3/6 | O43: 1/4 | P43: 2 | Q43: 2/4 | R43: 2/6 | S43: 3 | T43: 1/3 | U43: 2/7 | V43: 3 | W43: 1/2 | X43: 1/4 | Y43: 2/6 | Z43: 1/3 | AA43: 1/5 | AB43: 1/4 | AC43: 2/5 | AD43: 2 | AE43: 2/6 | AF43: 1/2 | AG43: 1/5 | AH43: 1/4 | AI43: 2/5 | AJ43: 1/4 | AK43: 1/4 | AL43: 1/4 | AM43: 2 | AN43: 2/5 | AO43: 2 | AP43: 2/5 | AQ43: 1/4 | AR43: 2/7 | AS43: 2/6 | AT43: 2 | AU43: 2/5 | AV43: 2/6 | AW43: 1/4 | AX43: 1/4 | AY43: 1/3 | AZ43: 1/4 | BA43: 1/4 | BB43: 3 | BC43: 2/4 | BD43: 2/5 | BE43: 2 | BF43: 2 | BG43: 1/4 | BH43: 2/4 | BI43: 1/5 | BJ43: 2/7 | BK43: 1/4 | BL43: 1/4 | BM43: 2/5 | BN43: 1/3 | BO43: 2/6 | BP43: 2/6 | BQ43: 24 | BR43: 6 | BS43: 1/5 | BT43: 1/4 | BU43: 1/3 | BV43: 2/5 | BW43: 2/5
A44: Animal Training | B44: Animal | C44: Em/Pr/Ap | D44: 4 | E44: 3/7 | F44: 4 | G44: 3 | H44: 4 | I44: 1/3 | J44: 3/7 | K44: 4 | L44: 1/2 | M44: 3/7 | N44: 3/8 | O44: 3/7 | P44: 4 | Q44: 4 | R44: 2/6 | S44: 4 | T44: 3/7 | U44: 2/7 | V44: 5 | W44: 1/3 | X44: 3/7 | Y44: 4 | Z44: 1/3 | AA44: 2/6 | AB44: 3/7 | AC44: 4 | AD44: 4 | AE44: 3/8 | AF44: 2/3 | AG44: 3/7 | AH44: 2/3 | AI44: 4 | AJ44: 3/7 | AK44: 3/7 | AL44: 3/7 | AM44: 4 | AN44: 4 | AO44: 3 | AP44: 4 | AQ44: 3/6 | AR44: 3 | AS44: 4 | AT44: 4 | AU44: 3/8 | AV44: 2/6 | AW44: 3/6 | AX44: 3/7 | AY44: 3/6 | AZ44: 3/6 | BA44: 3/7 | BB44: 3 | BC44: 4 | BD44: 2/6 | BE44: 3 | BF44: 4 | BG44: 3/7 | BH44: 4 | BI44: 3/7 | BJ44: 4 | BK44: 3/7 | BL44: 3/7 | BM44: 3/7 | BN44: 1/4 | BO44: 3/8 | BP44: 3/8 | BQ44: 4 | BR44: 6 | BS44: 2/6 | BT44: 2 | BU44: 3/7 | BV44: 4 | BW44: 4
A45: Beast Master | B45: Animal | C45: Em/Pr | D45: 5 | E45: 4 | F45: 2/5 | G45: 3 | H45: 5 | I45: 3/7 | J45: 4 | K45: 4 | L45: 1/2 | M45: 4 | N45: 5 | O45: 4 | P45: 5 | Q45: 4 | R45: 2/6 | S45: 5 | T45: 4 | U45: 3/8 | V45: 4 | W45: 2/4 | X45: 4 | Y45: 4 | Z45: 1/3 | AA45: 4 | AB45: 4 | AC45: 4 | AD45: 5 | AE45: 4 | AF45: 4 | AG45: 4 | AH45: 8 | AI45: 4 | AJ45: 4 | AK45: 4 | AL45: 4 | AM45: 5 | AN45: 4 | AO45: 4 | AP45: 4 | AQ45: 4 | AR45: 3/5 | AS45: 4 | AT45: 5 | AU45: 5 | AV45: 2/6 | AW45: 4 | AX45: 4 | AY45: 4 | AZ45: 4 | BA45: 4 | BB45: 4 | BC45: 4 | BD45: 4 | BE45: 4 | BF45: 5 | BG45: 4 | BH45: 3/6 | BI45: 4 | BJ45: 5 | BK45: 4 | BL45: 4 | BM45: 4 | BN45: 2/5 | BO45: 4 | BP45: 4 | BQ45: 1/4 | BR45: 6 | BS45: 4 | BT45: 2/5 | BU45: 4 | BV45: 4 | BW45: 4
A46: Driving | B46: Animal | C46: Ag/Qu | D46: 3 | E46: 1/4 | F46: 4 | G46: 3 | H46: 3 | I46: 1/3 | J46: 2/7 | K46: 4 | L46: 1/4 | M46: 2/7 | N46: 2/6 | O46: 1/4 | P46: 3 | Q46: 3 | R46: 2/6 | S46: 5 | T46: 2/7 | U46: 2/7 | V46: 3 | W46: 2 | X46: 1/4 | Y46: 3 | Z46: 1/3 | AA46: 2/4 | AB46: 1/4 | AC46: 3 | AD46: 3 | AE46: 2/6 | AF46: 1/5 | AG46: 2/7 | AH46: 1/5 | AI46: 3 | AJ46: 1/4 | AK46: 1/4 | AL46: 1/4 | AM46: 3 | AN46: 3 | AO46: 3 | AP46: 2/7 | AQ46: 1/5 | AR46: 2/7 | AS46: 3 | AT46: 3 | AU46: 3 | AV46: 2/6 | AW46: 1/5 | AX46: 2/6 | AY46: 2/7 | AZ46: 1/5 | BA46: 1/4 | BB46: 3 | BC46: 2/6 | BD46: 2/6 | BE46: 3 | BF46: 3 | BG46: 1/4 | BH46: 3 | BI46: 2/7 | BJ46: 3 | BK46: 1/4 | BL46: 1/4 | BM46: 2/6 | BN46: 1/2 | BO46: 2/6 | BP46: 2/6 | BQ46: 3 | BR46: 6 | BS46: 2/4 | BT46: 3 | BU46: 2/7 | BV46: 3 | BW46: 3
A47: Herding | B47: Animal | C47: Em/Pr | D47: 2/6 | E47: 1/4 | F47: 2/5 | G47: 3 | H47: 3/7 | I47: 1/4 | J47: 2/7 | K47: 4 | L47: 1/2 | M47: 2/7 | N47: 2/5 | O47: 1/4 | P47: 2/5 | Q47: 2/5 | R47: 2/6 | S47: 4 | T47: 2/7 | U47: 2/5 | V47: 3/6 | W47: 1/3 | X47: 1/4 | Y47: 3/5 | Z47: 1/3 | AA47: 3/7 | AB47: 1/4 | AC47: 2/6 | AD47: 2/5 | AE47: 6 | AF47: 1/4 | AG47: 2/7 | AH47: 1/4 | AI47: 2/6 | AJ47: 1/4 | AK47: 1/4 | AL47: 1/4 | AM47: 2/6 | AN47: 2/6 | AO47: 3/7 | AP47: 3/7 | AQ47: 1/4 | AR47: 2/5 | AS47: 3/5 | AT47: 2/6 | AU47: 2 | AV47: 2/6 | AW47: 1/4 | AX47: 2/6 | AY47: 2/7 | AZ47: 1/4 | BA47: 1/4 | BB47: 3/7 | BC47: 2/4 | BD47: 2/6 | BE47: 3/7 | BF47: 2/6 | BG47: 1/4 | BH47: 2/5 | BI47: 2/7 | BJ47: 2/7 | BK47: 1/4 | BL47: 1/4 | BM47: 2/5 | BN47: 2/4 | BO47: 2/6 | BP47: 2/6 | BQ47: 3/6 | BR47: 6 | BS47: 3/7 | BT47: 2/5 | BU47: 2/7 | BV47: 2/6 | BW47: 2/6
A48: Loading | B48: Animal | C48: Em/Re | D48: 3 | E48: 1/4 | F48: 4 | G48: 3 | H48: 3 | I48: 1/3 | J48: 2/7 | K48: 4 | L48: 1/4 | M48: 2/7 | N48: 2/6 | O48: 1/4 | P48: 2 | Q48: 3 | R48: 2/6 | S48: 4 | T48: 2/7 | U48: 3/6 | V48: 3 | W48: 2 | X48: 1/4 | Y48: 3 | Z48: 1/3 | AA48: 2/4 | AB48: 1/4 | AC48: 3 | AD48: 2 | AE48: 2/6 | AF48: 1/5 | AG48: 2/7 | AH48: 1/5 | AI48: 3 | AJ48: 1/4 | AK48: 1/4 | AL48: 1/4 | AM48: 3 | AN48: 3 | AO48: 3 | AP48: 2/7 | AQ48: 1/5 | AR48: 2/6 | AS48: 3 | AT48: 3 | AU48: 3 | AV48: 2/6 | AW48: 1/5 | AX48: 2/6 | AY48: 2/5 | AZ48: 1/5 | BA48: 1/4 | BB48: 4 | BC48: 2/4 | BD48: 3 | BE48: 3 | BF48: 3 | BG48: 1/4 | BH48: 3 | BI48: 2/7 | BJ48: 3 | BK48: 1/4 | BL48: 1/4 | BM48: 2/6 | BN48: 1/2 | BO48: 2/6 | BP48: 2/6 | BQ48: 3 | BR48: 6 | BS48: 2/4 | BT48: 3 | BU48: 2/7 | BV48: 3 | BW48: 3
A49: Riding | B49: Animal | C49: Em/Ag | D49: 3 | E49: 2/6 | F49: 4 | G49: 3 | H49: 3 | I49: 2/6 | J49: 2/7 | K49: 2/6 | L49: 1/3 | M49: 2/6 | N49: 3 | O49: 2/5 | P49: 3 | Q49: 3 | R49: 2/6 | S49: 4 | T49: 2/6 | U49: 3/7 | V49: 3 | W49: 1/4 | X49: 2/6 | Y49: 4 | Z49: 1/5 | AA49: 2/6 | AB49: 2/6 | AC49: 3 | AD49: 3 | AE49: 3 | AF49: 1/3 | AG49: 2/7 | AH49: 2/5 | AI49: 3 | AJ49: 2/6 | AK49: 1/3 | AL49: 2/4 | AM49: 6 | AN49: 3 | AO49: 2 | AP49: 3 | AQ49: 2/6 | AR49: 3 | AS49: 3 | AT49: 3 | AU49: 3 | AV49: 2/6 | AW49: 2/5 | AX49: 2/5 | AY49: 2/6 | AZ49: 2/5 | BA49: 2/5 | BB49: 3 | BC49: 3/7 | BD49: 3 | BE49: 2 | BF49: 3 | BG49: 2/6 | BH49: 2/4 | BI49: 2/6 | BJ49: 3 | BK49: 2/6 | BL49: 1/3 | BM49: 2/6 | BN49: 1/4 | BO49: 2/7 | BP49: 2/7 | BQ49: 3 | BR49: 3 | BS49: 2/6 | BT49: 3 | BU49: 2/6 | BV49: 3 | BW49: 3
A50: Athletic Games | B50: Athletic | C50: St/Ag/Qu | D50: 7 | E50: 1/4 | F50: 7 | G50: 1/5 | H50: 7 | I50: 1/4 | J50: 2/6 | K50: 1/5 | L50: 1/5 | M50: 1/4 | N50: 1/5 | O50: 1/4 | P50: 5 | Q50: 6 | R50: 2/6 | S50: 8 | T50: 1/4 | U50: 1/4 | V50: 3/6 | W50: 3 | X50: 1/4 | Y50: 7 | Z50: 2/6 | AA50: 2/6 | AB50: 1/4 | AC50: 6 | AD50: 6 | AE50: 1/5 | AF50: 1/5 | AG50: 2/6 | AH50: 1/5 | AI50: 7 | AJ50: 1/4 | AK50: 1/4 | AL50: 1/4 | AM50: 7 | AN50: 6 | AO50: 5 | AP50: 1/5 | AQ50: 2/6 | AR50: 3/6 | AS50: 7 | AT50: 7 | AU50: 2/6 | AV50: 2/6 | AW50: 1/5 | AX50: 1/5 | AY50: 1/4 | AZ50: 1/5 | BA50: 1/4 | BB50: 9 | BC50: 1/5 | BD50: 7 | BE50: 4 | BF50: 7 | BG50: 1/4 | BH50: 7 | BI50: 2/6 | BJ50: 7 | BK50: 1/4 | BL50: 1/4 | BM50: 1/5 | BN50: 2/6 | BO50: 1/5 | BP50: 1/5 | BQ50: 4 | BR50: 2/6 | BS50: 2/6 | BT50: 7 | BU50: 1/4 | BV50: 6 | BW50: 6
A51: Body Development | B51: Athletic | C51: Co/10 | D51: 6 | E51: 2/6 | F51: 6 | G51: 2/7 | H51: 6 | I51: 1/3 | J51: 3/8 | K51: 1/3 | L51: 2/7 | M51: 1/5 | N51: 3/7 | O51: 1/4 | P51: 4/8 | Q51: 6 | R51: 4 | S51: 6 | T51: 2/5 | U51: 1/5 | V51: 2/6 | W51: 4/8 | X51: 1/5 | Y51: 6 | Z51: 1/4 | AA51: 2/6 | AB51: 1/3 | AC51: 6 | AD51: 3/7 | AE51: 2/5 | AF51: 2/5 | AG51: 3/9 | AH51: 2/5 | AI51: 6 | AJ51: 1/3 | AK51: 1/5 | AL51: 1/4 | AM51: 3/7 | AN51: 6 | AO51: 6 | AP51: 3/7 | AQ51: 3/7 | AR51: 3/5 | AS51: 6 | AT51: 6 | AU51: 3/7 | AV51: 2/6 | AW51: 2/5 | AX51: 2/5 | AY51: 2/6 | AZ51: 2/5 | BA51: 2/7 | BB51: 6 | BC51: 2/5 | BD51: 6 | BE51: 6 | BF51: 6 | BG51: 2/5 | BH51: 2/4 | BI51: 3/8 | BJ51: 6 | BK51: 1/5 | BL51: 2/5 | BM51: 2/6 | BN51: 2/6 | BO51: 1/4 | BP51: 2/7 | BQ51: 6 | BR51: 1/3 | BS51: 2/8 | BT51: 6 | BU51: 2/7 | BV51: 8 | BW51: 6
A52: Climbing | B52: Athletic | C52: Ag | D52: 7 | E52: 3/7 | F52: 7 | G52: 1/5 | H52: 7 | I52: 2/6 | J52: 3/9 | K52: 2/6 | L52: 2/5 | M52: 3/6 | N52: 1/3 | O52: 5 | P52: 5 | Q52: 6 | R52: 3/7 | S52: 5 | T52: 3/9 | U52: 2/5 | V52: 2/5 | W52: 4 | X52: 3/7 | Y52: 7 | Z52: 2/5 | AA52: 2/7 | AB52: 3/7 | AC52: 6 | AD52: 6 | AE52: 2/6 | AF52: 3/7 | AG52: 3/9 | AH52: 3/7 | AI52: 7 | AJ52: 2/4 | AK52: 3/7 | AL52: 4 | AM52: 4 | AN52: 6 | AO52: 5 | AP52: 3/7 | AQ52: 3/9 | AR52: 5 | AS52: 7 | AT52: 7 | AU52: 3/7 | AV52: 3/6 | AW52: 3/7 | AX52: 6 | AY52: 3/9 | AZ52: 3/7 | BA52: 3/7 | BB52: 7 | BC52: 1/4 | BD52: 6 | BE52: 4 | BF52: 5 | BG52: 3/7 | BH52: 5 | BI52: 3/9 | BJ52: 7 | BK52: 3/7 | BL52: 3/7 | BM52: 2/5 | BN52: 4 | BO52: 2/4 | BP52: 3/7 | BQ52: 4 | BR52: 2/6 | BS52: 3/9 | BT52: 5 | BU52: 5 | BV52: 6 | BW52: 6
A53: Dancing | B53: Athletic | C53: Ag/In | D53: 2/6 | E53: 2/6 | F53: 2/6 | G53: 2/4 | H53: 2/5 | I53: 2/6 | J53: 1/3 | K53: 6 | L53: 2/6 | M53: 2/6 | N53: 2/4 | O53: 2/6 | P53: 1/5 | Q53: 2/6 | R53: 2/6 | S53: 2/6 | T53: 2/5 | U53: 1/2 | V53: 1/5 | W53: 1/5 | X53: 2/6 | Y53: 1/3 | Z53: 2/6 | AA53: 2/6 | AB53: 2/6 | AC53: 2/6 | AD53: 2/4 | AE53: 6 | AF53: 2/4 | AG53: 1/3 | AH53: 2/4 | AI53: 2/6 | AJ53: 2/6 | AK53: 2/6 | AL53: 2/6 | AM53: 2/6 | AN53: 2/6 | AO53: 2/6 | AP53: 1/5 | AQ53: 1/3 | AR53: 1/5 | AS53: 2/4 | AT53: 2/6 | AU53: 2/4 | AV53: 2/6 | AW53: 2/4 | AX53: 2/5 | AY53: 2/5 | AZ53: 2/4 | BA53: 2/6 | BB53: 2/6 | BC53: 2/4 | BD53: 2/6 | BE53: 2/5 | BF53: 2/6 | BG53: 2/6 | BH53: 1/4 | BI53: 1/5 | BJ53: 2/7 | BK53: 2/6 | BL53: 2/6 | BM53: 2/4 | BN53: 2/6 | BO53: 2/4 | BP53: 2/4 | BQ53: 2/6 | BR53: 6 | BS53: 2/6 | BT53: 1/4 | BU53: 2/5 | BV53: 2/6 | BW53: 2/6
A54: Distance Running | B54: Athletic | C54: Co | D54: 3 | E54: 2/4 | F54: 3 | G54: 2/5 | H54: 3 | I54: 2/4 | J54: 2/6 | K54: 1/2 | L54: 2/5 | M54: 2/4 | N54: 1/3 | O54: 2/4 | P54: 3 | Q54: 3 | R54: 2/6 | S54: 3 | T54: 2/6 | U54: 1/4 | V54: 1/2 | W54: 3 | X54: 2/4 | Y54: 3 | Z54: 2/6 | AA54: 2/5 | AB54: 2/4 | AC54: 3 | AD54: 3 | AE54: 1/4 | AF54: 2/5 | AG54: 2/6 | AH54: 2/5 | AI54: 3 | AJ54: 2/4 | AK54: 2/4 | AL54: 2/4 | AM54: 3 | AN54: 3 | AO54: 3 | AP54: 2/6 | AQ54: 2/6 | AR54: 1/2 | AS54: 3 | AT54: 3 | AU54: 1/3 | AV54: 2/6 | AW54: 2/5 | AX54: 2/5 | AY54: 2/6 | AZ54: 2/5 | BA54: 2/4 | BB54: 3 | BC54: 2/5 | BD54: 3 | BE54: 3 | BF54: 3 | BG54: 2/4 | BH54: 3 | BI54: 2/6 | BJ54: 3 | BK54: 2/4 | BL54: 2/4 | BM54: 1/3 | BN54: 2/5 | BO54: 1/5 | BP54: 1/5 | BQ54: 3 | BR54: 2/6 | BS54: 2/7 | BT54: 4 | BU54: 2/6 | BV54: 3 | BW54: 3
A55: Diving | B55: Athletic | C55: Sd/Ag | D55: 3 | E55: 2/6 | F55: 3 | G55: 1/3 | H55: 3 | I55: 2/6 | J55: 2/5 | K55: 1/5 | L55: 2/4 | M55: 2/6 | N55: 1/3 | O55: 2/6 | P55: 2/5 | Q55: 3 | R55: 2/6 | S55: 3 | T55: 2/5 | U55: 1/3 | V55: 1/3 | W55: 2/5 | X55: 2/6 | Y55: 3 | Z55: 2/6 | AA55: 2/5 | AB55: 2/6 | AC55: 3 | AD55: 2/5 | AE55: 2/5 | AF55: 2/4 | AG55: 2/5 | AH55: 2/4 | AI55: 3 | AJ55: 2/6 | AK55: 2/6 | AL55: 2/6 | AM55: 3 | AN55: 3 | AO55: 3 | AP55: 2/4 | AQ55: 2/5 | AR55: 1/3 | AS55: 3 | AT55: 3 | AU55: 2/4 | AV55: 2/6 | AW55: 2/4 | AX55: 2/6 | AY55: 2/5 | AZ55: 2/4 | BA55: 2/6 | BB55: 3 | BC55: 2/4 | BD55: 3 | BE55: 3 | BF55: 3 | BG55: 2/6 | BH55: 3 | BI55: 2/5 | BJ55: 3 | BK55: 2/6 | BL55: 2/6 | BM55: 1/3 | BN55: 2/5 | BO55: 1/4 | BP55: 1/4 | BQ55: 3 | BR55: 6 | BS55: 2/6 | BT55: 4 | BU55: 2/5 | BV55: 3 | BW55: 3
A56: Endurance | B56: Athletic | C56: None | D56: 6 | E56: 2/6 | F56: 8 | G56: 2/7 | H56: 6 | I56: 1/3 | J56: 3/8 | K56: 1/3 | L56: 2/7 | M56: 1/5 | N56: 3/7 | O56: 1/4 | P56: 6 | Q56: 7 | R56: 4 | S56: 8 | T56: 2/5 | U56: 1/5 | V56: 2/6 | W56: 4 | X56: 1/5 | Y56: 8 | Z56: 1/4 | AA56: 2/5 | AB56: 1/3 | AC56: 8 | AD56: 1/3 | AE56: 2/7 | AF56: 2/5 | AG56: 3/9 | AH56: 2/5 | AI56: 8 | AJ56: 1/2 | AK56: 1/3 | AL56: 1/4 | AM56: 3/7 | AN56: 8 | AO56: 6 | AP56: 3/7 | AQ56: 3/8 | AR56: 3/5 | AS56: 8 | AT56: 8 | AU56: 3/8 | AV56: 2/6 | AW56: 2/5 | AX56: 2/5 | AY56: 2/7 | AZ56: 2/5 | BA56: 2/7 | BB56: 6 | BC56: 2/5 | BD56: 7 | BE56: 6 | BF56: 6 | BG56: 1/3 | BH56: 2/4 | BI56: 3/8 | BJ56: 8 | BK56: 1/3 | BL56: 1/3 | BM56: 3/7 | BN56: 2/6 | BO56: 1/4 | BP56: 2/7 | BQ56: 8 | BR56: 1/3 | BS56: 2/8 | BT56: 6 | BU56: 2/7 | BV56: 8 | BW56: 8
A57: Flying/Gliding | B57: Athletic | C57: Ag | D57: 3 | E57: 3/6 | F57: 3 | G57: 2/6 | H57: 3 | I57: 3/6 | J57: 2/6 | K57: 2/5 | L57: 2/6 | M57: 3/6 | N57: 1/5 | O57: 3/6 | P57: 2/7 | Q57: 3 | R57: 2/6 | S57: 3 | T57: 2/6 | U57: 2/4 | V57: 2/5 | W57: 2/7 | X57: 3/6 | Y57: 3 | Z57: 2/6 | AA57: 2/5 | AB57: 3/6 | AC57: 3 | AD57: 2/7 | AE57: 2/5 | AF57: 2/6 | AG57: 2/6 | AH57: 2/6 | AI57: 3 | AJ57: 3/6 | AK57: 3/6 | AL57: 3/6 | AM57: 3 | AN57: 3 | AO57: 3 | AP57: 2/5 | AQ57: 2/6 | AR57: 2/5 | AS57: 3 | AT57: 3 | AU57: 1/5 | AV57: 2/6 | AW57: 4/12 | AX57: 2/6 | AY57: 2/6 | AZ57: 2/6 | BA57: 3/6 | BB57: 3 | BC57: 2/6 | BD57: 3 | BE57: 3 | BF57: 3 | BG57: 3/6 | BH57: 3 | BI57: 2/6 | BJ57: 3 | BK57: 3/6 | BL57: 3/6 | BM57: 1/5 | BN57: 2/6 | BO57: 2/5 | BP57: 2/5 | BQ57: 3 | BR57: 6 | BS57: 2/5 | BT57: 1/4 | BU57: 2/6 | BV57: 3 | BW57: 3
A58: Holding Breath | B58: Athletic | C58: Co/Sd | D58: 6 | E58: 2/6 | F58: 8 | G58: 2/7 | H58: 6 | I58: 1/3 | J58: 3/8 | K58: 1/3 | L58: 2/7 | M58: 1/5 | N58: 3/7 | O58: 1/4 | P58: 6 | Q58: 7 | R58: 4 | S58: 8 | T58: 2/5 | U58: 1/5 | V58: 2/6 | W58: 4 | X58: 1/5 | Y58: 8 | Z58: 1/4 | AA58: 2/5 | AB58: 1/3 | AC58: 8 | AD58: 1/3 | AE58: 2/7 | AF58: 2/5 | AG58: 3/9 | AH58: 2/5 | AI58: 8 | AJ58: 1/2 | AK58: 1/3 | AL58: 1/4 | AM58: 3/7 | AN58: 8 | AO58: 6 | AP58: 3/7 | AQ58: 3/8 | AR58: 3/5 | AS58: 8 | AT58: 8 | AU58: 3/8 | AV58: 2/6 | AW58: 2/5 | AX58: 2/5 | AY58: 2/7 | AZ58: 2/5 | BA58: 2/7 | BB58: 6 | BC58: 2/5 | BD58: 7 | BE58: 6 | BF58: 6 | BG58: 1/3 | BH58: 2/4 | BI58: 3/8 | BJ58: 8 | BK58: 1/3 | BL58: 1/3 | BM58: 3/7 | BN58: 2/6 | BO58: 1/4 | BP58: 2/7 | BQ58: 8 | BR58: 1/3 | BS58: 2/8 | BT58: 6 | BU58: 2/7 | BV58: 8 | BW58: 8
A59: Portaging | B59: Athletic | C59: none | D59: 2/4 | E59: 1/2 | F59: 2/4 | G59: 2/5 | H59: 2/5 | I59: 1/2 | J59: 2/4 | K59: 5 | L59: 1/3 | M59: 1/4 | N59: 1/3 | O59: 1/2 | P59: 2/5 | Q59: 1/4 | R59: 2/6 | S59: 2/4 | T59: 2/5 | U59: 2/7 | V59: 2/6 | W59: 2/5 | X59: 1/2 | Y59: 2/4 | Z59: 2/6 | AA59: 1/4 | AB59: 1/2 | AC59: 2/4 | AD59: 2/5 | AE59: 1/4 | AF59: 1/3 | AG59: 2/5 | AH59: 1/3 | AI59: 1/4 | AJ59: 1/2 | AK59: 1/2 | AL59: 1/2/2 | AM59: 1/4 | AN59: 2/4 | AO59: 2/4 | AP59: 2/4 | AQ59: 1/3 | AR59: 2/6 | AS59: 2/4 | AT59: 1/4 | AU59: 1/3 | AV59: 2/6 | AW59: 1/3 | AX59: 1/3 | AY59: 1/4 | AZ59: 1/3 | BA59: 1/2 | BB59: 1/4 | BC59: 1/3 | BD59: 1/4 | BE59: 2/5 | BF59: 1/4 | BG59: 1/2 | BH59: 1/6 | BI59: 2/4 | BJ59: 2/4 | BK59: 1/2 | BL59: 1/2 | BM59: 1/3 | BN59: 2/5 | BO59: 1/4 | BP59: 1/4 | BQ59: 2/4 | BR59: 1/4 | BS59: 1/4 | BT59: 2/6 | BU59: 1/4 | BV59: 2/4 | BW59: 2/4
A60: Rappelling | B60: Athletic | C60: Ag | D60: 7 | E60: 3/7 | F60: 6 | G60: 1/3 | H60: 7 | I60: 3/7 | J60: 3/9 | K60: 2/5 | L60: 3/7 | M60: 3/7 | N60: 2/5 | O60: 3/7 | P60: 5 | Q60: 6 | R60: 2/6 | S60: 3/7 | T60: 3/9 | U60: 2/5 | V60: 3/7 | W60: 4 | X60: 3/7 | Y60: 7 | Z60: 2/6 | AA60: 2/5 | AB60: 3/7 | AC60: 6 | AD60: 6 | AE60: 2/5 | AF60: 3/7 | AG60: 3/9 | AH60: 3/7 | AI60: 7 | AJ60: 2/4 | AK60: 3/7 | AL60: 3/7 | AM60: 7 | AN60: 6 | AO60: 5 | AP60: 3/7 | AQ60: 3/9 | AR60: 3/7 | AS60: 7 | AT60: 7 | AU60: 2/5 | AV60: 2/6 | AW60: 3/7 | AX60: 3/7 | AY60: 3/9 | AZ60: 3/7 | BA60: 3/7 | BB60: 8 | BC60: 3/7 | BD60: 7 | BE60: 4 | BF60: 7 | BG60: 3/7 | BH60: 6 | BI60: 3/9 | BJ60: 7 | BK60: 3/7 | BL60: 3/7 | BM60: 2/5 | BN60: 3/7 | BO60: 2/4 | BP60: 3/7 | BQ60: 4 | BR60: 6 | BS60: 3/8 | BT60: 8 | BU60: 3/9 | BV60: 6 | BW60: 6
